Workbook

Sheet Contents
A1: 80 | M1: ESC USE ONLY
D2: ESSENTIAL SERVICES COMMISSION
D3: Water Price Review - 2020
D4: Financial Model Template
B7: Table of Contents | F7: Water Business: | H7: =+N24 -> Western Water | I7: =+O24 -> WW
B8: Section & Sheet Titles | F8: Regulatory Period: | H8: 2020-21 to 2022-23 (Fourth - B) | N8: [Decision] | O8: [Month] | P8: [Year] | Q8: [Version]
F9: Model Name: | H9: =I7&"_Price Review Template_"&O9&P9&Q9 -> WW_Price Review Template_Dec2018 - v1 | N9: Draft | O9: Dec | P9: 2018 | Q9: - v1 | R9: << Select
B10: 1 | C10: Model Quality Check | F10: Decision type: | H10: =+N9&" Decision" -> Draft Decision | N10: Draft | O10: Jan | P10: 2016 | Q10: - v1
B11: =B10+1 -> 2 | C11: =+KeyAssumptionsPriceControl_FO!B1 -> Key Assumptions Price Control | N11: Final | O11: Feb | P11: 2017 | Q11: - v1.2
B12: =B11+1 -> 3 | C12: =+Expenditure_Detail!B1 -> Expenditure - Detail | F12: Model Key: | O12: Mar | P12: 2018 | Q12: - v3
B13: 4 | C13: =Opex_FO!B1 -> Operating Expenditure - Forecast | O13: Apr | P13: 2019 | Q13: - v3.1
B14: 5 | C14: =Opex_Breakdown!B1 -> Operating Expenditure - Breakdown | G14: BLUE | H14: =+I7&" - DATA INPUT CELL" -> WW - DATA INPUT CELL | O14: May | P14: 2020 | Q14: - v4
B15: 6 | C15: =+'Capex_FO input'!B1 -> Capital Expenditure - Forecast Input | O15: Jun | P15: 2021 | Q15: - v4.1
B16: 7 | C16: =Capex_FO_AC!B1 -> Capital Expenditure - Asset Category Breakdown | G16: YELLOW | H16: NOTES / INSTRUCTIONS | O16: Jul | Q16: - v5
B17: 8 | C17: =ExpSummary_FO!B1 -> Expenditure Summary | O17: Aug | Q17: - v5.1
B18: 9 | C18: =RollForward_FO!B1 -> Rolled forward regulatory asset base (RAB) | G18: GREY | H18: MODEL PARAMETERS / ASSUMPTIONS | O18: Sep | Q18: - v6
B19: 10 | C19: =PrevPerAdj_FO!B1 -> Previous period adjustments | O19: Oct | Q19: - v6.1
B20: 11 | C20: =RevenuePriceCap_FO!C1 -> Revenue forecast (price caps) | G20: WHITE | H20: FORMULA / HARDCODED VALUES | O20: Nov | Q20: - v7
B21: 12 | C21: Revenue forecast (tariff basket) | O21: Dec | Q21: - v7.1
B22: 13 | C22: =NotPres_FO!B1 -> Non Prescribed Services | G22: ORANGE | H22: FORMULA DIFFERENT TO ADJACENT CELL
B23: 14 | C23: ='Finance&Tax_FO'!B1 -> Cash, debt and tax assumptions | N23: [Business]
B24: 15 | C24: ='Rev&RAV_FO'!B1 -> Revenue requirement detail | G24: GREEN | H24: DATA FROM 2018 DECISION OR PERFORMANCE REPORT | N24: Western Water | O24: =+VLOOKUP(N24,N25:O42,2,FALSE) -> WW
B25: 16 | C25: =Indicators_FO!B1 -> Financial indicators | N25: Barwon Water | O25: BW
B26: 17 | C26: =Outcomes!B1 -> Outcomes | G26: RED | H26: ERROR CHECK | N26: Central Highlands Water | O26: CHW
B27: 18 | C27: =GSL!B1 -> Guaranteed Service Levels (GSL) | N27: City West Water | O27: CWW
B28: 19 | C28: Dashboard - Pricing | N28: Coliban Water | O28: CW
B29: 20 | C29: Dashboard - Opex | N29: East Gippsland Water | O29: EGW
B30: 21 | C30: Dashboard - Capex | N30: Gippsland Water | O30: CGW
B31: 22 | C31: Dashboard - Data | N31: Goulburn Valley Water | O31: GVW
B32: 23 | C32: Household Bill | N32: GWM Water | O32: GWMW | P32: diff model
N33: Lower Murray Water - Urban | O33: LMW-U | P33: diff model
N34: Lower Murray Water - Rural | O34: LMW-R
N35: North East Water | O35: NEW
N36: South East Water | O36: SEW
N37: South Gippsland Water | O37: SGW
N38: Southern Rural Water | O38: SRW | P38: diff model
N39: Wannon Water | O39: WNW
N40: Western Water | O40: WW
N41: Westernport Water | O41: WPW
N42: Yarra Valley Water | O42: YVW

Sheet Model Quality Check
A1: 80 | B1: Model Quality Check
B2: =Model_Name -> Western Water
B3: Go to Table of Contents
K4: FIRST REG PERIOD | O4: SECOND REG PERIOD | R4: THIRD REG PERIOD | W4: FOURTH REG PERIOD (A) | Y4: FOURTH REG PERIOD (B) | AB4: FIFTH REG PERIOD
F6: Straight Line | J6: 2006 | K6: 2007 | L6: 2008 | M6: 2009 | N6: 2010 | O6: 2011 | P6: 2012 | Q6: 2013 | R6: 2014 | S6: 2015 | T6: 2016 | U6: 2017 | V6: 2018 | W6: 2019 | X6: 2020 | Y6: 2021 | Z6: 2022 | AA6: 2023 | AB6: 2024 | AC6: 2025 | AD6: 2026 | AE6: 2027 | AF6: 2028
F7: Declining Balance | J7: =+CONCATENATE(J6-1,"-",RIGHT(J6,2)) -> 2005-06 | K7: 2006-07 | L7: 2007-08 | M7: 2008-09 | N7: 2009-10 | O7: 2010-11 | P7: 2011-12 | Q7: 2012-13 | R7: 2013-14 | S7: 2014-15 | T7: 2015-16 | U7: 2016-17 | V7: 2017-18 | W7: =+CONCATENATE(W6-1,"-",RIGHT(W6,2)) -> 2018-19 | X7: =+CONCATENATE(X6-1,"-",RIGHT(X6,2)) -> 2019-20 | Y7: =+CONCATENATE(Y6-1,"-",RIGHT(Y6,2)) -> 2020-21 | Z7: =+CONCATENATE(Z6-1,"-",RIGHT(Z6,2)) -> 2021-22 | AA7: =+CONCATENATE(AA6-1,"-",RIGHT(AA6,2)) -> 2022-23 | AB7: =+CONCATENATE(AB6-1,"-",RIGHT(AB6,2)) -> 2023-24 | AC7: 2024-25 | AD7: 2025-26 | AE7: 2026-27 | AF7: 2027-28
D9: Model ready for submission: | I9: =IF(AND(X13=Y16=Z16=AA16=AB16=AC16=AD16=AE16=AF16=Y19=Z19=AA19=AB19=AC19=AD19=AE19=AF19=W21=X21=Y21=Z21=AA21=AB21=AC21=AD21=AE21=AF21=Y24=Z24=AA24=AB24=AC24=AD24=AE24=AF24=Y27=Z27=AA27=AB27=AC27=AD27=AE27=AF27=T37=U37=V37=W37=X37=Y37=Z37=AA37=AB37=AC37=AD37=AE37=AF37=T44=U44=V44=W44=X44=Y44=Z44=AA44=AB44=AC44=AD44=AE44=AF44=T47=U47=V47=W47=X47=Y47=Z47=AA47=AB47=AC47=AD47=AE47=AF47=Y50=Z50=AA50=AB50=AC50=AD50=AE50=AF50,Y30="TRUE",Y33="TRUE",Y35="TRUE",Y40="TRUE",Y42="TRUE"),"YES","NO") -> NO | R9: (If No, please ensure that the error check is corrected at the source)
E12: 1. | F12: KeyAssumptionsPriceControl_FO
G13: March quarter annual CPI | X13: =ISNUMBER(KeyAssumptionsPriceControl_FO!Y13) -> TRUE | Y13: Inflation data must be updated based on ABS March CPI - All Groups (Series ID: A2325846C)
E15: 2. | F15: Opex_FO
G16: Reconciliation to 'Opex_Breakdown' tab row 37 | Y16: =Opex_FO!Z100 -> TRUE | Z16: =Opex_FO!AA100 -> TRUE | AA16: =Opex_FO!AB100 -> FALSE | AB16: =Opex_FO!AC100 -> TRUE | AC16: =Opex_FO!AD100 -> TRUE | AD16: =Opex_FO!AE100 -> TRUE | AE16: =Opex_FO!AF100 -> TRUE | AF16: =Opex_FO!AG100 -> FALSE
E18: 3. | F18: Opex_Breakdown
G19: Reconciliation to 'Opex_FO' tab row 92 | Y19: =Opex_Breakdown!Z42 -> TRUE | Z19: =Opex_Breakdown!AA42 -> TRUE | AA19: =Opex_Breakdown!AB42 -> FALSE | AB19: =Opex_Breakdown!AC42 -> TRUE | AC19: =Opex_Breakdown!AD42 -> TRUE | AD19: =Opex_Breakdown!AE42 -> TRUE | AE19: =Opex_Breakdown!AF42 -> TRUE | AF19: =Opex_Breakdown!AG42 -> FALSE
G21: Reconciliation of Opex by service and function | W21: =Opex_Breakdown!X27 -> FALSE | X21: =Opex_Breakdown!Y27 -> FALSE | Y21: =Opex_Breakdown!Z27 -> FALSE | Z21: =Opex_Breakdown!AA27 -> FALSE | AA21: =Opex_Breakdown!AB27 -> FALSE | AB21: =Opex_Breakdown!AC27 -> FALSE | AC21: =Opex_Breakdown!AD27 -> FALSE | AD21: =Opex_Breakdown!AE27 -> FALSE | AE21: =Opex_Breakdown!AF27 -> FALSE | AF21: =Opex_Breakdown!AG27 -> FALSE
E23: 4. | F23: Capex_FO input
G24: Reconciliation of total prescribed capex between cost driver and capital type | Y24: ='Capex_FO input'!D26 -> TRUE | Z24: ='Capex_FO input'!E26 -> FALSE | AA24: ='Capex_FO input'!F26 -> TRUE | AB24: ='Capex_FO input'!G26 -> TRUE | AC24: ='Capex_FO input'!H26 -> FALSE | AD24: ='Capex_FO input'!I26 -> TRUE | AE24: ='Capex_FO input'!J26 -> TRUE | AF24: ='Capex_FO input'!K26 -> TRUE
E26: 5. | F26: Capex_FO_AC
G27: Reconciliation to 'Capex_FO input' tab row 29 | Y27: =Capex_FO_AC!Z30 -> TRUE | Z27: =Capex_FO_AC!AA30 -> FALSE | AA27: =Capex_FO_AC!AB30 -> TRUE | AB27: =Capex_FO_AC!AC30 -> TRUE | AC27: =Capex_FO_AC!AD30 -> FALSE | AD27: =Capex_FO_AC!AE30 -> TRUE | AE27: =Capex_FO_AC!AF30 -> TRUE | AF27: =Capex_FO_AC!AG30 -> TRUE
E29: 6. | F29: RollForward_FO
G30: Reconciliation of existing assets book value to RAB | Y30: =IF(RollForward_FO!G82=0,"TRUE",ROUND(RollForward_FO!G84,2)=ROUND(RollForward_FO!G82,2)) -> FALSE
E32: 7. | F32: RevenuePriceCap_FO
G33: Price control - Fourth period | Y33: =IF(KeyAssumptionsPriceControl_FO!I48=1,IF(RevenuePriceCap_FO!Y34="PRICE CONTROL OK","TRUE","FALSE"),"TRUE") -> TRUE | Z33: =IF(KeyAssumptionsPriceControl_FO!I48=1,RevenuePriceCap_FO!Y34,"") -> PRICE CONTROL OK
G35: Price control - Fifth period | Y35: =IF(KeyAssumptionsPriceControl_FO!I48=1,IF(RevenuePriceCap_FO!AD34="PRICE CONTROL OK","TRUE","FALSE"),"TRUE") -> TRUE | Z35: =IF(KeyAssumptionsPriceControl_FO!I48=1,RevenuePriceCap_FO!AD34,"") -> PRICE CONTROL OK
G37: Tariff revenue reconciliation | R37: =RevenuePriceCap_FO!S458 -> FALSE | S37: =RevenuePriceCap_FO!T458 -> TRUE | T37: =RevenuePriceCap_FO!U458 -> TRUE | U37: =RevenuePriceCap_FO!V458 -> TRUE | V37: =RevenuePriceCap_FO!W458 -> TRUE | W37: =RevenuePriceCap_FO!X458 -> TRUE | X37: =RevenuePriceCap_FO!Y458 -> TRUE | Y37: =RevenuePriceCap_FO!Z458 -> TRUE | Z37: =RevenuePriceCap_FO!AA458 -> TRUE | AA37: =RevenuePriceCap_FO!AB458 -> TRUE | AB37: =RevenuePriceCap_FO!AC458 -> TRUE | AC37: =RevenuePriceCap_FO!AD458 -> TRUE | AD37: =RevenuePriceCap_FO!AE458 -> TRUE | AE37: =RevenuePriceCap_FO!AF458 -> TRUE | AF37: =RevenuePriceCap_FO!AG458 -> TRUE
E39: 8. | F39: RevenueTariffBasket_FO
G40: Price control - Fourth period | Y40: =IF(KeyAssumptionsPriceControl_FO!I48=2,IF(RevenueTariffBasket_FO!Y34="PRICE CONTROL OK","TRUE","FALSE"),"TRUE") -> TRUE | Z40: =IF(KeyAssumptionsPriceControl_FO!I48=2,RevenueTariffBasket_FO!Y34,"") -> 
G42: Price control - Fifth period | Y42: =IF(KeyAssumptionsPriceControl_FO!I48=2,IF(RevenueTariffBasket_FO!AD34="PRICE CONTROL OK","TRUE","FALSE"),"TRUE") -> TRUE | Z42: =IF(KeyAssumptionsPriceControl_FO!I48=2,RevenueTariffBasket_FO!AD34,"") -> 
G44: Tariff revenue reconciliation | R44: =RevenueTariffBasket_FO!S458 -> TRUE | S44: =RevenueTariffBasket_FO!T458 -> TRUE | T44: =RevenueTariffBasket_FO!U458 -> TRUE | U44: =RevenueTariffBasket_FO!V458 -> TRUE | V44: =RevenueTariffBasket_FO!W458 -> TRUE | W44: =RevenueTariffBasket_FO!X458 -> TRUE | X44: =RevenueTariffBasket_FO!Y458 -> TRUE | Y44: =RevenueTariffBasket_FO!Z458 -> TRUE | Z44: =RevenueTariffBasket_FO!AA458 -> TRUE | AA44: =RevenueTariffBasket_FO!AB458 -> TRUE | AB44: =RevenueTariffBasket_FO!AC458 -> TRUE | AC44: =RevenueTariffBasket_FO!AD458 -> TRUE | AD44: =RevenueTariffBasket_FO!AE458 -> TRUE | AE44: =RevenueTariffBasket_FO!AF458 -> TRUE | AF44: =RevenueTariffBasket_FO!AG458 -> TRUE
E46: 9. | F46: Rev&RAV_FO
G47: Rolled forward RAV reconciliation | R47: ='Rev&RAV_FO'!S80 -> TRUE | S47: ='Rev&RAV_FO'!T80 -> TRUE | T47: ='Rev&RAV_FO'!U80 -> TRUE | U47: ='Rev&RAV_FO'!V80 -> TRUE | V47: ='Rev&RAV_FO'!W80 -> TRUE | W47: ='Rev&RAV_FO'!X80 -> TRUE | X47: ='Rev&RAV_FO'!Y80 -> TRUE | Y47: ='Rev&RAV_FO'!Z80 -> TRUE | Z47: ='Rev&RAV_FO'!AA80 -> TRUE | AA47: ='Rev&RAV_FO'!AB80 -> TRUE | AB47: ='Rev&RAV_FO'!AC80 -> TRUE | AC47: ='Rev&RAV_FO'!AD80 -> TRUE | AD47: ='Rev&RAV_FO'!AE80 -> TRUE | AE47: ='Rev&RAV_FO'!AF80 -> TRUE | AF47: ='Rev&RAV_FO'!AG80 -> TRUE
E49: 10. | F49: GSL
G50: Reconciliation to 'Opex_Breakdown' tab row 23 | Y50: =GSL!Z40=GSL!Z39 -> TRUE | Z50: =GSL!AA40=GSL!AA39 -> TRUE | AA50: =GSL!AB40=GSL!AB39 -> TRUE | AB50: =GSL!AC40=GSL!AC39 -> TRUE | AC50: =GSL!AD40=GSL!AD39 -> TRUE | AD50: =GSL!AE40=GSL!AE39 -> TRUE | AE50: =GSL!AF40=GSL!AF39 -> TRUE | AF50: =GSL!AG40=GSL!AG39 -> TRUE

Sheet KeyAssumptionsPriceControl_FO
A1: 80 | B1: Key Assumptions Price Control
B2: =+Contents!H7 -> Western Water
B3: Go to Table of Contents
L4: FIRST REG PERIOD | P4: SECOND REG PERIOD | U4: THIRD REG PERIOD | X4: FOURTH REG PERIOD (A) | Z4: FOURTH REG PERIOD (B) | AC4: FIFTH REG PERIOD
F6: Straight Line | K6: 2006 | L6: 2007 | M6: 2008 | N6: 2009 | O6: 2010 | P6: 2011 | Q6: 2012 | R6: 2013 | S6: 2014 | T6: 2015 | U6: 2016 | V6: 2017 | W6: 2018 | X6: 2019 | Y6: 2020 | Z6: 2021 | AA6: 2022 | AB6: 2023 | AC6: 2024 | AD6: 2025 | AE6: 2026 | AF6: 2027 | AG6: 2028
F7: Declining Balance | I7: 2003-04 | J7: 2004-05 | K7: =+CONCATENATE(K6-1,"-",RIGHT(K6,2)) -> 2005-06 | L7: =+CONCATENATE(L6-1,"-",RIGHT(L6,2)) -> 2006-07 | M7: 2007-08 | N7: 2008-09 | O7: 2009-10 | P7: 2010-11 | Q7: 2011-12 | R7: 2012-13 | S7: 2013-14 | T7: 2014-15 | U7: 2015-16 | V7: 2016-17 | W7: 2017-18 | X7: 2018-19 | Y7: 2019-20 | Z7: 2020-21 | AA7: 2021-22 | AB7: 2022-23 | AC7: 2023-24 | AD7: 2024-25 | AE7: 2025-26 | AF7: 2026-27 | AG7: 2027-28
E11: Inflation assumptions
Y12: Actual
F13: March quarter annual CPI | I13: 141.3 | J13: 144.1 | K13: 147.5 | L13: 151.9 | M13: 155.6 | N13: 162.2 | O13: 166.2 | P13: 171 | Q13: 176.7 | R13: 99.9 | S13: 102.4 | T13: 105.4 | U13: 106.8 | V13: 108.2 | W13: 110.5 | X13: 112.6 | Y13: 114.1
F14: Inflation | J14: =+J13/I13-1 -> 0.01981599434 | K14: 0.02359472588 | L14: 0.02983050847 | M14: 0.02435813035 | N14: 0.04241645244 | O14: 0.02466091245 | P14: 0.02888086643 | Q14: 0.03333333333 | R14: 0.01584606678 | S14: =+IF(S13=0,$Z$44,S13/R13-1) -> 0.02502502503 | T14: 0.029296875 | U14: 0.01328273245 | V14: 0.01310861423 | W14: 0.02125693161 | X14: 0.01900452489 | Y14: 0.01332149201 | Z14: 0.023 | AA14: 0.023 | AB14: 0.023 | AC14: 0.023 | AD14: 0.023 | AE14: 0.023 | AF14: 0.023 | AG14: 0.023
F15: Inflation factor | I15: 0.7871866295 | J15: 0.8027855153 | K15: 0.8217270195 | L15: 0.8462395543 | M15: 0.8668523677 | N15: 0.9036211699 | O15: 0.9259052925 | P15: 0.9526462396 | Q15: 0.9844011142 | R15: =+R13/$Y$13 -> 0.8755477651 | S15: 0.8974583699 | T15: 0.9237510955 | U15: 0.9360210342 | V15: 0.9482909728 | W15: 0.9684487292 | X15: 0.9868536372 | Y15: =+Y13/$Y$13 -> 1 | Z15: =+Y15*(1+Z14) -> 1.023 | AA15: 1.046529 | AB15: 1.070599167 | AC15: 1.095222948 | AD15: 1.120413076 | AE15: 1.146182576 | AF15: 1.172544776 | AG15: 1.199513305
I16: CPI index re-referenced in 2012-13, shaded values have been hardcoded to lock in RAB value.
E21: Cost of debt - 10 year trailing average (Nominal)
X22: Actual | Y22: WW Estimate
E23: Cost of debt | L23: 0.06981666667 | M23: 0.07414 | N23: 0.0691525788 | O23: 0.07361870984 | P23: 0.07046784142 | Q23: 0.06308887941 | R23: 0.0526945046 | S23: 0.070525 | T23: 0.05360833333 | U23: 0.05270138413 | V23: 0.04908333333 | W23: 0.045283 | X23: 0.04613 | Y23: 0.03316666667
E24: Re-financing weightings - average 10 yrs | L24: =1/10 -> 0.1 | M24: =1/10 -> 0.1 | N24: =1/10 -> 0.1 | O24: =1/10 -> 0.1 | P24: =1/10 -> 0.1 | Q24: 0.1 | R24: 0.1 | S24: 0.1 | T24: 0.1 | U24: 0.1 | V24: 0.1 | W24: 0.1 | X24: 0.1 | Y24: 0.1 | Z24: 0.1 | AA24: 0.1 | AB24: 0.1 | AC24: 0.1 | AD24: 0.1 | AE24: 0.1 | AF24: 0.1 | AG24: 0.1
E26: Cost of debt - 10 year trailing average | V26: =IF(U23<>"",SUMPRODUCT(L23:U23,L24:U24),"") -> 0.06498138982 | W26: =IF(V23<>"",SUMPRODUCT(M23:V23,M24:V24),"") -> 0.06290805649 | X26: =IF(W23<>"",SUMPRODUCT(N23:W23,N24:W24),"") -> 0.06002235649 | Y26: =IF(X23<>"",SUMPRODUCT(O23:X23,O24:X24),"") -> 0.05772009861 | Z26: 0.05367489429 | AA26: =IF(Z23<>"",SUMPRODUCT(Q23:Z23,Q24:Z24),"") -> 
E30: WACC assumptions (retained for historical purposes only) | W30: Regulatory Rate of Return (RRR) - Nominal
K32: 1st period | M32: 2nd period | O32: 3rd period | W32: Cost of Debt | Z32: =+Z26 -> 0.05367489429 | AA32: =+$Z$32 -> 0.05367489429 | AB32: 0.05367489429 | AC32: 0.05367489429 | AD32: 0.05367489429 | AE32: 0.05367489429 | AF32: 0.05367489429 | AG32: 0.05367489429 | AI32: << Linked to Benchmark tax liability calculation (Rev&RAV_FO)
E33: Parameters
F34: Risk Free Rate (Real) | K34: =+HLOOKUP(Contents!$I$7&1,Determination_Lookup!$C$22:$BE$29,2,FALSE) -> 0.0267 | M34: =+HLOOKUP(Contents!$I$7&2,Determination_Lookup!$C$22:$BE$29,2,FALSE) -> 0.0323 | O34: =+HLOOKUP(Contents!$I$7&3,Determination_Lookup!$C$22:$BE$29,2,FALSE) -> 0.005959
F35: Debt Premium | K35: =+HLOOKUP(Contents!$I$7&1,Determination_Lookup!$C$22:$BE$29,3,FALSE) -> 0.0116 | M35: =+HLOOKUP(Contents!$I$7&2,Determination_Lookup!$C$22:$BE$29,3,FALSE) -> 0.0175 | O35: =+HLOOKUP(Contents!$I$7&3,Determination_Lookup!$C$22:$BE$29,3,FALSE) -> 0.0399
F36: Equity Premium | K36: =+HLOOKUP(Contents!$I$7&1,Determination_Lookup!$C$22:$BE$29,4,FALSE) -> 0.06 | M36: =+HLOOKUP(Contents!$I$7&2,Determination_Lookup!$C$22:$BE$29,4,FALSE) -> 0.06 | O36: =+HLOOKUP(Contents!$I$7&3,Determination_Lookup!$C$22:$BE$29,4,FALSE) -> 0.06 | W36: Regulatory Rate of Return (RRR) - Real
F37: Equity Beta | K37: =+HLOOKUP(Contents!$I$7&1,Determination_Lookup!$C$22:$BE$29,5,FALSE) -> 0.75 | M37: =+HLOOKUP(Contents!$I$7&2,Determination_Lookup!$C$22:$BE$29,5,FALSE) -> 0.65 | O37: =+HLOOKUP(Contents!$I$7&3,Determination_Lookup!$C$22:$BE$29,5,FALSE) -> 0.65
F38: Gearing (Debt/Assets) | K38: =+HLOOKUP(Contents!$I$7&1,Determination_Lookup!$C$22:$BE$29,6,FALSE) -> 0.6 | M38: =+HLOOKUP(Contents!$I$7&2,Determination_Lookup!$C$22:$BE$29,6,FALSE) -> 0.6 | O38: =+HLOOKUP(Contents!$I$7&3,Determination_Lookup!$C$22:$BE$29,6,FALSE) -> 0.6 | W38: Cost of Debt | Z38: =(1+Z32)/(1+Z44)-1 -> 0.02998523391 | AA38: =+$Z$38 -> 0.02998523391 | AB38: 0.02998523391 | AC38: 0.02998523391 | AD38: 0.02998523391 | AE38: 0.02998523391 | AF38: 0.02998523391 | AG38: 0.02998523391
F39: Forecast Inflation | K39: =+HLOOKUP(Contents!$I$7&1,Determination_Lookup!$C$22:$BE$29,7,FALSE) -> 0.0255 | M39: =+HLOOKUP(Contents!$I$7&2,Determination_Lookup!$C$22:$BE$29,7,FALSE) -> 0.025 | O39: =+HLOOKUP(Contents!$I$7&3,Determination_Lookup!$C$22:$BE$29,7,FALSE) -> 0.0275
F40: Franking credit value | K40: =+HLOOKUP(Contents!$I$7&1,Determination_Lookup!$C$22:$BE$29,8,FALSE) -> 0.5 | M40: =+HLOOKUP(Contents!$I$7&2,Determination_Lookup!$C$22:$BE$29,8,FALSE) -> 0.5 | O40: =+HLOOKUP(Contents!$I$7&3,Determination_Lookup!$C$22:$BE$29,8,FALSE) -> 0.5 | W40: Return on Equity | Z40: 0.045 | AA40: =+$Z$40 -> 0.045 | AB40: 0.045 | AC40: 0.045 | AD40: 0.045 | AE40: 0.045 | AF40: 0.045 | AG40: 0.045
E42: 'Vanilla' After Tax WACC (Real) | K42: =ROUND(((K34+K36*K37)*(1-K38))+((K34+K35)*K38),3) -> 0.052 | M42: =ROUND(((M34+M36*M37)*(1-M38))+((M34+M35)*M38),3) -> 0.058 | O42: =ROUND(((O34+O36*O37)*(1-O38))+((O34+O35)*O38),3) -> 0.045 | W42: RRR (real) | Z42: =ROUND((Z40*(1-Z43)+Z38*Z43),4) -> 0.036 | AA42: =ROUND((AA40*(1-AA43)+AA38*AA43),4) -> 0.036 | AB42: 0.036 | AC42: 0.036 | AD42: 0.036 | AE42: 0.036 | AF42: 0.036 | AG42: 0.036
W43: Gearing | Z43: 0.6 | AA43: =+Z43 -> 0.6 | AB43: =+AA43 -> 0.6 | AC43: 0.6 | AD43: 0.6 | AE43: 0.6 | AF43: 0.6 | AG43: 0.6
W44: Forecast Inflation | Z44: 0.023 | AA44: =+Z44 -> 0.023 | AB44: 0.023 | AC44: 0.023 | AD44: 0.023 | AE44: 0.023 | AF44: 0.023 | AG44: 0.023 | AI44: <<< forecast inflation is set based on the forecast inflation calculated by the Department of Treasury and Finance (https://www.dtf.vic.gov.au/state-financial-data-sets/macroeconomic-indicators)
L45: Regulatory Rate of Return (RRR) [retained for historical purposes only]
E46: Form of price control selected
O47: 4th period
E48: Price caps | I48: 1 | L48: Cost of Debt | O48: 0.03618998679 | AB48: PREMO Assessment Matrix (linked to Regulatory Rate of Return calculation above)
L49: Return on Equity | O49: 0.045 | U49: PREMO Graded Scoring System (for reference only)
E50: Revenue cap / Hybrid Tariff Basket | L50: Gearing | O50: 0.6
L51: Forecast Inflation | O51: 0.023 | AD51: Water business self-assessment
L52: RRR (real) | O52: =ROUND((O49*(1-O50)+O48*O50),4) -> 0.0397 | V52: Water business | X52: ESC assessment | Z52: Difference
V53: self-assessment | X53: of submission | AD53: Leading | AE53: Advanced | AF53: Standard | AG53: Basic
AB54: ESC assessment of submission | AC54: Leading | AD54: 5.3
U55: Risk | V55: [Select] | Z55: =IFERROR(IF(X55=0,"",X55-V55),"") ->  | AC55: Advanced | AD55: 4.7 | AE55: 4.9
U56: Engagement | V56: [Select] | Z56: =IFERROR(IF(X56=0,"",X56-V56),"") ->  | AC56: Standard | AD56: 4.1 | AE56: 4.3 | AF56: 4.5
U57: Management | V57: [Select] | Z57: =IFERROR(IF(X57=0,"",X57-V57),"") ->  | AC57: Basic | AF57: 3.9 | AG57: 4.1
U58: Outcomes | V58: [Select] | Z58: =IFERROR(IF(X58=0,"",X58-V58),"") -> 
U60: Total Score | V60: =SUM(V55:V58) -> 0 | X60: =SUM(X55:X58) -> 0 | Z60: =IFERROR(IF(X60=0,"",X60-V60),"") ->  | AB60: Water business self-assessment (Maximum allowable ROE) | AF60: [Select] | AG60: =+VLOOKUP(AF60,$AF$72:$AG$76,2,FALSE) -> 0
AB62: ROE Override (Must be less than Maximum allowable ROE) | AG62: =+IF(AF62<=AG60,AF62,"CHECK") -> 0
U64: Rating | V64: =IF(V60<4,"",IF(AND(V60>=4,V60<=7.25),"Basic",IF(AND(V60>=7.5,V60<=11.25),"Standard",IF(AND(V60>=11.5,V60<=15.25),"Advanced",IF(AND(V60>=15.5,V60<=16),"Leading"))))) ->  | X64: =IF(X60<4,"",IF(AND(X60>=4,X60<=7.25),"Basic",IF(AND(X60>=7.5,X60<=11.25),"Standard",IF(AND(X60>=11.5,X60<=15.25),"Advanced",IF(AND(X60>=15.5,X60<=16),"Leading"))))) ->  | AB64: ESC assessment of submission | AF64: [Select] | AG64: =IFERROR(IF(AF64=AF60,AG60,VLOOKUP(AF60&AF64,AF79:AG83,2,FALSE)),0) -> 0
AF66: Difference | AG66: =IFERROR(IF(AG64=0,"",AG64-AG60),"") -> 
U70: ESC USE ONLY
W71: [Select] | Y71: Rating | Z71: Aggregate score for overall PREMO rating | AF71: Business self assessment
W72: 1 | Y72: Leading | Z72: 15.5 to 16.0 | AF72: [Select]
W73: 1.25 | Y73: Advanced | Z73: 11.5 to 15.25 | AF73: Leading | AG73: =+AD54 -> 5.3
W74: 1.5 | Y74: Standard | Z74: 7.5 to 11.25 | AF74: Advanced | AG74: =+AE55 -> 4.9
W75: 1.75 | Y75: Basic | Z75: 4.0 to 7.25 | AF75: Standard | AG75: =+AF56 -> 4.5
W76: 2 | AF76: Basic | AG76: =+AG57 -> 4.1
W77: 2.25
W78: 2.5 | AF78: downgrading
W79: 2.75 | AF79: =AF53&AC57 -> StandardBasic | AG79: =+AF57 -> 3.9
W80: 3 | AF80: =+AE53&AC56 -> AdvancedStandard | AG80: =+AE56 -> 4.3
W81: 3.25 | AF81: =+AD53&AC55 -> LeadingAdvanced | AG81: =+AD55 -> 4.7
W82: 3.5 | AF82: =+AD53&AC56 -> LeadingStandard | AG82: =+AD56 -> 4.1
W83: 3.75 | AF83: =+AF60&"Basic" -> [Select]Basic | AG83: CHECK
W84: 4

Sheet Expenditure_Detail
B1: Expenditure - Detail
B2: =Model_Name -> Western Water
B3: Go to Table of Contents
L4: FIRST REG PERIOD | P4: SECOND REG PERIOD | U4: THIRD REG PERIOD | X4: FOURTH REG PERIOD (A) | Z4: FOURTH REG PERIOD (B) | AC4: FIFTH REG PERIOD
K5: 2006 | L5: 2007 | M5: 2008 | N5: 2009 | O5: 2010 | P5: 2011 | Q5: 2012 | R5: 2013 | S5: 2014 | T5: 2015 | U5: 2016 | V5: 2017 | W5: 2018 | X5: 2019 | Y5: 2020 | Z5: 2021 | AA5: 2022 | AB5: 2023 | AC5: 2024 | AD5: 2025 | AE5: 2026 | AF5: 2027 | AG5: 2028
B6: $m, 01/01/20 | K6: =+CONCATENATE(K5-1,"-",RIGHT(K5,2)) -> 2005-06 | L6: =+CONCATENATE(L5-1,"-",RIGHT(L5,2)) -> 2006-07 | M6: 2007-08 | N6: 2008-09 | O6: 2009-10 | P6: 2010-11 | Q6: 2011-12 | R6: 2012-13 | S6: 2013-14 | T6: 2014-15 | U6: 2015-16 | V6: 2016-17 | W6: 2017-18 | X6: 2018-19 | Y6: 2019-20 | Z6: 2020-21 | AA6: 2021-22 | AB6: 2022-23 | AC6: 2023-24 | AD6: 2024-25 | AE6: 2025-26 | AF6: 2026-27 | AG6: 2027-28
B8: This worksheet outlines the key cost drivers of operating expenditure - capitalised costs are excluded. This tab does not link to the Rev&RAV_FO worksheet
C11: Expenditure Summary
D13: Total Labour costs | R13: =R33 -> 0 | S13: =S33 -> 148 | T13: 152 | U13: 151 | V13: 161.38 | W13: 167.6 | X13: 179.25 | Y13: 182.5421053 | Z13: 188.5421053 | AA13: 189.5421053 | AB13: 189.5421053 | AC13: 189.5421053 | AD13: 189.5421053 | AE13: 189.5421053 | AF13: 189.5421053 | AG13: 189.5421053
D14: Total Energy costs | R14: =R92 -> 0 | S14: =S92 -> 3.366019674 | T14: 3.425611171 | U14: 3.578163366 | V14: 3.397328837 | W14: 0.00675385172 | X14: 0.012810149 | Y14: 0.080163617 | Z14: 0.1481278278 | AA14: 0.1803697244 | AB14: 0.1545291608 | AC14: 0.1737995659 | AD14: 0.08176954996 | AE14: 0.09504260696 | AF14: 0.09962481324 | AG14: 0.1090460727
D15: Total IT costs | R15: =R103 -> 0 | S15: =S103 -> 3.21632447 | T15: 2.998760119 | U15: 3.214674127 | V15: 3.003277397 | W15: 3.11942474 | X15: 3.724976931 | Y15: 3.596588134 | Z15: 4.373611113 | AA15: 4.558832786 | AB15: 4.617947584 | AC15: 4.689409257 | AD15: 4.772283148 | AE15: 4.683403735 | AF15: 4.775977267 | AG15: 4.866032971
D16: Total Chemical costs | R16: =R114 -> 0 | S16: =S114 -> 1.682389804 | T16: 1.328387395 | U16: 1.244073178 | V16: 0.9236637841 | W16: 1.167712838 | X16: 1.073652148 | Y16: 0.96994641 | Z16: 1.003348927 | AA16: 1.030998017 | AB16: 1.053751365 | AC16: 1.083563464 | AD16: 1.114058657 | AE16: 1.138737076 | AF16: 1.179697993 | AG16: 1.216800543
C21: Labour assumptions
D23: Current FTEs (at 30 June) | S23: 148 | T23: 152 | U23: 151 | V23: 161.38 | W23: 167.6 | X23: 179.25
D24: Actual and forecast labour costs for current FTEs ($m) | S24: 15.20082837 | T24: 15.40642086 | U24: 15.60694742 | V24: 16.64539346 | W24: 16.11858397 | X24: 16.77192377 | Y24: 15.44028717 | Z24: 15.62021353 | AA24: 15.53650753 | AB24: 15.44365224 | AC24: 15.27742003 | AD24: 15.24972867 | AE24: 15.1510256 | AF24: 15.06354881 | AG24: 14.97499228
D25: Cost per FTE ($000) | R25: =+R24/R23*10^3 ->  | S25: 102.7082998 | T25: 101.358032 | U25: 103.3572677 | V25: =+V24/V23*10^3 -> 103.1440913 | W25: =+W24/W23*10^3 -> 96.17293539 | X25: =+X24/X23*10^3 -> 93.56721769 | Y25: =+Y24/$X$23*10^3 -> 86.13828267 | Z25: =+Z24/$X$23*10^3 -> 87.14205596 | AA25: 86.67507688 | AB25: 86.15705575 | AC25: 85.2296794 | AD25: 85.07519481 | AE25: 84.52455004 | AF25: 84.03653453 | AG25: 83.5424953
D26: Annual growth in labour costs for current FTEs | S26: =+S25/R25-1 ->  | T26: -0.01314662838 | U26: 0.01972449236 | V26: -0.002062519228 | W26: =+W25/V25-1 -> -0.06758657586 | X26: =+X25/W25-1 -> -0.02709408514 | Y26: =+Y25/X25-1 -> -0.07939677169 | Z26: =+Z25/Y25-1 -> 0.01165304512 | AA26: =+AA25/Z25-1 -> -0.005358825594 | AB26: =+AB25/AA25-1 -> -0.005976586937 | AC26: =+AC25/AB25-1 -> -0.01076378882 | AD26: =+AD25/AC25-1 -> -0.001812567988 | AE26: =+AE25/AD25-1 -> -0.006472447901 | AF26: =+AF25/AE25-1 -> -0.005773654107 | AG26: =+AG25/AF25-1 -> -0.005878862451
D28: Change in FTEs in future periods (net no. annual change) | Y28: 3.292105263 | Z28: 6 | AA28: 1 | AB28: 0 | AC28: 0 | AD28: 0 | AE28: 0 | AF28: 0 | AG28: 0
D29: Increase or decrease in labour costs ($m) | Y29: 2.012712611 | Z29: 2.313222124 | AA29: 2.349120651 | AB29: 2.324204878 | AC29: 2.310314065 | AD29: 2.285446332 | AE29: 2.281303806 | AF29: 2.266538186 | AG29: 2.253451978
D33: Total FTEs | R33: =+R23 -> 0 | S33: 148 | T33: 152 | U33: 151 | V33: 161.38 | W33: =+W23 -> 167.6 | X33: 179.25 | Y33: =+$X$23+SUM($Y28:Y28) -> 182.5421053 | Z33: =+$X$23+SUM($Y28:Z28) -> 188.5421053 | AA33: =+$X$23+SUM($Y28:AA28) -> 189.5421053 | AB33: =+$X$23+SUM($Y28:AB28) -> 189.5421053 | AC33: =+$X$23+SUM($Y28:AC28) -> 189.5421053 | AD33: =+$X$23+SUM($Y28:AD28) -> 189.5421053 | AE33: =+$X$23+SUM($Y28:AE28) -> 189.5421053 | AF33: =+$X$23+SUM($Y28:AF28) -> 189.5421053 | AG33: =+$X$23+SUM($Y28:AG28) -> 189.5421053
D34: Total labour costs ($m) | R34: 0 | S34: 15.20082837 | T34: 15.40642086 | U34: 15.60694742 | V34: =+V24 -> 16.64539346 | W34: =+W24 -> 16.11858397 | X34: 16.77192377 | Y34: =+Y29+Y24 -> 17.45299978 | Z34: =+Z29+Z24 -> 17.93343566 | AA34: 17.88562818 | AB34: 17.76785712 | AC34: 17.5877341 | AD34: 17.535175 | AE34: 17.4323294 | AF34: 17.330087 | AG34: 17.22844426
D35: Cost per FTE | R35: =+R34/R33 ->  | S35: 0.1027082998 | T35: 0.101358032 | U35: 0.1033572677 | V35: 0.1031440913 | W35: =+W34/W33 -> 0.09617293539 | X35: 0.09356721769 | Y35: 0.09561081677 | Z35: 0.09511634354 | AA35: 0.09436229569 | AB35: 0.09374095057 | AC35: 0.09279064445 | AD35: 0.09251334936 | AE35: 0.09197074907 | AF35: 0.09143133118 | AG35: 0.09089507704
D36: Annual growth in total labour costs | S36: =+S34/R34-1 ->  | T36: 0.01352508437 | U36: 0.0130157786 | V36: 0.0665374215 | W36: =+W34/V34-1 -> -0.03164896588 | X36: =+X34/W34-1 -> 0.04053332481 | Y36: =+Y34/X34-1 -> 0.04060810307 | Z36: =+Z34/Y34-1 -> 0.02752740972 | AA36: =+AA34/Z34-1 -> -0.002665829003 | AB36: =+AB34/AA34-1 -> -0.00658467572 | AC36: =+AC34/AB34-1 -> -0.01013757724 | AD36: =+AD34/AC34-1 -> -0.002988394918 | AE36: =+AE34/AD34-1 -> -0.005865102639 | AF36: =+AF34/AE34-1 -> -0.005865102639 | AG36: =+AG34/AF34-1 -> -0.005865102639
D37: Annual growth in total labour costs per FTE | T37: -0.01314662838 | U37: 0.01972449236 | V37: -0.002062519228 | W37: -0.06758657586 | X37: -0.02709408514 | Y37: 0.0218409731 | Z37: -0.005171729022 | AA37: -0.00792763703 | AB37: -0.00658467572 | AC37: -0.01013757724 | AD37: -0.002988394918 | AE37: -0.005865102639 | AF37: -0.005865102639 | AG37: -0.005865102639
C42: Energy assumptions
D44: Electricity - traditional sources
D46: BASE LOAD
D48: Large sites
D49: Total kWh | S49: 15615599.25 | T49: 17362909.2 | U49: 18133548.01 | V49: 17199290.18 | W49: 18737292.52 | X49: 22056850.2 | Y49: 21783233.05 | Z49: 22356798.45 | AA49: 23405901.38 | AB49: 24749361.74 | AC49: 27100855.15 | AD49: 30760263.87 | AE49: 32872346.1 | AF49: 31379754.34 | AG49: 32031784.83
D50: Total electricity costs ($m) | S50: 2.796120313 | T50: 2.991394682 | U50: 3.138344969 | V50: 2.8657232 | W50: 0.003223233343 | X50: 0.004958150099 | Y50: 0.006025070267 | Z50: 0.004493716489 | AA50: 0.005224197188 | AB50: 0.005625529924 | AC50: 0.006160024375 | AD50: 0.006991807977 | AE50: 0.007471884268 | AF50: 0.007132618163 | AG50: 0.007280824691
D51: Average c/kWh | R51: =+R50/R49*100*10^6 ->  | S51: 17.90594308 | T51: 17.228649 | U51: 17.30684457 | V51: 16.66186901 | W51: 0.01720223634 | X51: 0.02247895803 | Y51: 0.02765921043 | Z51: 0.0201 | AA51: 0.02232 | AB51: 0.02273 | AC51: =+AC50/AC49*100*10^6 -> 0.02273 | AD51: 0.02273 | AE51: 0.02273 | AF51: 0.02273 | AG51: 0.02273
D52: % increase p.a. | S52: =+S51/R51-1 ->  | T52: -0.03782509997 | U52: 0.004538694432 | V52: -0.03726707978 | W52: -0.9989675686 | X52: 0.3067462623 | Y52: 0.2304489551 | Z52: -0.2732981278 | AA52: 0.1104477612 | AB52: 0.01836917563 | AC52: =+AC51/AB51-1 -> 0 | AD52: =+AD51/AC51-1 -> 0 | AE52: =+AE51/AD51-1 -> 0 | AF52: =+AF51/AE51-1 -> 0 | AG52: =+AG51/AF51-1 -> 0
D54: Medium sites
D55: Total kWh | S55: 1491029.241 | T55: 1373270.212 | U55: 1287089.884 | V55: 2021457.016 | W55: 847201.94 | X55: 993940.5555 | Y55: 981990.4835 | Z55: 1008421.094 | AA55: 1055730.101 | AB55: 1116174.063 | AC55: 1220869.403 | AD55: 1382821.817 | AE55: 1477163.567 | AF55: 1413853.34 | AG55: 1444516.209
D56: Total electricity costs ($m) | S56: 0.36624422 | T56: 0.3190218141 | U56: 0.3066457047 | V56: 0.4004981674 | W56: 0.0004342697632 | X56: 0.0006875931302 | Y56: 0.0002716108142 | Z56: 0.00020269264 | AA56: 0.0002356389586 | AB56: 0.0002537063644 | AC56: 0.0002775036153 | AD56: 0.000314315399 | AE56: 0.0003357592788 | AF56: 0.0003213688642 | AG56: 0.0003283385342
D57: Average c/kWh | R57: =+R56/R55*100*10^6 ->  | S57: 24.56318159 | T57: 23.23081148 | U57: 23.82473117 | V57: 19.8123514 | W57: 0.05125929754 | X57: 0.06917849628 | Y57: 0.02765921043 | Z57: 0.0201 | AA57: 0.02232 | AB57: 0.02273 | AC57: =+AC56/AC55*100*10^6 -> 0.02273 | AD57: 0.02273 | AE57: 0.02273 | AF57: 0.02273 | AG57: 0.02273
D58: % increase p.a. | S58: =+S57/R57-1 ->  | T58: -0.05424257082 | U58: 0.02556603295 | V58: -0.1684123837 | W58: -0.9974127605 | X58: 0.3495794832 | Y58: -0.6001761832 | Z58: -0.2732981278 | AA58: 0.1104477612 | AB58: 0.01836917563 | AC58: =+AC57/AB57-1 -> 0 | AD58: =+AD57/AC57-1 -> 0 | AE58: =+AE57/AD57-1 -> 0 | AF58: =+AF57/AE57-1 -> 0 | AG58: =+AG57/AF57-1 -> 0
D60: Small sites
D61: Total kWh | S61: 980241.7377 | T61: 790820.1363 | U61: 634140.9264 | V61: 701162.1547 | W61: 615290.5358 | X61: 647674.2482 | Y61: 648316.6168 | Z61: 678504.0727 | AA61: 710077.9456 | AB61: 747335.3666 | AC61: 787391.3424 | AD61: 827451.889 | AE61: 870412.598 | AF61: 916812.6354 | AG61: 965212.214
D62: Total electricity costs ($m) | S62: 0.2036551407 | T62: 0.115194675 | U62: 0.1331726932 | V62: 0.1311074694 | W62: 0.0001554380465 | X62: 0.0002480010856 | Y62: 0.0001793192573 | Z62: 0.0001363793186 | AA62: 0.0001584893975 | AB62: 0.0001698693288 | AC62: 0.0001789740521 | AD62: 0.0001880798144 | AE62: 0.0001978447835 | AF62: 0.000208391512 | AG62: 0.0002193927362
D63: Average c/kWh | R63: =+R62/R61*100*10^6 ->  | S63: 20.77601197 | T63: 14.56648228 | U63: 21.00048864 | V63: 18.69859469 | W63: 0.02526254468 | X63: 0.0382910215 | Y63: 0.02765921043 | Z63: 0.0201 | AA63: 0.02232 | AB63: 0.02273 | AC63: =+AC62/AC61*100*10^6 -> 0.02273 | AD63: 0.02273 | AE63: 0.02273 | AF63: 0.02273 | AG63: 0.02273
D64: % increase p.a. | S64: =+S63/R63-1 ->  | T64: -0.2988797704 | U64: 0.4416993913 | V64: -0.1096114471 | W64: -0.9986489603 | X64: 0.5157230591 | Y64: -0.2776580686 | Z64: -0.2732981278 | AA64: 0.1104477612 | AB64: 0.01836917563 | AC64: =+AC63/AB63-1 -> 0 | AD64: =+AD63/AC63-1 -> 0 | AE64: =+AE63/AD63-1 -> 0 | AF64: =+AF63/AE63-1 -> 0 | AG64: =+AG63/AF63-1 -> 0
D67: NEW PROJECTS
D69: Large sites
D70: Total kWh | S70: 0 | T70: 0 | U70: 0 | V70: 0 | W70: 0 | X70: 0 | Y70: 60701.93461 | Z70: 1139310.78 | AA70: 1598567.28 | AB70: 2170874.329 | AC70: 2559957.404 | AD70: 3205342.94 | AE70: 3501050.857 | AF70: 3811179.27 | AG70: 4191864.701
D71: Total electricity costs ($m) | S71: 0 | T71: 0 | U71: 0 | V71: 0 | W71: 0.0009345368734 | X71: 0.001285841905 | Y71: 1.678967583e-05 | Z71: 0.0002290014667 | AA71: 0.0003568002168 | AB71: 0.0004934397349 | AC71: 0.0005818783179 | AD71: 0.0007285744502 | AE71: 0.0007957888597 | AF71: 0.0008662810481 | AG71: 0.0009528108466
D72: Average c/kWh | R72: =+R71/R70*100*10^6 ->  | Y72: 0.02765921043 | Z72: 0.0201 | AA72: 0.02232 | AB72: 0.02273 | AC72: =+AC71/AC70*100*10^6 -> 0.02273 | AD72: 0.02273 | AE72: 0.02273 | AF72: 0.02273 | AG72: 0.02273
D73: % increase p.a. | S73: =+S72/R72-1 ->  | Z73: -0.2732981278 | AA73: 0.1104477612 | AB73: 0.01836917563 | AC73: =+AC72/AB72-1 -> 0 | AD73: =+AD72/AC72-1 -> 0 | AE73: =+AE72/AD72-1 -> 0 | AF73: =+AF72/AE72-1 -> 0 | AG73: =+AG72/AF72-1 -> 0
D75: Medium sites
D76: Total kWh | S76: 0 | T76: 0 | U76: 0 | V76: 0 | W76: 0 | X76: 0 | Y76: 0 | Z76: 58966.9778 | AA76: 59580.08508 | AB76: 61853.26848 | AC76: 64743.56736 | AD76: 67485.22834 | AE76: 70600.79519 | AF76: 73759.72655 | AG76: 77150.89046
D77: Total electricity costs ($m) | S77: 0 | T77: 0 | U77: 0 | V77: 0 | W77: 0.0001936191733 | X77: 0.0002664032354 | Y77: 0.0002836104213 | Z77: 0.01122158629 | AA77: 0.01133599025 | AB77: 0.01176015939 | AC77: 0.01229948042 | AD77: 0.01281106606 | AE77: 0.01339242141 | AF77: 0.01398186844 | AG77: 0.01461464936
D78: Average c/kWh | R78: =+R77/R76*100*10^6 ->  | Z78: 19.03028899 | AA78: 19.02647543 | AB78: 19.01299589 | AC78: =+AC77/AC76*100*10^6 -> 18.99722385 | AD78: 18.98351146 | AE78: 18.96922176 | AF78: 18.95596566 | AG78: 18.9429432
D79: % increase p.a. | S79: =+S78/R78-1 ->  | AA79: -0.0002003943843 | AB79: -0.0007084623951 | AC79: =+AC78/AB78-1 -> -0.0008295400684 | AD79: =+AD78/AC78-1 -> -0.0007218096934 | AE79: =+AE78/AD78-1 -> -0.0007527428802 | AF79: =+AF78/AE78-1 -> -0.0006988214556 | AG79: =+AG78/AF78-1 -> -0.0006869847146
D81: Small sites
D82: Total kWh | S82: 0 | T82: 0 | U82: 0 | V82: 0 | W82: 0 | X82: 12616.44863 | Y82: 12734.83338 | Z82: 25625.43784 | AA82: 25891.87752 | AB82: 26879.74093 | AC82: 28135.78587 | AD82: 29327.23684 | AE82: 30681.17709 | AF82: 32053.96237 | AG82: 33527.66958
D83: Total electricity costs ($m) | S83: 0 | T83: 0 | U83: 0 | V83: 0 | W83: 0.00181275452 | X83: 0.00536415954 | Y83: 0.005739304014 | Z83: 0.006827579462 | AA83: 0.0068772963 | AB83: 0.007061628622 | AC83: 0.007296002808 | AD83: 0.007518323954 | AE83: 0.007770965107 | AF83: 0.008027122686 | AG83: 0.008302111991
D84: Average c/kWh | R84: =+R83/R82*100*10^6 ->  | X84: 42.51719083 | Y84: 45.067759 | Z84: 26.64375729 | AA84: 26.56159753 | AB84: 26.27119302 | AC84: 25.93139869 | AD84: 25.63597789 | AE84: 25.32811921 | AF84: 25.04252858 | AG84: 24.76197152
D85: % increase p.a. | S85: =+S84/R84-1 ->  | Y85: 0.05998910366 | Z85: -0.4088066973 | AA85: -0.003083640011 | AB85: -0.01093324716 | AC85: =+AC84/AB84-1 -> -0.01293410367 | AD85: =+AD84/AC84-1 -> -0.01139239719 | AE85: =+AE84/AD84-1 -> -0.01200885296 | AF85: =+AF84/AE84-1 -> -0.01127563511 | AG85: =+AG84/AF84-1 -> -0.01120322401
D88: Greenhouse Gas Offsets | S88: 0 | T88: 0 | U88: 0 | V88: 0 | W88: 0 | X88: 0 | Y88: 0.06764791255 | Z88: 0.1250168722 | AA88: 0.1561813121 | AB88: 0.1291648275 | AC88: 0.1470057023 | AD88: 0.05321738231 | AE88: 0.06507794326 | AF88: 0.06908716253 | AG88: 0.07734794453
D89: % increase p.a. | S89: =S88/R88-1 ->  | T89: =T88/S88-1 ->  | Z89: 0.8480521788 | AA89: 0.249281872 | AB89: -0.1729815449 | AC89: 0.1381248689 | AD89: -0.6379910339 | AE89: 0.2228700555 | AF89: 0.06160642255 | AG89: 0.119570434
D92: TOTAL ENERGY COSTS | N92: =+SUM(N50,N56,N62,N71,N77,N83,N88) -> 0 | O92: =+SUM(O50,O56,O62,O71,O77,O83,O88) -> 0 | P92: 0 | Q92: 0 | R92: 0 | S92: 3.366019674 | T92: 3.425611171 | U92: 3.578163366 | V92: 3.397328837 | W92: 0.00675385172 | X92: 0.012810149 | Y92: 0.080163617 | Z92: 0.1481278278 | AA92: 0.1803697244 | AB92: 0.1545291608 | AC92: 0.1737995659 | AD92: 0.08176954996 | AE92: 0.09504260696 | AF92: 0.09962481324 | AG92: 0.1090460727
D93: % increase p.a. | S93: =S92/R92-1 ->  | T93: =T92/S92-1 -> 0.01770384713 | U93: 0.04453284028 | V93: -0.05053836593 | W93: -0.9980120112 | X93: 0.8967175365 | Y93: 5.257820813 | Z93: 0.8478186662 | AA93: 0.217662657 | AB93: -0.143264418 | AC93: 0.1247040039 | AD93: -0.5295181001 | AE93: 0.1623227351 | AF93: 0.04821212744 | AG93: 0.09456739893
C98: IT cost assumptions
D100: Water related IT costs | S100: 1.642603763 | T100: 1.531491832 | U100: 1.641760918 | V100: 1.533798844 | W100: 0.04246804858 | X100: 0.0484975513 | Y100: 0.01118529 | Z100: 0.01157048328 | AA100: 0.01188932882 | AB100: 0.01215171733 | AC100: 0.0124955064 | AD100: 0.01284717283 | AE100: 0.01313176099 | AF100: 0.01360411671 | AG100: 0.01403197827
D101: Sewerage and trade waste related IT costs | S101: 1.490862487 | T101: 1.39001491 | U101: 1.490097504 | V101: 1.392108803 | W101: 0.02131301492 | X101: 0.0489444166 | Y101: 0.00222068 | Z101: 0.002297154639 | AA101: 0.002360456879 | AB101: 0.00241255038 | AC101: 0.002480804804 | AD101: 0.002550623162 | AE101: 0.002607124088 | AF101: 0.002700903588 | AG101: 0.002785849405
D102: Other IT costs | S102: 0.08285822043 | T102: 0.07725337702 | U102: 0.08281570465 | V102: 0.07736975012 | W102: 3.055643676 | X102: 3.627534963 | Y102: 3.583182164 | Z102: 4.359743475 | AA102: 4.544583 | AB102: 4.603383316 | AC102: 4.674432945 | AD102: 4.756885352 | AE102: 4.66766485 | AF102: 4.759672246 | AG102: 4.849215143
D103: Total IT costs | R103: =SUM(R100:R102) -> 0 | S103: 3.21632447 | T103: 2.998760119 | U103: 3.214674127 | V103: 3.003277397 | W103: 3.11942474 | X103: 3.724976931 | Y103: 3.596588134 | Z103: 4.373611113 | AA103: 4.558832786 | AB103: 4.617947584 | AC103: =SUM(AC100:AC102) -> 4.689409257 | AD103: 4.772283148 | AE103: 4.683403735 | AF103: 4.775977267 | AG103: 4.866032971
D104: % increase p.a. | S104: =S103/R103-1 ->  | T104: =T103/S103-1 -> -0.06764378214 | U104: 0.07200109361 | V104: -0.06575992501 | W104: 0.03867353132 | X104: 0.1941230328 | Y104: -0.03446700454 | Z104: 0.2160444706 | AA104: 0.04234982674 | AB104: 0.01296709069 | AC104: 0.01547476905 | AD104: 0.01767256537 | AE104: -0.01862408628 | AF104: 0.01976629322 | AG104: 0.01885597431
C109: Chemical cost assumptions
D111: Water related chemical costs | S111: 0.9714596891 | T111: 0.9088784954 | U111: 0.7721493213 | V111: 0.6492654433 | W111: 0.7254561625 | X111: 0.4630639138 | Y111: 0.46937284 | Z111: 0.4855368611 | AA111: 0.4989167052 | AB111: 0.5099274202 | AC111: 0.5243539799 | AD111: 0.5391110999 | AE111: 0.5510533878 | AF111: 0.5708750417 | AG111: 0.588829569
D112: Sewerage and trade waste related chemical costs | S112: 0.5239124733 | T112: 0.3392339539 | U112: 0.3516202255 | V112: 0.1018254322 | W112: 0.1297635391 | X112: 0.2294942106 | Y112: 0.17648156 | Z112: 0.1825591414 | AA112: 0.1875898879 | AB112: 0.1917298551 | AC112: 0.1971541608 | AD112: 0.2027027553 | AE112: 0.2071929887 | AF112: 0.2146458196 | AG112: 0.2213966213
D113: Other chemical costs | S113: 0.1870176412 | T113: 0.08027494536 | U113: 0.1203036312 | V113: 0.1725729086 | W113: 0.3124931368 | X113: 0.3810940236 | Y113: 0.32409201 | Z113: 0.3352529244 | AA113: 0.3444914235 | AB113: 0.3520940892 | AC113: 0.3620553232 | AD113: 0.3722448022 | AE113: 0.3804906992 | AF113: 0.3941771316 | AG113: 0.4065743526
D114: Total chemical costs | R114: =SUM(R111:R113) -> 0 | S114: 1.682389804 | T114: 1.328387395 | U114: 1.244073178 | V114: 0.9236637841 | W114: 1.167712838 | X114: 1.073652148 | Y114: 0.96994641 | Z114: 1.003348927 | AA114: 1.030998017 | AB114: 1.053751365 | AC114: =SUM(AC111:AC113) -> 1.083563464 | AD114: 1.114058657 | AE114: 1.138737076 | AF114: 1.179697993 | AG114: 1.216800543
D115: % increase p.a. | S115: =S114/R114-1 ->  | T115: =T114/S114-1 -> -0.2104164018 | U115: -0.06347110566 | V115: -0.2575486712 | W115: 0.2642184942 | X115: -0.08055121709 | Y115: -0.09659156198 | Z115: 0.03443748706 | AA115: 0.02755680405 | AB115: 0.02206924496 | AC115: 0.0282913982 | AD115: 0.02814343091 | AE115: 0.02215181232 | AF115: 0.03597047811 | AG115: 0.03145088852

Sheet Opex_FO
B1: Operating Expenditure - Forecast
B2: =Model_Name -> Western Water
B3: Go to Table of Contents
L4: FIRST REG PERIOD | P4: SECOND REG PERIOD | S4: THIRD REG PERIOD | X4: FOURTH REG PERIOD (A) | Z4: FOURTH REG PERIOD (B) | AC4: FIFTH REG PERIOD
K5: 2006 | L5: 2007 | M5: 2008 | N5: 2009 | O5: 2010 | P5: 2011 | Q5: 2012 | R5: 2013 | S5: 2014 | T5: 2015 | U5: 2016 | V5: 2017 | W5: 2018 | X5: 2019 | Y5: 2020 | Z5: 2021 | AA5: 2022 | AB5: 2023 | AC5: 2024 | AD5: 2025 | AE5: 2026 | AF5: 2027 | AG5: 2028
B6: =Expenditure_Detail!$B$6 -> $m, 01/01/20 | K6: =+CONCATENATE(K5-1,"-",RIGHT(K5,2)) -> 2005-06 | L6: =+CONCATENATE(L5-1,"-",RIGHT(L5,2)) -> 2006-07 | M6: 2007-08 | N6: 2008-09 | O6: 2009-10 | P6: 2010-11 | Q6: 2011-12 | R6: 2012-13 | S6: 2013-14 | T6: 2014-15 | U6: 2015-16 | V6: 2016-17 | W6: 2017-18 | X6: 2018-19 | Y6: 2019-20 | Z6: 2020-21 | AA6: 2021-22 | AB6: 2022-23 | AC6: 2023-24 | AD6: 2024-25 | AE6: 2025-26 | AF6: 2026-27 | AG6: 2027-28
C9: Parameters | F9: 3rd period | G9: 4th period (A) | H9: 4th period (B)
D11: Cost efficiency improvement rate (% per annum) | F11: 0.01 | G11: 0.03989 | H11: =IFERROR(AVERAGE(Z11:AB11),"-") -> 0.02 | Z11: 0.02 | AA11: 0.02 | AB11: 0.02 | AC11: 0.02 | AD11: 0.02 | AE11: 0.02 | AF11: 0.02 | AG11: 0.02
D13: Customer growth forecast (% per annum) | F13: =AVERAGE(S13:W13) -> 0.03213722022 | G13: =IFERROR(AVERAGE(X13:Y13),"-") -> 0.0491989934 | H13: =IFERROR(AVERAGE(Z13:AB13),"-") -> 0.04802117869 | S13: =IF(S15="","",S15/R15-1) -> 0.02611704908 | T13: =IF(T15="","",T15/S15-1) -> 0.02717372211 | U13: =IF(U15="","",U15/T15-1) -> 0.02874634472 | V13: 0.03450912597 | W13: 0.04413985924 | X13: 0.04693896877 | Y13: 0.05145901802 | Z13: 0.05443748706 | AA13: 0.04755680405 | AB13: 0.04206924496 | AC13: 0.0523703982 | AD13: 0.05222243091 | AE13: 0.04715181232 | AF13: 0.05037047811 | AG13: 0.04585088852
D15: Water customers (No.) - Residential & Non-Residential - [BED 1] | R15: =+Determination_Lookup!BI3 -> 55481 | S15: =+Determination_Lookup!BJ3 -> 56930 | T15: =+Determination_Lookup!BK3 -> 58477 | U15: =+Determination_Lookup!BL3 -> 60158 | V15: =+Determination_Lookup!BM3 -> 62234 | W15: =+Determination_Lookup!BN3 -> 64981 | X15: 68031.14113 | Y15: =+X$15*(1+Y$13) -> 71531.95685 | Z15: 75425.97682 | AA15: 79012.99522 | AB15: 82337.01227 | AC15: 86649.03439 | AD15: 91174.05761 | AE15: 95473.07966 | AF15: 100282.1043 | AG15: 104880.1279 | AI15: << Used as normalising metric for dashboard graphs
D17: Sewer customers (No.) - Residential & Non-Residential - [BED 2] | S17: =+Determination_Lookup!BP3 -> 51004 | T17: =+Determination_Lookup!BQ3 -> 52564 | U17: =+Determination_Lookup!BR3 -> 54197 | V17: =+Determination_Lookup!BS3 -> 56264 | W17: =+Determination_Lookup!BT3 -> 58966 | X17: 61733.80323 | Y17: =+X$17*(1+Y$13) -> 64910.56413 | Z17: 68444.13212 | AA17: 71699.1163 | AB17: 74715.44399 | AC17: 78628.32154 | AD17: 82734.48363 | AE17: 86635.56447 | AF17: 90999.43928 | AG17: 95171.84442 | AI17: << Used as normalising metric for dashboard graphs
D19: Total metered volume of water delivered to customers (ML) - [BED 10] | S19: =+Determination_Lookup!BC3 -> 11710.68 | T19: =+Determination_Lookup!BD3 -> 11810 | U19: =+Determination_Lookup!BE3 -> 13236 | V19: =+Determination_Lookup!BF3 -> 17533.70216 | W19: =+Determination_Lookup!BG3 -> 19343.466 | X19: 13968.1991 | Y19: 14653.87655 | Z19: 15347.07359 | AA19: 16117.69091 | AB19: 16822.24017 | AC19: 17421.29603 | AD19: 17996.94205 | AE19: 18584.94312 | AF19: 19161.64672 | AG19: 19748.405 | AI19: << Used as normalising metric for dashboard graphs
D20: Residential, Non-Residential & Recycled (Residential & Non-Residential)
C24: Baseline Forecast
D26: Baseline year - total prescribed operating expenditure in 2018-19: | X26: =+Opex_Breakdown!X37 -> 59.66972318
D28: Less non-controllable expenditure items incurred in 2018-19:
E29: External bulk water charges (excl. temporary purchases) | X29: =+Opex_Breakdown!X29 -> 12.19130607
E30: External temporary water purchases | X30: =+Opex_Breakdown!X30 -> 0 | Z30: Comparison with approved 2018-19 total controllable opex
E31: Licence fees | X31: =+Opex_Breakdown!X31 -> 0.1624486083 | Z31: per 2018 determination model
E32: Environment Contribution | X32: =+Opex_Breakdown!X32 -> 3.124004913
E33: Other non-controllable | X33: =+Opex_Breakdown!X33 -> 0
X34: =SUM(X29:X33) -> 15.47775959 | AA34: 2018-19 | AB34: Difference | AC34: %
D36: Baseline year - total controllable operating expenditure in 2018-19: | X36: =+X26-X34 -> 44.19196359 | AA36: =+Determination_Lookup!AY3 -> 42.315232 | AB36: =+X52-AA36 -> 0.8930860713 | AC36: =+AB36/AA36 -> 0.0211055459
D38: Adjustments for non-recurring expenditure items incurred in 2018-19 and any efficiency savings to be realised from 2018-19: | Z38: ($, 2019-20)
D40: 1 | E40: Integrated Water Management Planning | X40: 0.474107607
D41: 2 | E41: Assets decommissioning & Bridge repair | X41: 0.131729
D42: 3 | E42: Price Submission | X42: 0.205547905
D43: 4 | E43: Desludging | X43: 0.172261
D44: 5
D45: 6
D46: 7
D47: 8
D48: 9
D49: 10
X50: =SUM(X40:X49) -> 0.983645512
D52: Adjusted baseline controllable operating expenditure (2018-19) | X52: =+X36-X50 -> 43.20831808
D54: Adjusted baseline controllable operating expenditure (Forecast) | Y54: =+X52*(1+$Y$13-$G$11) -> 43.70819589 | Z54: =+$Y$54*(1+Z$13-Z$11) -> 45.21339632 | AA54: =+Z54*(1+AA$13-AA$11) -> 46.45933302 | AB54: =+AA54*(1+AB$13-AB$11) -> 47.48465542 | AC54: 49.02175263 | AD54: 50.60135266 | AE54: 51.97527109 | AF54: 53.55378493 | AG54: 54.93819785
C58: Operating expenditure - reconciliation
D61: Adjusted baseline controllable operating expenditure (Forecast) | Z61: =+Z54 -> 45.21339632 | AA61: 46.45933302 | AB61: 47.48465542 | AC61: 49.02175263 | AD61: 50.60135266 | AE61: 51.97527109 | AF61: 53.55378493 | AG61: 54.93819785
H62: Controllable
D63: Forecast variations to baseline operating expenditure (above or below baseline) | H63: only
D65: 1 | E65: IT software license fee increases | H65: Water | Z65: 0.601153 | AA65: 0.71018717 | AB65: 0.7145037319 | AC65: 0.7145037319 | AD65: 0.7145037319 | AE65: 0.7145037319 | AF65: 0.7145037319 | AG65: 0.7145037319
D66: 2 | E66: Corporate - General (Director's fees) | H66: Water | Z66: 0.05787861726 | AA66: 0.08065202 | AB66: 0.08065202 | AC66: 0.08065202 | AD66: 0.08065202 | AE66: 0.08065202 | AF66: 0.08065202 | AG66: 0.08065202
D67: 3 | E67: Price Submission | H67: Water | Z67: 0.025 | AA67: 0.3 | AB67: 0.22 | AC67: 0.22 | AD67: 0.22 | AE67: 0.22 | AF67: 0.22 | AG67: 0.22
D68: 4 | E68: Integrated Water Management Planning | H68: Water | Z68: 0.1 | AA68: 0.1 | AB68: 0.1 | AC68: 0.1 | AD68: 0.1 | AE68: 0.1 | AF68: 0.1 | AG68: 0.1
D69: 5 | E69: Waterborne gypsum trial | H69: Water | Z69: 0.1 | AA69: 0 | AB69: 0 | AC69: 0 | AD69: 0 | AE69: 0 | AF69: 0 | AG69: 0
D70: 6 | E70: Central Region South Sustainable Water Strategy | H70: water | Z70: 0 | AA70: 0.15 | AB70: 0 | AC70: 0 | AD70: 0 | AE70: 0 | AF70: 0 | AG70: 0
D71: 7 | E71: Emmissions Reduction Pledge [TBC] | H71: sewer | Z71: 0.125017 | AA71: 0.1562916175 | AB71: 0.1292512992 | AC71: 0.1292512992 | AD71: 0.1292512992 | AE71: 0.1292512992 | AF71: 0.1292512992 | AG71: 0.1292512992
D72: 8 | E72: Desludging Program | H72: sewer | Z72: 0.2 | AA72: 0.22 | AB72: 0.08 | AC72: 0.08 | AD72: 0.08 | AE72: 0.08 | AF72: 0.08 | AG72: 0.08
D73: 9 | E73: Merrimu - purchased additional Bulk Entitlement annual charge (include in water purchases) | H73: water | Z73: 0 | AA73: 0 | AB73: 0 | AC73: 0 | AD73: 0 | AE73: 0 | AF73: 0 | AG73: 0
D74: 10 | E74: Electricity adj | H74: Water | Z74: -0.444153 | AA74: 0.121447 | AB74: 0.322706 | AC74: 0.141265 | AD74: 0.370018 | AE74: -0.128759 | AF74: -0.172349 | AG74: -0.255113
D75: 11 | H75: [Service]
D76: 12 | H76: [Service]
D77: 13 | H77: [Service]
D78: 14 | H78: [Service]
D79: 15 | H79: [Service]
D81: Total changes required to baseline operating expenditure | Z81: =SUM(Z65:Z80) -> 0.7648956173 | AA81: 1.838577808 | AB81: 1.647113051 | AC81: 1.465672051 | AD81: 1.694425051 | AE81: 1.195648051 | AF81: 1.152058051 | AG81: 1.069294051
D84: Total controllable operating expenditure | Z84: =+Z81+Z61 -> 45.97829193 | AA84: 48.29791083 | AB84: 49.13176847 | AC84: 50.48742468 | AD84: 52.29577771 | AE84: 53.17091914 | AF84: 54.70584298 | AG84: 56.0074919
D86: Non-controllable operating expenditure
D87: External bulk water charges (excl. temporary purchases) | Z87: =+Opex_Breakdown!Z29 -> 12.8880392 | AA87: =+Opex_Breakdown!AA29 -> 12.9257655 | AB87: =+Opex_Breakdown!AB29 -> 13.55998273 | AC87: =+Opex_Breakdown!AC29 -> 14.50521467 | AD87: =+Opex_Breakdown!AD29 -> 15.08956695 | AE87: =+Opex_Breakdown!AE29 -> 15.13056695 | AF87: =+Opex_Breakdown!AF29 -> 14.89089081 | AG87: =+Opex_Breakdown!AG29 -> 14.91601116
D88: External temporary water purchases | Z88: =+Opex_Breakdown!Z30 -> 0 | AA88: =+Opex_Breakdown!AA30 -> 0 | AB88: =+Opex_Breakdown!AB30 -> 0 | AC88: =+Opex_Breakdown!AC30 -> 0 | AD88: =+Opex_Breakdown!AD30 -> 0 | AE88: =+Opex_Breakdown!AE30 -> 0 | AF88: =+Opex_Breakdown!AF30 -> 0 | AG88: =+Opex_Breakdown!AG30 -> 0
D89: Licence fees | Z89: =+Opex_Breakdown!Z31 -> 0.1299871601 | AA89: =+Opex_Breakdown!AA31 -> 0.1299829472 | AB89: =+Opex_Breakdown!AB31 -> 0.165146541 | AC89: =+Opex_Breakdown!AC31 -> 0.165146541 | AD89: =+Opex_Breakdown!AD31 -> 0.1299825342 | AE89: =+Opex_Breakdown!AE31 -> 0.1299825342 | AF89: =+Opex_Breakdown!AF31 -> 0.1299825342 | AG89: =+Opex_Breakdown!AG31 -> 0.165146541
D90: Environment Contribution | Z90: =+Opex_Breakdown!Z32 -> 3.013685239 | AA90: =+Opex_Breakdown!AA32 -> 2.945928875 | AB90: =+Opex_Breakdown!AB32 -> 2.87969587 | AC90: =+Opex_Breakdown!AC32 -> 2.906599169 | AD90: =+Opex_Breakdown!AD32 -> 2.841250409 | AE90: =+Opex_Breakdown!AE32 -> 2.777370879 | AF90: =+Opex_Breakdown!AF32 -> 2.714927546 | AG90: =+Opex_Breakdown!AG32 -> 2.653888119
D91: Other non-controllable | Z91: =+Opex_Breakdown!Z33 -> 0 | AA91: =+Opex_Breakdown!AA33 -> 0 | AB91: =+Opex_Breakdown!AB33 -> 0 | AC91: =+Opex_Breakdown!AC33 -> 0 | AD91: =+Opex_Breakdown!AD33 -> 0 | AE91: =+Opex_Breakdown!AE33 -> 0 | AF91: =+Opex_Breakdown!AF33 -> 0 | AG91: =+Opex_Breakdown!AG33 -> 0
D92: Total non-controllable operating expenditure | Z92: =SUM(Z87:Z91) -> 16.0317116 | AA92: 16.00167732 | AB92: 16.60482514 | AC92: 17.57696038 | AD92: 18.06079989 | AE92: 18.03792036 | AF92: 17.73580089 | AG92: 17.73504582
D95: Total prescribed operating expenditure | Z95: =+Z92+Z84 -> 62.01000353 | AA95: 64.29958815 | AB95: 65.73659361 | AC95: 68.06438505 | AD95: 70.35657761 | AE95: 71.20883951 | AF95: 72.44164386 | AG95: =+AG92+AG84 -> 73.74253772
Y98: To reconcile to 'Opex_Breakdown' tab row 37 >> | Z98: =+Opex_Breakdown!Z37 -> 62.0066966 | AA98: =+Opex_Breakdown!AA37 -> 64.29693632 | AB98: =+Opex_Breakdown!AB37 -> 65.73271114 | AC98: =+Opex_Breakdown!AC37 -> 68.06364638 | AD98: =+Opex_Breakdown!AD37 -> 70.35935589 | AE98: =+Opex_Breakdown!AE37 -> 71.21336336 | AF98: =+Opex_Breakdown!AF37 -> 72.43966689 | AG98: =+Opex_Breakdown!AG37 -> 73.74740582
Y99: Difference | Z99: =+Z98-Z95 -> -0.003306933954 | AA99: -0.002651827115 | AB99: -0.003882471902 | AC99: -0.0007386762647 | AD99: 0.002778286686 | AE99: 0.004523856041 | AF99: -0.001976976866 | AG99: 0.004868098957
Y100: Test | Z100: =ROUND(Z98,2)=ROUND(Z95,2) -> TRUE | AA100: TRUE | AB100: FALSE | AC100: TRUE | AD100: TRUE | AE100: TRUE | AF100: TRUE | AG100: FALSE
Z139: =+Z$160 -> 2020-21 | AA139: 2021-22 | AB139: 2022-23 | AC139: 2023-24 | AD139: 2024-25 | AE139: 2025-26 | AF139: 2026-27 | AG139: 2027-28
Y140: Total controllable opex | Z140: =+Z84 -> 45.97829193 | AA140: 48.29791083 | AB140: 49.13176847 | AC140: 50.48742468 | AD140: 52.29577771 | AE140: 53.17091914 | AF140: 54.70584298 | AG140: 56.0074919
Y141: Change - $ | AA141: =+AA140-Z140 -> 2.319618893 | AB141: 0.8338576448 | AC141: 1.355656204 | AD141: 1.808353037 | AE141: 0.8751414306 | AF141: 1.534923833 | AG141: 1.301648924
Y142: Change - % | Z142: =IFERROR(Z141/#REF!,"") ->  | AA142: =IFERROR(AA141/Z140,"") -> 0.05045030591 | AB142: 0.01726488021 | AC142: 0.02759225337 | AD142: 0.03581789027 | AE142: 0.01673445676 | AF142: 0.02886773179 | AG142: 0.02379359961
Z144: =+Z$160 -> 2020-21 | AA144: 2021-22 | AB144: 2022-23 | AC144: 2023-24 | AD144: 2024-25 | AE144: 2025-26 | AF144: 2026-27 | AG144: 2027-28
Y145: Total non-controllable opex | Z145: =+Z92 -> 16.0317116 | AA145: 16.00167732 | AB145: 16.60482514 | AC145: 17.57696038 | AD145: 18.06079989 | AE145: 18.03792036 | AF145: 17.73580089 | AG145: 17.73504582
Y146: Change - $ | AA146: =+AA145-Z145 -> -0.03003427827 | AB146: 0.6031478225 | AC146: 0.9721352335 | AD146: 0.4838395195 | AE146: -0.02287953022 | AF146: -0.3021194764 | AG146: -0.0007550692767
Y147: Change - % | Z147: =IFERROR(Z146/#REF!,"") ->  | AA147: =IFERROR(AA146/Z145,"") -> -0.001873429302 | AB147: 0.03769278748 | AC147: 0.05854534602 | AD147: 0.02752691644 | AE147: -0.00126680603 | AF147: -0.01674913018 | AG147: -4.257317059e-05
Z149: =+Z$160 -> 2020-21 | AA149: 2021-22 | AB149: 2022-23 | AC149: 2023-24 | AD149: 2024-25 | AE149: 2025-26 | AF149: 2026-27 | AG149: 2027-28
Y150: Total prescribed opex | Z150: =+Z140+Z145 -> 62.01000353 | AA150: 64.29958815 | AB150: 65.73659361 | AC150: 68.06438505 | AD150: 70.35657761 | AE150: 71.20883951 | AF150: 72.44164386 | AG150: 73.74253772
Y151: Change - $ | AA151: =+AA150-Z150 -> 2.289584615 | AB151: 1.437005467 | AC151: 2.327791438 | AD151: 2.292192557 | AE151: 0.8522619004 | AF151: 1.232804357 | AG151: 1.300893855
Y152: Change - % | Z152: =IFERROR(Z151/#REF!,"") ->  | AA152: =IFERROR(AA151/Z150,"") -> 0.03692282671 | AB152: 0.0223485952 | AC152: 0.03541089232 | AD152: 0.03367682753 | AE152: 0.01211346443 | AF152: 0.01731251857 | AG152: 0.01795781798
Y155: Controllable vs. Non-controllable opex - % | Z155: =+Z$160 -> 2020-21 | AA155: 2021-22 | AB155: 2022-23 | AC155: 2023-24 | AD155: 2024-25 | AE155: 2025-26 | AF155: 2026-27 | AG155: 2027-28
Y156: Controllable opex - % | Z156: =+Z84/Z95 -> 0.7414657203 | AA156: 0.7511387276 | AB156: 0.7474036267 | AC156: 0.7417598005 | AD156: 0.7432962133 | AE156: 0.7466898704 | AF156: 0.7551711979 | AG156: 0.7595004679
Y157: Non-controllable opex - % | Z157: =+Z92/Z95 -> 0.2585342797 | AA157: 0.2488612724 | AB157: 0.2525963733 | AC157: 0.2582401995 | AD157: 0.2567037867 | AE157: 0.2533101296 | AF157: 0.2448288021 | AG157: 0.2404995321
Z158: =SUM(Z156:Z157) -> 1 | AA158: 1 | AB158: 1 | AC158: 1 | AD158: 1 | AE158: 1 | AF158: 1 | AG158: 1
X160: =+X6 -> 2018-19 | Y160: 2019-20 | Z160: 2020-21 | AA160: 2021-22 | AB160: 2022-23 | AC160: 2023-24 | AD160: 2024-25 | AE160: 2025-26 | AF160: 2026-27 | AG160: 2027-28
W161: Third Reg period Opex | X161: =+X169-SUM(X162:X168) -> 59.66972318 | Y161: =+Y169-SUM(Y162:Y168) -> 59.25453146
W162: Adjusted baseline opex | Z162: =+Z61 -> 45.21339632 | AA162: 46.45933302 | AB162: 47.48465542 | AC162: 49.02175263 | AD162: 50.60135266 | AE162: 51.97527109 | AF162: 53.55378493 | AG162: 54.93819785
W163: Forecast variations to baseline operating expenditure | Z163: =+Z81 -> 0.7648956173 | AA163: 1.838577808 | AB163: 1.647113051 | AC163: 1.465672051 | AD163: 1.694425051 | AE163: 1.195648051 | AF163: 1.152058051 | AG163: 1.069294051
W164: Licence fees | X164: =+X89 -> 0 | Y164: 0 | Z164: 0.1299871601 | AA164: 0.1299829472 | AB164: 0.165146541 | AC164: 0.165146541 | AD164: 0.1299825342 | AE164: 0.1299825342 | AF164: 0.1299825342 | AG164: 0.165146541
W165: Environment Contribution | X165: =+X90 -> 0 | Y165: 0 | Z165: 3.013685239 | AA165: 2.945928875 | AB165: 2.87969587 | AC165: 2.906599169 | AD165: 2.841250409 | AE165: 2.777370879 | AF165: 2.714927546 | AG165: 2.653888119
W166: External bulk water charges | X166: =+X87 -> 0 | Y166: 0 | Z166: 12.8880392 | AA166: 12.9257655 | AB166: 13.55998273 | AC166: 14.50521467 | AD166: 15.08956695 | AE166: 15.13056695 | AF166: 14.89089081 | AG166: 14.91601116
W167: External temporary water purchases | X167: =+X88 -> 0 | Y167: 0 | Z167: 0 | AA167: 0 | AB167: 0 | AC167: 0 | AD167: 0 | AE167: 0 | AF167: 0 | AG167: 0
W168: Other non-controllable | X168: =+X91 -> 0 | Y168: 0 | Z168: 0 | AA168: 0 | AB168: 0 | AC168: 0 | AD168: 0 | AE168: 0 | AF168: 0 | AG168: 0
W169: Total prescribed opex | X169: =+Opex_Breakdown!X37 -> 59.66972318 | Y169: =+Opex_Breakdown!Y37 -> 59.25453146 | Z169: =SUM(Z162:Z168) -> 62.01000353 | AA169: 64.29958815 | AB169: 65.73659361 | AC169: 68.06438505 | AD169: 70.35657761 | AE169: 71.20883951 | AF169: 72.44164386 | AG169: 73.74253772
X171: =+X$160 -> 2018-19 | Y171: 2019-20 | Z171: 2020-21 | AA171: 2021-22 | AB171: 2022-23 | AC171: 2023-24 | AD171: 2024-25 | AE171: 2025-26 | AF171: 2026-27 | AG171: 2027-28
W172: Adjusted baseline opex | X172: =+X162/X$169 -> 0 | Y172: 0 | Z172: 0.7291306844 | AA172: 0.7225447994 | AB172: 0.7223473687 | AC172: 0.7202261886 | AD172: 0.7192128211 | AE172: 0.7298991453 | AF172: 0.7392679413 | AG172: 0.7450000983
W173: Forecast variations to baseline operating expenditure | X173: =+X163/X$169 -> 0 | Y173: 0 | Z173: 0.01233503586 | AA173: 0.02859392821 | AB173: 0.02505625802 | AC173: 0.02153361189 | AD173: 0.02408339218 | AE173: 0.01679072513 | AF173: 0.0159032566 | AG173: 0.01450036959
W174: Licence fees | X174: =+X164/X$169 -> 0 | Y174: 0 | Z174: 0.002096228877 | AA174: 0.002021520681 | AB174: 0.00251224671 | AC174: 0.002426328261 | AD174: 0.001847482334 | AE174: 0.00182537077 | AF174: 0.0017943068 | AG174: 0.002239501733
W175: Environment Contribution | X175: =+X165/X$169 -> 0 | Y175: 0 | Z175: 0.04859998497 | AA175: 0.04581567255 | AB175: 0.04380658796 | AC175: 0.04270367192 | AD175: 0.04038357899 | AE175: 0.03900317571 | AF175: 0.03747744254 | AG175: 0.03598856509
W176: External bulk water charges (excl. temporary purchases) | X176: =+X166/X$169 -> 0 | Y176: 0 | Z176: 0.2078380659 | AA176: 0.2010240791 | AB176: 0.2062775387 | AC176: 0.2131101993 | AD176: 0.2144727254 | AE176: 0.2124815831 | AF176: 0.2055570527 | AG176: 0.2022714653
W177: External temporary water purchases | X177: =+X167/X$169 -> 0 | Y177: 0 | Z177: 0 | AA177: 0 | AB177: 0 | AC177: 0 | AD177: 0 | AE177: 0 | AF177: 0 | AG177: 0
W178: Other non-controllable | X178: =+X168/X$169 -> 0 | Y178: 0 | Z178: 0 | AA178: 0 | AB178: 0 | AC178: 0 | AD178: 0 | AE178: 0 | AF178: 0 | AG178: 0
W179: Total prescribed opex | X179: =+X169/X$169 -> 1 | Y179: 1 | Z179: 1 | AA179: 1 | AB179: 1 | AC179: 1 | AD179: 1 | AE179: 1 | AF179: 1 | AG179: 1
Z181: =+Z$160 -> 2020-21 | AA181: 2021-22 | AB181: 2022-23 | AC181: 2023-24 | AD181: 2024-25 | AE181: 2025-26 | AF181: 2026-27 | AG181: 2027-28
Y182: Water | Z182: =+SUMIF($H$65:$H$80,$Y182,Z$65:Z$80) -> 0.4398786173 | AA182: 1.46228619 | AB182: 1.437861752 | AC182: 1.256420752 | AD182: 1.485173752 | AE182: 0.9863967519 | AF182: 0.9428067519 | AG182: 0.8600427519
Y183: Sewerage | Z183: 0 | AA183: 0 | AB183: 0 | AC183: 0 | AD183: 0 | AE183: 0 | AF183: 0 | AG183: 0
Y184: Recycled Water | Z184: 0 | AA184: 0 | AB184: 0 | AC184: 0 | AD184: 0 | AE184: 0 | AF184: 0 | AG184: 0
Y185: Rural water | Z185: 0 | AA185: 0 | AB185: 0 | AC185: 0 | AD185: 0 | AE185: 0 | AF185: 0 | AG185: 0
Y186: Bulk Water | Z186: 0 | AA186: 0 | AB186: 0 | AC186: 0 | AD186: 0 | AE186: 0 | AF186: 0 | AG186: 0
Y187: Forecast variations to baseline operating expenditure | Z187: =SUM(Z182:Z186) -> 0.4398786173 | AA187: 1.46228619 | AB187: 1.437861752 | AC187: 1.256420752 | AD187: 1.485173752 | AE187: 0.9863967519 | AF187: 0.9428067519 | AG187: 0.8600427519
X190: =+X6 -> 2018-19 | Y190: 2019-20 | Z190: 2020-21 | AA190: 2021-22 | AB190: 2022-23 | AC190: 2023-24 | AD190: 2024-25 | AE190: 2025-26 | AF190: 2026-27 | AG190: 2027-28
W191: External bulk water charges (excl. temporary purchases) | X191: =+Opex_Breakdown!X29 -> 12.19130607 | Y191: =+Opex_Breakdown!Y29 -> 13.403075 | Z191: =+Z87 -> 12.8880392 | AA191: 12.9257655 | AB191: 13.55998273 | AC191: 14.50521467 | AD191: 15.08956695 | AE191: 15.13056695 | AF191: 14.89089081 | AG191: 14.91601116
W192: External temporary water purchases | X192: =+Opex_Breakdown!X30 -> 0 | Y192: =+Opex_Breakdown!Y30 -> 0 | Z192: =+Z88 -> 0 | AA192: 0 | AB192: 0 | AC192: 0 | AD192: 0 | AE192: 0 | AF192: 0 | AG192: 0
W193: Licence fees | X193: =+Opex_Breakdown!X31 -> 0.1624486083 | Y193: =+Opex_Breakdown!Y31 -> 0.2400956553 | Z193: =+Z89 -> 0.1299871601 | AA193: 0.1299829472 | AB193: 0.165146541 | AC193: 0.165146541 | AD193: 0.1299825342 | AE193: 0.1299825342 | AF193: 0.1299825342 | AG193: 0.165146541
W194: Environment Contribution | X194: =+Opex_Breakdown!X32 -> 3.124004913 | Y194: =+Opex_Breakdown!Y32 -> 3.083 | Z194: =+Z90 -> 3.013685239 | AA194: 2.945928875 | AB194: 2.87969587 | AC194: 2.906599169 | AD194: 2.841250409 | AE194: 2.777370879 | AF194: 2.714927546 | AG194: 2.653888119
W195: Other non-controllable | X195: =+Opex_Breakdown!X33 -> 0 | Y195: =+Opex_Breakdown!Y33 -> 0 | Z195: =+Z91 -> 0 | AA195: 0 | AB195: 0 | AC195: 0 | AD195: 0 | AE195: 0 | AF195: 0 | AG195: 0
W196: Total Non-controllable operating expenditure | X196: =+Opex_Breakdown!X34 -> 15.47775959 | Y196: =+Opex_Breakdown!Y34 -> 16.72617066 | Z196: =SUM(Z191:Z195) -> 16.0317116 | AA196: 16.00167732 | AB196: 16.60482514 | AC196: 17.57696038 | AD196: 18.06079989 | AE196: 18.03792036 | AF196: 17.73580089 | AG196: 17.73504582
X198: ERROR CHECK | Z198: =+Z169=Z95 -> TRUE | AA198: TRUE | AB198: TRUE | AC198: TRUE | AD198: TRUE | AE198: TRUE | AF198: TRUE | AG198: TRUE
Z199: =+Z187=Z163 -> FALSE | AA199: FALSE | AB199: FALSE | AC199: FALSE | AD199: FALSE | AE199: FALSE | AF199: FALSE | AG199: FALSE
Z200: =+Z150=Z169 -> TRUE | AA200: TRUE | AB200: TRUE | AC200: TRUE | AD200: TRUE | AE200: TRUE | AF200: TRUE | AG200: TRUE
Z201: =+Z196=Z145 -> TRUE | AA201: TRUE | AB201: TRUE | AC201: TRUE | AD201: TRUE | AE201: TRUE | AF201: TRUE | AG201: TRUE

Sheet Opex_Breakdown
A1: 80 | B1: Operating Expenditure - Breakdown
B2: =+Contents!H7 -> Western Water
B3: Go to Table of Contents
L4: FIRST REG PERIOD | P4: SECOND REG PERIOD | U4: THIRD REG PERIOD | X4: FOURTH REG PERIOD (A) | Z4: FOURTH REG PERIOD (B) | AC4: FIFTH REG PERIOD
K6: 2006 | L6: 2007 | M6: 2008 | N6: 2009 | O6: 2010 | P6: 2011 | Q6: 2012 | R6: 2013 | S6: 2014 | T6: 2015 | U6: 2016 | V6: 2017 | W6: 2018 | X6: 2019 | Y6: 2020 | Z6: 2021 | AA6: 2022 | AB6: 2023 | AC6: 2024 | AD6: 2025 | AE6: 2026 | AF6: 2027 | AG6: 2028
B7: =Expenditure_Detail!$B$6 -> $m, 01/01/20 | K7: =+CONCATENATE(K6-1,"-",RIGHT(K6,2)) -> 2005-06 | L7: =+CONCATENATE(L6-1,"-",RIGHT(L6,2)) -> 2006-07 | M7: 2007-08 | N7: 2008-09 | O7: 2009-10 | P7: 2010-11 | Q7: 2011-12 | R7: 2012-13 | S7: 2013-14 | T7: 2014-15 | U7: 2015-16 | V7: 2016-17 | W7: 2017-18 | X7: =+CONCATENATE(X6-1,"-",RIGHT(X6,2)) -> 2018-19 | Y7: =+CONCATENATE(Y6-1,"-",RIGHT(Y6,2)) -> 2019-20 | Z7: =+CONCATENATE(Z6-1,"-",RIGHT(Z6,2)) -> 2020-21 | AA7: =+CONCATENATE(AA6-1,"-",RIGHT(AA6,2)) -> 2021-22 | AB7: =+CONCATENATE(AB6-1,"-",RIGHT(AB6,2)) -> 2022-23 | AC7: =+CONCATENATE(AC6-1,"-",RIGHT(AC6,2)) -> 2023-24 | AD7: 2024-25 | AE7: 2025-26 | AF7: 2026-27 | AG7: 2027-28
D10: Operating Expenditure Summary
E12: =C48 -> Water | K12: =+K57-K50-K54 -> 0 | L12: =+L57-L50-L54 -> 0 | M12: 0 | N12: 0 | O12: 0 | P12: 0 | Q12: =+Q57-Q50-Q54 -> 0 | R12: 0 | S12: 20.1949129 | T12: 18.43751121 | U12: 19.57581323 | V12: 21.90653966 | W12: 20.88804434 | X12: 20.60082593 | Y12: 19.44180025 | Z12: 21.097295 | AA12: 22.126395 | AB12: 22.652202 | AC12: =+AC57-AC50-AC54 -> 23.195837 | AD12: 24.151356 | AE12: 24.445853 | AF12: 25.248434 | AG12: 25.837072
E13: =C59 -> Sewerage | K13: =K68-K61-K65 -> 0 | L13: =L68-L61-L65 -> 0 | M13: 0 | N13: 0 | O13: 0 | P13: 0 | Q13: 0 | R13: 0 | S13: 16.42238858 | T13: 15.09875122 | U13: 16.05247572 | V13: 18.4459736 | W13: 15.94834068 | X13: 20.34242895 | Y13: 19.61970204 | Z13: 21.141769 | AA13: 22.22362 | AB13: 22.422433 | AC13: =AC68-AC61-AC65 -> 23.102459 | AD13: 23.769866 | AE13: 24.293304 | AF13: 24.86591 | AG13: 25.465941
E14: =C70 -> Recycled Water | K14: =K79-K72-K76 -> 0 | L14: =L79-L72-L76 -> 0 | M14: 0 | N14: 0 | O14: 0 | P14: 0 | Q14: 0 | R14: 0 | S14: 4.016432573 | T14: 3.745625951 | U14: 3.686597983 | V14: 3.781936111 | W14: 3.408301068 | X14: 3.248708703 | Y14: 3.466858508 | Z14: 3.735921 | AA14: 3.945244 | AB14: 4.053251 | AC14: =AC79-AC72-AC76 -> 4.18839 | AD14: 4.377334 | AE14: 4.436286 | AF14: 4.589522 | AG14: 4.709347
E15: =C81 -> Rural Water | K15: =K90-K83-K87 -> 0 | L15: =L90-L83-L87 -> 0 | M15: 0 | N15: 0 | O15: 0 | P15: 0 | Q15: 0 | R15: 0 | S15: 0 | T15: 0 | U15: 0 | V15: 0 | W15: 0 | X15: 0 | Y15: 0 | Z15: 0 | AA15: 0 | AB15: 0 | AC15: =AC90-AC83-AC87 -> 0 | AD15: 0 | AE15: 0 | AF15: 0 | AG15: 0
E16: Bulk Water | K16: =K100-K97 -> 0 | L16: =L100-L97 -> 0 | M16: 0 | N16: 0 | O16: 0 | P16: 0 | Q16: 0 | R16: 0 | S16: 0 | T16: 0 | U16: 0 | V16: 0 | W16: 0 | X16: 0 | Y16: 0 | Z16: 0 | AA16: 0 | AB16: 0 | AC16: =AC100-AC97 -> 0 | AD16: 0 | AE16: 0 | AF16: 0 | AG16: 0
E17: Total controllable operating expenditure | K17: =SUM(K12:K16) -> 0 | L17: 0 | M17: 0 | N17: 0 | O17: 0 | P17: 0 | Q17: 0 | R17: 0 | S17: 40.63373406 | T17: 37.28188838 | U17: 39.31488693 | V17: 44.13444937 | W17: 40.2446861 | X17: 44.19196359 | Y17: 42.5283608 | Z17: 45.974985 | AA17: 48.295259 | AB17: 49.127886 | AC17: 50.486686 | AD17: 52.298556 | AE17: 53.175443 | AF17: 54.703866 | AG17: 56.01236
E20: Operations & Maintenance | K20: =K49+K60+K71+K82+K93 -> 0 | L20: 0 | M20: 0 | N20: 0 | O20: 0 | P20: 0 | Q20: 0 | R20: 0 | S20: 7.400084305 | T20: 8.360872012 | U20: 7.648973793 | V20: 10.06588817 | W20: 6.823566907 | X20: 7.417513321 | Y20: 6.506007837 | Z20: 6.875692 | AA20: 7.155714 | AB20: 7.364655 | AC20: 7.59673 | AD20: 7.91752 | AE20: 8.043906 | AF20: 8.267224 | AG20: 8.472122
E21: Treatment | K21: =K51+K62+K73+K84+K94 -> 0 | L21: 0 | M21: 0 | N21: 0 | O21: 0 | P21: 0 | Q21: 0 | R21: 0 | S21: 14.95203601 | T21: 12.13555982 | U21: 13.13474632 | V21: 13.5998467 | W21: 13.75888984 | X21: 15.43491297 | Y21: 14.12921705 | Z21: 14.930823 | AA21: 15.949165 | AB21: 16.409243 | AC21: 17.340608 | AD21: 18.331683 | AE21: 18.797414 | AF21: 19.203382 | AG21: 19.805764
E22: Customer Service and billing | K22: =K52+K63+K74+K85+K95 -> 0 | L22: 0 | M22: 0 | N22: 0 | O22: 0 | P22: 0 | Q22: 0 | R22: 0 | S22: 4.021034615 | T22: 3.890935224 | U22: 4.039593601 | V22: 4.509188748 | W22: 3.988255542 | X22: 4.690665187 | Y22: 5.103761216 | Z22: 5.406435 | AA22: 5.524185 | AB22: 5.634166 | AC22: 5.748569 | AD22: 5.890369 | AE22: 6.009316 | AF22: 6.160085 | AG22: 6.303362
E23: GSL Payments | K23: =K53+K64+K75+K86+K96 -> 0 | L23: 0 | M23: 0 | N23: 0 | O23: 0 | P23: 0 | Q23: 0 | R23: 0 | S23: 0 | T23: 0 | U23: 0 | V23: 0 | W23: 0 | X23: 0 | Y23: 0 | Z23: 0 | AA23: 0 | AB23: 0 | AC23: 0 | AD23: 0 | AE23: 0 | AF23: 0 | AG23: 0
E24: Corporate | K24: =K55+K66+K77+K88+K98 -> 0 | L24: 0 | M24: 0 | N24: 0 | O24: 0 | P24: 0 | Q24: 0 | R24: 0 | S24: 13.73594629 | T24: 12.89452133 | U24: 14.49157322 | V24: 15.95952575 | W24: 15.6739738 | X24: 16.64887211 | Y24: 16.7372507 | Z24: 18.637018 | AA24: 19.509904 | AB24: 19.590571 | AC24: 19.653608 | AD24: 20.105721 | AE24: 20.259684 | AF24: 21.004042 | AG24: 21.353718
E25: Other operating expenditure | K25: =K56+K67+K78+K89+K99 -> 0 | L25: 0 | M25: 0 | N25: 0 | O25: 0 | P25: 0 | Q25: 0 | R25: 0 | S25: 0.5246328425 | T25: 0 | U25: 0 | V25: 0 | W25: 0 | X25: 0 | Y25: 0.052124 | Z25: 0.125017 | AA25: 0.156291 | AB25: 0.129251 | AC25: 0.147171 | AD25: 0.053263 | AE25: 0.065123 | AF25: 0.069133 | AG25: 0.077394
E26: Total controllable operating expenditure | K26: =SUM(K20:K25) -> 0 | L26: =SUM(L20:L25) -> 0 | M26: 0 | N26: 0 | O26: 0 | P26: 0 | Q26: 0 | R26: 0 | S26: 40.63373406 | T26: 37.28188838 | U26: 39.31488693 | V26: 44.13444937 | W26: 40.2446861 | X26: 44.19196359 | Y26: 42.5283608 | Z26: 45.974985 | AA26: 48.295259 | AB26: 49.127886 | AC26: 50.486686 | AD26: 52.298556 | AE26: 53.175443 | AF26: 54.703866 | AG26: 56.01236
S27: =ROUND(S26,2)=ROUND(S18,2) -> FALSE | T27: =ROUND(T26,2)=ROUND(T18,2) -> FALSE | U27: FALSE | V27: FALSE | W27: FALSE | X27: FALSE | Y27: FALSE | Z27: FALSE | AA27: FALSE | AB27: FALSE | AC27: FALSE | AD27: FALSE | AE27: FALSE | AF27: FALSE | AG27: FALSE
E29: External bulk water charges (excl. temporary purchases) | K29: =K50+K61+K72+K83 -> 0 | L29: 0 | M29: 0 | N29: 0 | O29: 0 | P29: 0 | Q29: 0 | R29: 0 | S29: 10.19401709 | T29: 5.323832054 | U29: 15.95441173 | V29: 10.2063295 | W29: 10.60333076 | X29: =X50+X61+X72+X83 -> 12.19130607 | Y29: =Y50+Y61+Y72+Y83 -> 13.403075 | Z29: 12.8880392 | AA29: 12.9257655 | AB29: 13.55998273 | AC29: 14.50521467 | AD29: 15.08956695 | AE29: 15.13056695 | AF29: 14.89089081 | AG29: 14.91601116
E30: External temporary water purchases | K30: =+K102 -> 0 | L30: 0 | M30: 0 | N30: 0 | O30: 0 | P30: 0 | Q30: 0 | R30: 0 | S30: 0 | T30: 0 | U30: 0 | V30: 0 | W30: 0 | X30: 0 | Y30: 0 | Z30: 0 | AA30: 0 | AB30: 0 | AC30: 0 | AD30: 0 | AE30: 0 | AF30: 0 | AG30: 0
E31: Licence fees | K31: =+K109 -> 0 | L31: 0 | M31: 0 | N31: 0 | O31: 0 | P31: 0 | Q31: 0 | R31: 0 | S31: 0.2105434434 | T31: 0.1162474183 | U31: 0.079424014 | V31: 0 | W31: 0.1651500414 | X31: 0.1624486083 | Y31: 0.2400956553 | Z31: 0.1299871601 | AA31: 0.1299829472 | AB31: 0.165146541 | AC31: 0.165146541 | AD31: 0.1299825342 | AE31: 0.1299825342 | AF31: 0.1299825342 | AG31: 0.165146541
E32: Environment Contribution | K32: =K111 -> 0 | L32: 0 | M32: 0 | N32: 0 | O32: 0 | P32: 0 | Q32: 0 | R32: 0 | S32: 2.685304373 | T32: 2.60887256 | U32: 2.574672798 | V32: 2.541360146 | W32: 2.488463057 | X32: 3.124004913 | Y32: 3.083 | Z32: 3.013685239 | AA32: 2.945928875 | AB32: 2.87969587 | AC32: 2.906599169 | AD32: 2.841250409 | AE32: 2.777370879 | AF32: 2.714927546 | AG32: 2.653888119
E33: Other non-controllable | K33: =+K124 -> 0 | L33: 0 | M33: 0 | N33: 0 | O33: 0 | P33: 0 | Q33: 0 | R33: 0 | S33: 0 | T33: 0 | U33: 0 | V33: 0 | W33: 0 | X33: 0 | Y33: 0 | Z33: 0 | AA33: 0 | AB33: 0 | AC33: 0 | AD33: 0 | AE33: 0 | AF33: 0 | AG33: =+AG124 -> 0
E34: Total non-controllable operating expenditure | K34: =SUM(K29:K33) -> 0 | L34: =SUM(L29:L33) -> 0 | M34: 0 | N34: 0 | O34: 0 | P34: 0 | Q34: 0 | R34: 0 | S34: 13.0898649 | T34: 8.048952032 | U34: 18.60850854 | V34: 12.74768964 | W34: 13.25694386 | X34: 15.47775959 | Y34: 16.72617066 | Z34: 16.0317116 | AA34: 16.00167732 | AB34: 16.60482514 | AC34: 17.57696038 | AD34: 18.06079989 | AE34: 18.03792036 | AF34: 17.73580089 | AG34: 17.73504582
E37: Total prescribed operating expenditure | K37: =+K34+K17 -> 0 | L37: 0 | M37: 0 | N37: 0 | O37: 0 | P37: 0 | Q37: 0 | R37: 0 | S37: 53.72359896 | T37: 45.33084041 | U37: 57.92339547 | V37: 56.88213902 | W37: 53.50162995 | X37: 59.66972318 | Y37: 59.25453146 | Z37: 62.0066966 | AA37: 64.29693632 | AB37: 65.73271114 | AC37: 68.06364638 | AD37: 70.35935589 | AE37: 71.21336336 | AF37: 72.43966689 | AG37: 73.74740582
Y40: To reconcile to 'Opex_FO' tab row 123>> | Z40: =+Opex_FO!Z95 -> 62.01000353 | AA40: =+Opex_FO!AA95 -> 64.29958815 | AB40: =+Opex_FO!AB95 -> 65.73659361 | AC40: =+Opex_FO!AC95 -> 68.06438505 | AD40: =+Opex_FO!AD95 -> 70.35657761 | AE40: =+Opex_FO!AE95 -> 71.20883951 | AF40: =+Opex_FO!AF95 -> 72.44164386 | AG40: =+Opex_FO!AG95 -> 73.74253772
Y41: Difference | Z41: =+Z40-Z37 -> 0.003306933954 | AA41: 0.002651827115 | AB41: 0.003882471902 | AC41: 0.0007386762647 | AD41: -0.002778286686 | AE41: -0.004523856041 | AF41: 0.001976976866 | AG41: -0.004868098957
Y42: Test | Z42: =ROUND(Z40,2)=ROUND(Z37,2) -> TRUE | AA42: TRUE | AB42: FALSE | AC42: TRUE | AD42: TRUE | AE42: TRUE | AF42: TRUE | AG42: FALSE
B46: Total operating expenditure
C48: Water
D49: Operations & Maintenance | S49: 4.866659921 | T49: 5.288139771 | U49: 4.764337729 | V49: 6.664258487 | W49: 4.418406335 | X49: 4.514347247 | Y49: 3.755059671 | Z49: 4.014837 | AA49: 4.192377 | AB49: 4.322598 | AC49: 4.4699 | AD49: 4.672166 | AE49: 4.746058 | AF49: 4.883995 | AG49: 5.009571
D50: External bulk charges (excl. temporary purchases) | R50: =+R131 -> 0 | S50: =+S131 -> 10.19401709 | T50: =+T131 -> 5.323832054 | U50: 15.95441173 | V50: 10.2063295 | W50: 10.60333076 | X50: 11.58229986 | Y50: 12.769075 | Z50: 12.2230392 | AA50: 12.2317655 | AB50: 12.83598273 | AC50: 13.40821467 | AD50: 13.95556695 | AE50: 13.95556695 | AF50: 13.68189081 | AG50: 13.65701116 | AH50: see reconciliation below
D51: Treatment | S51: 5.804326075 | T51: 4.914806716 | U51: 5.442751182 | V51: 4.761614357 | W51: 5.812388235 | X51: 6.173154529 | Y51: 5.913126621 | Z51: 6.306812 | AA51: 6.775221 | AB51: 7.090364 | AC51: 7.459182 | AD51: 7.985576 | AE51: 8.083231 | AF51: 8.354134 | AG51: 8.592155
D52: Customer Service and billing | S52: 2.082424221 | T52: 1.973970585 | U52: 2.122386152 | V52: 2.252926363 | W52: 2.093038009 | X52: 2.060082593 | Y52: 2.223355119 | Z52: 2.354651 | AA52: 2.406194 | AB52: 2.454207 | AC52: 2.504423 | AD52: 2.566375 | AE52: 2.618311 | AF52: 2.68455 | AG52: 2.747417
D53: GSL Payments | S53: 0 | T53: 0 | U53: 0 | V53: 0 | W53: 0 | X53: 0 | Y53: 0 | Z53: 0 | AA53: 0 | AB53: 0 | AC53: 0 | AD53: 0 | AE53: 0 | AF53: 0 | AG53: 0
D54: Licence Fees | S54: 0.09894391328 | T54: 0.05812370917 | U54: 0.02206222611 | V54: 0.07228046081 | W54: 0.07021538462 | X54: 0.06991918295 | Y54: 0 | Z54: 0.071388 | AA54: 0.071385 | AB54: 0.086505 | AC54: 0.086505 | AD54: 0.071385 | AE54: 0.071385 | AF54: 0.071385 | AG54: 0.086505
D55: Corporate | S55: 7.163079117 | T55: 6.260594136 | U55: 7.246338166 | V55: 8.227740455 | W55: 8.564211765 | X55: 7.853241563 | Y55: 7.527845521 | Z55: 8.367238 | AA55: 8.685398 | AB55: 8.729455 | AC55: 8.699048 | AD55: 8.904336 | AE55: 8.97025 | AF55: 9.296028 | AG55: 9.45465
D56: Other operating expenditure | S56: 0.2784235699 | T56: 0 | U56: 0 | V56: 0 | W56: 0 | X56: 0 | Y56: 0.02241332 | Z56: 0.053757 | AA56: 0.067205 | AB56: 0.055578 | AC56: 0.063284 | AD56: 0.022903 | AE56: 0.028003 | AF56: 0.029727 | AG56: 0.033279
C57: =+CONCATENATE("Total ",C48) -> Total Water | K57: =+SUM(K49:K56) -> 0 | L57: =+SUM(L49:L56) -> 0 | M57: 0 | N57: 0 | O57: 0 | P57: 0 | Q57: 0 | R57: 0 | S57: 30.4878739 | T57: 23.81946697 | U57: 35.55228719 | V57: 32.18514962 | W57: 31.56159049 | X57: 32.25304497 | Y57: 32.21087525 | Z57: 33.3917222 | AA57: 34.4295455 | AB57: 35.57468973 | AC57: =+SUM(AC49:AC56) -> 36.69055667 | AD57: 38.17830795 | AE57: 38.47280495 | AF57: 39.00170981 | AG57: 39.58058816
C59: Sewerage
D60: =+D49 -> Operations & Maintenance | S60: 2.52652132 | T60: 3.064907895 | U60: 2.731303593 | V60: 3.183676297 | W60: 2.247231765 | X60: 2.851486679 | Y60: 2.685523237 | Z60: 2.793834 | AA60: 2.894833 | AB60: 2.972219 | AC60: 3.055559 | AD60: 3.172341 | AE60: 3.223408 | AF60: 3.306826 | AG60: 3.384298
D61: =+D50 -> External bulk charges (excl. temporary purchases) | R61: =+R132 -> 0 | S61: =+S132 -> 0 | T61: =+T132 -> 0 | U61: 0 | V61: 0 | W61: 0 | X61: 0.6090062167 | Y61: 0.634 | Z61: 0.665 | AA61: 0.694 | AB61: 0.724 | AC61: 1.097 | AD61: 1.134 | AE61: 1.175 | AF61: 1.209 | AG61: 1.259 | AH61: see reconciliation below
D62: Treatment | S62: 6.034428199 | T62: 5.062351516 | U62: 5.549752978 | V62: 6.65536243 | W62: 5.965482134 | X62: 7.352660746 | Y62: 6.12455197 | Z62: 6.421034 | AA62: 6.830986 | AB62: 6.879666 | AC62: 7.3267 | AD62: 7.634764 | AE62: 7.963011 | AF62: 8.001792 | AG62: 8.281138
D63: Customer Service and billing | S63: 1.700454696 | T63: 1.635288202 | U63: 1.736297195 | V63: 1.979372619 | W63: 1.661285488 | X63: 2.276933393 | Y63: 2.529860242 | Z63: 2.68206 | AA63: 2.740488 | AB63: 2.795111 | AC63: 2.851893 | AD63: 2.922297 | AE63: 2.981372 | AF63: 3.056104 | AG63: 3.127134
D64: GSL Payments | S64: 0 | T64: 0 | U64: 0 | V64: 0 | W64: 0 | X64: 0 | Y64: 0 | Z64: 0 | AA64: 0 | AB64: 0 | AC64: 0 | AD64: 0 | AE64: 0 | AF64: 0 | AG64: 0
D65: Licence Fees | S65: 0.1046964664 | T65: 0.05365265462 | U65: 0.05515556528 | V65: 0.06227239701 | W65: 0.05584948364 | X65: 0.08309236234 | Y65: 0 | Z65: 0.052431 | AA65: 0.05243 | AB65: 0.070363 | AC65: 0.070363 | AD65: 0.05243 | AE65: 0.05243 | AF65: 0.05243 | AG65: 0.070363
D66: Corporate | S66: 5.949290413 | T66: 5.336203607 | U66: 6.035121953 | V66: 6.627562253 | W66: 6.074341297 | X66: 7.861348135 | Y66: 8.253183356 | Z66: 9.181082 | AA66: 9.677604 | AB66: 9.709519 | AC66: 9.79325 | AD66: 10.0133 | AE66: 10.0923 | AF66: 10.46593 | AG66: 10.6339
D67: Other operating expenditure | S67: 0.211693954 | T67: 0 | U67: 0 | V67: 0 | W67: 0 | X67: 0 | Y67: 0.02658324 | Z67: 0.063759 | AA67: 0.079709 | AB67: 0.065918 | AC67: 0.075057 | AD67: 0.027164 | AE67: 0.033213 | AF67: 0.035258 | AG67: 0.039471
C68: =+CONCATENATE("Total ",C59) -> Total Sewerage | K68: =+SUM(K60:K67) -> 0 | L68: 0 | M68: 0 | N68: 0 | O68: 0 | P68: 0 | Q68: 0 | R68: 0 | S68: 16.52708505 | T68: 15.15240388 | U68: 16.10763128 | V68: 18.508246 | W68: 16.00419017 | X68: 21.03452753 | Y68: 20.25370204 | Z68: 21.8592 | AA68: 22.97005 | AB68: 23.216796 | AC68: =+SUM(AC60:AC67) -> 24.269822 | AD68: 24.956296 | AE68: 25.520734 | AF68: 26.12734 | AG68: 26.795304
C70: Recycled Water
D71: =+D60 -> Operations & Maintenance | S71: 0.006903063717 | T71: 0.007824345465 | U71: 0.1533324715 | V71: 0.2179533895 | W71: 0.1579288071 | X71: 0.05167939609 | Y71: 0.0654249284 | Z71: 0.067021 | AA71: 0.068504 | AB71: 0.069838 | AC71: 0.071271 | AD71: 0.073013 | AE71: 0.07444 | AF71: 0.076403 | AG71: 0.078253
D72: =+D61 -> External bulk charges (excl. temporary purchases) | R72: =+R133 -> 0 | S72: =+S133 -> 0 | T72: =+T133 -> 0 | U72: 0 | V72: 0 | W72: 0 | X72: 0 | Y72: 0 | Z72: 0 | AA72: 0 | AB72: 0 | AC72: 0 | AD72: 0 | AE72: 0 | AF72: 0 | AG72: 0 | AH72: see reconciliation below
D73: Treatment | S73: 3.113281736 | T73: 2.158401585 | U73: 2.142242155 | V73: 2.182869917 | W73: 1.981019474 | X73: 1.909097691 | Y73: 2.091538458 | Z73: 2.202977 | AA73: 2.342958 | AB73: 2.439213 | AC73: 2.554726 | AD73: 2.711343 | AE73: 2.751172 | AF73: 2.847456 | AG73: 2.932471
D74: Customer Service and billing | S74: 0.2381556982 | T74: 0.2816764368 | U74: 0.1809102541 | V74: 0.2768897653 | W74: 0.2339320455 | X74: 0.3536492007 | Y74: 0.3505458553 | Z74: 0.369724 | AA74: 0.377503 | AB74: 0.384848 | AC74: 0.392253 | AD74: 0.401697 | AE74: 0.409633 | AF74: 0.419431 | AG74: 0.428811
D75: GSL Payments | S75: 0 | T75: 0 | U75: 0 | V75: 0 | W75: 0 | X75: 0 | Y75: 0 | Z75: 0 | AA75: 0 | AB75: 0 | AC75: 0 | AD75: 0 | AE75: 0 | AF75: 0 | AG75: 0
D76: Licence Fees | S76: 0.006903063717 | T76: 0.004471054552 | U76: 0.002206222611 | V76: 0.006672042537 | W76: 0.00690938531 | X76: 0.01013321492 | Y76: 0 | Z76: 0.006168 | AA76: 0.006168 | AB76: 0.008278 | AC76: 0.008278 | AD76: 0.006168 | AE76: 0.006168 | AF76: 0.006168 | AG76: 0.008278
D77: Corporate | S77: 0.6235767558 | T77: 1.297723584 | U77: 1.210113102 | V77: 1.10422304 | W77: 1.035420741 | X77: 0.9342824156 | Y77: 0.9562218256 | Z77: 1.088698 | AA77: 1.146902 | AB77: 1.151597 | AC77: 1.16131 | AD77: 1.188085 | AE77: 1.197134 | AF77: 1.242084 | AG77: 1.265168
D78: Other operating expenditure | S78: 0.03451531859 | T78: 0 | U78: 0 | V78: 0 | W78: 0 | X78: 0 | Y78: 0.00312744 | Z78: 0.007501 | AA78: 0.009377 | AB78: 0.007755 | AC78: 0.00883 | AD78: 0.003196 | AE78: 0.003907 | AF78: 0.004148 | AG78: 0.004644
C79: =+CONCATENATE("Total ",C70) -> Total Recycled Water | K79: =+SUM(K71:K78) -> 0 | L79: =+SUM(L71:L78) -> 0 | M79: =+SUM(M71:M78) -> 0 | N79: =+SUM(N71:N78) -> 0 | O79: 0 | P79: 0 | Q79: 0 | R79: 0 | S79: 4.023335636 | T79: 3.750097005 | U79: 3.688804206 | V79: 3.788608154 | W79: 3.415210453 | X79: =+SUM(X71:X78) -> 3.258841918 | Y79: =+SUM(Y71:Y78) -> 3.466858508 | Z79: =+SUM(Z71:Z78) -> 3.742089 | AA79: =+SUM(AA71:AA78) -> 3.951412 | AB79: =+SUM(AB71:AB78) -> 4.061529 | AC79: =+SUM(AC71:AC78) -> 4.196668 | AD79: 4.383502 | AE79: 4.442454 | AF79: 4.59569 | AG79: 4.717625
C81: Rural Water
D82: =+D60 -> Operations & Maintenance
D83: =+D61 -> External bulk charges (excl. temporary purchases) | R83: =+R134 -> 0 | S83: =+S134 -> 0 | T83: =+T134 -> 0 | U83: 0 | V83: 0 | W83: 0 | X83: 0 | Y83: 0 | Z83: 0 | AA83: 0 | AB83: 0 | AC83: 0 | AD83: 0 | AE83: 0 | AF83: 0 | AG83: 0 | AH83: see reconciliation below
D84: Treatment
D85: Customer Service and billing
D86: GSL Payments
D87: Licence Fees
D88: Corporate
D89: Other operating expenditure
C90: =+CONCATENATE("Total ",C81) -> Total Rural Water | K90: =+SUM(K82:K89) -> 0 | L90: 0 | M90: 0 | N90: 0 | O90: 0 | P90: 0 | Q90: 0 | R90: 0 | S90: 0 | T90: 0 | U90: 0 | V90: 0 | W90: 0 | X90: =+SUM(X82:X89) -> 0 | Y90: =+SUM(Y82:Y89) -> 0 | Z90: =+SUM(Z82:Z89) -> 0 | AA90: =+SUM(AA82:AA89) -> 0 | AB90: =+SUM(AB82:AB89) -> 0 | AC90: =+SUM(AC82:AC89) -> 0 | AD90: 0 | AE90: 0 | AF90: 0 | AG90: 0
C92: Bulk Water
D93: Operations & Maintenance
D94: Treatment
D95: Customer Service and billing
D96: GSL Payments
D97: Licence Fees
D98: Corporate
D99: Other operating expenditure
C100: Total Bulk water | K100: =+SUM(K93:K99) -> 0 | L100: 0 | M100: 0 | N100: 0 | O100: 0 | P100: 0 | Q100: 0 | R100: 0 | S100: 0 | T100: 0 | U100: 0 | V100: 0 | W100: 0 | X100: 0 | Y100: 0 | Z100: 0 | AA100: 0 | AB100: 0 | AC100: =+SUM(AC93:AC99) -> 0 | AD100: 0 | AE100: 0 | AF100: 0 | AG100: 0
C102: External temporary water purchases
C105: Licence fees
D106: Essential Services Commission | S106: 0.139211785 | T106: 0.04806383643 | U106: 0.00992800175 | V106: 0 | W106: 0.08260458281 | X106: 0.08407021758 | Y106: 0.08762789009 | Z106: 0.04744163953 | AA106: 0.04743988418 | AB106: 0.08260458281 | AC106: 0.08260458281 | AD106: 0.047440576 | AE106: 0.047440576 | AF106: 0.047440576 | AG106: 0.08260458281
D107: Department of Human Services | S107: 0.02761225487 | T107: 0.02794409095 | U107: 0.02757778264 | V107: 0 | W107: 0.0271814923 | X107: 0.02732016075 | Y107: 0.05020493337 | Z107: 0.02718089341 | AA107: 0.02717989183 | AB107: 0.02717944783 | AC107: 0.02717944783 | AD107: 0.02717944783 | AE107: 0.02717944783 | AF107: 0.02717944783 | AG107: 0.02717944783
D108: Environment Protection Authority | S108: 0.04371940354 | T108: 0.04023949097 | U108: 0.04191822961 | V108: 0 | W108: 0.05536396628 | X108: 0.05105823002 | Y108: 0.1022628319 | Z108: 0.05536462711 | AA108: 0.05536317121 | AB108: 0.05536251037 | AC108: 0.05536251037 | AD108: 0.05536251037 | AE108: 0.05536251037 | AF108: 0.05536251037 | AG108: 0.05536251037
C109: =+CONCATENATE("Total ",C105) -> Total Licence fees | K109: =+SUM(K106:K108) -> 0 | L109: =+SUM(L106:L108) -> 0 | M109: 0 | N109: 0 | O109: 0 | P109: 0 | Q109: 0 | R109: 0 | S109: 0.2105434434 | T109: 0.1162474183 | U109: 0.079424014 | V109: 0 | W109: 0.1651500414 | X109: =+SUM(X106:X108) -> 0.1624486083 | Y109: =+SUM(Y106:Y108) -> 0.2400956553 | Z109: =+SUM(Z106:Z108) -> 0.1299871601 | AA109: =+SUM(AA106:AA108) -> 0.1299829472 | AB109: =+SUM(AB106:AB108) -> 0.165146541 | AC109: =+SUM(AC106:AC108) -> 0.165146541 | AD109: 0.1299825342 | AE109: 0.1299825342 | AF109: 0.1299825342 | AG109: 0.165146541
C111: Environment Contribution | S111: 2.685304373 | T111: 2.60887256 | U111: 2.574672798 | V111: 2.541360146 | W111: 2.488463057 | X111: 3.124004913 | Y111: 3.083 | Z111: 3.013685239 | AA111: 2.945928875 | AB111: 2.87969587 | AC111: 2.906599169 | AD111: 2.841250409 | AE111: 2.777370879 | AF111: 2.714927546 | AG111: 2.653888119
C113: Other non-controllable
D114: [Non-controllable 1]
D115: [Non-controllable 2]
D116: [Non-controllable 3]
D117: [Non-controllable 4]
D118: [Non-controllable 5]
D119: [Non-controllable 6]
D120: [Non-controllable 7]
D121: [Non-controllable 8]
D122: [Non-controllable 9]
D123: [Non-controllable 10]
K124: =SUM(K114:K123) -> 0 | L124: 0 | M124: 0 | N124: 0 | O124: 0 | P124: 0 | Q124: 0 | R124: 0 | S124: 0 | T124: 0 | U124: 0 | V124: 0 | W124: 0 | X124: 0 | Y124: 0 | Z124: 0 | AA124: 0 | AB124: 0 | AC124: 0 | AD124: 0 | AE124: 0 | AF124: 0 | AG124: 0
C127: External bulk charges (excl. temporary purchases)
C128: Reconciliation
C130: Service | R130: =+R7 -> 2012-13 | S130: 2013-14 | T130: 2014-15 | U130: 2015-16 | V130: 2016-17 | W130: 2017-18 | X130: 2018-19 | Y130: 2019-20 | Z130: 2020-21 | AA130: 2021-22 | AB130: 2022-23 | AC130: 2023-24 | AD130: 2024-25 | AE130: 2025-26 | AF130: 2026-27 | AG130: 2027-28
D131: Water | R131: =+SUMIF($I$138:$I$179,$D$131,R$138:R$179) -> 0 | S131: 10.19401709 | T131: 5.323832054 | U131: 15.95441173 | V131: 10.2063295 | W131: 10.60333076 | X131: 11.58229986 | Y131: 12.769075 | Z131: 12.2230392 | AA131: 12.2317655 | AB131: 12.83598273 | AC131: 13.40821467 | AD131: 13.95556695 | AE131: 13.95556695 | AF131: 13.68189081 | AG131: 13.65701116
D132: Sewerage | R132: =+SUMIF($I$138:$I$179,$D$132,R$138:R$179) -> 0 | S132: 0 | T132: 0 | U132: 0 | V132: 0 | W132: 0 | X132: 0.6090062167 | Y132: 0.634 | Z132: 0.665 | AA132: 0.694 | AB132: 0.724 | AC132: 1.097 | AD132: 1.134 | AE132: 1.175 | AF132: 1.209 | AG132: 1.259
D133: Recycled Water | R133: =+SUMIF($I$138:$I$179,$D$133,R$138:R$179) -> 0 | S133: 0 | T133: 0 | U133: 0 | V133: 0 | W133: 0 | X133: 0 | Y133: 0 | Z133: 0 | AA133: 0 | AB133: 0 | AC133: 0 | AD133: 0 | AE133: 0 | AF133: 0 | AG133: 0
D134: Rural Water | R134: =+SUMIF($I$138:$I$179,$D$134,R$138:R$179) -> 0 | S134: 0 | T134: 0 | U134: 0 | V134: 0 | W134: 0 | X134: 0 | Y134: 0 | Z134: 0 | AA134: 0 | AB134: 0 | AC134: 0 | AD134: 0 | AE134: 0 | AF134: 0 | AG134: 0
C135: Total External Bulk Charges | R135: =SUM(R131:R134) -> 0 | S135: =SUM(S131:S134) -> 10.19401709 | T135: =SUM(T131:T134) -> 5.323832054 | U135: 15.95441173 | V135: 10.2063295 | W135: 10.60333076 | X135: 12.19130607 | Y135: 13.403075 | Z135: 12.8880392 | AA135: 12.9257655 | AB135: 13.55998273 | AC135: 14.50521467 | AD135: 15.08956695 | AE135: 15.13056695 | AF135: 14.89089081 | AG135: 14.91601116
C137: Description | H137: Source | I137: Service | J137: Price
B138: 1 | C138: Bulk water - Transfer | H138: Melbourne Water | I138: Water | J138: Fixed | S138: 3.73613584 | T138: 3.717455161 | U138: 3.698867885 | V138: 6.39431158 | W138: 6.996397965 | X138: 6.655791125 | Y138: 6.5260175 | Z138: 6.558647587 | AA138: 6.558647587 | AB138: 6.558647587 | AC138: 6.558647587 | AD138: 6.558647587 | AE138: 6.558647587 | AF138: 6.558647587 | AG138: 6.558647587 | AJ138: ESC USE ONLY
B139: 2 | C139: Bulk water - Transfer | H139: Melbourne Water | I139: Water | J139: Fixed | S139: 6.457881246 | T139: -0.2737141541 | U139: 10.37553479 | V139: 2.153384982 | W139: 1.909738521 | X139: 3.117730716 | Y139: 4.2188915 | Z139: 3.43339161 | AA139: 3.483150909 | AB139: 4.105142143 | AC139: 4.677374078 | AD139: 5.224726363 | AE139: 5.224726363 | AF139: 4.951050221 | AG139: 4.926170571
B140: 3 | C140: Bulk water - Entitlement | H140: Other Sources | I140: Water | J140: Fixed | S140: 0 | T140: 1.873836248 | U140: 1.873836248 | V140: 1.658632935 | W140: 1.697194275 | X140: 1.808778015 | Y140: 2.024166 | Z140: 2.231 | AA140: 2.189967 | AB140: 2.172193 | AC140: 2.172193 | AD140: 2.172193 | AE140: 2.172193 | AF140: 2.172193 | AG140: 2.172193 | AJ140: [Service]
B141: 4 | C141: North-South pipeline contribution | H141: Melbourne Water | I141: Water | J141: Variable | S141: 0 | T141: 0.006254799025 | U141: 0.006172807278 | V141: 0 | W141: 0 | X141: 0 | Y141: 0 | Z141: 0 | AA141: 0 | AB141: 0 | AC141: 0 | AD141: 0 | AE141: 0 | AF141: 0 | AG141: 0 | AJ141: Water
B142: 5 | C142: CWW sewer transfer | H142: Melbourne Water | I142: Sewerage | J142: Fixed | S142: 0 | T142: 0 | U142: 0 | V142: 0 | W142: 0 | X142: 0.6090062167 | Y142: 0.634 | Z142: 0.665 | AA142: 0.694 | AB142: 0.724 | AC142: 1.097 | AD142: 1.134 | AE142: 1.175 | AF142: 1.209 | AG142: 1.259 | AJ142: Sewerage
B143: 6 | H143: [Source] | I143: [Service] | J143: [Price] | AJ143: Recycled Water
B144: 7 | H144: [Source] | I144: [Service] | J144: [Price] | AJ144: Rural Water
B145: 8 | H145: [Source] | I145: [Service] | J145: [Price]
B146: 9 | H146: [Source] | I146: [Service] | J146: [Price] | AJ146: [Source]
B147: 10 | H147: [Source] | I147: [Service] | J147: [Price] | AJ147: Melbourne Water
B148: 11 | H148: [Source] | I148: [Service] | J148: [Price] | AJ148: Goulburn-Murray Water
B149: 12 | H149: [Source] | I149: [Service] | J149: [Price] | AJ149: Other Sources
B150: 13 | H150: [Source] | I150: [Service] | J150: [Price]
B151: 14 | H151: [Source] | I151: [Service] | J151: [Price]
B152: 15 | H152: [Source] | I152: [Service] | J152: [Price]
B153: 16 | H153: [Source] | I153: [Service] | J153: [Price]
B154: 17 | H154: [Source] | I154: [Service] | J154: [Price]
B155: 18 | H155: [Source] | I155: [Service] | J155: [Price]
B156: 19 | H156: [Source] | I156: [Service] | J156: [Price]
B157: 20 | H157: [Source] | I157: [Service] | J157: [Price]
B158: 21 | H158: [Source] | I158: [Service] | J158: [Price]
B159: 22 | H159: [Source] | I159: [Service] | J159: [Price]
B160: 23 | H160: [Source] | I160: [Service] | J160: [Price]
B161: 24 | H161: [Source] | I161: [Service] | J161: [Price]
B162: 25 | H162: [Source] | I162: [Service] | J162: [Price]
B163: 26 | H163: [Source] | I163: [Service] | J163: [Price]
B164: 27 | H164: [Source] | I164: [Service] | J164: [Price]
B165: 28 | H165: [Source] | I165: [Service] | J165: [Price]
B166: 29 | H166: [Source] | I166: [Service] | J166: [Price]
B167: 30 | H167: [Source] | I167: [Service] | J167: [Price]
B168: 31 | H168: [Source] | I168: [Service] | J168: [Price]
B169: 32 | H169: [Source] | I169: [Service] | J169: [Price]
B170: 33 | H170: [Source] | I170: [Service] | J170: [Price]
B171: 34 | H171: [Source] | I171: [Service] | J171: [Price]
B172: 35 | H172: [Source] | I172: [Service] | J172: [Price]
B173: 36 | H173: [Source] | I173: [Service] | J173: [Price]
B174: 37 | H174: [Source] | I174: [Service] | J174: [Price]
B175: 38 | H175: [Source] | I175: [Service] | J175: [Price]
B176: 39 | H176: [Source] | I176: [Service] | J176: [Price]
B177: 40 | H177: [Source] | I177: [Service] | J177: [Price]

Sheet Capex_FO input
B1: Capital Expenditure - Forecast Input | Q1: =Q36 -> Gross capital expenditure | Z1: =Z36 -> Government contributions | AI1: Customer contributions | AR1: Net capital expenditure | BA1: Regulatory Depreciation | BJ1: Accumulated capex | BS1: Gross capital expenditure | CB1: Tax Depreciation
B2: =+Contents!H7 -> Western Water | Q2: =Q37 -> $m, 01/01/20 | Z2: =Z37 -> $m, 01/01/20 | AI2: $m, 01/01/20 | AR2: $m, 01/01/20 | BA2: $m, 01/01/20 | BJ2: $m, 01/01/20 | BS2: Nominal,$ | CB2: Nominal,$
B3: Go to Table of Contents | Q3: =Q39 -> 2020-21 | R3: =R39 -> 2021-22 | S3: 2022-23 | T3: 2023-24 | U3: 2024-25 | V3: 2025-26 | W3: 2026-27 | X3: 2027-28 | Z3: 2020-21 | AA3: 2021-22 | AB3: 2022-23 | AC3: 2023-24 | AD3: 2024-25 | AE3: 2025-26 | AF3: 2026-27 | AG3: 2027-28 | AI3: 2020-21 | AJ3: 2021-22 | AK3: 2022-23 | AL3: 2023-24 | AM3: 2024-25 | AN3: 2025-26 | AO3: 2026-27 | AP3: 2027-28 | AR3: 2020-21 | AS3: 2021-22 | AT3: 2022-23 | AU3: 2023-24 | AV3: 2024-25 | AW3: 2025-26 | AX3: 2026-27 | AY3: 2027-28 | BA3: 2020-21 | BB3: 2021-22 | BC3: 2022-23 | BD3: 2023-24 | BE3: 2024-25 | BF3: 2025-26 | BG3: 2026-27 | BH3: 2027-28 | BJ3: 2020-21 | BK3: 2021-22 | BL3: 2022-23 | BM3: 2023-24 | BN3: 2024-25 | BO3: 2025-26 | BP3: 2026-27 | BQ3: 2027-28 | BS3: 2020-21 | BT3: 2021-22 | BU3: 2022-23 | BV3: 2023-24 | BW3: 2024-25 | BX3: 2025-26 | BY3: 2026-27 | BZ3: 2027-28 | CB3: 2020-21 | CC3: 2021-22 | CD3: =CD39 -> 2022-23 | CE3: 2023-24 | CF3: 2024-25 | CG3: 2025-26 | CH3: 2026-27 | CI3: 2027-28 | CM3: Tax Depreciation - Declining Balance Method
CM6: Instructions
C7: Input Summary | D7: FOURTH REG PERIOD (B) | G7: FIFTH REG PERIOD | CM7: For each item of CAPEX
D9: =+Q39 -> 2020-21 | E9: 2021-22 | F9: 2022-23 | G9: 2023-24 | H9: 2024-25 | I9: 2025-26 | J9: 2026-27 | K9: 2027-28 | CM9: 1. Change tax depreciation method in column M to 'Declining Balance'
C10: By Cost Driver | CM10: 2. Populate declining balance multiple in comun CM, (>0)
C11: Net capital expenditure - Renewals | D11: =+SUMIF($F$42:$F$1016,"Renewals",AR$42:AR$1016) -> 14.59247574 | E11: 14.40742273 | F11: 22.08673081 | G11: 16.3063515 | H11: 16.07947356 | I11: 15.13080109 | J11: 13.40665361 | K11: 17.40364631
C12: Net capital expenditure - Growth | D12: =+SUMIF($F$42:$F$1016,"Growth",AR$42:AR$1016) -> 46.14001655 | E12: 57.40593391 | F12: 60.58293574 | G12: 58.08261917 | H12: 54.27116777 | I12: 56.30428678 | J12: 54.61023675 | K12: 50.86761022
C13: Net capital expenditure - Improvements / Compliance | D13: =+SUMIF($F$42:$F$1016,"Improvements / Compliance",AR$42:AR$1016) -> 7.147189613 | E13: 4.669342463 | F13: 3.426382069 | G13: 3.071029029 | H13: 2.234692839 | I13: 2.392613231 | J13: 2.019688479 | K13: 2.170983133
C14: Government Contributions | D14: =+Z41 -> 0 | E14: 0 | F14: 0 | G14: 0 | H14: 0 | I14: 0 | J14: 0 | K14: 0
C15: Customer Contributions | D15: =+AI41 -> 22.96127531 | E15: 17.7051415 | F15: 12.65342777 | G15: 14.60934658 | H15: 17.82907638 | I15: 18.92531325 | J15: 19.72500218 | K15: 21.07431335
C16: Total prescribed capex | D16: =SUM(D11:D15) -> 90.8409572 | E16: 94.1878406 | F16: 98.74947639 | G16: 92.06934627 | H16: 90.41441055 | I16: 92.75301435 | J16: 89.76158101 | K16: 91.51655301
C18: By Capital Type
C19: Top 10 Major Projects | D19: =+SUMIF($H$42:$H$1016,$C$19,Q$42:Q$1016) -> 25.3700922 | E19: 38.02134284 | F19: 38.14782014 | G19: 14.35365933 | H19: 1.89703732 | I19: 1.949161569 | J19: 1.900983698 | K19: 1.958476222
C20: Significant projects | D20: =+SUMIF($H$42:$H$1016,$C$20,Q$42:Q$1016) -> 0 | E20: 0 | F20: 0 | G20: 0 | H20: 0 | I20: 0 | J20: 0 | K20: 0
C21: Capital Programs / Allocation | D21: =+SUMIF($H$42:$H$1016,$C$21,Q$42:Q$1016) -> 65.470865 | E21: 56.16649777 | F21: 60.60165625 | G21: 77.71568694 | H21: 88.51737323 | I21: 90.80385278 | J21: 87.86059732 | K21: 89.55807679
C22: Other Capital expenditure | D22: =+SUMIF($H$42:$H$1016,$C$22,Q$42:Q$1016) -> 0 | E22: 0 | F22: 0 | G22: 0 | H22: 0 | I22: 0 | J22: 0 | K22: 0
C23: Total prescribed capex | D23: =SUM(D19:D22) -> 90.8409572 | E23: 94.1878406 | F23: 98.74947639 | G23: 92.06934627 | H23: 90.41441055 | I23: 92.75301435 | J23: 89.76158101 | K23: 91.51655301
C25: Difference | D25: =+D23-D16 -> 0 | E25: 0 | F25: 0 | G25: 0 | H25: 0 | I25: 0 | J25: 0 | K25: 0
C26: Test | D26: =+D23=D16 -> TRUE | E26: FALSE | F26: TRUE | G26: TRUE | H26: FALSE | I26: TRUE | J26: TRUE | K26: TRUE
C29: Total prescribed capex | D29: =+D23 -> 90.8409572 | E29: 94.1878406 | F29: 98.74947639 | G29: 92.06934627 | H29: 90.41441055 | I29: 92.75301435 | J29: 89.76158101 | K29: 91.51655301
C32: Regulatory Depreciation | D32: =+BA41 -> 0.6514916309 | E32: 2.282831983 | F32: 4.554750665 | G32: 6.842193811 | H32: 8.755445078 | I32: 10.52021486 | J32: 12.16014942 | K32: 13.68103078
B35: =Expenditure_Detail!$B$6 -> $m, 01/01/20
Q36: Gross capital expenditure | Z36: Government contributions | AI36: Customer contributions | AR36: Net capital expenditure | BA36: Regulatory Depreciation | BJ36: Accumulated capex | BS36: Gross capital expenditure | CB36: Tax Depreciation | CO36: Gross CAPEX to depreciate | CX36: Declining balance cumulative depreciation term - first period capex | DG36: Declining balance cumulative depreciation term - period 2+ capex | DP36: Periodic depreciation % - first period capex | DY36: Periodic depreciation % - period 2+ capex | EH36: Reversed depreciation - first period capex | EQ36: Tax Depreciation - declining balance
Q37: $m, 01/01/20 | Z37: $m, 01/01/20 | AI37: $m, 01/01/20 | AR37: $m, 01/01/20 | BA37: $m, 01/01/20 | BJ37: $m, 01/01/20 | BS37: Nominal,$ | CB37: Nominal,$ | CO37: Nominal,$ | EQ37: Nominal,$
Q39: 2020-21 | R39: 2021-22 | S39: 2022-23 | T39: 2023-24 | U39: 2024-25 | V39: 2025-26 | W39: 2026-27 | X39: 2027-28 | Z39: 2020-21 | AA39: 2021-22 | AB39: 2022-23 | AC39: 2023-24 | AD39: 2024-25 | AE39: 2025-26 | AF39: 2026-27 | AG39: 2027-28 | AI39: 2020-21 | AJ39: 2021-22 | AK39: 2022-23 | AL39: 2023-24 | AM39: 2024-25 | AN39: 2025-26 | AO39: 2026-27 | AP39: 2027-28 | AR39: 2020-21 | AS39: 2021-22 | AT39: 2022-23 | AU39: 2023-24 | AV39: 2024-25 | AW39: 2025-26 | AX39: 2026-27 | AY39: 2027-28 | BA39: 2020-21 | BB39: 2021-22 | BC39: 2022-23 | BD39: 2023-24 | BE39: 2024-25 | BF39: 2025-26 | BG39: 2026-27 | BH39: 2027-28 | BJ39: 2020-21 | BK39: 2021-22 | BL39: 2022-23 | BM39: 2023-24 | BN39: 2024-25 | BO39: 2025-26 | BP39: 2026-27 | BQ39: 2027-28 | BS39: 2020-21 | BT39: 2021-22 | BU39: 2022-23 | BV39: 2023-24 | BW39: 2024-25 | BX39: 2025-26 | BY39: 2026-27 | BZ39: 2027-28 | CB39: 2020-21 | CC39: 2021-22 | CD39: 2022-23 | CE39: 2023-24 | CF39: 2024-25 | CG39: 2025-26 | CH39: 2026-27 | CI39: 2027-28 | CO39: 2020-21 | CP39: 2021-22 | CQ39: 2022-23 | CR39: 2023-24 | CS39: 2024-25 | CT39: 2025-26 | CU39: 2026-27 | CV39: 2027-28 | CX39: 2020-21 | CY39: 2021-22 | CZ39: 2022-23 | DA39: 2023-24 | DB39: 2024-25 | DC39: 2025-26 | DD39: 2026-27 | DE39: 2027-28 | DG39: 2020-21 | DH39: 2021-22 | DI39: 2022-23 | DJ39: 2023-24 | DK39: 2024-25 | DL39: 2025-26 | DM39: 2026-27 | DN39: 2027-28 | DP39: 2020-21 | DQ39: 2021-22 | DR39: 2022-23 | DS39: 2023-24 | DT39: 2024-25 | DU39: 2025-26 | DV39: 2026-27 | DW39: 2027-28 | DY39: 2020-21 | DZ39: 2021-22 | EA39: 2022-23 | EB39: 2023-24 | EC39: 2024-25 | ED39: 2025-26 | EE39: 2026-27 | EF39: 2027-28 | EH39: 2020-21 | EI39: 2021-22 | EJ39: 2022-23 | EK39: 2023-24 | EL39: 2024-25 | EM39: 2025-26 | EN39: 2026-27 | EO39: 2027-28 | EQ39: 2020-21 | ER39: 2021-22 | ES39: 2022-23 | ET39: 2023-24 | EU39: 2024-25 | EV39: 2025-26 | EW39: 2026-27 | EX39: 2027-28
BA40: 1 | BB40: 2 | BC40: 3 | BD40: 4 | BE40: 5 | BF40: 6 | BG40: 7 | BH40: 8 | CB40: 1 | CC40: 2 | CD40: 3 | CE40: 4 | CF40: 5 | CG40: 6 | CH40: 7 | CI40: 8 | CO40: 1 | CP40: 2 | CQ40: 3 | CR40: 4 | CS40: 5 | CT40: 6 | CU40: 7 | CV40: 8 | CX40: 1 | CY40: 2 | CZ40: 3 | DA40: 4 | DB40: 5 | DC40: 6 | DD40: 7 | DE40: 8 | DG40: 1 | DH40: 2 | DI40: 3 | DJ40: 4 | DK40: 5 | DL40: 6 | DM40: 7 | DN40: 8 | DP40: 1 | DQ40: 2 | DR40: 3 | DS40: 4 | DT40: 5 | DU40: 6 | DV40: 7 | DW40: 8 | DY40: 1 | DZ40: 2 | EA40: 3 | EB40: 4 | EC40: 5 | ED40: 6 | EE40: 7 | EF40: 8 | EH40: 1 | EI40: 2 | EJ40: 3 | EK40: 4 | EL40: 5 | EM40: 6 | EN40: 7 | EO40: 8 | EQ40: 1 | ER40: 2 | ES40: 3 | ET40: 4 | EU40: 5 | EV40: 6 | EW40: 7 | EX40: 8
C41: Project/program Name | E41: Service | F41: Major cost driver | G41: Asset category | H41: Capital type | J41: Reg Depreciation Method | K41: Year asset operational | L41: Asset life (Regulatory) | M41: Tax Depreciation Method | N41: Asset life (Tax) | Q41: =SUM(Q42:Q1016) -> 90.8409572 | R41: 94.1878406 | S41: 98.74947639 | T41: =SUM(T42:T1016) -> 92.06934627 | U41: =SUM(U42:U1016) -> 90.41441055 | V41: =SUM(V42:V1016) -> 92.75301435 | W41: =SUM(W42:W1016) -> 89.76158101 | X41: =SUM(X42:X1016) -> 91.51655301 | Z41: =SUM(Z42:Z1016) -> 0 | AA41: 0 | AB41: 0 | AC41: =SUM(AC42:AC1016) -> 0 | AD41: =SUM(AD42:AD1016) -> 0 | AE41: =SUM(AE42:AE1016) -> 0 | AF41: =SUM(AF42:AF1016) -> 0 | AG41: =SUM(AG42:AG1016) -> 0 | AI41: =SUM(AI42:AI1016) -> 22.96127531 | AJ41: =SUM(AJ42:AJ1016) -> 17.7051415 | AK41: =SUM(AK42:AK1016) -> 12.65342777 | AL41: =SUM(AL42:AL1016) -> 14.60934658 | AM41: =SUM(AM42:AM1016) -> 17.82907638 | AN41: =SUM(AN42:AN1016) -> 18.92531325 | AO41: =SUM(AO42:AO1016) -> 19.72500218 | AP41: =SUM(AP42:AP1016) -> 21.07431335 | AR41: =SUM(AR42:AR1016) -> 67.8796819 | AS41: =SUM(AS42:AS1016) -> 76.4826991 | AT41: =SUM(AT42:AT1016) -> 86.09604862 | AU41: =SUM(AU42:AU1016) -> 77.45999969 | AV41: =SUM(AV42:AV1016) -> 72.58533417 | AW41: =SUM(AW42:AW1016) -> 73.8277011 | AX41: =SUM(AX42:AX1016) -> 70.03657883 | AY41: =SUM(AY42:AY1016) -> 70.44223966 | BA41: =SUM(BA42:BA1016) -> 0.6514916309 | BB41: =SUM(BB42:BB1016) -> 2.282831983 | BC41: =SUM(BC42:BC1016) -> 4.554750665 | BD41: =SUM(BD42:BD1016) -> 6.842193811 | BE41: =SUM(BE42:BE1016) -> 8.755445078 | BF41: =SUM(BF42:BF1016) -> 10.52021486 | BG41: =SUM(BG42:BG1016) -> 12.16014942 | BH41: =SUM(BH42:BH1016) -> 13.68103078 | BJ41: =SUM(BJ42:BJ1016) -> 46.1990283 | BK41: =SUM(BK42:BK1016) -> 76.35959635 | BL41: =SUM(BL42:BL1016) -> 107.899805 | BM41: =SUM(BM42:BM1016) -> 77.45999969 | BN41: =SUM(BN42:BN1016) -> 72.58533417 | BO41: =SUM(BO42:BO1016) -> 73.8277011 | BP41: =SUM(BP42:BP1016) -> 70.03657883 | BQ41: =SUM(BQ42:BQ1016) -> 70.44223966 | BS41: =SUM(BS42:BS1016) -> 92.93029922 | BT41: =SUM(BT42:BT1016) -> 98.57030664 | BU41: =SUM(BU42:BU1016) -> 105.7211072 | BV41: =SUM(BV42:BV1016) -> 100.8364608 | BW41: =SUM(BW42:BW1016) -> 101.3014878 | BX41: =SUM(BX42:BX1016) -> 106.311889 | BY41: =SUM(BY42:BY1016) -> 105.2494729 | BZ41: =SUM(BZ42:BZ1016) -> 109.775323 | CB41: =SUM(CB42:CB1016) -> 1.217341541 | CC41: =SUM(CC42:CC1016) -> 4.041684435 | CD41: =SUM(CD42:CD1016) -> 7.634665699 | CE41: =SUM(CE42:CE1016) -> 11.08250616 | CF41: =SUM(CF42:CF1016) -> 13.84394565 | CG41: =SUM(CG42:CG1016) -> 16.28054257 | CH41: =SUM(CH42:CH1016) -> 18.44423179 | CI41: =SUM(CI42:CI1016) -> 20.38412569 | CM41: Declining balance multiple | CO41: =SUM(CO42:CO1016) -> 70.75099059 | CP41: 98.10857768 | CQ41: 128.3621447 | CR41: 100.8364608 | CS41: 101.3014878 | CT41: 106.311889 | CU41: 105.2494729 | CV41: 109.775323 | EQ41: =SUM(EQ42:EQ1016) -> 1.217341541 | ER41: 4.041684435 | ES41: 7.634665699 | ET41: 11.08250616 | EU41: 13.84394565 | EV41: 16.28054257 | EW41: 18.44423179 | EX41: 20.38412569
C42: Parwan-Balliang Irrigation District network (WIN Stage 1) | E42: Recycled Water | F42: Growth | G42: Pipelines/network | H42: Top 10 Major Projects | J42: Straight line | K42: 2021-22 | L42: 51 | M42: Declining Balance | N42: 51 | Q42: 2.532483134 | R42: 6.816152659 | S42: 8.37951301 | T42: 7.596682535 | U42: 0 | V42: 0 | W42: 0 | X42: 0 | AR42: =+Q42-Z42-AI42 -> 2.532483134 | AS42: =+R42-AA42-AJ42 -> 6.816152659 | AT42: =+S42-AB42-AK42 -> 8.37951301 | AU42: =+T42-AC42-AL42 -> 7.596682535 | AV42: =+U42-AD42-AM42 -> 0 | AW42: =+V42-AE42-AN42 -> 0 | AX42: =+W42-AF42-AO42 -> 0 | AY42: =+X42-AG42-AP42 -> 0 | BA42: =IF($L42=0,0, IF($L42<=0.5,BJ42, IF($J42="straight line", IF((LEFT(BA$39,4)*1)-INT($L42)<LEFT($BA$39,4)*1,0,((OFFSET(BJ42,0,-INT($L42+0.5),1,1))/$L42)*(IF($L42-INT($L42)>0.5,$L42-0.5-INT($L42),IF($L42-INT($L42)<=0.5,$L42-0.5-INT($L42)+1,0)))) +BJ42/$L42*0.5, IF($J42="Declining Balance",-$BA$38,0)))) -> 0 | BB42: =IF($L42=0,0, IF($L42<=0.5,BK42, IF(AND($J42="straight line",$L42<1.51),(BJ42-((BJ42/$L42)*0.5))+BK42/$L42*0.5, IF($J42="straight line", IF((LEFT(BB$39,4)*1)-INT($L42)<LEFT($BA$39,4)*1,0,((OFFSET(BK42,0,-INT($L42+0.5),1,1))/$L42)*(IF($L42-INT($L42)>0.5,$L42-0.5-INT($L42),IF($L42-INT($L42)<=0.5,$L42-0.5-INT($L42)+1,0)))) +BK42/$L42*0.5 +SUM(OFFSET(BK42,0,MAX(-INT($L42+(0.5-(10^-12))),-BB$40)+1,1,MIN(INT($L42+(0.5-(10^-12))),BB$40)-1))*1/$L42, IF($J42="Declining Balance",-$BA$38,0))))) -> 0.09165329209 | BC42: =IF($L42=0,0, IF($L42<=0.5,BL42, IF(AND($J42="straight line",$L42<1.51),(BK42-((BK42/$L42)*0.5))+BL42/$L42*0.5, IF($J42="straight line", IF((LEFT(BC$39,4)*1)-INT($L42)<LEFT($BA$39,4)*1,0,((OFFSET(BL42,0,-INT($L42+0.5),1,1))/$L42)*(IF($L42-INT($L42)>0.5,$L42-0.5-INT($L42),IF($L42-INT($L42)<=0.5,$L42-0.5-INT($L42)+1,0)))) +BL42/$L42*0.5 +SUM(OFFSET(BL42,0,MAX(-INT($L42+(0.5-(10^-12))),-BC$40)+1,1,MIN(INT($L42+(0.5-(10^-12))),BC$40)-1))*1/$L42, IF($J42="Declining Balance",-$BA$38,0))))) -> 0.2654586725 | BD42: 0.4220880406 | BE42: 0.4965653204 | BF42: 0.4965653204 | BG42: 0.4965653204 | BH42: 0.4965653204 | BJ42: =+IF($K42="Ongoing",AR42,IF(RIGHT($K42,2)=RIGHT(BJ$39,2),SUM($AR42:AR42),0)+IF(RIGHT(BJ$39,2)>RIGHT($K42,2),AR42,0)) -> 0 | BK42: =+IF($K42="Ongoing",AS42,IF(RIGHT($K42,2)=RIGHT(BK$39,2),SUM($AR42:AS42),0)+IF(RIGHT(BK$39,2)>RIGHT($K42,2),AS42,0)) -> 9.348635793 | BL42: =+IF($K42="Ongoing",AT42,IF(RIGHT($K42,2)=RIGHT(BL$39,2),SUM($AR42:AT42),0)+IF(RIGHT(BL$39,2)>RIGHT($K42,2),AT42,0)) -> 8.37951301 | BM42: =+IF($K42="Ongoing",AU42,IF(RIGHT($K42,2)=RIGHT(BM$39,2),SUM($AR42:AU42),0)+IF(RIGHT(BM$39,2)>RIGHT($K42,2),AU42,0)) -> 7.596682535 | BN42: =+IF($K42="Ongoing",AV42,IF(RIGHT($K42,2)=RIGHT(BN$39,2),SUM($AR42:AV42),0)+IF(RIGHT(BN$39,2)>RIGHT($K42,2),AV42,0)) -> 0 | BO42: =+IF($K42="Ongoing",AW42,IF(RIGHT($K42,2)=RIGHT(BO$39,2),SUM($AR42:AW42),0)+IF(RIGHT(BO$39,2)>RIGHT($K42,2),AW42,0)) -> 0 | BP42: =+IF($K42="Ongoing",AX42,IF(RIGHT($K42,2)=RIGHT(BP$39,2),SUM($AR42:AX42),0)+IF(RIGHT(BP$39,2)>RIGHT($K42,2),AX42,0)) -> 0 | BQ42: =+IF($K42="Ongoing",AY42,IF(RIGHT($K42,2)=RIGHT(BQ$39,2),SUM($AR42:AY42),0)+IF(RIGHT(BQ$39,2)>RIGHT($K42,2),AY42,0)) -> 0 | BS42: =+Q42*KeyAssumptionsPriceControl_FO!Z$15 -> 2.590730246 | BT42: =+R42*KeyAssumptionsPriceControl_FO!AA$15 -> 7.133301426 | BU42: =+S42*KeyAssumptionsPriceControl_FO!AB$15 -> 8.971099648 | BV42: =+T42*KeyAssumptionsPriceControl_FO!AC$15 -> 8.32006104 | BW42: =+U42*KeyAssumptionsPriceControl_FO!AD$15 -> 0 | BX42: =+V42*KeyAssumptionsPriceControl_FO!AE$15 -> 0 | BY42: =+W42*KeyAssumptionsPriceControl_FO!AF$15 -> 0 | BZ42: =+X42*KeyAssumptionsPriceControl_FO!AG$15 -> 0 | CB42: =IF($M42="straight line",IF($N42=0,0, IF($N42<=0.5,BS42, IF($J42="straight line", IF((LEFT(CB$39,4)*1)-INT($N42)<LEFT(#REF!,4)*1,0,((OFFSET(BS42,0,-INT($N42+0.5),1,1))/$N42)*(IF($N42-INT($N42)>0.5,$N42-0.5-INT($N42),IF($N42-INT($N42)<=0.5,$N42-0.5-INT($N42)+1,0)))) +BS42/$N42*0.5, IF($J42="Declining Balance",-#REF!,0)))),IFERROR(EQ42,0)) -> 0 | CC42: =IF($M42="straight line",IF($N42=0,0, IF($N42<=0.5,BT42, IF($J42="straight line", IF((LEFT(CC$39,4)*1)-INT($N42)<LEFT(#REF!,4)*1,0,((OFFSET(BT42,0,-INT($N42+0.5),1,1))/$N42)*(IF($N42-INT($N42)>0.5,$N42-0.5-INT($N42),IF($N42-INT($N42)<=0.5,$N42-0.5-INT($N42)+1,0)))) +BT42/$N42*0.5, IF($J42="Declining Balance",-#REF!,0)))),IFERROR(ER42,0)) -> 0.1430004658 | CD42: =IF($M42="straight line",IF($N42=0,0, IF($N42<=0.5,BU42, IF($J42="straight line", IF((LEFT(CD$39,4)*1)-INT($N42)<LEFT(#REF!,4)*1,0,((OFFSET(BU42,0,-INT($N42+0.5),1,1))/$N42)*(IF($N42-INT($N42)>0.5,$N42-0.5-INT($N42),IF($N42-INT($N42)<=0.5,$N42-0.5-INT($N42)+1,0)))) +BU42/$N42*0.5, IF($J42="Declining Balance",-#REF!,0)))),IFERROR(ES42,0)) -> 0.4137229715 | CE42: =IF($M42="straight line",IF($N42=0,0, IF($N42<=0.5,BV42, IF($J42="straight line", IF((LEFT(CE$39,4)*1)-INT($N42)<LEFT(#REF!,4)*1,0,((OFFSET(BV42,0,-INT($N42+0.5),1,1))/$N42)*(IF($N42-INT($N42)>0.5,$N42-0.5-INT($N42),IF($N42-INT($N42)<=0.5,$N42-0.5-INT($N42)+1,0)))) +BV42/$N42*0.5, IF($J42="Declining Balance",-#REF!,0)))),IFERROR(ET42,0)) -> 0.6558364236 | CF42: =IF($M42="straight line",IF($N42=0,0, IF($N42<=0.5,BW42, IF($J42="straight line", IF((LEFT(CF$39,4)*1)-INT($N42)<LEFT(#REF!,4)*1,0,((OFFSET(BW42,0,-INT($N42+0.5),1,1))/$N42)*(IF($N42-INT($N42)>0.5,$N42-0.5-INT($N42),IF($N42-INT($N42)<=0.5,$N42-0.5-INT($N42)+1,0)))) +BW42/$N42*0.5, IF($J42="Declining Balance",-#REF!,0)))),IFERROR(EU42,0)) -> 0.7589009559 | CG42: =IF($M42="straight line",IF($N42=0,0, IF($N42<=0.5,BX42, IF($J42="straight line", IF((LEFT(CG$39,4)*1)-INT($N42)<LEFT(#REF!,4)*1,0,((OFFSET(BX42,0,-INT($N42+0.5),1,1))/$N42)*(IF($N42-INT($N42)>0.5,$N42-0.5-INT($N42),IF($N42-INT($N42)<=0.5,$N42-0.5-INT($N42)+1,0)))) +BX42/$N42*0.5, IF($J42="Declining Balance",-#REF!,0)))),IFERROR(EV42,0)) -> 0.7365803395 | CH42: =IF($M42="straight line",IF($N42=0,0, IF($N42<=0.5,BY42, IF($J42="straight line", IF((LEFT(CH$39,4)*1)-INT($N42)<LEFT(#REF!,4)*1,0,((OFFSET(BY42,0,-INT($N42+0.5),1,1))/$N42)*(IF($N42-INT($N42)>0.5,$N42-0.5-INT($N42),IF($N42-INT($N42)<=0.5,$N42-0.5-INT($N42)+1,0)))) +BY42/$N42*0.5, IF($J42="Declining Balance",-#REF!,0)))),IFERROR(EW42,0)) -> 0.7149162119 | CI42: =IF($M42="straight line",IF($N42=0,0, IF($N42<=0.5,BZ42, IF($J42="straight line", IF((LEFT(CI$39,4)*1)-INT($N42)<LEFT(#REF!,4)*1,0,((OFFSET(BZ42,0,-INT($N42+0.5),1,1))/$N42)*(IF($N42-INT($N42)>0.5,$N42-0.5-INT($N42),IF($N42-INT($N42)<=0.5,$N42-0.5-INT($N42)+1,0)))) +BZ42/$N42*0.5, IF($J42="Declining Balance",-#REF!,0)))),IFERROR(EX42,0)) -> 0.6938892645 | CM42: 1.5 | CN42: No | CO42: =+IF($K42="ongoing",BS42,IF(RIGHT($K42,2)=RIGHT(CO$39,2),SUM($BR42:BS42),0)+IF(RIGHT(CO$39,2)>RIGHT($K42,2),BS42,0)) -> 0 | CP42: =+IF($K42="ongoing",BT42,IF(RIGHT($K42,2)=RIGHT(CP$39,2),SUM($BR42:BT42),0)+IF(RIGHT(CP$39,2)>RIGHT($K42,2),BT42,0)) -> 9.724031672 | CQ42: =+IF($K42="ongoing",BU42,IF(RIGHT($K42,2)=RIGHT(CQ$39,2),SUM($BR42:BU42),0)+IF(RIGHT(CQ$39,2)>RIGHT($K42,2),BU42,0)) -> 8.971099648 | CR42: =+IF($K42="ongoing",BV42,IF(RIGHT($K42,2)=RIGHT(CR$39,2),SUM($BR42:BV42),0)+IF(RIGHT(CR$39,2)>RIGHT($K42,2),BV42,0)) -> 8.32006104 | CS42: =+IF($K42="ongoing",BW42,IF(RIGHT($K42,2)=RIGHT(CS$39,2),SUM($BR42:BW42),0)+IF(RIGHT(CS$39,2)>RIGHT($K42,2),BW42,0)) -> 0 | CT42: =+IF($K42="ongoing",BX42,IF(RIGHT($K42,2)=RIGHT(CT$39,2),SUM($BR42:BX42),0)+IF(RIGHT(CT$39,2)>RIGHT($K42,2),BX42,0)) -> 0 | CU42: =+IF($K42="ongoing",BY42,IF(RIGHT($K42,2)=RIGHT(CU$39,2),SUM($BR42:BY42),0)+IF(RIGHT(CU$39,2)>RIGHT($K42,2),BY42,0)) -> 0 | CV42: =+IF($K42="ongoing",BZ42,IF(RIGHT($K42,2)=RIGHT(CV$39,2),SUM($BR42:BZ42),0)+IF(RIGHT(CV$39,2)>RIGHT($K42,2),BZ42,0)) -> 0 | CX42: =+MIN(IF($N42<=$CM42,MIN($N42,1),$N42),IF(CX$40=1,0.5,#REF!+1)) -> 0.5 | CY42: =+MIN(IF($N42<=$CM42,MIN($N42,1),$N42),IF(CY$40=1,0.5,CX42+1)) -> 1.5 | CZ42: 2.5 | DA42: 3.5 | DB42: 4.5 | DC42: 5.5 | DD42: 6.5 | DE42: 7.5 | DG42: =+IF(DG$40=1,0,MIN(IF($N42<=$CM42,MIN($N42,1),$N42),IF(DG$40=2,0.5,#REF!+1))) -> 0 | DH42: =+IF(DH$40=1,0,MIN(IF($N42<=$CM42,MIN($N42,1),$N42),IF(DH$40=2,0.5,DG42+1))) -> 0.5 | DI42: 1.5 | DJ42: 2.5 | DK42: 3.5 | DL42: 4.5 | DM42: 5.5 | DN42: 6.5 | DP42: =+IF(CX42=CW42,0, IF(AND(DP$40>1,CX42=$N42),1-SUM($DO42:DO42), IF($N42<=1, IF($N42>0,1/$N42,0), IF(DP$40=1,0,VDB(1,0,$N42,INT(DP$40-1-1),MIN($N42,INT(DP$40-1-1)+1),$CM42,IF($CN42="No",1,0))/ IF(CW42>=INT($N42),$N42-INT($N42),1)))* IF(DP$40=1,0, IF(INT(CX42)=INT(CW42),CX42-CW42,INT(CX42)-CW42))+ IF($N42<=1, IF($N42>0,1/$N42,0),VDB(1,0,$N42,INT(DP$40-1),MIN($N42,INT(DP$40-1)+1),$CM42,IF($CN42="No",1,0))/ IF(CX42>INT($N42),$N42-INT($N42),1))* IF(DP$40=1,CX42, IF(INT(CX42)=INT(CW42),0,CX42-INT(CX42))))) -> 0.01470588235 | DQ42: =+IF(CY42=CX42,0, IF(AND(DQ$40>1,CY42=$N42),1-SUM($DO42:DP42), IF($N42<=1, IF($N42>0,1/$N42,0), IF(DQ$40=1,0,VDB(1,0,$N42,INT(DQ$40-1-1),MIN($N42,INT(DQ$40-1-1)+1),$CM42,IF($CN42="No",1,0))/ IF(CX42>=INT($N42),$N42-INT($N42),1)))* IF(DQ$40=1,0, IF(INT(CY42)=INT(CX42),CY42-CX42,INT(CY42)-CX42))+ IF($N42<=1, IF($N42>0,1/$N42,0),VDB(1,0,$N42,INT(DQ$40-1),MIN($N42,INT(DQ$40-1)+1),$CM42,IF($CN42="No",1,0))/ IF(CY42>INT($N42),$N42-INT($N42),1))* IF(DQ$40=1,CY42, IF(INT(CY42)=INT(CX42),0,CY42-INT(CY42))))) -> 0.02897923875 | DR42: =+IF(CZ42=CY42,0, IF(AND(DR$40>1,CZ42=$N42),1-SUM($DO42:DQ42), IF($N42<=1, IF($N42>0,1/$N42,0), IF(DR$40=1,0,VDB(1,0,$N42,INT(DR$40-1-1),MIN($N42,INT(DR$40-1-1)+1),$CM42,IF($CN42="No",1,0))/ IF(CY42>=INT($N42),$N42-INT($N42),1)))* IF(DR$40=1,0, IF(INT(CZ42)=INT(CY42),CZ42-CY42,INT(CZ42)-CY42))+ IF($N42<=1, IF($N42>0,1/$N42,0),VDB(1,0,$N42,INT(DR$40-1),MIN($N42,INT(DR$40-1)+1),$CM42,IF($CN42="No",1,0))/ IF(CZ42>INT($N42),$N42-INT($N42),1))* IF(DR$40=1,CZ42, IF(INT(CZ42)=INT(CY42),0,CZ42-INT(CZ42))))) -> 0.0281269082 | DS42: =+IF(DA42=CZ42,0, IF(AND(DS$40>1,DA42=$N42),1-SUM($DO42:DR42), IF($N42<=1, IF($N42>0,1/$N42,0), IF(DS$40=1,0,VDB(1,0,$N42,INT(DS$40-1-1),MIN($N42,INT(DS$40-1-1)+1),$CM42,IF($CN42="No",1,0))/ IF(CZ42>=INT($N42),$N42-INT($N42),1)))* IF(DS$40=1,0, IF(INT(DA42)=INT(CZ42),DA42-CZ42,INT(DA42)-CZ42))+ IF($N42<=1, IF($N42>0,1/$N42,0),VDB(1,0,$N42,INT(DS$40-1),MIN($N42,INT(DS$40-1)+1),$CM42,IF($CN42="No",1,0))/ IF(DA42>INT($N42),$N42-INT($N42),1))* IF(DS$40=1,DA42, IF(INT(DA42)=INT(CZ42),0,DA42-INT(DA42))))) -> 0.0272996462 | DT42: =+IF(DB42=DA42,0, IF(AND(DT$40>1,DB42=$N42),1-SUM($DO42:DS42), IF($N42<=1, IF($N42>0,1/$N42,0), IF(DT$40=1,0,VDB(1,0,$N42,INT(DT$40-1-1),MIN($N42,INT(DT$40-1-1)+1),$CM42,IF($CN42="No",1,0))/ IF(DA42>=INT($N42),$N42-INT($N42),1)))* IF(DT$40=1,0, IF(INT(DB42)=INT(DA42),DB42-DA42,INT(DB42)-DA42))+ IF($N42<=1, IF($N42>0,1/$N42,0),VDB(1,0,$N42,INT(DT$40-1),MIN($N42,INT(DT$40-1)+1),$CM42,IF($CN42="No",1,0))/ IF(DB42>INT($N42),$N42-INT($N42),1))* IF(DT$40=1,DB42, IF(INT(DB42)=INT(DA42),0,DB42-INT(DB42))))) -> 0.02649671543 | DU42: =+IF(DC42=DB42,0, IF(AND(DU$40>1,DC42=$N42),1-SUM($DO42:DT42), IF($N42<=1, IF($N42>0,1/$N42,0), IF(DU$40=1,0,VDB(1,0,$N42,INT(DU$40-1-1),MIN($N42,INT(DU$40-1-1)+1),$CM42,IF($CN42="No",1,0))/ IF(DB42>=INT($N42),$N42-INT($N42),1)))* IF(DU$40=1,0, IF(INT(DC42)=INT(DB42),DC42-DB42,INT(DC42)-DB42))+ IF($N42<=1, IF($N42>0,1/$N42,0),VDB(1,0,$N42,INT(DU$40-1),MIN($N42,INT(DU$40-1)+1),$CM42,IF($CN42="No",1,0))/ IF(DC42>INT($N42),$N42-INT($N42),1))* IF(DU$40=1,DC42, IF(INT(DC42)=INT(DB42),0,DC42-INT(DC42))))) -> 0.02571740027 | DV42: =+IF(DD42=DC42,0, IF(AND(DV$40>1,DD42=$N42),1-SUM($DO42:DU42), IF($N42<=1, IF($N42>0,1/$N42,0), IF(DV$40=1,0,VDB(1,0,$N42,INT(DV$40-1-1),MIN($N42,INT(DV$40-1-1)+1),$CM42,IF($CN42="No",1,0))/ IF(DC42>=INT($N42),$N42-INT($N42),1)))* IF(DV$40=1,0, IF(INT(DD42)=INT(DC42),DD42-DC42,INT(DD42)-DC42))+ IF($N42<=1, IF($N42>0,1/$N42,0),VDB(1,0,$N42,INT(DV$40-1),MIN($N42,INT(DV$40-1)+1),$CM42,IF($CN42="No",1,0))/ IF(DD42>INT($N42),$N42-INT($N42),1))* IF(DV$40=1,DD42, IF(INT(DD42)=INT(DC42),0,DD42-INT(DD42))))) -> 0.02496100614 | DW42: =+IF(DE42=DD42,0, IF(AND(DW$40>1,DE42=$N42),1-SUM($DO42:DV42), IF($N42<=1, IF($N42>0,1/$N42,0), IF(DW$40=1,0,VDB(1,0,$N42,INT(DW$40-1-1),MIN($N42,INT(DW$40-1-1)+1),$CM42,IF($CN42="No",1,0))/ IF(DD42>=INT($N42),$N42-INT($N42),1)))* IF(DW$40=1,0, IF(INT(DE42)=INT(DD42),DE42-DD42,INT(DE42)-DD42))+ IF($N42<=1, IF($N42>0,1/$N42,0),VDB(1,0,$N42,INT(DW$40-1),MIN($N42,INT(DW$40-1)+1),$CM42,IF($CN42="No",1,0))/ IF(DE42>INT($N42),$N42-INT($N42),1))* IF(DW$40=1,DE42, IF(INT(DE42)=INT(DD42),0,DE42-INT(DE42))))) -> 0.0242268589 | DY42: =+IF(OR(DG42=DF42,DY$40=1),0, IF(AND(DY$40>1,DG42=$N42),1-SUM($DX42:DX42), IF($N42<=1, IF($N42>0,1/$N42,0), IF(DY$40=2,0,VDB(1,0,$N42,INT(DY$40-2-1),MIN($N42,INT(DY$40-2-1)+1),$CM42,IF($CN42="No",1,0))/ IF(DF42>=INT($N42),$N42-INT($N42),1)))* IF(DY$40=2,0, IF(INT(DG42)=INT(DF42),DG42-DF42,INT(DG42)-DF42))+ IF($N42<=1, IF($N42>0,1/$N42,0),VDB(1,0,$N42,INT(DY$40-2),MIN($N42,INT(DY$40-2)+1),$CM42,IF($CN42="No",1,0))/ IF(DG42>INT($N42),$N42-INT($N42),1))* IF(DY$40=2,DG42, IF(INT(DG42)=INT(DF42),0,DG42-INT(DG42))))) -> 0 | DZ42: =+IF(OR(DH42=DG42,DZ$40=1),0, IF(AND(DZ$40>1,DH42=$N42),1-SUM($DX42:DY42), IF($N42<=1, IF($N42>0,1/$N42,0), IF(DZ$40=2,0,VDB(1,0,$N42,INT(DZ$40-2-1),MIN($N42,INT(DZ$40-2-1)+1),$CM42,IF($CN42="No",1,0))/ IF(DG42>=INT($N42),$N42-INT($N42),1)))* IF(DZ$40=2,0, IF(INT(DH42)=INT(DG42),DH42-DG42,INT(DH42)-DG42))+ IF($N42<=1, IF($N42>0,1/$N42,0),VDB(1,0,$N42,INT(DZ$40-2),MIN($N42,INT(DZ$40-2)+1),$CM42,IF($CN42="No",1,0))/ IF(DH42>INT($N42),$N42-INT($N42),1))* IF(DZ$40=2,DH42, IF(INT(DH42)=INT(DG42),0,DH42-INT(DH42))))) -> 0.01470588235 | EA42: =+IF(OR(DI42=DH42,EA$40=1),0, IF(AND(EA$40>1,DI42=$N42),1-SUM($DX42:DZ42), IF($N42<=1, IF($N42>0,1/$N42,0), IF(EA$40=2,0,VDB(1,0,$N42,INT(EA$40-2-1),MIN($N42,INT(EA$40-2-1)+1),$CM42,IF($CN42="No",1,0))/ IF(DH42>=INT($N42),$N42-INT($N42),1)))* IF(EA$40=2,0, IF(INT(DI42)=INT(DH42),DI42-DH42,INT(DI42)-DH42))+ IF($N42<=1, IF($N42>0,1/$N42,0),VDB(1,0,$N42,INT(EA$40-2),MIN($N42,INT(EA$40-2)+1),$CM42,IF($CN42="No",1,0))/ IF(DI42>INT($N42),$N42-INT($N42),1))* IF(EA$40=2,DI42, IF(INT(DI42)=INT(DH42),0,DI42-INT(DI42))))) -> 0.02897923875 | EB42: =+IF(OR(DJ42=DI42,EB$40=1),0, IF(AND(EB$40>1,DJ42=$N42),1-SUM($DX42:EA42), IF($N42<=1, IF($N42>0,1/$N42,0), IF(EB$40=2,0,VDB(1,0,$N42,INT(EB$40-2-1),MIN($N42,INT(EB$40-2-1)+1),$CM42,IF($CN42="No",1,0))/ IF(DI42>=INT($N42),$N42-INT($N42),1)))* IF(EB$40=2,0, IF(INT(DJ42)=INT(DI42),DJ42-DI42,INT(DJ42)-DI42))+ IF($N42<=1, IF($N42>0,1/$N42,0),VDB(1,0,$N42,INT(EB$40-2),MIN($N42,INT(EB$40-2)+1),$CM42,IF($CN42="No",1,0))/ IF(DJ42>INT($N42),$N42-INT($N42),1))* IF(EB$40=2,DJ42, IF(INT(DJ42)=INT(DI42),0,DJ42-INT(DJ42))))) -> 0.0281269082 | EC42: =+IF(OR(DK42=DJ42,EC$40=1),0, IF(AND(EC$40>1,DK42=$N42),1-SUM($DX42:EB42), IF($N42<=1, IF($N42>0,1/$N42,0), IF(EC$40=2,0,VDB(1,0,$N42,INT(EC$40-2-1),MIN($N42,INT(EC$40-2-1)+1),$CM42,IF($CN42="No",1,0))/ IF(DJ42>=INT($N42),$N42-INT($N42),1)))* IF(EC$40=2,0, IF(INT(DK42)=INT(DJ42),DK42-DJ42,INT(DK42)-DJ42))+ IF($N42<=1, IF($N42>0,1/$N42,0),VDB(1,0,$N42,INT(EC$40-2),MIN($N42,INT(EC$40-2)+1),$CM42,IF($CN42="No",1,0))/ IF(DK42>INT($N42),$N42-INT($N42),1))* IF(EC$40=2,DK42, IF(INT(DK42)=INT(DJ42),0,DK42-INT(DK42))))) -> 0.0272996462 | ED42: =+IF(OR(DL42=DK42,ED$40=1),0, IF(AND(ED$40>1,DL42=$N42),1-SUM($DX42:EC42), IF($N42<=1, IF($N42>0,1/$N42,0), IF(ED$40=2,0,VDB(1,0,$N42,INT(ED$40-2-1),MIN($N42,INT(ED$40-2-1)+1),$CM42,IF($CN42="No",1,0))/ IF(DK42>=INT($N42),$N42-INT($N42),1)))* IF(ED$40=2,0, IF(INT(DL42)=INT(DK42),DL42-DK42,INT(DL42)-DK42))+ IF($N42<=1, IF($N42>0,1/$N42,0),VDB(1,0,$N42,INT(ED$40-2),MIN($N42,INT(ED$40-2)+1),$CM42,IF($CN42="No",1,0))/ IF(DL42>INT($N42),$N42-INT($N42),1))* IF(ED$40=2,DL42, IF(INT(DL42)=INT(DK42),0,DL42-INT(DL42))))) -> 0.02649671543 | EE42: =+IF(OR(DM42=DL42,EE$40=1),0, IF(AND(EE$40>1,DM42=$N42),1-SUM($DX42:ED42), IF($N42<=1, IF($N42>0,1/$N42,0), IF(EE$40=2,0,VDB(1,0,$N42,INT(EE$40-2-1),MIN($N42,INT(EE$40-2-1)+1),$CM42,IF($CN42="No",1,0))/ IF(DL42>=INT($N42),$N42-INT($N42),1)))* IF(EE$40=2,0, IF(INT(DM42)=INT(DL42),DM42-DL42,INT(DM42)-DL42))+ IF($N42<=1, IF($N42>0,1/$N42,0),VDB(1,0,$N42,INT(EE$40-2),MIN($N42,INT(EE$40-2)+1),$CM42,IF($CN42="No",1,0))/ IF(DM42>INT($N42),$N42-INT($N42),1))* IF(EE$40=2,DM42, IF(INT(DM42)=INT(DL42),0,DM42-INT(DM42))))) -> 0.02571740027 | EF42: =+IF(OR(DN42=DM42,EF$40=1),0, IF(AND(EF$40>1,DN42=$N42),1-SUM($DX42:EE42), IF($N42<=1, IF($N42>0,1/$N42,0), IF(EF$40=2,0,VDB(1,0,$N42,INT(EF$40-2-1),MIN($N42,INT(EF$40-2-1)+1),$CM42,IF($CN42="No",1,0))/ IF(DM42>=INT($N42),$N42-INT($N42),1)))* IF(EF$40=2,0, IF(INT(DN42)=INT(DM42),DN42-DM42,INT(DN42)-DM42))+ IF($N42<=1, IF($N42>0,1/$N42,0),VDB(1,0,$N42,INT(EF$40-2),MIN($N42,INT(EF$40-2)+1),$CM42,IF($CN42="No",1,0))/ IF(DN42>INT($N42),$N42-INT($N42),1))* IF(EF$40=2,DN42, IF(INT(DN42)=INT(DM42),0,DN42-INT(DN42))))) -> 0.02496100614 | EH42: =+OFFSET($DY42,0,MAX($EH$40:$HI$40)-EH$40) -> 0.02496100614 | EI42: 0.02571740027 | EJ42: 0.02649671543 | EK42: 0.0272996462 | EL42: 0.0281269082 | EM42: 0.02897923875 | EN42: 0.01470588235 | EO42: 0 | EQ42: =-(-$CO42*(-ISBLANK($CO42)+1)*DP42- IF(EQ$40>1,SUMPRODUCT(OFFSET($CP42,0,0,1,EQ$40-1)*(-ISBLANK(OFFSET($CP42,0,0,1,EQ$40-1))+1),OFFSET($EH42,0,MAX($EQ$40:$HI$40)-EQ$40,1,EQ$40-1)),0)) -> 0 | ER42: =-(-$CO42*(-ISBLANK($CO42)+1)*DQ42- IF(ER$40>1,SUMPRODUCT(OFFSET($CP42,0,0,1,ER$40-1)*(-ISBLANK(OFFSET($CP42,0,0,1,ER$40-1))+1),OFFSET($EH42,0,MAX($EQ$40:$HI$40)-ER$40,1,ER$40-1)),0)) -> 0.1430004658 | ES42: =-(-$CO42*(-ISBLANK($CO42)+1)*DR42- IF(ES$40>1,SUMPRODUCT(OFFSET($CP42,0,0,1,ES$40-1)*(-ISBLANK(OFFSET($CP42,0,0,1,ES$40-1))+1),OFFSET($EH42,0,MAX($EQ$40:$HI$40)-ES$40,1,ES$40-1)),0)) -> 0.4137229715 | ET42: =-(-$CO42*(-ISBLANK($CO42)+1)*DS42- IF(ET$40>1,SUMPRODUCT(OFFSET($CP42,0,0,1,ET$40-1)*(-ISBLANK(OFFSET($CP42,0,0,1,ET$40-1))+1),OFFSET($EH42,0,MAX($EQ$40:$HI$40)-ET$40,1,ET$40-1)),0)) -> 0.6558364236 | EU42: =-(-$CO42*(-ISBLANK($CO42)+1)*DT42- IF(EU$40>1,SUMPRODUCT(OFFSET($CP42,0,0,1,EU$40-1)*(-ISBLANK(OFFSET($CP42,0,0,1,EU$40-1))+1),OFFSET($EH42,0,MAX($EQ$40:$HI$40)-EU$40,1,EU$40-1)),0)) -> 0.7589009559 | EV42: =-(-$CO42*(-ISBLANK($CO42)+1)*DU42- IF(EV$40>1,SUMPRODUCT(OFFSET($CP42,0,0,1,EV$40-1)*(-ISBLANK(OFFSET($CP42,0,0,1,EV$40-1))+1),OFFSET($EH42,0,MAX($EQ$40:$HI$40)-EV$40,1,EV$40-1)),0)) -> 0.7365803395 | EW42: =-(-$CO42*(-ISBLANK($CO42)+1)*DV42- IF(EW$40>1,SUMPRODUCT(OFFSET($CP42,0,0,1,EW$40-1)*(-ISBLANK(OFFSET($CP42,0,0,1,EW$40-1))+1),OFFSET($EH42,0,MAX($EQ$40:$HI$40)-EW$40,1,EW$40-1)),0)) -> 0.7149162119 | EX42: =-(-$CO42*(-ISBLANK($CO42)+1)*DW42- IF(EX$40>1,SUMPRODUCT(OFFSET($CP42,0,0,1,EX$40-1)*(-ISBLANK(OFFSET($CP42,0,0,1,EX$40-1))+1),OFFSET($EH42,0,MAX($EQ$40:$HI$40)-EX$40,1,EX$40-1)),0)) -> 0.6938892645
C43: Melton RWP - Additional on-site recycled water storage - Stage 1 | E43: Sewerage | F43: Growth | G43: Pipelines/network | H43: Top 10 Major Projects | J43: Straight line | K43: 2021-22 | L43: 51 | M43: Declining Balance | N43: 51 | Q43: 4.18356604 | R43: 5.855562248 | S43: 5.098378382 | T43: 0.8555947302 | U43: 0 | V43: 0 | W43: 0 | X43: 0 | AR43: 4.18356604 | AS43: 5.855562248 | AT43: 5.098378382 | AU43: 0.8555947302 | AV43: 0 | AW43: 0 | AX43: 0 | AY43: 0 | BA43: =IF($L43=0,0, IF($L43<=0.5,BJ43, IF($J43="straight line", IF((LEFT(BA$39,4)*1)-INT($L43)<LEFT($BA$39,4)*1,0,((OFFSET(BJ43,0,-INT($L43+0.5),1,1))/$L43)*(IF($L43-INT($L43)>0.5,$L43-0.5-INT($L43),IF($L43-INT($L43)<=0.5,$L43-0.5-INT($L43)+1,0)))) +BJ43/$L43*0.5, IF($J43="Declining Balance",-$BA$38,0)))) -> 0 | BB43: =IF($L43=0,0, IF($L43<=0.5,BK43, IF(AND($J43="straight line",$L43<1.51),(BJ43-((BJ43/$L43)*0.5))+BK43/$L43*0.5, IF($J43="straight line", IF((LEFT(BB$39,4)*1)-INT($L43)<LEFT($BA$39,4)*1,0,((OFFSET(BK43,0,-INT($L43+0.5),1,1))/$L43)*(IF($L43-INT($L43)>0.5,$L43-0.5-INT($L43),IF($L43-INT($L43)<=0.5,$L43-0.5-INT($L43)+1,0)))) +BK43/$L43*0.5 +SUM(OFFSET(BK43,0,MAX(-INT($L43+(0.5-(10^-12))),-BB$40)+1,1,MIN(INT($L43+(0.5-(10^-12))),BB$40)-1))*1/$L43, IF($J43="Declining Balance",-$BA$38,0))))) -> 0.09842282636 | BC43: 0.2468297545 | BD43: 0.3052020399 | BE43: 0.3135902235 | BF43: 0.3135902235 | BG43: 0.3135902235 | BH43: 0.3135902235 | BJ43: =+IF($K43="Ongoing",AR43,IF(RIGHT($K43,2)=RIGHT(BJ$39,2),SUM($AR43:AR43),0)+IF(RIGHT(BJ$39,2)>RIGHT($K43,2),AR43,0)) -> 0 | BK43: =+IF($K43="Ongoing",AS43,IF(RIGHT($K43,2)=RIGHT(BK$39,2),SUM($AR43:AS43),0)+IF(RIGHT(BK$39,2)>RIGHT($K43,2),AS43,0)) -> 10.03912829 | BL43: =+IF($K43="Ongoing",AT43,IF(RIGHT($K43,2)=RIGHT(BL$39,2),SUM($AR43:AT43),0)+IF(RIGHT(BL$39,2)>RIGHT($K43,2),AT43,0)) -> 5.098378382 | BM43: =+IF($K43="Ongoing",AU43,IF(RIGHT($K43,2)=RIGHT(BM$39,2),SUM($AR43:AU43),0)+IF(RIGHT(BM$39,2)>RIGHT($K43,2),AU43,0)) -> 0.8555947302 | BN43: =+IF($K43="Ongoing",AV43,IF(RIGHT($K43,2)=RIGHT(BN$39,2),SUM($AR43:AV43),0)+IF(RIGHT(BN$39,2)>RIGHT($K43,2),AV43,0)) -> 0 | BO43: =+IF($K43="Ongoing",AW43,IF(RIGHT($K43,2)=RIGHT(BO$39,2),SUM($AR43:AW43),0)+IF(RIGHT(BO$39,2)>RIGHT($K43,2),AW43,0)) -> 0 | BP43: =+IF($K43="Ongoing",AX43,IF(RIGHT($K43,2)=RIGHT(BP$39,2),SUM($AR43:AX43),0)+IF(RIGHT(BP$39,2)>RIGHT($K43,2),AX43,0)) -> 0 | BQ43: =+IF($K43="Ongoing",AY43,IF(RIGHT($K43,2)=RIGHT(BQ$39,2),SUM($AR43:AY43),0)+IF(RIGHT(BQ$39,2)>RIGHT($K43,2),AY43,0)) -> 0 | BS43: =+Q43*KeyAssumptionsPriceControl_FO!Z$15 -> 4.279788059 | BT43: =+R43*KeyAssumptionsPriceControl_FO!AA$15 -> 6.128015704 | BU43: =+S43*KeyAssumptionsPriceControl_FO!AB$15 -> 5.458319649 | BV43: =+T43*KeyAssumptionsPriceControl_FO!AC$15 -> 0.9370669826 | BW43: =+U43*KeyAssumptionsPriceControl_FO!AD$15 -> 0 | BX43: =+V43*KeyAssumptionsPriceControl_FO!AE$15 -> 0 | BY43: =+W43*KeyAssumptionsPriceControl_FO!AF$15 -> 0 | BZ43: =+X43*KeyAssumptionsPriceControl_FO!AG$15 -> 0 | CB43: =IF($M43="straight line",IF($N43=0,0, IF($N43<=0.5,BS43, IF($J43="straight line", IF((LEFT(CB$39,4)*1)-INT($N43)<LEFT(#REF!,4)*1,0,((OFFSET(BS43,0,-INT($N43+0.5),1,1))/$N43)*(IF($N43-INT($N43)>0.5,$N43-0.5-INT($N43),IF($N43-INT($N43)<=0.5,$N43-0.5-INT($N43)+1,0)))) +BS43/$N43*0.5, IF($J43="Declining Balance",-#REF!,0)))),IFERROR(EQ43,0)) -> 0 | CC43: =IF($M43="straight line",IF($N43=0,0, IF($N43<=0.5,BT43, IF($J43="straight line", IF((LEFT(CC$39,4)*1)-INT($N43)<LEFT(#REF!,4)*1,0,((OFFSET(BT43,0,-INT($N43+0.5),1,1))/$N43)*(IF($N43-INT($N43)>0.5,$N43-0.5-INT($N43),IF($N43-INT($N43)<=0.5,$N43-0.5-INT($N43)+1,0)))) +BT43/$N43*0.5, IF($J43="Declining Balance",-#REF!,0)))),IFERROR(ER43,0)) -> 0.1530559377 | CD43: =IF($M43="straight line",IF($N43=0,0, IF($N43<=0.5,BU43, IF($J43="straight line", IF((LEFT(CD$39,4)*1)-INT($N43)<LEFT(#REF!,4)*1,0,((OFFSET(BU43,0,-INT($N43+0.5),1,1))/$N43)*(IF($N43-INT($N43)>0.5,$N43-0.5-INT($N43),IF($N43-INT($N43)<=0.5,$N43-0.5-INT($N43)+1,0)))) +BU43/$N43*0.5, IF($J43="Declining Balance",-#REF!,0)))),IFERROR(ES43,0)) -> 0.3818796368 | CE43: =IF($M43="straight line",IF($N43=0,0, IF($N43<=0.5,BV43, IF($J43="straight line", IF((LEFT(CE$39,4)*1)-INT($N43)<LEFT(#REF!,4)*1,0,((OFFSET(BV43,0,-INT($N43+0.5),1,1))/$N43)*(IF($N43-INT($N43)>0.5,$N43-0.5-INT($N43),IF($N43-INT($N43)<=0.5,$N43-0.5-INT($N43)+1,0)))) +BV43/$N43*0.5, IF($J43="Declining Balance",-#REF!,0)))),IFERROR(ET43,0)) -> 0.4646976862 | CF43: =IF($M43="straight line",IF($N43=0,0, IF($N43<=0.5,BW43, IF($J43="straight line", IF((LEFT(CF$39,4)*1)-INT($N43)<LEFT(#REF!,4)*1,0,((OFFSET(BW43,0,-INT($N43+0.5),1,1))/$N43)*(IF($N43-INT($N43)>0.5,$N43-0.5-INT($N43),IF($N43-INT($N43)<=0.5,$N43-0.5-INT($N43)+1,0)))) +BW43/$N43*0.5, IF($J43="Declining Balance",-#REF!,0)))),IFERROR(EU43,0)) -> 0.464810504 | CG43: =IF($M43="straight line",IF($N43=0,0, IF($N43<=0.5,BX43, IF($J43="straight line", IF((LEFT(CG$39,4)*1)-INT($N43)<LEFT(#REF!,4)*1,0,((OFFSET(BX43,0,-INT($N43+0.5),1,1))/$N43)*(IF($N43-INT($N43)>0.5,$N43-0.5-INT($N43),IF($N43-INT($N43)<=0.5,$N43-0.5-INT($N43)+1,0)))) +BX43/$N43*0.5, IF($J43="Declining Balance",-#REF!,0)))),IFERROR(EV43,0)) -> 0.4511396068 | CH43: =IF($M43="straight line",IF($N43=0,0, IF($N43<=0.5,BY43, IF($J43="straight line", IF((LEFT(CH$39,4)*1)-INT($N43)<LEFT(#REF!,4)*1,0,((OFFSET(BY43,0,-INT($N43+0.5),1,1))/$N43)*(IF($N43-INT($N43)>0.5,$N43-0.5-INT($N43),IF($N43-INT($N43)<=0.5,$N43-0.5-INT($N43)+1,0)))) +BY43/$N43*0.5, IF($J43="Declining Balance",-#REF!,0)))),IFERROR(EW43,0)) -> 0.4378707948 | CI43: =IF($M43="straight line",IF($N43=0,0, IF($N43<=0.5,BZ43, IF($J43="straight line", IF((LEFT(CI$39,4)*1)-INT($N43)<LEFT(#REF!,4)*1,0,((OFFSET(BZ43,0,-INT($N43+0.5),1,1))/$N43)*(IF($N43-INT($N43)>0.5,$N43-0.5-INT($N43),IF($N43-INT($N43)<=0.5,$N43-0.5-INT($N43)+1,0)))) +BZ43/$N43*0.5, IF($J43="Declining Balance",-#REF!,0)))),IFERROR(EX43,0)) -> 0.424992242 | CM43: 1.5 | CN43: No | CO43: =+IF($K43="ongoing",BS43,IF(RIGHT($K43,2)=RIGHT(CO$39,2),SUM($BR43:BS43),0)+IF(RIGHT(CO$39,2)>RIGHT($K43,2),BS43,0)) -> 0 | CP43: =+IF($K43="ongoing",BT43,IF(RIGHT($K43,2)=RIGHT(CP$39,2),SUM($BR43:BT43),0)+IF(RIGHT(CP$39,2)>RIGHT($K43,2),BT43,0)) -> 10.40780376 | CQ43: =+IF($K43="ongoing",BU43,IF(RIGHT($K43,2)=RIGHT(CQ$39,2),SUM($BR43:BU43),0)+IF(RIGHT(CQ$39,2)>RIGHT($K43,2),BU43,0)) -> 5.458319649 | CR43: =+IF($K43="ongoing",BV43,IF(RIGHT($K43,2)=RIGHT(CR$39,2),SUM($BR43:BV43),0)+IF(RIGHT(CR$39,2)>RIGHT($K43,2),BV43,0)) -> 0.9370669826 | CS43: =+IF($K43="ongoing",BW43,IF(RIGHT($K43,2)=RIGHT(CS$39,2),SUM($BR43:BW43),0)+IF(RIGHT(CS$39,2)>RIGHT($K43,2),BW43,0)) -> 0 | CT43: =+IF($K43="ongoing",BX43,IF(RIGHT($K43,2)=RIGHT(CT$39,2),SUM($BR43:BX43),0)+IF(RIGHT(CT$39,2)>RIGHT($K43,2),BX43,0)) -> 0 | CU43: =+IF($K43="ongoing",BY43,IF(RIGHT($K43,2)=RIGHT(CU$39,2),SUM($BR43:BY43),0)+IF(RIGHT(CU$39,2)>RIGHT($K43,2),BY43,0)) -> 0 | CV43: =+IF($K43="ongoing",BZ43,IF(RIGHT($K43,2)=RIGHT(CV$39,2),SUM($BR43:BZ43),0)+IF(RIGHT(CV$39,2)>RIGHT($K43,2),BZ43,0)) -> 0 | CX43: =+MIN(IF($N43<=$CM43,MIN($N43,1),$N43),IF(CX$40=1,0.5,#REF!+1)) -> 0.5 | CY43: 1.5 | CZ43: 2.5 | DA43: 3.5 | DB43: 4.5 | DC43: 5.5 | DD43: 6.5 | DE43: 7.5 | DG43: =+IF(DG$40=1,0,MIN(IF($N43<=$CM43,MIN($N43,1),$N43),IF(DG$40=2,0.5,#REF!+1))) -> 0 | DH43: 0.5 | DI43: 1.5 | DJ43: 2.5 | DK43: 3.5 | DL43: 4.5 | DM43: 5.5 | DN43: 6.5 | DP43: =+IF(CX43=CW43,0, IF(AND(DP$40>1,CX43=$N43),1-SUM($DO43:DO43), IF($N43<=1, IF($N43>0,1/$N43,0), IF(DP$40=1,0,VDB(1,0,$N43,INT(DP$40-1-1),MIN($N43,INT(DP$40-1-1)+1),$CM43,IF($CN43="No",1,0))/ IF(CW43>=INT($N43),$N43-INT($N43),1)))* IF(DP$40=1,0, IF(INT(CX43)=INT(CW43),CX43-CW43,INT(CX43)-CW43))+ IF($N43<=1, IF($N43>0,1/$N43,0),VDB(1,0,$N43,INT(DP$40-1),MIN($N43,INT(DP$40-1)+1),$CM43,IF($CN43="No",1,0))/ IF(CX43>INT($N43),$N43-INT($N43),1))* IF(DP$40=1,CX43, IF(INT(CX43)=INT(CW43),0,CX43-INT(CX43))))) -> 0.01470588235 | DQ43: =+IF(CY43=CX43,0, IF(AND(DQ$40>1,CY43=$N43),1-SUM($DO43:DP43), IF($N43<=1, IF($N43>0,1/$N43,0), IF(DQ$40=1,0,VDB(1,0,$N43,INT(DQ$40-1-1),MIN($N43,INT(DQ$40-1-1)+1),$CM43,IF($CN43="No",1,0))/ IF(CX43>=INT($N43),$N43-INT($N43),1)))* IF(DQ$40=1,0, IF(INT(CY43)=INT(CX43),CY43-CX43,INT(CY43)-CX43))+ IF($N43<=1, IF($N43>0,1/$N43,0),VDB(1,0,$N43,INT(DQ$40-1),MIN($N43,INT(DQ$40-1)+1),$CM43,IF($CN43="No",1,0))/ IF(CY43>INT($N43),$N43-INT($N43),1))* IF(DQ$40=1,CY43, IF(INT(CY43)=INT(CX43),0,CY43-INT(CY43))))) -> 0.02897923875 | DR43: =+IF(CZ43=CY43,0, IF(AND(DR$40>1,CZ43=$N43),1-SUM($DO43:DQ43), IF($N43<=1, IF($N43>0,1/$N43,0), IF(DR$40=1,0,VDB(1,0,$N43,INT(DR$40-1-1),MIN($N43,INT(DR$40-1-1)+1),$CM43,IF($CN43="No",1,0))/ IF(CY43>=INT($N43),$N43-INT($N43),1)))* IF(DR$40=1,0, IF(INT(CZ43)=INT(CY43),CZ43-CY43,INT(CZ43)-CY43))+ IF($N43<=1, IF($N43>0,1/$N43,0),VDB(1,0,$N43,INT(DR$40-1),MIN($N43,INT(DR$40-1)+1),$CM43,IF($CN43="No",1,0))/ IF(CZ43>INT($N43),$N43-INT($N43),1))* IF(DR$40=1,CZ43, IF(INT(CZ43)=INT(CY43),0,CZ43-INT(CZ43))))) -> 0.0281269082 | DS43: =+IF(DA43=CZ43,0, IF(AND(DS$40>1,DA43=$N43),1-SUM($DO43:DR43), IF($N43<=1, IF($N43>0,1/$N43,0), IF(DS$40=1,0,VDB(1,0,$N43,INT(DS$40-1-1),MIN($N43,INT(DS$40-1-1)+1),$CM43,IF($CN43="No",1,0))/ IF(CZ43>=INT($N43),$N43-INT($N43),1)))* IF(DS$40=1,0, IF(INT(DA43)=INT(CZ43),DA43-CZ43,INT(DA43)-CZ43))+ IF($N43<=1, IF($N43>0,1/$N43,0),VDB(1,0,$N43,INT(DS$40-1),MIN($N43,INT(DS$40-1)+1),$CM43,IF($CN43="No",1,0))/ IF(DA43>INT($N43),$N43-INT($N43),1))* IF(DS$40=1,DA43, IF(INT(DA43)=INT(CZ43),0,DA43-INT(DA43))))) -> 0.0272996462 | DT43: =+IF(DB43=DA43,0, IF(AND(DT$40>1,DB43=$N43),1-SUM($DO43:DS43), IF($N43<=1, IF($N43>0,1/$N43,0), IF(DT$40=1,0,VDB(1,0,$N43,INT(DT$40-1-1),MIN($N43,INT(DT$40-1-1)+1),$CM43,IF($CN43="No",1,0))/ IF(DA43>=INT($N43),$N43-INT($N43),1)))* IF(DT$40=1,0, IF(INT(DB43)=INT(DA43),DB43-DA43,INT(DB43)-DA43))+ IF($N43<=1, IF($N43>0,1/$N43,0),VDB(1,0,$N43,INT(DT$40-1),MIN($N43,INT(DT$40-1)+1),$CM43,IF($CN43="No",1,0))/ IF(DB43>INT($N43),$N43-INT($N43),1))* IF(DT$40=1,DB43, IF(INT(DB43)=INT(DA43),0,DB43-INT(DB43))))) -> 0.02649671543 | DU43: =+IF(DC43=DB43,0, IF(AND(DU$40>1,DC43=$N43),1-SUM($DO43:DT43), IF($N43<=1, IF($N43>0,1/$N43,0), IF(DU$40=1,0,VDB(1,0,$N43,INT(DU$40-1-1),MIN($N43,INT(DU$40-1-1)+1),$CM43,IF($CN43="No",1,0))/ IF(DB43>=INT($N43),$N43-INT($N43),1)))* IF(DU$40=1,0, IF(INT(DC43)=INT(DB43),DC43-DB43,INT(DC43)-DB43))+ IF($N43<=1, IF($N43>0,1/$N43,0),VDB(1,0,$N43,INT(DU$40-1),MIN($N43,INT(DU$40-1)+1),$CM43,IF($CN43="No",1,0))/ IF(DC43>INT($N43),$N43-INT($N43),1))* IF(DU$40=1,DC43, IF(INT(DC43)=INT(DB43),0,DC43-INT(DC43))))) -> 0.02571740027 | DV43: =+IF(DD43=DC43,0, IF(AND(DV$40>1,DD43=$N43),1-SUM($DO43:DU43), IF($N43<=1, IF($N43>0,1/$N43,0), IF(DV$40=1,0,VDB(1,0,$N43,INT(DV$40-1-1),MIN($N43,INT(DV$40-1-1)+1),$CM43,IF($CN43="No",1,0))/ IF(DC43>=INT($N43),$N43-INT($N43),1)))* IF(DV$40=1,0, IF(INT(DD43)=INT(DC43),DD43-DC43,INT(DD43)-DC43))+ IF($N43<=1, IF($N43>0,1/$N43,0),VDB(1,0,$N43,INT(DV$40-1),MIN($N43,INT(DV$40-1)+1),$CM43,IF($CN43="No",1,0))/ IF(DD43>INT($N43),$N43-INT($N43),1))* IF(DV$40=1,DD43, IF(INT(DD43)=INT(DC43),0,DD43-INT(DD43))))) -> 0.02496100614 | DW43: =+IF(DE43=DD43,0, IF(AND(DW$40>1,DE43=$N43),1-SUM($DO43:DV43), IF($N43<=1, IF($N43>0,1/$N43,0), IF(DW$40=1,0,VDB(1,0,$N43,INT(DW$40-1-1),MIN($N43,INT(DW$40-1-1)+1),$CM43,IF($CN43="No",1,0))/ IF(DD43>=INT($N43),$N43-INT($N43),1)))* IF(DW$40=1,0, IF(INT(DE43)=INT(DD43),DE43-DD43,INT(DE43)-DD43))+ IF($N43<=1, IF($N43>0,1/$N43,0),VDB(1,0,$N43,INT(DW$40-1),MIN($N43,INT(DW$40-1)+1),$CM43,IF($CN43="No",1,0))/ IF(DE43>INT($N43),$N43-INT($N43),1))* IF(DW$40=1,DE43, IF(INT(DE43)=INT(DD43),0,DE43-INT(DE43))))) -> 0.0242268589 | DY43: =+IF(OR(DG43=DF43,DY$40=1),0, IF(AND(DY$40>1,DG43=$N43),1-SUM($DX43:DX43), IF($N43<=1, IF($N43>0,1/$N43,0), IF(DY$40=2,0,VDB(1,0,$N43,INT(DY$40-2-1),MIN($N43,INT(DY$40-2-1)+1),$CM43,IF($CN43="No",1,0))/ IF(DF43>=INT($N43),$N43-INT($N43),1)))* IF(DY$40=2,0, IF(INT(DG43)=INT(DF43),DG43-DF43,INT(DG43)-DF43))+ IF($N43<=1, IF($N43>0,1/$N43,0),VDB(1,0,$N43,INT(DY$40-2),MIN($N43,INT(DY$40-2)+1),$CM43,IF($CN43="No",1,0))/ IF(DG43>INT($N43),$N43-INT($N43),1))* IF(DY$40=2,DG43, IF(INT(DG43)=INT(DF43),0,DG43-INT(DG43))))) -> 0 | DZ43: =+IF(OR(DH43=DG43,DZ$40=1),0, IF(AND(DZ$40>1,DH43=$N43),1-SUM($DX43:DY43), IF($N43<=1, IF($N43>0,1/$N43,0), IF(DZ$40=2,0,VDB(1,0,$N43,INT(DZ$40-2-1),MIN($N43,INT(DZ$40-2-1)+1),$CM43,IF($CN43="No",1,0))/ IF(DG43>=INT($N43),$N43-INT($N43),1)))* IF(DZ$40=2,0, IF(INT(DH43)=INT(DG43),DH43-DG43,INT(DH43)-DG43))+ IF($N43<=1, IF($N43>0,1/$N43,0),VDB(1,0,$N43,INT(DZ$40-2),MIN($N43,INT(DZ$40-2)+1),$CM43,IF($CN43="No",1,0))/ IF(DH43>INT($N43),$N43-INT($N43),1))* IF(DZ$40=2,DH43, IF(INT(DH43)=INT(DG43),0,DH43-INT(DH43))))) -> 0.01470588235 | EA43: =+IF(OR(DI43=DH43,EA$40=1),0, IF(AND(EA$40>1,DI43=$N43),1-SUM($DX43:DZ43), IF($N43<=1, IF($N43>0,1/$N43,0), IF(EA$40=2,0,VDB(1,0,$N43,INT(EA$40-2-1),MIN($N43,INT(EA$40-2-1)+1),$CM43,IF($CN43="No",1,0))/ IF(DH43>=INT($N43),$N43-INT($N43),1)))* IF(EA$40=2,0, IF(INT(DI43)=INT(DH43),DI43-DH43,INT(DI43)-DH43))+ IF($N43<=1, IF($N43>0,1/$N43,0),VDB(1,0,$N43,INT(EA$40-2),MIN($N43,INT(EA$40-2)+1),$CM43,IF($CN43="No",1,0))/ IF(DI43>INT($N43),$N43-INT($N43),1))* IF(EA$40=2,DI43, IF(INT(DI43)=INT(DH43),0,DI43-INT(DI43))))) -> 0.02897923875 | EB43: =+IF(OR(DJ43=DI43,EB$40=1),0, IF(AND(EB$40>1,DJ43=$N43),1-SUM($DX43:EA43), IF($N43<=1, IF($N43>0,1/$N43,0), IF(EB$40=2,0,VDB(1,0,$N43,INT(EB$40-2-1),MIN($N43,INT(EB$40-2-1)+1),$CM43,IF($CN43="No",1,0))/ IF(DI43>=INT($N43),$N43-INT($N43),1)))* IF(EB$40=2,0, IF(INT(DJ43)=INT(DI43),DJ43-DI43,INT(DJ43)-DI43))+ IF($N43<=1, IF($N43>0,1/$N43,0),VDB(1,0,$N43,INT(EB$40-2),MIN($N43,INT(EB$40-2)+1),$CM43,IF($CN43="No",1,0))/ IF(DJ43>INT($N43),$N43-INT($N43),1))* IF(EB$40=2,DJ43, IF(INT(DJ43)=INT(DI43),0,DJ43-INT(DJ43))))) -> 0.0281269082 | EC43: =+IF(OR(DK43=DJ43,EC$40=1),0, IF(AND(EC$40>1,DK43=$N43),1-SUM($DX43:EB43), IF($N43<=1, IF($N43>0,1/$N43,0), IF(EC$40=2,0,VDB(1,0,$N43,INT(EC$40-2-1),MIN($N43,INT(EC$40-2-1)+1),$CM43,IF($CN43="No",1,0))/ IF(DJ43>=INT($N43),$N43-INT($N43),1)))* IF(EC$40=2,0, IF(INT(DK43)=INT(DJ43),DK43-DJ43,INT(DK43)-DJ43))+ IF($N43<=1, IF($N43>0,1/$N43,0),VDB(1,0,$N43,INT(EC$40-2),MIN($N43,INT(EC$40-2)+1),$CM43,IF($CN43="No",1,0))/ IF(DK43>INT($N43),$N43-INT($N43),1))* IF(EC$40=2,DK43, IF(INT(DK43)=INT(DJ43),0,DK43-INT(DK43))))) -> 0.0272996462 | ED43: =+IF(OR(DL43=DK43,ED$40=1),0, IF(AND(ED$40>1,DL43=$N43),1-SUM($DX43:EC43), IF($N43<=1, IF($N43>0,1/$N43,0), IF(ED$40=2,0,VDB(1,0,$N43,INT(ED$40-2-1),MIN($N43,INT(ED$40-2-1)+1),$CM43,IF($CN43="No",1,0))/ IF(DK43>=INT($N43),$N43-INT($N43),1)))* IF(ED$40=2,0, IF(INT(DL43)=INT(DK43),DL43-DK43,INT(DL43)-DK43))+ IF($N43<=1, IF($N43>0,1/$N43,0),VDB(1,0,$N43,INT(ED$40-2),MIN($N43,INT(ED$40-2)+1),$CM43,IF($CN43="No",1,0))/ IF(DL43>INT($N43),$N43-INT($N43),1))* IF(ED$40=2,DL43, IF(INT(DL43)=INT(DK43),0,DL43-INT(DL43))))) -> 0.02649671543 | EE43: =+IF(OR(DM43=DL43,EE$40=1),0, IF(AND(EE$40>1,DM43=$N43),1-SUM($DX43:ED43), IF($N43<=1, IF($N43>0,1/$N43,0), IF(EE$40=2,0,VDB(1,0,$N43,INT(EE$40-2-1),MIN($N43,INT(EE$40-2-1)+1),$CM43,IF($CN43="No",1,0))/ IF(DL43>=INT($N43),$N43-INT($N43),1)))* IF(EE$40=2,0, IF(INT(DM43)=INT(DL43),DM43-DL43,INT(DM43)-DL43))+ IF($N43<=1, IF($N43>0,1/$N43,0),VDB(1,0,$N43,INT(EE$40-2),MIN($N43,INT(EE$40-2)+1),$CM43,IF($CN43="No",1,0))/ IF(DM43>INT($N43),$N43-INT($N43),1))* IF(EE$40=2,DM43, IF(INT(DM43)=INT(DL43),0,DM43-INT(DM43))))) -> 0.02571740027 | EF43: =+IF(OR(DN43=DM43,EF$40=1),0, IF(AND(EF$40>1,DN43=$N43),1-SUM($DX43:EE43), IF($N43<=1, IF($N43>0,1/$N43,0), IF(EF$40=2,0,VDB(1,0,$N43,INT(EF$40-2-1),MIN($N43,INT(EF$40-2-1)+1),$CM43,IF($CN43="No",1,0))/ IF(DM43>=INT($N43),$N43-INT($N43),1)))* IF(EF$40=2,0, IF(INT(DN43)=INT(DM43),DN43-DM43,INT(DN43)-DM43))+ IF($N43<=1, IF($N43>0,1/$N43,0),VDB(1,0,$N43,INT(EF$40-2),MIN($N43,INT(EF$40-2)+1),$CM43,IF($CN43="No",1,0))/ IF(DN43>INT($N43),$N43-INT($N43),1))* IF(EF$40=2,DN43, IF(INT(DN43)=INT(DM43),0,DN43-INT(DN43))))) -> 0.02496100614 | EH43: 0.02496100614 | EI43: 0.02571740027 | EJ43: 0.02649671543 | EK43: 0.0272996462 | EL43: 0.0281269082 | EM43: 0.02897923875 | EN43: 0.01470588235 | EO43: 0 | EQ43: =-(-$CO43*(-ISBLANK($CO43)+1)*DP43- IF(EQ$40>1,SUMPRODUCT(OFFSET($CP43,0,0,1,EQ$40-1)*(-ISBLANK(OFFSET($CP43,0,0,1,EQ$40-1))+1),OFFSET($EH43,0,MAX($EQ$40:$HI$40)-EQ$40,1,EQ$40-1)),0)) -> 0 | ER43: 0.1530559377 | ES43: 0.3818796368 | ET43: 0.4646976862 | EU43: 0.464810504 | EV43: 0.4511396068 | EW43: 0.4378707948 | EX43: 0.424992242
C44: Melton RWP and Bacchus Marsh RWP Interconnection | E44: Sewerage | F44: Growth | G44: Pipelines/network | H44: Top 10 Major Projects | J44: Straight line | K44: 2022-23 | L44: 51 | M44: Declining Balance | N44: 51 | Q44: 4.813138043 | R44: 6.726739186 | S44: 2.884969307 | T44: 0 | U44: 0 | V44: 0 | W44: 0 | X44: 0 | AR44: 4.813138043 | AS44: 6.726739186 | AT44: 2.884969307 | AU44: 0 | AV44: 0 | AW44: 0 | AX44: 0 | AY44: 0 | BA44: 0 | BB44: 0 | BC44: 0.1414200641 | BD44: 0.2828401282 | BE44: 0.2828401282 | BF44: 0.2828401282 | BG44: 0.2828401282 | BH44: 0.2828401282 | BJ44: =+IF($K44="Ongoing",AR44,IF(RIGHT($K44,2)=RIGHT(BJ$39,2),SUM($AR44:AR44),0)+IF(RIGHT(BJ$39,2)>RIGHT($K44,2),AR44,0)) -> 0 | BK44: =+IF($K44="Ongoing",AS44,IF(RIGHT($K44,2)=RIGHT(BK$39,2),SUM($AR44:AS44),0)+IF(RIGHT(BK$39,2)>RIGHT($K44,2),AS44,0)) -> 0 | BL44: =+IF($K44="Ongoing",AT44,IF(RIGHT($K44,2)=RIGHT(BL$39,2),SUM($AR44:AT44),0)+IF(RIGHT(BL$39,2)>RIGHT($K44,2),AT44,0)) -> 14.42484654 | BM44: =+IF($K44="Ongoing",AU44,IF(RIGHT($K44,2)=RIGHT(BM$39,2),SUM($AR44:AU44),0)+IF(RIGHT(BM$39,2)>RIGHT($K44,2),AU44,0)) -> 0 | BN44: =+IF($K44="Ongoing",AV44,IF(RIGHT($K44,2)=RIGHT(BN$39,2),SUM($AR44:AV44),0)+IF(RIGHT(BN$39,2)>RIGHT($K44,2),AV44,0)) -> 0 | BO44: =+IF($K44="Ongoing",AW44,IF(RIGHT($K44,2)=RIGHT(BO$39,2),SUM($AR44:AW44),0)+IF(RIGHT(BO$39,2)>RIGHT($K44,2),AW44,0)) -> 0 | BP44: =+IF($K44="Ongoing",AX44,IF(RIGHT($K44,2)=RIGHT(BP$39,2),SUM($AR44:AX44),0)+IF(RIGHT(BP$39,2)>RIGHT($K44,2),AX44,0)) -> 0 | BQ44: =+IF($K44="Ongoing",AY44,IF(RIGHT($K44,2)=RIGHT(BQ$39,2),SUM($AR44:AY44),0)+IF(RIGHT(BQ$39,2)>RIGHT($K44,2),AY44,0)) -> 0 | BS44: =+Q44*KeyAssumptionsPriceControl_FO!Z$15 -> 4.923840218 | BT44: =+R44*KeyAssumptionsPriceControl_FO!AA$15 -> 7.039727634 | BU44: =+S44*KeyAssumptionsPriceControl_FO!AB$15 -> 3.088645737 | BV44: =+T44*KeyAssumptionsPriceControl_FO!AC$15 -> 0 | BW44: =+U44*KeyAssumptionsPriceControl_FO!AD$15 -> 0 | BX44: =+V44*KeyAssumptionsPriceControl_FO!AE$15 -> 0 | BY44: =+W44*KeyAssumptionsPriceControl_FO!AF$15 -> 0 | BZ44: =+X44*KeyAssumptionsPriceControl_FO!AG$15 -> 0 | CB44: =IF($M44="straight line",IF($N44=0,0, IF($N44<=0.5,BS44, IF($J44="straight line", IF((LEFT(CB$39,4)*1)-INT($N44)<LEFT(#REF!,4)*1,0,((OFFSET(BS44,0,-INT($N44+0.5),1,1))/$N44)*(IF($N44-INT($N44)>0.5,$N44-0.5-INT($N44),IF($N44-INT($N44)<=0.5,$N44-0.5-INT($N44)+1,0)))) +BS44/$N44*0.5, IF($J44="Declining Balance",-#REF!,0)))),IFERROR(EQ44,0)) -> 0 | CC44: =IF($M44="straight line",IF($N44=0,0, IF($N44<=0.5,BT44, IF($J44="straight line", IF((LEFT(CC$39,4)*1)-INT($N44)<LEFT(#REF!,4)*1,0,((OFFSET(BT44,0,-INT($N44+0.5),1,1))/$N44)*(IF($N44-INT($N44)>0.5,$N44-0.5-INT($N44),IF($N44-INT($N44)<=0.5,$N44-0.5-INT($N44)+1,0)))) +BT44/$N44*0.5, IF($J44="Declining Balance",-#REF!,0)))),IFERROR(ER44,0)) -> 0 | CD44: =IF($M44="straight line",IF($N44=0,0, IF($N44<=0.5,BU44, IF($J44="straight line", IF((LEFT(CD$39,4)*1)-INT($N44)<LEFT(#REF!,4)*1,0,((OFFSET(BU44,0,-INT($N44+0.5),1,1))/$N44)*(IF($N44-INT($N44)>0.5,$N44-0.5-INT($N44),IF($N44-INT($N44)<=0.5,$N44-0.5-INT($N44)+1,0)))) +BU44/$N44*0.5, IF($J44="Declining Balance",-#REF!,0)))),IFERROR(ES44,0)) -> 0.2213560822 | CE44: =IF($M44="straight line",IF($N44=0,0, IF($N44<=0.5,BV44, IF($J44="straight line", IF((LEFT(CE$39,4)*1)-INT($N44)<LEFT(#REF!,4)*1,0,((OFFSET(BV44,0,-INT($N44+0.5),1,1))/$N44)*(IF($N44-INT($N44)>0.5,$N44-0.5-INT($N44),IF($N44-INT($N44)<=0.5,$N44-0.5-INT($N44)+1,0)))) +BV44/$N44*0.5, IF($J44="Declining Balance",-#REF!,0)))),IFERROR(ET44,0)) -> 0.4362016914 | CF44: =IF($M44="straight line",IF($N44=0,0, IF($N44<=0.5,BW44, IF($J44="straight line", IF((LEFT(CF$39,4)*1)-INT($N44)<LEFT(#REF!,4)*1,0,((OFFSET(BW44,0,-INT($N44+0.5),1,1))/$N44)*(IF($N44-INT($N44)>0.5,$N44-0.5-INT($N44),IF($N44-INT($N44)<=0.5,$N44-0.5-INT($N44)+1,0)))) +BW44/$N44*0.5, IF($J44="Declining Balance",-#REF!,0)))),IFERROR(EU44,0)) -> 0.4233722298 | CG44: =IF($M44="straight line",IF($N44=0,0, IF($N44<=0.5,BX44, IF($J44="straight line", IF((LEFT(CG$39,4)*1)-INT($N44)<LEFT(#REF!,4)*1,0,((OFFSET(BX44,0,-INT($N44+0.5),1,1))/$N44)*(IF($N44-INT($N44)>0.5,$N44-0.5-INT($N44),IF($N44-INT($N44)<=0.5,$N44-0.5-INT($N44)+1,0)))) +BX44/$N44*0.5, IF($J44="Declining Balance",-#REF!,0)))),IFERROR(EV44,0)) -> 0.4109201054 | CH44: =IF($M44="straight line",IF($N44=0,0, IF($N44<=0.5,BY44, IF($J44="straight line", IF((LEFT(CH$39,4)*1)-INT($N44)<LEFT(#REF!,4)*1,0,((OFFSET(BY44,0,-INT($N44+0.5),1,1))/$N44)*(IF($N44-INT($N44)>0.5,$N44-0.5-INT($N44),IF($N44-INT($N44)<=0.5,$N44-0.5-INT($N44)+1,0)))) +BY44/$N44*0.5, IF($J44="Declining Balance",-#REF!,0)))),IFERROR(EW44,0)) -> 0.39883422 | CI44: =IF($M44="straight line",IF($N44=0,0, IF($N44<=0.5,BZ44, IF($J44="straight line", IF((LEFT(CI$39,4)*1)-INT($N44)<LEFT(#REF!,4)*1,0,((OFFSET(BZ44,0,-INT($N44+0.5),1,1))/$N44)*(IF($N44-INT($N44)>0.5,$N44-0.5-INT($N44),IF($N44-INT($N44)<=0.5,$N44-0.5-INT($N44)+1,0)))) +BZ44/$N44*0.5, IF($J44="Declining Balance",-#REF!,0)))),IFERROR(EX44,0)) -> 0.3871038018 | CM44: 1.5 | CN44: No | CO44: =+IF($K44="ongoing",BS44,IF(RIGHT($K44,2)=RIGHT(CO$39,2),SUM($BR44:BS44),0)+IF(RIGHT(CO$39,2)>RIGHT($K44,2),BS44,0)) -> 0 | CP44: =+IF($K44="ongoing",BT44,IF(RIGHT($K44,2)=RIGHT(CP$39,2),SUM($BR44:BT44),0)+IF(RIGHT(CP$39,2)>RIGHT($K44,2),BT44,0)) -> 0 | CQ44: =+IF($K44="ongoing",BU44,IF(RIGHT($K44,2)=RIGHT(CQ$39,2),SUM($BR44:BU44),0)+IF(RIGHT(CQ$39,2)>RIGHT($K44,2),BU44,0)) -> 15.05221359 | CR44: =+IF($K44="ongoing",BV44,IF(RIGHT($K44,2)=RIGHT(CR$39,2),SUM($BR44:BV44),0)+IF(RIGHT(CR$39,2)>RIGHT($K44,2),BV44,0)) -> 0 | CS44: =+IF($K44="ongoing",BW44,IF(RIGHT($K44,2)=RIGHT(CS$39,2),SUM($BR44:BW44),0)+IF(RIGHT(CS$39,2)>RIGHT($K44,2),BW44,0)) -> 0 | CT44: =+IF($K44="ongoing",BX44,IF(RIGHT($K44,2)=RIGHT(CT$39,2),SUM($BR44:BX44),0)+IF(RIGHT(CT$39,2)>RIGHT($K44,2),BX44,0)) -> 0 | CU44: =+IF($K44="ongoing",BY44,IF(RIGHT($K44,2)=RIGHT(CU$39,2),SUM($BR44:BY44),0)+IF(RIGHT(CU$39,2)>RIGHT($K44,2),BY44,0)) -> 0 | CV44: =+IF($K44="ongoing",BZ44,IF(RIGHT($K44,2)=RIGHT(CV$39,2),SUM($BR44:BZ44),0)+IF(RIGHT(CV$39,2)>RIGHT($K44,2),BZ44,0)) -> 0 | CX44: =+MIN(IF($N44<=$CM44,MIN($N44,1),$N44),IF(CX$40=1,0.5,#REF!+1)) -> 0.5 | CY44: 1.5 | CZ44: 2.5 | DA44: 3.5 | DB44: 4.5 | DC44: 5.5 | DD44: 6.5 | DE44: 7.5 | DG44: =+IF(DG$40=1,0,MIN(IF($N44<=$CM44,MIN($N44,1),$N44),IF(DG$40=2,0.5,#REF!+1))) -> 0 | DH44: 0.5 | DI44: 1.5 | DJ44: 2.5 | DK44: 3.5 | DL44: 4.5 | DM44: 5.5 | DN44: 6.5 | DP44: =+IF(CX44=CW44,0, IF(AND(DP$40>1,CX44=$N44),1-SUM($DO44:DO44), IF($N44<=1, IF($N44>0,1/$N44,0), IF(DP$40=1,0,VDB(1,0,$N44,INT(DP$40-1-1),MIN($N44,INT(DP$40-1-1)+1),$CM44,IF($CN44="No",1,0))/ IF(CW44>=INT($N44),$N44-INT($N44),1)))* IF(DP$40=1,0, IF(INT(CX44)=INT(CW44),CX44-CW44,INT(CX44)-CW44))+ IF($N44<=1, IF($N44>0,1/$N44,0),VDB(1,0,$N44,INT(DP$40-1),MIN($N44,INT(DP$40-1)+1),$CM44,IF($CN44="No",1,0))/ IF(CX44>INT($N44),$N44-INT($N44),1))* IF(DP$40=1,CX44, IF(INT(CX44)=INT(CW44),0,CX44-INT(CX44))))) -> 0.01470588235 | DQ44: =+IF(CY44=CX44,0, IF(AND(DQ$40>1,CY44=$N44),1-SUM($DO44:DP44), IF($N44<=1, IF($N44>0,1/$N44,0), IF(DQ$40=1,0,VDB(1,0,$N44,INT(DQ$40-1-1),MIN($N44,INT(DQ$40-1-1)+1),$CM44,IF($CN44="No",1,0))/ IF(CX44>=INT($N44),$N44-INT($N44),1)))* IF(DQ$40=1,0, IF(INT(CY44)=INT(CX44),CY44-CX44,INT(CY44)-CX44))+ IF($N44<=1, IF($N44>0,1/$N44,0),VDB(1,0,$N44,INT(DQ$40-1),MIN($N44,INT(DQ$40-1)+1),$CM44,IF($CN44="No",1,0))/ IF(CY44>INT($N44),$N44-INT($N44),1))* IF(DQ$40=1,CY44, IF(INT(CY44)=INT(CX44),0,CY44-INT(CY44))))) -> 0.02897923875 | DR44: =+IF(CZ44=CY44,0, IF(AND(DR$40>1,CZ44=$N44),1-SUM($DO44:DQ44), IF($N44<=1, IF($N44>0,1/$N44,0), IF(DR$40=1,0,VDB(1,0,$N44,INT(DR$40-1-1),MIN($N44,INT(DR$40-1-1)+1),$CM44,IF($CN44="No",1,0))/ IF(CY44>=INT($N44),$N44-INT($N44),1)))* IF(DR$40=1,0, IF(INT(CZ44)=INT(CY44),CZ44-CY44,INT(CZ44)-CY44))+ IF($N44<=1, IF($N44>0,1/$N44,0),VDB(1,0,$N44,INT(DR$40-1),MIN($N44,INT(DR$40-1)+1),$CM44,IF($CN44="No",1,0))/ IF(CZ44>INT($N44),$N44-INT($N44),1))* IF(DR$40=1,CZ44, IF(INT(CZ44)=INT(CY44),0,CZ44-INT(CZ44))))) -> 0.0281269082 | DS44: =+IF(DA44=CZ44,0, IF(AND(DS$40>1,DA44=$N44),1-SUM($DO44:DR44), IF($N44<=1, IF($N44>0,1/$N44,0), IF(DS$40=1,0,VDB(1,0,$N44,INT(DS$40-1-1),MIN($N44,INT(DS$40-1-1)+1),$CM44,IF($CN44="No",1,0))/ IF(CZ44>=INT($N44),$N44-INT($N44),1)))* IF(DS$40=1,0, IF(INT(DA44)=INT(CZ44),DA44-CZ44,INT(DA44)-CZ44))+ IF($N44<=1, IF($N44>0,1/$N44,0),VDB(1,0,$N44,INT(DS$40-1),MIN($N44,INT(DS$40-1)+1),$CM44,IF($CN44="No",1,0))/ IF(DA44>INT($N44),$N44-INT($N44),1))* IF(DS$40=1,DA44, IF(INT(DA44)=INT(CZ44),0,DA44-INT(DA44))))) -> 0.0272996462 | DT44: =+IF(DB44=DA44,0, IF(AND(DT$40>1,DB44=$N44),1-SUM($DO44:DS44), IF($N44<=1, IF($N44>0,1/$N44,0), IF(DT$40=1,0,VDB(1,0,$N44,INT(DT$40-1-1),MIN($N44,INT(DT$40-1-1)+1),$CM44,IF($CN44="No",1,0))/ IF(DA44>=INT($N44),$N44-INT($N44),1)))* IF(DT$40=1,0, IF(INT(DB44)=INT(DA44),DB44-DA44,INT(DB44)-DA44))+ IF($N44<=1, IF($N44>0,1/$N44,0),VDB(1,0,$N44,INT(DT$40-1),MIN($N44,INT(DT$40-1)+1),$CM44,IF($CN44="No",1,0))/ IF(DB44>INT($N44),$N44-INT($N44),1))* IF(DT$40=1,DB44, IF(INT(DB44)=INT(DA44),0,DB44-INT(DB44))))) -> 0.02649671543 | DU44: =+IF(DC44=DB44,0, IF(AND(DU$40>1,DC44=$N44),1-SUM($DO44:DT44), IF($N44<=1, IF($N44>0,1/$N44,0), IF(DU$40=1,0,VDB(1,0,$N44,INT(DU$40-1-1),MIN($N44,INT(DU$40-1-1)+1),$CM44,IF($CN44="No",1,0))/ IF(DB44>=INT($N44),$N44-INT($N44),1)))* IF(DU$40=1,0, IF(INT(DC44)=INT(DB44),DC44-DB44,INT(DC44)-DB44))+ IF($N44<=1, IF($N44>0,1/$N44,0),VDB(1,0,$N44,INT(DU$40-1),MIN($N44,INT(DU$40-1)+1),$CM44,IF($CN44="No",1,0))/ IF(DC44>INT($N44),$N44-INT($N44),1))* IF(DU$40=1,DC44, IF(INT(DC44)=INT(DB44),0,DC44-INT(DC44))))) -> 0.02571740027 | DV44: =+IF(DD44=DC44,0, IF(AND(DV$40>1,DD44=$N44),1-SUM($DO44:DU44), IF($N44<=1, IF($N44>0,1/$N44,0), IF(DV$40=1,0,VDB(1,0,$N44,INT(DV$40-1-1),MIN($N44,INT(DV$40-1-1)+1),$CM44,IF($CN44="No",1,0))/ IF(DC44>=INT($N44),$N44-INT($N44),1)))* IF(DV$40=1,0, IF(INT(DD44)=INT(DC44),DD44-DC44,INT(DD44)-DC44))+ IF($N44<=1, IF($N44>0,1/$N44,0),VDB(1,0,$N44,INT(DV$40-1),MIN($N44,INT(DV$40-1)+1),$CM44,IF($CN44="No",1,0))/ IF(DD44>INT($N44),$N44-INT($N44),1))* IF(DV$40=1,DD44, IF(INT(DD44)=INT(DC44),0,DD44-INT(DD44))))) -> 0.02496100614 | DW44: =+IF(DE44=DD44,0, IF(AND(DW$40>1,DE44=$N44),1-SUM($DO44:DV44), IF($N44<=1, IF($N44>0,1/$N44,0), IF(DW$40=1,0,VDB(1,0,$N44,INT(DW$40-1-1),MIN($N44,INT(DW$40-1-1)+1),$CM44,IF($CN44="No",1,0))/ IF(DD44>=INT($N44),$N44-INT($N44),1)))* IF(DW$40=1,0, IF(INT(DE44)=INT(DD44),DE44-DD44,INT(DE44)-DD44))+ IF($N44<=1, IF($N44>0,1/$N44,0),VDB(1,0,$N44,INT(DW$40-1),MIN($N44,INT(DW$40-1)+1),$CM44,IF($CN44="No",1,0))/ IF(DE44>INT($N44),$N44-INT($N44),1))* IF(DW$40=1,DE44, IF(INT(DE44)=INT(DD44),0,DE44-INT(DE44))))) -> 0.0242268589 | DY44: =+IF(OR(DG44=DF44,DY$40=1),0, IF(AND(DY$40>1,DG44=$N44),1-SUM($DX44:DX44), IF($N44<=1, IF($N44>0,1/$N44,0), IF(DY$40=2,0,VDB(1,0,$N44,INT(DY$40-2-1),MIN($N44,INT(DY$40-2-1)+1),$CM44,IF($CN44="No",1,0))/ IF(DF44>=INT($N44),$N44-INT($N44),1)))* IF(DY$40=2,0, IF(INT(DG44)=INT(DF44),DG44-DF44,INT(DG44)-DF44))+ IF($N44<=1, IF($N44>0,1/$N44,0),VDB(1,0,$N44,INT(DY$40-2),MIN($N44,INT(DY$40-2)+1),$CM44,IF($CN44="No",1,0))/ IF(DG44>INT($N44),$N44-INT($N44),1))* IF(DY$40=2,DG44, IF(INT(DG44)=INT(DF44),0,DG44-INT(DG44))))) -> 0 | DZ44: =+IF(OR(DH44=DG44,DZ$40=1),0, IF(AND(DZ$40>1,DH44=$N44),1-SUM($DX44:DY44), IF($N44<=1, IF($N44>0,1/$N44,0), IF(DZ$40=2,0,VDB(1,0,$N44,INT(DZ$40-2-1),MIN($N44,INT(DZ$40-2-1)+1),$CM44,IF($CN44="No",1,0))/ IF(DG44>=INT($N44),$N44-INT($N44),1)))* IF(DZ$40=2,0, IF(INT(DH44)=INT(DG44),DH44-DG44,INT(DH44)-DG44))+ IF($N44<=1, IF($N44>0,1/$N44,0),VDB(1,0,$N44,INT(DZ$40-2),MIN($N44,INT(DZ$40-2)+1),$CM44,IF($CN44="No",1,0))/ IF(DH44>INT($N44),$N44-INT($N44),1))* IF(DZ$40=2,DH44, IF(INT(DH44)=INT(DG44),0,DH44-INT(DH44))))) -> 0.01470588235 | EA44: =+IF(OR(DI44=DH44,EA$40=1),0, IF(AND(EA$40>1,DI44=$N44),1-SUM($DX44:DZ44), IF($N44<=1, IF($N44>0,1/$N44,0), IF(EA$40=2,0,VDB(1,0,$N44,INT(EA$40-2-1),MIN($N44,INT(EA$40-2-1)+1),$CM44,IF($CN44="No",1,0))/ IF(DH44>=INT($N44),$N44-INT($N44),1)))* IF(EA$40=2,0, IF(INT(DI44)=INT(DH44),DI44-DH44,INT(DI44)-DH44))+ IF($N44<=1, IF($N44>0,1/$N44,0),VDB(1,0,$N44,INT(EA$40-2),MIN($N44,INT(EA$40-2)+1),$CM44,IF($CN44="No",1,0))/ IF(DI44>INT($N44),$N44-INT($N44),1))* IF(EA$40=2,DI44, IF(INT(DI44)=INT(DH44),0,DI44-INT(DI44))))) -> 0.02897923875 | EB44: =+IF(OR(DJ44=DI44,EB$40=1),0, IF(AND(EB$40>1,DJ44=$N44),1-SUM($DX44:EA44), IF($N44<=1, IF($N44>0,1/$N44,0), IF(EB$40=2,0,VDB(1,0,$N44,INT(EB$40-2-1),MIN($N44,INT(EB$40-2-1)+1),$CM44,IF($CN44="No",1,0))/ IF(DI44>=INT($N44),$N44-INT($N44),1)))* IF(EB$40=2,0, IF(INT(DJ44)=INT(DI44),DJ44-DI44,INT(DJ44)-DI44))+ IF($N44<=1, IF($N44>0,1/$N44,0),VDB(1,0,$N44,INT(EB$40-2),MIN($N44,INT(EB$40-2)+1),$CM44,IF($CN44="No",1,0))/ IF(DJ44>INT($N44),$N44-INT($N44),1))* IF(EB$40=2,DJ44, IF(INT(DJ44)=INT(DI44),0,DJ44-INT(DJ44))))) -> 0.0281269082 | EC44: =+IF(OR(DK44=DJ44,EC$40=1),0, IF(AND(EC$40>1,DK44=$N44),1-SUM($DX44:EB44), IF($N44<=1, IF($N44>0,1/$N44,0), IF(EC$40=2,0,VDB(1,0,$N44,INT(EC$40-2-1),MIN($N44,INT(EC$40-2-1)+1),$CM44,IF($CN44="No",1,0))/ IF(DJ44>=INT($N44),$N44-INT($N44),1)))* IF(EC$40=2,0, IF(INT(DK44)=INT(DJ44),DK44-DJ44,INT(DK44)-DJ44))+ IF($N44<=1, IF($N44>0,1/$N44,0),VDB(1,0,$N44,INT(EC$40-2),MIN($N44,INT(EC$40-2)+1),$CM44,IF($CN44="No",1,0))/ IF(DK44>INT($N44),$N44-INT($N44),1))* IF(EC$40=2,DK44, IF(INT(DK44)=INT(DJ44),0,DK44-INT(DK44))))) -> 0.0272996462 | ED44: =+IF(OR(DL44=DK44,ED$40=1),0, IF(AND(ED$40>1,DL44=$N44),1-SUM($DX44:EC44), IF($N44<=1, IF($N44>0,1/$N44,0), IF(ED$40=2,0,VDB(1,0,$N44,INT(ED$40-2-1),MIN($N44,INT(ED$40-2-1)+1),$CM44,IF($CN44="No",1,0))/ IF(DK44>=INT($N44),$N44-INT($N44),1)))* IF(ED$40=2,0, IF(INT(DL44)=INT(DK44),DL44-DK44,INT(DL44)-DK44))+ IF($N44<=1, IF($N44>0,1/$N44,0),VDB(1,0,$N44,INT(ED$40-2),MIN($N44,INT(ED$40-2)+1),$CM44,IF($CN44="No",1,0))/ IF(DL44>INT($N44),$N44-INT($N44),1))* IF(ED$40=2,DL44, IF(INT(DL44)=INT(DK44),0,DL44-INT(DL44))))) -> 0.02649671543 | EE44: =+IF(OR(DM44=DL44,EE$40=1),0, IF(AND(EE$40>1,DM44=$N44),1-SUM($DX44:ED44), IF($N44<=1, IF($N44>0,1/$N44,0), IF(EE$40=2,0,VDB(1,0,$N44,INT(EE$40-2-1),MIN($N44,INT(EE$40-2-1)+1),$CM44,IF($CN44="No",1,0))/ IF(DL44>=INT($N44),$N44-INT($N44),1)))* IF(EE$40=2,0, IF(INT(DM44)=INT(DL44),DM44-DL44,INT(DM44)-DL44))+ IF($N44<=1, IF($N44>0,1/$N44,0),VDB(1,0,$N44,INT(EE$40-2),MIN($N44,INT(EE$40-2)+1),$CM44,IF($CN44="No",1,0))/ IF(DM44>INT($N44),$N44-INT($N44),1))* IF(EE$40=2,DM44, IF(INT(DM44)=INT(DL44),0,DM44-INT(DM44))))) -> 0.02571740027 | EF44: =+IF(OR(DN44=DM44,EF$40=1),0, IF(AND(EF$40>1,DN44=$N44),1-SUM($DX44:EE44), IF($N44<=1, IF($N44>0,1/$N44,0), IF(EF$40=2,0,VDB(1,0,$N44,INT(EF$40-2-1),MIN($N44,INT(EF$40-2-1)+1),$CM44,IF($CN44="No",1,0))/ IF(DM44>=INT($N44),$N44-INT($N44),1)))* IF(EF$40=2,0, IF(INT(DN44)=INT(DM44),DN44-DM44,INT(DN44)-DM44))+ IF($N44<=1, IF($N44>0,1/$N44,0),VDB(1,0,$N44,INT(EF$40-2),MIN($N44,INT(EF$40-2)+1),$CM44,IF($CN44="No",1,0))/ IF(DN44>INT($N44),$N44-INT($N44),1))* IF(EF$40=2,DN44, IF(INT(DN44)=INT(DM44),0,DN44-INT(DN44))))) -> 0.02496100614 | EH44: 0.02496100614 | EI44: 0.02571740027 | EJ44: 0.02649671543 | EK44: 0.0272996462 | EL44: 0.0281269082 | EM44: 0.02897923875 | EN44: 0.01470588235 | EO44: 0 | EQ44: 0 | ER44: 0 | ES44: 0.2213560822 | ET44: 0.4362016914 | EU44: 0.4233722298 | EV44: 0.4109201054 | EW44: 0.39883422 | EX44: 0.3871038018
C45: Derrimut Diversion SPS/RM | E45: Sewerage | F45: Renewals | G45: Pipelines/network | H45: Top 10 Major Projects | J45: Straight line | K45: 2020-21 | L45: 51 | M45: Declining Balance | N45: 51 | Q45: 0.3627076951 | R45: 2.130552513 | S45: 8.383729984 | T45: 0.2960992448 | U45: 0 | V45: 0 | W45: 0 | X45: 0 | AR45: 0.3627076951 | AS45: 2.130552513 | AT45: 8.383729984 | AU45: 0.2960992448 | AV45: 0 | AW45: 0 | AX45: 0 | AY45: 0 | BA45: 0.003555957795 | BB45: 0.02799968533 | BC45: 0.1310808863 | BD45: 0.2161772513 | BE45: 0.219080185 | BF45: 0.219080185 | BG45: 0.219080185 | BH45: 0.219080185 | BJ45: =+IF($K45="Ongoing",AR45,IF(RIGHT($K45,2)=RIGHT(BJ$39,2),SUM($AR45:AR45),0)+IF(RIGHT(BJ$39,2)>RIGHT($K45,2),AR45,0)) -> 0.3627076951 | BK45: =+IF($K45="Ongoing",AS45,IF(RIGHT($K45,2)=RIGHT(BK$39,2),SUM($AR45:AS45),0)+IF(RIGHT(BK$39,2)>RIGHT($K45,2),AS45,0)) -> 2.130552513 | BL45: =+IF($K45="Ongoing",AT45,IF(RIGHT($K45,2)=RIGHT(BL$39,2),SUM($AR45:AT45),0)+IF(RIGHT(BL$39,2)>RIGHT($K45,2),AT45,0)) -> 8.383729984 | BM45: =+IF($K45="Ongoing",AU45,IF(RIGHT($K45,2)=RIGHT(BM$39,2),SUM($AR45:AU45),0)+IF(RIGHT(BM$39,2)>RIGHT($K45,2),AU45,0)) -> 0.2960992448 | BN45: =+IF($K45="Ongoing",AV45,IF(RIGHT($K45,2)=RIGHT(BN$39,2),SUM($AR45:AV45),0)+IF(RIGHT(BN$39,2)>RIGHT($K45,2),AV45,0)) -> 0 | BO45: =+IF($K45="Ongoing",AW45,IF(RIGHT($K45,2)=RIGHT(BO$39,2),SUM($AR45:AW45),0)+IF(RIGHT(BO$39,2)>RIGHT($K45,2),AW45,0)) -> 0 | BP45: =+IF($K45="Ongoing",AX45,IF(RIGHT($K45,2)=RIGHT(BP$39,2),SUM($AR45:AX45),0)+IF(RIGHT(BP$39,2)>RIGHT($K45,2),AX45,0)) -> 0 | BQ45: =+IF($K45="Ongoing",AY45,IF(RIGHT($K45,2)=RIGHT(BQ$39,2),SUM($AR45:AY45),0)+IF(RIGHT(BQ$39,2)>RIGHT($K45,2),AY45,0)) -> 0 | BS45: =+Q45*KeyAssumptionsPriceControl_FO!Z$15 -> 0.3710499721 | BT45: =+R45*KeyAssumptionsPriceControl_FO!AA$15 -> 2.229684991 | BU45: =+S45*KeyAssumptionsPriceControl_FO!AB$15 -> 8.975614338 | BV45: =+T45*KeyAssumptionsPriceControl_FO!AC$15 -> 0.3242946877 | BW45: =+U45*KeyAssumptionsPriceControl_FO!AD$15 -> 0 | BX45: =+V45*KeyAssumptionsPriceControl_FO!AE$15 -> 0 | BY45: =+W45*KeyAssumptionsPriceControl_FO!AF$15 -> 0 | BZ45: =+X45*KeyAssumptionsPriceControl_FO!AG$15 -> 0 | CB45: =IF($M45="straight line",IF($N45=0,0, IF($N45<=0.5,BS45, IF($J45="straight line", IF((LEFT(CB$39,4)*1)-INT($N45)<LEFT(#REF!,4)*1,0,((OFFSET(BS45,0,-INT($N45+0.5),1,1))/$N45)*(IF($N45-INT($N45)>0.5,$N45-0.5-INT($N45),IF($N45-INT($N45)<=0.5,$N45-0.5-INT($N45)+1,0)))) +BS45/$N45*0.5, IF($J45="Declining Balance",-#REF!,0)))),IFERROR(EQ45,0)) -> 0.005456617237 | CC45: =IF($M45="straight line",IF($N45=0,0, IF($N45<=0.5,BT45, IF($J45="straight line", IF((LEFT(CC$39,4)*1)-INT($N45)<LEFT(#REF!,4)*1,0,((OFFSET(BT45,0,-INT($N45+0.5),1,1))/$N45)*(IF($N45-INT($N45)>0.5,$N45-0.5-INT($N45),IF($N45-INT($N45)<=0.5,$N45-0.5-INT($N45)+1,0)))) +BT45/$N45*0.5, IF($J45="Declining Balance",-#REF!,0)))),IFERROR(ER45,0)) -> 0.04354223089 | CD45: =IF($M45="straight line",IF($N45=0,0, IF($N45<=0.5,BU45, IF($J45="straight line", IF((LEFT(CD$39,4)*1)-INT($N45)<LEFT(#REF!,4)*1,0,((OFFSET(BU45,0,-INT($N45+0.5),1,1))/$N45)*(IF($N45-INT($N45)>0.5,$N45-0.5-INT($N45),IF($N45-INT($N45)<=0.5,$N45-0.5-INT($N45)+1,0)))) +BU45/$N45*0.5, IF($J45="Declining Balance",-#REF!,0)))),IFERROR(ES45,0)) -> 0.2070453907 | CE45: =IF($M45="straight line",IF($N45=0,0, IF($N45<=0.5,BV45, IF($J45="straight line", IF((LEFT(CE$39,4)*1)-INT($N45)<LEFT(#REF!,4)*1,0,((OFFSET(BV45,0,-INT($N45+0.5),1,1))/$N45)*(IF($N45-INT($N45)>0.5,$N45-0.5-INT($N45),IF($N45-INT($N45)<=0.5,$N45-0.5-INT($N45)+1,0)))) +BV45/$N45*0.5, IF($J45="Declining Balance",-#REF!,0)))),IFERROR(ET45,0)) -> 0.3377191884 | CF45: =IF($M45="straight line",IF($N45=0,0, IF($N45<=0.5,BW45, IF($J45="straight line", IF((LEFT(CF$39,4)*1)-INT($N45)<LEFT(#REF!,4)*1,0,((OFFSET(BW45,0,-INT($N45+0.5),1,1))/$N45)*(IF($N45-INT($N45)>0.5,$N45-0.5-INT($N45),IF($N45-INT($N45)<=0.5,$N45-0.5-INT($N45)+1,0)))) +BW45/$N45*0.5, IF($J45="Declining Balance",-#REF!,0)))),IFERROR(EU45,0)) -> 0.3325553106 | CG45: =IF($M45="straight line",IF($N45=0,0, IF($N45<=0.5,BX45, IF($J45="straight line", IF((LEFT(CG$39,4)*1)-INT($N45)<LEFT(#REF!,4)*1,0,((OFFSET(BX45,0,-INT($N45+0.5),1,1))/$N45)*(IF($N45-INT($N45)>0.5,$N45-0.5-INT($N45),IF($N45-INT($N45)<=0.5,$N45-0.5-INT($N45)+1,0)))) +BX45/$N45*0.5, IF($J45="Declining Balance",-#REF!,0)))),IFERROR(EV45,0)) -> 0.3227742721 | CH45: =IF($M45="straight line",IF($N45=0,0, IF($N45<=0.5,BY45, IF($J45="straight line", IF((LEFT(CH$39,4)*1)-INT($N45)<LEFT(#REF!,4)*1,0,((OFFSET(BY45,0,-INT($N45+0.5),1,1))/$N45)*(IF($N45-INT($N45)>0.5,$N45-0.5-INT($N45),IF($N45-INT($N45)<=0.5,$N45-0.5-INT($N45)+1,0)))) +BY45/$N45*0.5, IF($J45="Declining Balance",-#REF!,0)))),IFERROR(EW45,0)) -> 0.3132809111 | CI45: =IF($M45="straight line",IF($N45=0,0, IF($N45<=0.5,BZ45, IF($J45="straight line", IF((LEFT(CI$39,4)*1)-INT($N45)<LEFT(#REF!,4)*1,0,((OFFSET(BZ45,0,-INT($N45+0.5),1,1))/$N45)*(IF($N45-INT($N45)>0.5,$N45-0.5-INT($N45),IF($N45-INT($N45)<=0.5,$N45-0.5-INT($N45)+1,0)))) +BZ45/$N45*0.5, IF($J45="Declining Balance",-#REF!,0)))),IFERROR(EX45,0)) -> 0.3040667667 | CM45: 1.5 | CN45: No | CO45: =+IF($K45="ongoing",BS45,IF(RIGHT($K45,2)=RIGHT(CO$39,2),SUM($BR45:BS45),0)+IF(RIGHT(CO$39,2)>RIGHT($K45,2),BS45,0)) -> 0.3710499721 | CP45: =+IF($K45="ongoing",BT45,IF(RIGHT($K45,2)=RIGHT(CP$39,2),SUM($BR45:BT45),0)+IF(RIGHT(CP$39,2)>RIGHT($K45,2),BT45,0)) -> 2.229684991 | CQ45: =+IF($K45="ongoing",BU45,IF(RIGHT($K45,2)=RIGHT(CQ$39,2),SUM($BR45:BU45),0)+IF(RIGHT(CQ$39,2)>RIGHT($K45,2),BU45,0)) -> 8.975614338 | CR45: =+IF($K45="ongoing",BV45,IF(RIGHT($K45,2)=RIGHT(CR$39,2),SUM($BR45:BV45),0)+IF(RIGHT(CR$39,2)>RIGHT($K45,2),BV45,0)) -> 0.3242946877 | CS45: =+IF($K45="ongoing",BW45,IF(RIGHT($K45,2)=RIGHT(CS$39,2),SUM($BR45:BW45),0)+IF(RIGHT(CS$39,2)>RIGHT($K45,2),BW45,0)) -> 0 | CT45: =+IF($K45="ongoing",BX45,IF(RIGHT($K45,2)=RIGHT(CT$39,2),SUM($BR45:BX45),0)+IF(RIGHT(CT$39,2)>RIGHT($K45,2),BX45,0)) -> 0 | CU45: =+IF($K45="ongoing",BY45,IF(RIGHT($K45,2)=RIGHT(CU$39,2),SUM($BR45:BY45),0)+IF(RIGHT(CU$39,2)>RIGHT($K45,2),BY45,0)) -> 0 | CV45: =+IF($K45="ongoing",BZ45,IF(RIGHT($K45,2)=RIGHT(CV$39,2),SUM($BR45:BZ45),0)+IF(RIGHT(CV$39,2)>RIGHT($K45,2),BZ45,0)) -> 0 | CX45: =+MIN(IF($N45<=$CM45,MIN($N45,1),$N45),IF(CX$40=1,0.5,#REF!+1)) -> 0.5 | CY45: 1.5 | CZ45: 2.5 | DA45: 3.5 | DB45: 4.5 | DC45: 5.5 | DD45: 6.5 | DE45: 7.5 | DG45: =+IF(DG$40=1,0,MIN(IF($N45<=$CM45,MIN($N45,1),$N45),IF(DG$40=2,0.5,#REF!+1))) -> 0 | DH45: 0.5 | DI45: 1.5 | DJ45: 2.5 | DK45: 3.5 | DL45: 4.5 | DM45: 5.5 | DN45: 6.5 | DP45: =+IF(CX45=CW45,0, IF(AND(DP$40>1,CX45=$N45),1-SUM($DO45:DO45), IF($N45<=1, IF($N45>0,1/$N45,0), IF(DP$40=1,0,VDB(1,0,$N45,INT(DP$40-1-1),MIN($N45,INT(DP$40-1-1)+1),$CM45,IF($CN45="No",1,0))/ IF(CW45>=INT($N45),$N45-INT($N45),1)))* IF(DP$40=1,0, IF(INT(CX45)=INT(CW45),CX45-CW45,INT(CX45)-CW45))+ IF($N45<=1, IF($N45>0,1/$N45,0),VDB(1,0,$N45,INT(DP$40-1),MIN($N45,INT(DP$40-1)+1),$CM45,IF($CN45="No",1,0))/ IF(CX45>INT($N45),$N45-INT($N45),1))* IF(DP$40=1,CX45, IF(INT(CX45)=INT(CW45),0,CX45-INT(CX45))))) -> 0.01470588235 | DQ45: =+IF(CY45=CX45,0, IF(AND(DQ$40>1,CY45=$N45),1-SUM($DO45:DP45), IF($N45<=1, IF($N45>0,1/$N45,0), IF(DQ$40=1,0,VDB(1,0,$N45,INT(DQ$40-1-1),MIN($N45,INT(DQ$40-1-1)+1),$CM45,IF($CN45="No",1,0))/ IF(CX45>=INT($N45),$N45-INT($N45),1)))* IF(DQ$40=1,0, IF(INT(CY45)=INT(CX45),CY45-CX45,INT(CY45)-CX45))+ IF($N45<=1, IF($N45>0,1/$N45,0),VDB(1,0,$N45,INT(DQ$40-1),MIN($N45,INT(DQ$40-1)+1),$CM45,IF($CN45="No",1,0))/ IF(CY45>INT($N45),$N45-INT($N45),1))* IF(DQ$40=1,CY45, IF(INT(CY45)=INT(CX45),0,CY45-INT(CY45))))) -> 0.02897923875 | DR45: =+IF(CZ45=CY45,0, IF(AND(DR$40>1,CZ45=$N45),1-SUM($DO45:DQ45), IF($N45<=1, IF($N45>0,1/$N45,0), IF(DR$40=1,0,VDB(1,0,$N45,INT(DR$40-1-1),MIN($N45,INT(DR$40-1-1)+1),$CM45,IF($CN45="No",1,0))/ IF(CY45>=INT($N45),$N45-INT($N45),1)))* IF(DR$40=1,0, IF(INT(CZ45)=INT(CY45),CZ45-CY45,INT(CZ45)-CY45))+ IF($N45<=1, IF($N45>0,1/$N45,0),VDB(1,0,$N45,INT(DR$40-1),MIN($N45,INT(DR$40-1)+1),$CM45,IF($CN45="No",1,0))/ IF(CZ45>INT($N45),$N45-INT($N45),1))* IF(DR$40=1,CZ45, IF(INT(CZ45)=INT(CY45),0,CZ45-INT(CZ45))))) -> 0.0281269082 | DS45: =+IF(DA45=CZ45,0, IF(AND(DS$40>1,DA45=$N45),1-SUM($DO45:DR45), IF($N45<=1, IF($N45>0,1/$N45,0), IF(DS$40=1,0,VDB(1,0,$N45,INT(DS$40-1-1),MIN($N45,INT(DS$40-1-1)+1),$CM45,IF($CN45="No",1,0))/ IF(CZ45>=INT($N45),$N45-INT($N45),1)))* IF(DS$40=1,0, IF(INT(DA45)=INT(CZ45),DA45-CZ45,INT(DA45)-CZ45))+ IF($N45<=1, IF($N45>0,1/$N45,0),VDB(1,0,$N45,INT(DS$40-1),MIN($N45,INT(DS$40-1)+1),$CM45,IF($CN45="No",1,0))/ IF(DA45>INT($N45),$N45-INT($N45),1))* IF(DS$40=1,DA45, IF(INT(DA45)=INT(CZ45),0,DA45-INT(DA45))))) -> 0.0272996462 | DT45: =+IF(DB45=DA45,0, IF(AND(DT$40>1,DB45=$N45),1-SUM($DO45:DS45), IF($N45<=1, IF($N45>0,1/$N45,0), IF(DT$40=1,0,VDB(1,0,$N45,INT(DT$40-1-1),MIN($N45,INT(DT$40-1-1)+1),$CM45,IF($CN45="No",1,0))/ IF(DA45>=INT($N45),$N45-INT($N45),1)))* IF(DT$40=1,0, IF(INT(DB45)=INT(DA45),DB45-DA45,INT(DB45)-DA45))+ IF($N45<=1, IF($N45>0,1/$N45,0),VDB(1,0,$N45,INT(DT$40-1),MIN($N45,INT(DT$40-1)+1),$CM45,IF($CN45="No",1,0))/ IF(DB45>INT($N45),$N45-INT($N45),1))* IF(DT$40=1,DB45, IF(INT(DB45)=INT(DA45),0,DB45-INT(DB45))))) -> 0.02649671543 | DU45: =+IF(DC45=DB45,0, IF(AND(DU$40>1,DC45=$N45),1-SUM($DO45:DT45), IF($N45<=1, IF($N45>0,1/$N45,0), IF(DU$40=1,0,VDB(1,0,$N45,INT(DU$40-1-1),MIN($N45,INT(DU$40-1-1)+1),$CM45,IF($CN45="No",1,0))/ IF(DB45>=INT($N45),$N45-INT($N45),1)))* IF(DU$40=1,0, IF(INT(DC45)=INT(DB45),DC45-DB45,INT(DC45)-DB45))+ IF($N45<=1, IF($N45>0,1/$N45,0),VDB(1,0,$N45,INT(DU$40-1),MIN($N45,INT(DU$40-1)+1),$CM45,IF($CN45="No",1,0))/ IF(DC45>INT($N45),$N45-INT($N45),1))* IF(DU$40=1,DC45, IF(INT(DC45)=INT(DB45),0,DC45-INT(DC45))))) -> 0.02571740027 | DV45: =+IF(DD45=DC45,0, IF(AND(DV$40>1,DD45=$N45),1-SUM($DO45:DU45), IF($N45<=1, IF($N45>0,1/$N45,0), IF(DV$40=1,0,VDB(1,0,$N45,INT(DV$40-1-1),MIN($N45,INT(DV$40-1-1)+1),$CM45,IF($CN45="No",1,0))/ IF(DC45>=INT($N45),$N45-INT($N45),1)))* IF(DV$40=1,0, IF(INT(DD45)=INT(DC45),DD45-DC45,INT(DD45)-DC45))+ IF($N45<=1, IF($N45>0,1/$N45,0),VDB(1,0,$N45,INT(DV$40-1),MIN($N45,INT(DV$40-1)+1),$CM45,IF($CN45="No",1,0))/ IF(DD45>INT($N45),$N45-INT($N45),1))* IF(DV$40=1,DD45, IF(INT(DD45)=INT(DC45),0,DD45-INT(DD45))))) -> 0.02496100614 | DW45: =+IF(DE45=DD45,0, IF(AND(DW$40>1,DE45=$N45),1-SUM($DO45:DV45), IF($N45<=1, IF($N45>0,1/$N45,0), IF(DW$40=1,0,VDB(1,0,$N45,INT(DW$40-1-1),MIN($N45,INT(DW$40-1-1)+1),$CM45,IF($CN45="No",1,0))/ IF(DD45>=INT($N45),$N45-INT($N45),1)))* IF(DW$40=1,0, IF(INT(DE45)=INT(DD45),DE45-DD45,INT(DE45)-DD45))+ IF($N45<=1, IF($N45>0,1/$N45,0),VDB(1,0,$N45,INT(DW$40-1),MIN($N45,INT(DW$40-1)+1),$CM45,IF($CN45="No",1,0))/ IF(DE45>INT($N45),$N45-INT($N45),1))* IF(DW$40=1,DE45, IF(INT(DE45)=INT(DD45),0,DE45-INT(DE45))))) -> 0.0242268589 | DY45: =+IF(OR(DG45=DF45,DY$40=1),0, IF(AND(DY$40>1,DG45=$N45),1-SUM($DX45:DX45), IF($N45<=1, IF($N45>0,1/$N45,0), IF(DY$40=2,0,VDB(1,0,$N45,INT(DY$40-2-1),MIN($N45,INT(DY$40-2-1)+1),$CM45,IF($CN45="No",1,0))/ IF(DF45>=INT($N45),$N45-INT($N45),1)))* IF(DY$40=2,0, IF(INT(DG45)=INT(DF45),DG45-DF45,INT(DG45)-DF45))+ IF($N45<=1, IF($N45>0,1/$N45,0),VDB(1,0,$N45,INT(DY$40-2),MIN($N45,INT(DY$40-2)+1),$CM45,IF($CN45="No",1,0))/ IF(DG45>INT($N45),$N45-INT($N45),1))* IF(DY$40=2,DG45, IF(INT(DG45)=INT(DF45),0,DG45-INT(DG45))))) -> 0 | DZ45: =+IF(OR(DH45=DG45,DZ$40=1),0, IF(AND(DZ$40>1,DH45=$N45),1-SUM($DX45:DY45), IF($N45<=1, IF($N45>0,1/$N45,0), IF(DZ$40=2,0,VDB(1,0,$N45,INT(DZ$40-2-1),MIN($N45,INT(DZ$40-2-1)+1),$CM45,IF($CN45="No",1,0))/ IF(DG45>=INT($N45),$N45-INT($N45),1)))* IF(DZ$40=2,0, IF(INT(DH45)=INT(DG45),DH45-DG45,INT(DH45)-DG45))+ IF($N45<=1, IF($N45>0,1/$N45,0),VDB(1,0,$N45,INT(DZ$40-2),MIN($N45,INT(DZ$40-2)+1),$CM45,IF($CN45="No",1,0))/ IF(DH45>INT($N45),$N45-INT($N45),1))* IF(DZ$40=2,DH45, IF(INT(DH45)=INT(DG45),0,DH45-INT(DH45))))) -> 0.01470588235 | EA45: =+IF(OR(DI45=DH45,EA$40=1),0, IF(AND(EA$40>1,DI45=$N45),1-SUM($DX45:DZ45), IF($N45<=1, IF($N45>0,1/$N45,0), IF(EA$40=2,0,VDB(1,0,$N45,INT(EA$40-2-1),MIN($N45,INT(EA$40-2-1)+1),$CM45,IF($CN45="No",1,0))/ IF(DH45>=INT($N45),$N45-INT($N45),1)))* IF(EA$40=2,0, IF(INT(DI45)=INT(DH45),DI45-DH45,INT(DI45)-DH45))+ IF($N45<=1, IF($N45>0,1/$N45,0),VDB(1,0,$N45,INT(EA$40-2),MIN($N45,INT(EA$40-2)+1),$CM45,IF($CN45="No",1,0))/ IF(DI45>INT($N45),$N45-INT($N45),1))* IF(EA$40=2,DI45, IF(INT(DI45)=INT(DH45),0,DI45-INT(DI45))))) -> 0.02897923875 | EB45: =+IF(OR(DJ45=DI45,EB$40=1),0, IF(AND(EB$40>1,DJ45=$N45),1-SUM($DX45:EA45), IF($N45<=1, IF($N45>0,1/$N45,0), IF(EB$40=2,0,VDB(1,0,$N45,INT(EB$40-2-1),MIN($N45,INT(EB$40-2-1)+1),$CM45,IF($CN45="No",1,0))/ IF(DI45>=INT($N45),$N45-INT($N45),1)))* IF(EB$40=2,0, IF(INT(DJ45)=INT(DI45),DJ45-DI45,INT(DJ45)-DI45))+ IF($N45<=1, IF($N45>0,1/$N45,0),VDB(1,0,$N45,INT(EB$40-2),MIN($N45,INT(EB$40-2)+1),$CM45,IF($CN45="No",1,0))/ IF(DJ45>INT($N45),$N45-INT($N45),1))* IF(EB$40=2,DJ45, IF(INT(DJ45)=INT(DI45),0,DJ45-INT(DJ45))))) -> 0.0281269082 | EC45: =+IF(OR(DK45=DJ45,EC$40=1),0, IF(AND(EC$40>1,DK45=$N45),1-SUM($DX45:EB45), IF($N45<=1, IF($N45>0,1/$N45,0), IF(EC$40=2,0,VDB(1,0,$N45,INT(EC$40-2-1),MIN($N45,INT(EC$40-2-1)+1),$CM45,IF($CN45="No",1,0))/ IF(DJ45>=INT($N45),$N45-INT($N45),1)))* IF(EC$40=2,0, IF(INT(DK45)=INT(DJ45),DK45-DJ45,INT(DK45)-DJ45))+ IF($N45<=1, IF($N45>0,1/$N45,0),VDB(1,0,$N45,INT(EC$40-2),MIN($N45,INT(EC$40-2)+1),$CM45,IF($CN45="No",1,0))/ IF(DK45>INT($N45),$N45-INT($N45),1))* IF(EC$40=2,DK45, IF(INT(DK45)=INT(DJ45),0,DK45-INT(DK45))))) -> 0.0272996462 | ED45: =+IF(OR(DL45=DK45,ED$40=1),0, IF(AND(ED$40>1,DL45=$N45),1-SUM($DX45:EC45), IF($N45<=1, IF($N45>0,1/$N45,0), IF(ED$40=2,0,VDB(1,0,$N45,INT(ED$40-2-1),MIN($N45,INT(ED$40-2-1)+1),$CM45,IF($CN45="No",1,0))/ IF(DK45>=INT($N45),$N45-INT($N45),1)))* IF(ED$40=2,0, IF(INT(DL45)=INT(DK45),DL45-DK45,INT(DL45)-DK45))+ IF($N45<=1, IF($N45>0,1/$N45,0),VDB(1,0,$N45,INT(ED$40-2),MIN($N45,INT(ED$40-2)+1),$CM45,IF($CN45="No",1,0))/ IF(DL45>INT($N45),$N45-INT($N45),1))* IF(ED$40=2,DL45, IF(INT(DL45)=INT(DK45),0,DL45-INT(DL45))))) -> 0.02649671543 | EE45: =+IF(OR(DM45=DL45,EE$40=1),0, IF(AND(EE$40>1,DM45=$N45),1-SUM($DX45:ED45), IF($N45<=1, IF($N45>0,1/$N45,0), IF(EE$40=2,0,VDB(1,0,$N45,INT(EE$40-2-1),MIN($N45,INT(EE$40-2-1)+1),$CM45,IF($CN45="No",1,0))/ IF(DL45>=INT($N45),$N45-INT($N45),1)))* IF(EE$40=2,0, IF(INT(DM45)=INT(DL45),DM45-DL45,INT(DM45)-DL45))+ IF($N45<=1, IF($N45>0,1/$N45,0),VDB(1,0,$N45,INT(EE$40-2),MIN($N45,INT(EE$40-2)+1),$CM45,IF($CN45="No",1,0))/ IF(DM45>INT($N45),$N45-INT($N45),1))* IF(EE$40=2,DM45, IF(INT(DM45)=INT(DL45),0,DM45-INT(DM45))))) -> 0.02571740027 | EF45: =+IF(OR(DN45=DM45,EF$40=1),0, IF(AND(EF$40>1,DN45=$N45),1-SUM($DX45:EE45), IF($N45<=1, IF($N45>0,1/$N45,0), IF(EF$40=2,0,VDB(1,0,$N45,INT(EF$40-2-1),MIN($N45,INT(EF$40-2-1)+1),$CM45,IF($CN45="No",1,0))/ IF(DM45>=INT($N45),$N45-INT($N45),1)))* IF(EF$40=2,0, IF(INT(DN45)=INT(DM45),DN45-DM45,INT(DN45)-DM45))+ IF($N45<=1, IF($N45>0,1/$N45,0),VDB(1,0,$N45,INT(EF$40-2),MIN($N45,INT(EF$40-2)+1),$CM45,IF($CN45="No",1,0))/ IF(DN45>INT($N45),$N45-INT($N45),1))* IF(EF$40=2,DN45, IF(INT(DN45)=INT(DM45),0,DN45-INT(DN45))))) -> 0.02496100614 | EH45: 0.02496100614 | EI45: 0.02571740027 | EJ45: 0.02649671543 | EK45: 0.0272996462 | EL45: 0.0281269082 | EM45: 0.02897923875 | EN45: 0.01470588235 | EO45: 0 | EQ45: 0.005456617237 | ER45: 0.04354223089 | ES45: 0.2070453907 | ET45: 0.3377191884 | EU45: 0.3325553106 | EV45: 0.3227742721 | EW45: 0.3132809111 | EX45: 0.3040667667
C46: Gisborne RWP - Stage 1 Bioreactor | E46: Sewerage | F46: Growth | G46: Treatment | H46: Top 10 Major Projects | J46: Straight line | K46: 2022-23 | L46: 51 | M46: Declining Balance | N46: 51 | Q46: 0.8444832067 | R46: 4.808880918 | S46: 4.853422968 | T46: 2.22926 | U46: 0 | V46: 0 | W46: 0 | X46: 0 | AR46: 0.8444832067 | AS46: 4.808880918 | AT46: 4.853422968 | AU46: 2.22926 | AV46: 0 | AW46: 0 | AX46: 0 | AY46: 0 | BA46: 0 | BB46: 0 | BC46: 0.1030077166 | BD46: 0.2278709234 | BE46: 0.2497264136 | BF46: 0.2497264136 | BG46: 0.2497264136 | BH46: 0.2497264136 | BJ46: =+IF($K46="Ongoing",AR46,IF(RIGHT($K46,2)=RIGHT(BJ$39,2),SUM($AR46:AR46),0)+IF(RIGHT(BJ$39,2)>RIGHT($K46,2),AR46,0)) -> 0 | BK46: =+IF($K46="Ongoing",AS46,IF(RIGHT($K46,2)=RIGHT(BK$39,2),SUM($AR46:AS46),0)+IF(RIGHT(BK$39,2)>RIGHT($K46,2),AS46,0)) -> 0 | BL46: =+IF($K46="Ongoing",AT46,IF(RIGHT($K46,2)=RIGHT(BL$39,2),SUM($AR46:AT46),0)+IF(RIGHT(BL$39,2)>RIGHT($K46,2),AT46,0)) -> 10.50678709 | BM46: =+IF($K46="Ongoing",AU46,IF(RIGHT($K46,2)=RIGHT(BM$39,2),SUM($AR46:AU46),0)+IF(RIGHT(BM$39,2)>RIGHT($K46,2),AU46,0)) -> 2.22926 | BN46: =+IF($K46="Ongoing",AV46,IF(RIGHT($K46,2)=RIGHT(BN$39,2),SUM($AR46:AV46),0)+IF(RIGHT(BN$39,2)>RIGHT($K46,2),AV46,0)) -> 0 | BO46: =+IF($K46="Ongoing",AW46,IF(RIGHT($K46,2)=RIGHT(BO$39,2),SUM($AR46:AW46),0)+IF(RIGHT(BO$39,2)>RIGHT($K46,2),AW46,0)) -> 0 | BP46: =+IF($K46="Ongoing",AX46,IF(RIGHT($K46,2)=RIGHT(BP$39,2),SUM($AR46:AX46),0)+IF(RIGHT(BP$39,2)>RIGHT($K46,2),AX46,0)) -> 0 | BQ46: =+IF($K46="Ongoing",AY46,IF(RIGHT($K46,2)=RIGHT(BQ$39,2),SUM($AR46:AY46),0)+IF(RIGHT(BQ$39,2)>RIGHT($K46,2),AY46,0)) -> 0 | BS46: =+Q46*KeyAssumptionsPriceControl_FO!Z$15 -> 0.8639063205 | BT46: =+R46*KeyAssumptionsPriceControl_FO!AA$15 -> 5.032633339 | BU46: =+S46*KeyAssumptionsPriceControl_FO!AB$15 -> 5.196070587 | BV46: =+T46*KeyAssumptionsPriceControl_FO!AC$15 -> 2.441536709 | BW46: =+U46*KeyAssumptionsPriceControl_FO!AD$15 -> 0 | BX46: =+V46*KeyAssumptionsPriceControl_FO!AE$15 -> 0 | BY46: =+W46*KeyAssumptionsPriceControl_FO!AF$15 -> 0 | BZ46: =+X46*KeyAssumptionsPriceControl_FO!AG$15 -> 0 | CB46: =IF($M46="straight line",IF($N46=0,0, IF($N46<=0.5,BS46, IF($J46="straight line", IF((LEFT(CB$39,4)*1)-INT($N46)<LEFT(#REF!,4)*1,0,((OFFSET(BS46,0,-INT($N46+0.5),1,1))/$N46)*(IF($N46-INT($N46)>0.5,$N46-0.5-INT($N46),IF($N46-INT($N46)<=0.5,$N46-0.5-INT($N46)+1,0)))) +BS46/$N46*0.5, IF($J46="Declining Balance",-#REF!,0)))),IFERROR(EQ46,0)) -> 0 | CC46: =IF($M46="straight line",IF($N46=0,0, IF($N46<=0.5,BT46, IF($J46="straight line", IF((LEFT(CC$39,4)*1)-INT($N46)<LEFT(#REF!,4)*1,0,((OFFSET(BT46,0,-INT($N46+0.5),1,1))/$N46)*(IF($N46-INT($N46)>0.5,$N46-0.5-INT($N46),IF($N46-INT($N46)<=0.5,$N46-0.5-INT($N46)+1,0)))) +BT46/$N46*0.5, IF($J46="Declining Balance",-#REF!,0)))),IFERROR(ER46,0)) -> 0 | CD46: =IF($M46="straight line",IF($N46=0,0, IF($N46<=0.5,BU46, IF($J46="straight line", IF((LEFT(CD$39,4)*1)-INT($N46)<LEFT(#REF!,4)*1,0,((OFFSET(BU46,0,-INT($N46+0.5),1,1))/$N46)*(IF($N46-INT($N46)>0.5,$N46-0.5-INT($N46),IF($N46-INT($N46)<=0.5,$N46-0.5-INT($N46)+1,0)))) +BU46/$N46*0.5, IF($J46="Declining Balance",-#REF!,0)))),IFERROR(ES46,0)) -> 0.1631266213 | CE46: =IF($M46="straight line",IF($N46=0,0, IF($N46<=0.5,BV46, IF($J46="straight line", IF((LEFT(CE$39,4)*1)-INT($N46)<LEFT(#REF!,4)*1,0,((OFFSET(BV46,0,-INT($N46+0.5),1,1))/$N46)*(IF($N46-INT($N46)>0.5,$N46-0.5-INT($N46),IF($N46-INT($N46)<=0.5,$N46-0.5-INT($N46)+1,0)))) +BV46/$N46*0.5, IF($J46="Declining Balance",-#REF!,0)))),IFERROR(ET46,0)) -> 0.3573603523 | CF46: =IF($M46="straight line",IF($N46=0,0, IF($N46<=0.5,BW46, IF($J46="straight line", IF((LEFT(CF$39,4)*1)-INT($N46)<LEFT(#REF!,4)*1,0,((OFFSET(BW46,0,-INT($N46+0.5),1,1))/$N46)*(IF($N46-INT($N46)>0.5,$N46-0.5-INT($N46),IF($N46-INT($N46)<=0.5,$N46-0.5-INT($N46)+1,0)))) +BW46/$N46*0.5, IF($J46="Declining Balance",-#REF!,0)))),IFERROR(EU46,0)) -> 0.3827547053 | CG46: =IF($M46="straight line",IF($N46=0,0, IF($N46<=0.5,BX46, IF($J46="straight line", IF((LEFT(CG$39,4)*1)-INT($N46)<LEFT(#REF!,4)*1,0,((OFFSET(BX46,0,-INT($N46+0.5),1,1))/$N46)*(IF($N46-INT($N46)>0.5,$N46-0.5-INT($N46),IF($N46-INT($N46)<=0.5,$N46-0.5-INT($N46)+1,0)))) +BX46/$N46*0.5, IF($J46="Declining Balance",-#REF!,0)))),IFERROR(EV46,0)) -> 0.371497214 | CH46: =IF($M46="straight line",IF($N46=0,0, IF($N46<=0.5,BY46, IF($J46="straight line", IF((LEFT(CH$39,4)*1)-INT($N46)<LEFT(#REF!,4)*1,0,((OFFSET(BY46,0,-INT($N46+0.5),1,1))/$N46)*(IF($N46-INT($N46)>0.5,$N46-0.5-INT($N46),IF($N46-INT($N46)<=0.5,$N46-0.5-INT($N46)+1,0)))) +BY46/$N46*0.5, IF($J46="Declining Balance",-#REF!,0)))),IFERROR(EW46,0)) -> 0.3605708253 | CI46: =IF($M46="straight line",IF($N46=0,0, IF($N46<=0.5,BZ46, IF($J46="straight line", IF((LEFT(CI$39,4)*1)-INT($N46)<LEFT(#REF!,4)*1,0,((OFFSET(BZ46,0,-INT($N46+0.5),1,1))/$N46)*(IF($N46-INT($N46)>0.5,$N46-0.5-INT($N46),IF($N46-INT($N46)<=0.5,$N46-0.5-INT($N46)+1,0)))) +BZ46/$N46*0.5, IF($J46="Declining Balance",-#REF!,0)))),IFERROR(EX46,0)) -> 0.3499658011 | CM46: 1.5 | CN46: No | CO46: =+IF($K46="ongoing",BS46,IF(RIGHT($K46,2)=RIGHT(CO$39,2),SUM($BR46:BS46),0)+IF(RIGHT(CO$39,2)>RIGHT($K46,2),BS46,0)) -> 0 | CP46: =+IF($K46="ongoing",BT46,IF(RIGHT($K46,2)=RIGHT(CP$39,2),SUM($BR46:BT46),0)+IF(RIGHT(CP$39,2)>RIGHT($K46,2),BT46,0)) -> 0 | CQ46: =+IF($K46="ongoing",BU46,IF(RIGHT($K46,2)=RIGHT(CQ$39,2),SUM($BR46:BU46),0)+IF(RIGHT(CQ$39,2)>RIGHT($K46,2),BU46,0)) -> 11.09261025 | CR46: =+IF($K46="ongoing",BV46,IF(RIGHT($K46,2)=RIGHT(CR$39,2),SUM($BR46:BV46),0)+IF(RIGHT(CR$39,2)>RIGHT($K46,2),BV46,0)) -> 2.441536709 | CS46: =+IF($K46="ongoing",BW46,IF(RIGHT($K46,2)=RIGHT(CS$39,2),SUM($BR46:BW46),0)+IF(RIGHT(CS$39,2)>RIGHT($K46,2),BW46,0)) -> 0 | CT46: =+IF($K46="ongoing",BX46,IF(RIGHT($K46,2)=RIGHT(CT$39,2),SUM($BR46:BX46),0)+IF(RIGHT(CT$39,2)>RIGHT($K46,2),BX46,0)) -> 0 | CU46: =+IF($K46="ongoing",BY46,IF(RIGHT($K46,2)=RIGHT(CU$39,2),SUM($BR46:BY46),0)+IF(RIGHT(CU$39,2)>RIGHT($K46,2),BY46,0)) -> 0 | CV46: =+IF($K46="ongoing",BZ46,IF(RIGHT($K46,2)=RIGHT(CV$39,2),SUM($BR46:BZ46),0)+IF(RIGHT(CV$39,2)>RIGHT($K46,2),BZ46,0)) -> 0 | CX46: =+MIN(IF($N46<=$CM46,MIN($N46,1),$N46),IF(CX$40=1,0.5,#REF!+1)) -> 0.5 | CY46: 1.5 | CZ46: 2.5 | DA46: 3.5 | DB46: 4.5 | DC46: 5.5 | DD46: 6.5 | DE46: 7.5 | DG46: =+IF(DG$40=1,0,MIN(IF($N46<=$CM46,MIN($N46,1),$N46),IF(DG$40=2,0.5,#REF!+1))) -> 0 | DH46: 0.5 | DI46: 1.5 | DJ46: 2.5 | DK46: 3.5 | DL46: 4.5 | DM46: 5.5 | DN46: 6.5 | DP46: =+IF(CX46=CW46,0, IF(AND(DP$40>1,CX46=$N46),1-SUM($DO46:DO46), IF($N46<=1, IF($N46>0,1/$N46,0), IF(DP$40=1,0,VDB(1,0,$N46,INT(DP$40-1-1),MIN($N46,INT(DP$40-1-1)+1),$CM46,IF($CN46="No",1,0))/ IF(CW46>=INT($N46),$N46-INT($N46),1)))* IF(DP$40=1,0, IF(INT(CX46)=INT(CW46),CX46-CW46,INT(CX46)-CW46))+ IF($N46<=1, IF($N46>0,1/$N46,0),VDB(1,0,$N46,INT(DP$40-1),MIN($N46,INT(DP$40-1)+1),$CM46,IF($CN46="No",1,0))/ IF(CX46>INT($N46),$N46-INT($N46),1))* IF(DP$40=1,CX46, IF(INT(CX46)=INT(CW46),0,CX46-INT(CX46))))) -> 0.01470588235 | DQ46: =+IF(CY46=CX46,0, IF(AND(DQ$40>1,CY46=$N46),1-SUM($DO46:DP46), IF($N46<=1, IF($N46>0,1/$N46,0), IF(DQ$40=1,0,VDB(1,0,$N46,INT(DQ$40-1-1),MIN($N46,INT(DQ$40-1-1)+1),$CM46,IF($CN46="No",1,0))/ IF(CX46>=INT($N46),$N46-INT($N46),1)))* IF(DQ$40=1,0, IF(INT(CY46)=INT(CX46),CY46-CX46,INT(CY46)-CX46))+ IF($N46<=1, IF($N46>0,1/$N46,0),VDB(1,0,$N46,INT(DQ$40-1),MIN($N46,INT(DQ$40-1)+1),$CM46,IF($CN46="No",1,0))/ IF(CY46>INT($N46),$N46-INT($N46),1))* IF(DQ$40=1,CY46, IF(INT(CY46)=INT(CX46),0,CY46-INT(CY46))))) -> 0.02897923875 | DR46: =+IF(CZ46=CY46,0, IF(AND(DR$40>1,CZ46=$N46),1-SUM($DO46:DQ46), IF($N46<=1, IF($N46>0,1/$N46,0), IF(DR$40=1,0,VDB(1,0,$N46,INT(DR$40-1-1),MIN($N46,INT(DR$40-1-1)+1),$CM46,IF($CN46="No",1,0))/ IF(CY46>=INT($N46),$N46-INT($N46),1)))* IF(DR$40=1,0, IF(INT(CZ46)=INT(CY46),CZ46-CY46,INT(CZ46)-CY46))+ IF($N46<=1, IF($N46>0,1/$N46,0),VDB(1,0,$N46,INT(DR$40-1),MIN($N46,INT(DR$40-1)+1),$CM46,IF($CN46="No",1,0))/ IF(CZ46>INT($N46),$N46-INT($N46),1))* IF(DR$40=1,CZ46, IF(INT(CZ46)=INT(CY46),0,CZ46-INT(CZ46))))) -> 0.0281269082 | DS46: =+IF(DA46=CZ46,0, IF(AND(DS$40>1,DA46=$N46),1-SUM($DO46:DR46), IF($N46<=1, IF($N46>0,1/$N46,0), IF(DS$40=1,0,VDB(1,0,$N46,INT(DS$40-1-1),MIN($N46,INT(DS$40-1-1)+1),$CM46,IF($CN46="No",1,0))/ IF(CZ46>=INT($N46),$N46-INT($N46),1)))* IF(DS$40=1,0, IF(INT(DA46)=INT(CZ46),DA46-CZ46,INT(DA46)-CZ46))+ IF($N46<=1, IF($N46>0,1/$N46,0),VDB(1,0,$N46,INT(DS$40-1),MIN($N46,INT(DS$40-1)+1),$CM46,IF($CN46="No",1,0))/ IF(DA46>INT($N46),$N46-INT($N46),1))* IF(DS$40=1,DA46, IF(INT(DA46)=INT(CZ46),0,DA46-INT(DA46))))) -> 0.0272996462 | DT46: =+IF(DB46=DA46,0, IF(AND(DT$40>1,DB46=$N46),1-SUM($DO46:DS46), IF($N46<=1, IF($N46>0,1/$N46,0), IF(DT$40=1,0,VDB(1,0,$N46,INT(DT$40-1-1),MIN($N46,INT(DT$40-1-1)+1),$CM46,IF($CN46="No",1,0))/ IF(DA46>=INT($N46),$N46-INT($N46),1)))* IF(DT$40=1,0, IF(INT(DB46)=INT(DA46),DB46-DA46,INT(DB46)-DA46))+ IF($N46<=1, IF($N46>0,1/$N46,0),VDB(1,0,$N46,INT(DT$40-1),MIN($N46,INT(DT$40-1)+1),$CM46,IF($CN46="No",1,0))/ IF(DB46>INT($N46),$N46-INT($N46),1))* IF(DT$40=1,DB46, IF(INT(DB46)=INT(DA46),0,DB46-INT(DB46))))) -> 0.02649671543 | DU46: =+IF(DC46=DB46,0, IF(AND(DU$40>1,DC46=$N46),1-SUM($DO46:DT46), IF($N46<=1, IF($N46>0,1/$N46,0), IF(DU$40=1,0,VDB(1,0,$N46,INT(DU$40-1-1),MIN($N46,INT(DU$40-1-1)+1),$CM46,IF($CN46="No",1,0))/ IF(DB46>=INT($N46),$N46-INT($N46),1)))* IF(DU$40=1,0, IF(INT(DC46)=INT(DB46),DC46-DB46,INT(DC46)-DB46))+ IF($N46<=1, IF($N46>0,1/$N46,0),VDB(1,0,$N46,INT(DU$40-1),MIN($N46,INT(DU$40-1)+1),$CM46,IF($CN46="No",1,0))/ IF(DC46>INT($N46),$N46-INT($N46),1))* IF(DU$40=1,DC46, IF(INT(DC46)=INT(DB46),0,DC46-INT(DC46))))) -> 0.02571740027 | DV46: =+IF(DD46=DC46,0, IF(AND(DV$40>1,DD46=$N46),1-SUM($DO46:DU46), IF($N46<=1, IF($N46>0,1/$N46,0), IF(DV$40=1,0,VDB(1,0,$N46,INT(DV$40-1-1),MIN($N46,INT(DV$40-1-1)+1),$CM46,IF($CN46="No",1,0))/ IF(DC46>=INT($N46),$N46-INT($N46),1)))* IF(DV$40=1,0, IF(INT(DD46)=INT(DC46),DD46-DC46,INT(DD46)-DC46))+ IF($N46<=1, IF($N46>0,1/$N46,0),VDB(1,0,$N46,INT(DV$40-1),MIN($N46,INT(DV$40-1)+1),$CM46,IF($CN46="No",1,0))/ IF(DD46>INT($N46),$N46-INT($N46),1))* IF(DV$40=1,DD46, IF(INT(DD46)=INT(DC46),0,DD46-INT(DD46))))) -> 0.02496100614 | DW46: =+IF(DE46=DD46,0, IF(AND(DW$40>1,DE46=$N46),1-SUM($DO46:DV46), IF($N46<=1, IF($N46>0,1/$N46,0), IF(DW$40=1,0,VDB(1,0,$N46,INT(DW$40-1-1),MIN($N46,INT(DW$40-1-1)+1),$CM46,IF($CN46="No",1,0))/ IF(DD46>=INT($N46),$N46-INT($N46),1)))* IF(DW$40=1,0, IF(INT(DE46)=INT(DD46),DE46-DD46,INT(DE46)-DD46))+ IF($N46<=1, IF($N46>0,1/$N46,0),VDB(1,0,$N46,INT(DW$40-1),MIN($N46,INT(DW$40-1)+1),$CM46,IF($CN46="No",1,0))/ IF(DE46>INT($N46),$N46-INT($N46),1))* IF(DW$40=1,DE46, IF(INT(DE46)=INT(DD46),0,DE46-INT(DE46))))) -> 0.0242268589 | DY46: =+IF(OR(DG46=DF46,DY$40=1),0, IF(AND(DY$40>1,DG46=$N46),1-SUM($DX46:DX46), IF($N46<=1, IF($N46>0,1/$N46,0), IF(DY$40=2,0,VDB(1,0,$N46,INT(DY$40-2-1),MIN($N46,INT(DY$40-2-1)+1),$CM46,IF($CN46="No",1,0))/ IF(DF46>=INT($N46),$N46-INT($N46),1)))* IF(DY$40=2,0, IF(INT(DG46)=INT(DF46),DG46-DF46,INT(DG46)-DF46))+ IF($N46<=1, IF($N46>0,1/$N46,0),VDB(1,0,$N46,INT(DY$40-2),MIN($N46,INT(DY$40-2)+1),$CM46,IF($CN46="No",1,0))/ IF(DG46>INT($N46),$N46-INT($N46),1))* IF(DY$40=2,DG46, IF(INT(DG46)=INT(DF46),0,DG46-INT(DG46))))) -> 0 | DZ46: =+IF(OR(DH46=DG46,DZ$40=1),0, IF(AND(DZ$40>1,DH46=$N46),1-SUM($DX46:DY46), IF($N46<=1, IF($N46>0,1/$N46,0), IF(DZ$40=2,0,VDB(1,0,$N46,INT(DZ$40-2-1),MIN($N46,INT(DZ$40-2-1)+1),$CM46,IF($CN46="No",1,0))/ IF(DG46>=INT($N46),$N46-INT($N46),1)))* IF(DZ$40=2,0, IF(INT(DH46)=INT(DG46),DH46-DG46,INT(DH46)-DG46))+ IF($N46<=1, IF($N46>0,1/$N46,0),VDB(1,0,$N46,INT(DZ$40-2),MIN($N46,INT(DZ$40-2)+1),$CM46,IF($CN46="No",1,0))/ IF(DH46>INT($N46),$N46-INT($N46),1))* IF(DZ$40=2,DH46, IF(INT(DH46)=INT(DG46),0,DH46-INT(DH46))))) -> 0.01470588235 | EA46: =+IF(OR(DI46=DH46,EA$40=1),0, IF(AND(EA$40>1,DI46=$N46),1-SUM($DX46:DZ46), IF($N46<=1, IF($N46>0,1/$N46,0), IF(EA$40=2,0,VDB(1,0,$N46,INT(EA$40-2-1),MIN($N46,INT(EA$40-2-1)+1),$CM46,IF($CN46="No",1,0))/ IF(DH46>=INT($N46),$N46-INT($N46),1)))* IF(EA$40=2,0, IF(INT(DI46)=INT(DH46),DI46-DH46,INT(DI46)-DH46))+ IF($N46<=1, IF($N46>0,1/$N46,0),VDB(1,0,$N46,INT(EA$40-2),MIN($N46,INT(EA$40-2)+1),$CM46,IF($CN46="No",1,0))/ IF(DI46>INT($N46),$N46-INT($N46),1))* IF(EA$40=2,DI46, IF(INT(DI46)=INT(DH46),0,DI46-INT(DI46))))) -> 0.02897923875 | EB46: =+IF(OR(DJ46=DI46,EB$40=1),0, IF(AND(EB$40>1,DJ46=$N46),1-SUM($DX46:EA46), IF($N46<=1, IF($N46>0,1/$N46,0), IF(EB$40=2,0,VDB(1,0,$N46,INT(EB$40-2-1),MIN($N46,INT(EB$40-2-1)+1),$CM46,IF($CN46="No",1,0))/ IF(DI46>=INT($N46),$N46-INT($N46),1)))* IF(EB$40=2,0, IF(INT(DJ46)=INT(DI46),DJ46-DI46,INT(DJ46)-DI46))+ IF($N46<=1, IF($N46>0,1/$N46,0),VDB(1,0,$N46,INT(EB$40-2),MIN($N46,INT(EB$40-2)+1),$CM46,IF($CN46="No",1,0))/ IF(DJ46>INT($N46),$N46-INT($N46),1))* IF(EB$40=2,DJ46, IF(INT(DJ46)=INT(DI46),0,DJ46-INT(DJ46))))) -> 0.0281269082 | EC46: =+IF(OR(DK46=DJ46,EC$40=1),0, IF(AND(EC$40>1,DK46=$N46),1-SUM($DX46:EB46), IF($N46<=1, IF($N46>0,1/$N46,0), IF(EC$40=2,0,VDB(1,0,$N46,INT(EC$40-2-1),MIN($N46,INT(EC$40-2-1)+1),$CM46,IF($CN46="No",1,0))/ IF(DJ46>=INT($N46),$N46-INT($N46),1)))* IF(EC$40=2,0, IF(INT(DK46)=INT(DJ46),DK46-DJ46,INT(DK46)-DJ46))+ IF($N46<=1, IF($N46>0,1/$N46,0),VDB(1,0,$N46,INT(EC$40-2),MIN($N46,INT(EC$40-2)+1),$CM46,IF($CN46="No",1,0))/ IF(DK46>INT($N46),$N46-INT($N46),1))* IF(EC$40=2,DK46, IF(INT(DK46)=INT(DJ46),0,DK46-INT(DK46))))) -> 0.0272996462 | ED46: =+IF(OR(DL46=DK46,ED$40=1),0, IF(AND(ED$40>1,DL46=$N46),1-SUM($DX46:EC46), IF($N46<=1, IF($N46>0,1/$N46,0), IF(ED$40=2,0,VDB(1,0,$N46,INT(ED$40-2-1),MIN($N46,INT(ED$40-2-1)+1),$CM46,IF($CN46="No",1,0))/ IF(DK46>=INT($N46),$N46-INT($N46),1)))* IF(ED$40=2,0, IF(INT(DL46)=INT(DK46),DL46-DK46,INT(DL46)-DK46))+ IF($N46<=1, IF($N46>0,1/$N46,0),VDB(1,0,$N46,INT(ED$40-2),MIN($N46,INT(ED$40-2)+1),$CM46,IF($CN46="No",1,0))/ IF(DL46>INT($N46),$N46-INT($N46),1))* IF(ED$40=2,DL46, IF(INT(DL46)=INT(DK46),0,DL46-INT(DL46))))) -> 0.02649671543 | EE46: =+IF(OR(DM46=DL46,EE$40=1),0, IF(AND(EE$40>1,DM46=$N46),1-SUM($DX46:ED46), IF($N46<=1, IF($N46>0,1/$N46,0), IF(EE$40=2,0,VDB(1,0,$N46,INT(EE$40-2-1),MIN($N46,INT(EE$40-2-1)+1),$CM46,IF($CN46="No",1,0))/ IF(DL46>=INT($N46),$N46-INT($N46),1)))* IF(EE$40=2,0, IF(INT(DM46)=INT(DL46),DM46-DL46,INT(DM46)-DL46))+ IF($N46<=1, IF($N46>0,1/$N46,0),VDB(1,0,$N46,INT(EE$40-2),MIN($N46,INT(EE$40-2)+1),$CM46,IF($CN46="No",1,0))/ IF(DM46>INT($N46),$N46-INT($N46),1))* IF(EE$40=2,DM46, IF(INT(DM46)=INT(DL46),0,DM46-INT(DM46))))) -> 0.02571740027 | EF46: =+IF(OR(DN46=DM46,EF$40=1),0, IF(AND(EF$40>1,DN46=$N46),1-SUM($DX46:EE46), IF($N46<=1, IF($N46>0,1/$N46,0), IF(EF$40=2,0,VDB(1,0,$N46,INT(EF$40-2-1),MIN($N46,INT(EF$40-2-1)+1),$CM46,IF($CN46="No",1,0))/ IF(DM46>=INT($N46),$N46-INT($N46),1)))* IF(EF$40=2,0, IF(INT(DN46)=INT(DM46),DN46-DM46,INT(DN46)-DM46))+ IF($N46<=1, IF($N46>0,1/$N46,0),VDB(1,0,$N46,INT(EF$40-2),MIN($N46,INT(EF$40-2)+1),$CM46,IF($CN46="No",1,0))/ IF(DN46>INT($N46),$N46-INT($N46),1))* IF(EF$40=2,DN46, IF(INT(DN46)=INT(DM46),0,DN46-INT(DN46))))) -> 0.02496100614 | EH46: 0.02496100614 | EI46: 0.02571740027 | EJ46: 0.02649671543 | EK46: 0.0272996462 | EL46: 0.0281269082 | EM46: 0.02897923875 | EN46: 0.01470588235 | EO46: 0 | EQ46: 0 | ER46: 0 | ES46: 0.1631266213 | ET46: 0.3573603523 | EU46: 0.3827547053 | EV46: 0.371497214 | EW46: 0.3605708253 | EX46: 0.3499658011
C47: SSPS - Sewer Relining Program | E47: Sewerage | F47: Growth | G47: Treatment | H47: Top 10 Major Projects | J47: Straight line | K47: 2019-20 | L47: 51 | M47: Declining Balance | N47: 51 | Q47: 0.7029482847 | R47: 2.579856734 | S47: 4.821750501 | T47: 1.34937774 | U47: 0 | V47: 0 | W47: 0 | X47: 0 | AR47: 0.7029482847 | AS47: 2.579856734 | AT47: 4.821750501 | AU47: 1.34937774 | AV47: 0 | AW47: 0 | AX47: 0 | AY47: 0 | BA47: 0.00689164985 | BB47: 0.03907601277 | BC47: 0.1116407896 | BD47: 0.1721420469 | BE47: 0.1853712404 | BF47: 0.1853712404 | BG47: 0.1853712404 | BH47: 0.1853712404 | BJ47: =+IF($K47="Ongoing",AR47,IF(RIGHT($K47,2)=RIGHT(BJ$39,2),SUM($AR47:AR47),0)+IF(RIGHT(BJ$39,2)>RIGHT($K47,2),AR47,0)) -> 0.7029482847 | BK47: =+IF($K47="Ongoing",AS47,IF(RIGHT($K47,2)=RIGHT(BK$39,2),SUM($AR47:AS47),0)+IF(RIGHT(BK$39,2)>RIGHT($K47,2),AS47,0)) -> 2.579856734 | BL47: =+IF($K47="Ongoing",AT47,IF(RIGHT($K47,2)=RIGHT(BL$39,2),SUM($AR47:AT47),0)+IF(RIGHT(BL$39,2)>RIGHT($K47,2),AT47,0)) -> 4.821750501 | BM47: =+IF($K47="Ongoing",AU47,IF(RIGHT($K47,2)=RIGHT(BM$39,2),SUM($AR47:AU47),0)+IF(RIGHT(BM$39,2)>RIGHT($K47,2),AU47,0)) -> 1.34937774 | BN47: =+IF($K47="Ongoing",AV47,IF(RIGHT($K47,2)=RIGHT(BN$39,2),SUM($AR47:AV47),0)+IF(RIGHT(BN$39,2)>RIGHT($K47,2),AV47,0)) -> 0 | BO47: =+IF($K47="Ongoing",AW47,IF(RIGHT($K47,2)=RIGHT(BO$39,2),SUM($AR47:AW47),0)+IF(RIGHT(BO$39,2)>RIGHT($K47,2),AW47,0)) -> 0 | BP47: =+IF($K47="Ongoing",AX47,IF(RIGHT($K47,2)=RIGHT(BP$39,2),SUM($AR47:AX47),0)+IF(RIGHT(BP$39,2)>RIGHT($K47,2),AX47,0)) -> 0 | BQ47: =+IF($K47="Ongoing",AY47,IF(RIGHT($K47,2)=RIGHT(BQ$39,2),SUM($AR47:AY47),0)+IF(RIGHT(BQ$39,2)>RIGHT($K47,2),AY47,0)) -> 0 | BS47: =+Q47*KeyAssumptionsPriceControl_FO!Z$15 -> 0.7191160953 | BT47: =+R47*KeyAssumptionsPriceControl_FO!AA$15 -> 2.699894887 | BU47: =+S47*KeyAssumptionsPriceControl_FO!AB$15 -> 5.16216207 | BV47: =+T47*KeyAssumptionsPriceControl_FO!AC$15 -> 1.477869467 | BW47: =+U47*KeyAssumptionsPriceControl_FO!AD$15 -> 0 | BX47: =+V47*KeyAssumptionsPriceControl_FO!AE$15 -> 0 | BY47: =+W47*KeyAssumptionsPriceControl_FO!AF$15 -> 0 | BZ47: =+X47*KeyAssumptionsPriceControl_FO!AG$15 -> 0 | CB47: =IF($M47="straight line",IF($N47=0,0, IF($N47<=0.5,BS47, IF($J47="straight line", IF((LEFT(CB$39,4)*1)-INT($N47)<LEFT(#REF!,4)*1,0,((OFFSET(BS47,0,-INT($N47+0.5),1,1))/$N47)*(IF($N47-INT($N47)>0.5,$N47-0.5-INT($N47),IF($N47-INT($N47)<=0.5,$N47-0.5-INT($N47)+1,0)))) +BS47/$N47*0.5, IF($J47="Declining Balance",-#REF!,0)))),IFERROR(EQ47,0)) -> 0.0105752367 | CC47: =IF($M47="straight line",IF($N47=0,0, IF($N47<=0.5,BT47, IF($J47="straight line", IF((LEFT(CC$39,4)*1)-INT($N47)<LEFT(#REF!,4)*1,0,((OFFSET(BT47,0,-INT($N47+0.5),1,1))/$N47)*(IF($N47-INT($N47)>0.5,$N47-0.5-INT($N47),IF($N47-INT($N47)<=0.5,$N47-0.5-INT($N47)+1,0)))) +BT47/$N47*0.5, IF($J47="Declining Balance",-#REF!,0)))),IFERROR(ER47,0)) -> 0.0605437736 | CD47: =IF($M47="straight line",IF($N47=0,0, IF($N47<=0.5,BU47, IF($J47="straight line", IF((LEFT(CD$39,4)*1)-INT($N47)<LEFT(#REF!,4)*1,0,((OFFSET(BU47,0,-INT($N47+0.5),1,1))/$N47)*(IF($N47-INT($N47)>0.5,$N47-0.5-INT($N47),IF($N47-INT($N47)<=0.5,$N47-0.5-INT($N47)+1,0)))) +BU47/$N47*0.5, IF($J47="Declining Balance",-#REF!,0)))),IFERROR(ES47,0)) -> 0.174381559 | CE47: =IF($M47="straight line",IF($N47=0,0, IF($N47<=0.5,BV47, IF($J47="straight line", IF((LEFT(CE$39,4)*1)-INT($N47)<LEFT(#REF!,4)*1,0,((OFFSET(BV47,0,-INT($N47+0.5),1,1))/$N47)*(IF($N47-INT($N47)>0.5,$N47-0.5-INT($N47),IF($N47-INT($N47)<=0.5,$N47-0.5-INT($N47)+1,0)))) +BV47/$N47*0.5, IF($J47="Declining Balance",-#REF!,0)))),IFERROR(ET47,0)) -> 0.2669002123 | CF47: =IF($M47="straight line",IF($N47=0,0, IF($N47<=0.5,BW47, IF($J47="straight line", IF((LEFT(CF$39,4)*1)-INT($N47)<LEFT(#REF!,4)*1,0,((OFFSET(BW47,0,-INT($N47+0.5),1,1))/$N47)*(IF($N47-INT($N47)>0.5,$N47-0.5-INT($N47),IF($N47-INT($N47)<=0.5,$N47-0.5-INT($N47)+1,0)))) +BW47/$N47*0.5, IF($J47="Declining Balance",-#REF!,0)))),IFERROR(EU47,0)) -> 0.2807835805 | CG47: =IF($M47="straight line",IF($N47=0,0, IF($N47<=0.5,BX47, IF($J47="straight line", IF((LEFT(CG$39,4)*1)-INT($N47)<LEFT(#REF!,4)*1,0,((OFFSET(BX47,0,-INT($N47+0.5),1,1))/$N47)*(IF($N47-INT($N47)>0.5,$N47-0.5-INT($N47),IF($N47-INT($N47)<=0.5,$N47-0.5-INT($N47)+1,0)))) +BX47/$N47*0.5, IF($J47="Declining Balance",-#REF!,0)))),IFERROR(EV47,0)) -> 0.2725252399 | CH47: =IF($M47="straight line",IF($N47=0,0, IF($N47<=0.5,BY47, IF($J47="straight line", IF((LEFT(CH$39,4)*1)-INT($N47)<LEFT(#REF!,4)*1,0,((OFFSET(BY47,0,-INT($N47+0.5),1,1))/$N47)*(IF($N47-INT($N47)>0.5,$N47-0.5-INT($N47),IF($N47-INT($N47)<=0.5,$N47-0.5-INT($N47)+1,0)))) +BY47/$N47*0.5, IF($J47="Declining Balance",-#REF!,0)))),IFERROR(EW47,0)) -> 0.2645097917 | CI47: =IF($M47="straight line",IF($N47=0,0, IF($N47<=0.5,BZ47, IF($J47="straight line", IF((LEFT(CI$39,4)*1)-INT($N47)<LEFT(#REF!,4)*1,0,((OFFSET(BZ47,0,-INT($N47+0.5),1,1))/$N47)*(IF($N47-INT($N47)>0.5,$N47-0.5-INT($N47),IF($N47-INT($N47)<=0.5,$N47-0.5-INT($N47)+1,0)))) +BZ47/$N47*0.5, IF($J47="Declining Balance",-#REF!,0)))),IFERROR(EX47,0)) -> 0.2567300919 | CM47: 1.5 | CN47: No | CO47: =+IF($K47="ongoing",BS47,IF(RIGHT($K47,2)=RIGHT(CO$39,2),SUM($BR47:BS47),0)+IF(RIGHT(CO$39,2)>RIGHT($K47,2),BS47,0)) -> 0.7191160953 | CP47: =+IF($K47="ongoing",BT47,IF(RIGHT($K47,2)=RIGHT(CP$39,2),SUM($BR47:BT47),0)+IF(RIGHT(CP$39,2)>RIGHT($K47,2),BT47,0)) -> 2.699894887 | CQ47: =+IF($K47="ongoing",BU47,IF(RIGHT($K47,2)=RIGHT(CQ$39,2),SUM($BR47:BU47),0)+IF(RIGHT(CQ$39,2)>RIGHT($K47,2),BU47,0)) -> 5.16216207 | CR47: =+IF($K47="ongoing",BV47,IF(RIGHT($K47,2)=RIGHT(CR$39,2),SUM($BR47:BV47),0)+IF(RIGHT(CR$39,2)>RIGHT($K47,2),BV47,0)) -> 1.477869467 | CS47: =+IF($K47="ongoing",BW47,IF(RIGHT($K47,2)=RIGHT(CS$39,2),SUM($BR47:BW47),0)+IF(RIGHT(CS$39,2)>RIGHT($K47,2),BW47,0)) -> 0 | CT47: =+IF($K47="ongoing",BX47,IF(RIGHT($K47,2)=RIGHT(CT$39,2),SUM($BR47:BX47),0)+IF(RIGHT(CT$39,2)>RIGHT($K47,2),BX47,0)) -> 0 | CU47: =+IF($K47="ongoing",BY47,IF(RIGHT($K47,2)=RIGHT(CU$39,2),SUM($BR47:BY47),0)+IF(RIGHT(CU$39,2)>RIGHT($K47,2),BY47,0)) -> 0 | CV47: =+IF($K47="ongoing",BZ47,IF(RIGHT($K47,2)=RIGHT(CV$39,2),SUM($BR47:BZ47),0)+IF(RIGHT(CV$39,2)>RIGHT($K47,2),BZ47,0)) -> 0 | CX47: =+MIN(IF($N47<=$CM47,MIN($N47,1),$N47),IF(CX$40=1,0.5,#REF!+1)) -> 0.5 | CY47: 1.5 | CZ47: 2.5 | DA47: 3.5 | DB47: 4.5 | DC47: 5.5 | DD47: 6.5 | DE47: 7.5 | DG47: =+IF(DG$40=1,0,MIN(IF($N47<=$CM47,MIN($N47,1),$N47),IF(DG$40=2,0.5,#REF!+1))) -> 0 | DH47: 0.5 | DI47: 1.5 | DJ47: 2.5 | DK47: 3.5 | DL47: 4.5 | DM47: 5.5 | DN47: 6.5 | DP47: =+IF(CX47=CW47,0, IF(AND(DP$40>1,CX47=$N47),1-SUM($DO47:DO47), IF($N47<=1, IF($N47>0,1/$N47,0), IF(DP$40=1,0,VDB(1,0,$N47,INT(DP$40-1-1),MIN($N47,INT(DP$40-1-1)+1),$CM47,IF($CN47="No",1,0))/ IF(CW47>=INT($N47),$N47-INT($N47),1)))* IF(DP$40=1,0, IF(INT(CX47)=INT(CW47),CX47-CW47,INT(CX47)-CW47))+ IF($N47<=1, IF($N47>0,1/$N47,0),VDB(1,0,$N47,INT(DP$40-1),MIN($N47,INT(DP$40-1)+1),$CM47,IF($CN47="No",1,0))/ IF(CX47>INT($N47),$N47-INT($N47),1))* IF(DP$40=1,CX47, IF(INT(CX47)=INT(CW47),0,CX47-INT(CX47))))) -> 0.01470588235 | DQ47: =+IF(CY47=CX47,0, IF(AND(DQ$40>1,CY47=$N47),1-SUM($DO47:DP47), IF($N47<=1, IF($N47>0,1/$N47,0), IF(DQ$40=1,0,VDB(1,0,$N47,INT(DQ$40-1-1),MIN($N47,INT(DQ$40-1-1)+1),$CM47,IF($CN47="No",1,0))/ IF(CX47>=INT($N47),$N47-INT($N47),1)))* IF(DQ$40=1,0, IF(INT(CY47)=INT(CX47),CY47-CX47,INT(CY47)-CX47))+ IF($N47<=1, IF($N47>0,1/$N47,0),VDB(1,0,$N47,INT(DQ$40-1),MIN($N47,INT(DQ$40-1)+1),$CM47,IF($CN47="No",1,0))/ IF(CY47>INT($N47),$N47-INT($N47),1))* IF(DQ$40=1,CY47, IF(INT(CY47)=INT(CX47),0,CY47-INT(CY47))))) -> 0.02897923875 | DR47: =+IF(CZ47=CY47,0, IF(AND(DR$40>1,CZ47=$N47),1-SUM($DO47:DQ47), IF($N47<=1, IF($N47>0,1/$N47,0), IF(DR$40=1,0,VDB(1,0,$N47,INT(DR$40-1-1),MIN($N47,INT(DR$40-1-1)+1),$CM47,IF($CN47="No",1,0))/ IF(CY47>=INT($N47),$N47-INT($N47),1)))* IF(DR$40=1,0, IF(INT(CZ47)=INT(CY47),CZ47-CY47,INT(CZ47)-CY47))+ IF($N47<=1, IF($N47>0,1/$N47,0),VDB(1,0,$N47,INT(DR$40-1),MIN($N47,INT(DR$40-1)+1),$CM47,IF($CN47="No",1,0))/ IF(CZ47>INT($N47),$N47-INT($N47),1))* IF(DR$40=1,CZ47, IF(INT(CZ47)=INT(CY47),0,CZ47-INT(CZ47))))) -> 0.0281269082 | DS47: =+IF(DA47=CZ47,0, IF(AND(DS$40>1,DA47=$N47),1-SUM($DO47:DR47), IF($N47<=1, IF($N47>0,1/$N47,0), IF(DS$40=1,0,VDB(1,0,$N47,INT(DS$40-1-1),MIN($N47,INT(DS$40-1-1)+1),$CM47,IF($CN47="No",1,0))/ IF(CZ47>=INT($N47),$N47-INT($N47),1)))* IF(DS$40=1,0, IF(INT(DA47)=INT(CZ47),DA47-CZ47,INT(DA47)-CZ47))+ IF($N47<=1, IF($N47>0,1/$N47,0),VDB(1,0,$N47,INT(DS$40-1),MIN($N47,INT(DS$40-1)+1),$CM47,IF($CN47="No",1,0))/ IF(DA47>INT($N47),$N47-INT($N47),1))* IF(DS$40=1,DA47, IF(INT(DA47)=INT(CZ47),0,DA47-INT(DA47))))) -> 0.0272996462 | DT47: =+IF(DB47=DA47,0, IF(AND(DT$40>1,DB47=$N47),1-SUM($DO47:DS47), IF($N47<=1, IF($N47>0,1/$N47,0), IF(DT$40=1,0,VDB(1,0,$N47,INT(DT$40-1-1),MIN($N47,INT(DT$40-1-1)+1),$CM47,IF($CN47="No",1,0))/ IF(DA47>=INT($N47),$N47-INT($N47),1)))* IF(DT$40=1,0, IF(INT(DB47)=INT(DA47),DB47-DA47,INT(DB47)-DA47))+ IF($N47<=1, IF($N47>0,1/$N47,0),VDB(1,0,$N47,INT(DT$40-1),MIN($N47,INT(DT$40-1)+1),$CM47,IF($CN47="No",1,0))/ IF(DB47>INT($N47),$N47-INT($N47),1))* IF(DT$40=1,DB47, IF(INT(DB47)=INT(DA47),0,DB47-INT(DB47))))) -> 0.02649671543 | DU47: =+IF(DC47=DB47,0, IF(AND(DU$40>1,DC47=$N47),1-SUM($DO47:DT47), IF($N47<=1, IF($N47>0,1/$N47,0), IF(DU$40=1,0,VDB(1,0,$N47,INT(DU$40-1-1),MIN($N47,INT(DU$40-1-1)+1),$CM47,IF($CN47="No",1,0))/ IF(DB47>=INT($N47),$N47-INT($N47),1)))* IF(DU$40=1,0, IF(INT(DC47)=INT(DB47),DC47-DB47,INT(DC47)-DB47))+ IF($N47<=1, IF($N47>0,1/$N47,0),VDB(1,0,$N47,INT(DU$40-1),MIN($N47,INT(DU$40-1)+1),$CM47,IF($CN47="No",1,0))/ IF(DC47>INT($N47),$N47-INT($N47),1))* IF(DU$40=1,DC47, IF(INT(DC47)=INT(DB47),0,DC47-INT(DC47))))) -> 0.02571740027 | DV47: =+IF(DD47=DC47,0, IF(AND(DV$40>1,DD47=$N47),1-SUM($DO47:DU47), IF($N47<=1, IF($N47>0,1/$N47,0), IF(DV$40=1,0,VDB(1,0,$N47,INT(DV$40-1-1),MIN($N47,INT(DV$40-1-1)+1),$CM47,IF($CN47="No",1,0))/ IF(DC47>=INT($N47),$N47-INT($N47),1)))* IF(DV$40=1,0, IF(INT(DD47)=INT(DC47),DD47-DC47,INT(DD47)-DC47))+ IF($N47<=1, IF($N47>0,1/$N47,0),VDB(1,0,$N47,INT(DV$40-1),MIN($N47,INT(DV$40-1)+1),$CM47,IF($CN47="No",1,0))/ IF(DD47>INT($N47),$N47-INT($N47),1))* IF(DV$40=1,DD47, IF(INT(DD47)=INT(DC47),0,DD47-INT(DD47))))) -> 0.02496100614 | DW47: =+IF(DE47=DD47,0, IF(AND(DW$40>1,DE47=$N47),1-SUM($DO47:DV47), IF($N47<=1, IF($N47>0,1/$N47,0), IF(DW$40=1,0,VDB(1,0,$N47,INT(DW$40-1-1),MIN($N47,INT(DW$40-1-1)+1),$CM47,IF($CN47="No",1,0))/ IF(DD47>=INT($N47),$N47-INT($N47),1)))* IF(DW$40=1,0, IF(INT(DE47)=INT(DD47),DE47-DD47,INT(DE47)-DD47))+ IF($N47<=1, IF($N47>0,1/$N47,0),VDB(1,0,$N47,INT(DW$40-1),MIN($N47,INT(DW$40-1)+1),$CM47,IF($CN47="No",1,0))/ IF(DE47>INT($N47),$N47-INT($N47),1))* IF(DW$40=1,DE47, IF(INT(DE47)=INT(DD47),0,DE47-INT(DE47))))) -> 0.0242268589 | DY47: =+IF(OR(DG47=DF47,DY$40=1),0, IF(AND(DY$40>1,DG47=$N47),1-SUM($DX47:DX47), IF($N47<=1, IF($N47>0,1/$N47,0), IF(DY$40=2,0,VDB(1,0,$N47,INT(DY$40-2-1),MIN($N47,INT(DY$40-2-1)+1),$CM47,IF($CN47="No",1,0))/ IF(DF47>=INT($N47),$N47-INT($N47),1)))* IF(DY$40=2,0, IF(INT(DG47)=INT(DF47),DG47-DF47,INT(DG47)-DF47))+ IF($N47<=1, IF($N47>0,1/$N47,0),VDB(1,0,$N47,INT(DY$40-2),MIN($N47,INT(DY$40-2)+1),$CM47,IF($CN47="No",1,0))/ IF(DG47>INT($N47),$N47-INT($N47),1))* IF(DY$40=2,DG47, IF(INT(DG47)=INT(DF47),0,DG47-INT(DG47))))) -> 0 | DZ47: =+IF(OR(DH47=DG47,DZ$40=1),0, IF(AND(DZ$40>1,DH47=$N47),1-SUM($DX47:DY47), IF($N47<=1, IF($N47>0,1/$N47,0), IF(DZ$40=2,0,VDB(1,0,$N47,INT(DZ$40-2-1),MIN($N47,INT(DZ$40-2-1)+1),$CM47,IF($CN47="No",1,0))/ IF(DG47>=INT($N47),$N47-INT($N47),1)))* IF(DZ$40=2,0, IF(INT(DH47)=INT(DG47),DH47-DG47,INT(DH47)-DG47))+ IF($N47<=1, IF($N47>0,1/$N47,0),VDB(1,0,$N47,INT(DZ$40-2),MIN($N47,INT(DZ$40-2)+1),$CM47,IF($CN47="No",1,0))/ IF(DH47>INT($N47),$N47-INT($N47),1))* IF(DZ$40=2,DH47, IF(INT(DH47)=INT(DG47),0,DH47-INT(DH47))))) -> 0.01470588235 | EA47: =+IF(OR(DI47=DH47,EA$40=1),0, IF(AND(EA$40>1,DI47=$N47),1-SUM($DX47:DZ47), IF($N47<=1, IF($N47>0,1/$N47,0), IF(EA$40=2,0,VDB(1,0,$N47,INT(EA$40-2-1),MIN($N47,INT(EA$40-2-1)+1),$CM47,IF($CN47="No",1,0))/ IF(DH47>=INT($N47),$N47-INT($N47),1)))* IF(EA$40=2,0, IF(INT(DI47)=INT(DH47),DI47-DH47,INT(DI47)-DH47))+ IF($N47<=1, IF($N47>0,1/$N47,0),VDB(1,0,$N47,INT(EA$40-2),MIN($N47,INT(EA$40-2)+1),$CM47,IF($CN47="No",1,0))/ IF(DI47>INT($N47),$N47-INT($N47),1))* IF(EA$40=2,DI47, IF(INT(DI47)=INT(DH47),0,DI47-INT(DI47))))) -> 0.02897923875 | EB47: =+IF(OR(DJ47=DI47,EB$40=1),0, IF(AND(EB$40>1,DJ47=$N47),1-SUM($DX47:EA47), IF($N47<=1, IF($N47>0,1/$N47,0), IF(EB$40=2,0,VDB(1,0,$N47,INT(EB$40-2-1),MIN($N47,INT(EB$40-2-1)+1),$CM47,IF($CN47="No",1,0))/ IF(DI47>=INT($N47),$N47-INT($N47),1)))* IF(EB$40=2,0, IF(INT(DJ47)=INT(DI47),DJ47-DI47,INT(DJ47)-DI47))+ IF($N47<=1, IF($N47>0,1/$N47,0),VDB(1,0,$N47,INT(EB$40-2),MIN($N47,INT(EB$40-2)+1),$CM47,IF($CN47="No",1,0))/ IF(DJ47>INT($N47),$N47-INT($N47),1))* IF(EB$40=2,DJ47, IF(INT(DJ47)=INT(DI47),0,DJ47-INT(DJ47))))) -> 0.0281269082 | EC47: =+IF(OR(DK47=DJ47,EC$40=1),0, IF(AND(EC$40>1,DK47=$N47),1-SUM($DX47:EB47), IF($N47<=1, IF($N47>0,1/$N47,0), IF(EC$40=2,0,VDB(1,0,$N47,INT(EC$40-2-1),MIN($N47,INT(EC$40-2-1)+1),$CM47,IF($CN47="No",1,0))/ IF(DJ47>=INT($N47),$N47-INT($N47),1)))* IF(EC$40=2,0, IF(INT(DK47)=INT(DJ47),DK47-DJ47,INT(DK47)-DJ47))+ IF($N47<=1, IF($N47>0,1/$N47,0),VDB(1,0,$N47,INT(EC$40-2),MIN($N47,INT(EC$40-2)+1),$CM47,IF($CN47="No",1,0))/ IF(DK47>INT($N47),$N47-INT($N47),1))* IF(EC$40=2,DK47, IF(INT(DK47)=INT(DJ47),0,DK47-INT(DK47))))) -> 0.0272996462 | ED47: =+IF(OR(DL47=DK47,ED$40=1),0, IF(AND(ED$40>1,DL47=$N47),1-SUM($DX47:EC47), IF($N47<=1, IF($N47>0,1/$N47,0), IF(ED$40=2,0,VDB(1,0,$N47,INT(ED$40-2-1),MIN($N47,INT(ED$40-2-1)+1),$CM47,IF($CN47="No",1,0))/ IF(DK47>=INT($N47),$N47-INT($N47),1)))* IF(ED$40=2,0, IF(INT(DL47)=INT(DK47),DL47-DK47,INT(DL47)-DK47))+ IF($N47<=1, IF($N47>0,1/$N47,0),VDB(1,0,$N47,INT(ED$40-2),MIN($N47,INT(ED$40-2)+1),$CM47,IF($CN47="No",1,0))/ IF(DL47>INT($N47),$N47-INT($N47),1))* IF(ED$40=2,DL47, IF(INT(DL47)=INT(DK47),0,DL47-INT(DL47))))) -> 0.02649671543 | EE47: =+IF(OR(DM47=DL47,EE$40=1),0, IF(AND(EE$40>1,DM47=$N47),1-SUM($DX47:ED47), IF($N47<=1, IF($N47>0,1/$N47,0), IF(EE$40=2,0,VDB(1,0,$N47,INT(EE$40-2-1),MIN($N47,INT(EE$40-2-1)+1),$CM47,IF($CN47="No",1,0))/ IF(DL47>=INT($N47),$N47-INT($N47),1)))* IF(EE$40=2,0, IF(INT(DM47)=INT(DL47),DM47-DL47,INT(DM47)-DL47))+ IF($N47<=1, IF($N47>0,1/$N47,0),VDB(1,0,$N47,INT(EE$40-2),MIN($N47,INT(EE$40-2)+1),$CM47,IF($CN47="No",1,0))/ IF(DM47>INT($N47),$N47-INT($N47),1))* IF(EE$40=2,DM47, IF(INT(DM47)=INT(DL47),0,DM47-INT(DM47))))) -> 0.02571740027 | EF47: =+IF(OR(DN47=DM47,EF$40=1),0, IF(AND(EF$40>1,DN47=$N47),1-SUM($DX47:EE47), IF($N47<=1, IF($N47>0,1/$N47,0), IF(EF$40=2,0,VDB(1,0,$N47,INT(EF$40-2-1),MIN($N47,INT(EF$40-2-1)+1),$CM47,IF($CN47="No",1,0))/ IF(DM47>=INT($N47),$N47-INT($N47),1)))* IF(EF$40=2,0, IF(INT(DN47)=INT(DM47),DN47-DM47,INT(DN47)-DM47))+ IF($N47<=1, IF($N47>0,1/$N47,0),VDB(1,0,$N47,INT(EF$40-2),MIN($N47,INT(EF$40-2)+1),$CM47,IF($CN47="No",1,0))/ IF(DN47>INT($N47),$N47-INT($N47),1))* IF(EF$40=2,DN47, IF(INT(DN47)=INT(DM47),0,DN47-INT(DN47))))) -> 0.02496100614 | EH47: 0.02496100614 | EI47: 0.02571740027 | EJ47: 0.02649671543 | EK47: 0.0272996462 | EL47: 0.0281269082 | EM47: 0.02897923875 | EN47: 0.01470588235 | EO47: 0 | EQ47: 0.0105752367 | ER47: 0.0605437736 | ES47: 0.174381559 | ET47: 0.2669002123 | EU47: 0.2807835805 | EV47: 0.2725252399 | EW47: 0.2645097917 | EX47: 0.2567300919
C48: Grant Street SPS Upgrade | E48: Sewerage | F48: Growth | G48: Pipelines/network | H48: Top 10 Major Projects | J48: Straight line | K48: Ongoing | L48: 51 | M48: Declining Balance | N48: 51 | Q48: 2.623782627 | R48: 2.425607055 | S48: 2.252052854 | T48: 2.02664508 | U48: 1.89703732 | V48: 1.949161569 | W48: 1.900983698 | X48: 1.958476222 | AR48: 2.623782627 | AS48: 2.425607055 | AT48: 2.252052854 | AU48: 2.02664508 | AV48: 1.89703732 | AW48: 1.949161569 | AX48: 1.900983698 | AY48: 1.958476222 | BA48: 0.02572335909 | BB48: 0.07522717951 | BC48: 0.1210865904 | BD48: 0.1630346094 | BE48: 0.2015020839 | BF48: 0.2392099161 | BG48: 0.2769564383 | BH48: 0.3147942807 | BJ48: =+IF($K48="Ongoing",AR48,IF(RIGHT($K48,2)=RIGHT(BJ$39,2),SUM($AR48:AR48),0)+IF(RIGHT(BJ$39,2)>RIGHT($K48,2),AR48,0)) -> 2.623782627 | BK48: =+IF($K48="Ongoing",AS48,IF(RIGHT($K48,2)=RIGHT(BK$39,2),SUM($AR48:AS48),0)+IF(RIGHT(BK$39,2)>RIGHT($K48,2),AS48,0)) -> 2.425607055 | BL48: =+IF($K48="Ongoing",AT48,IF(RIGHT($K48,2)=RIGHT(BL$39,2),SUM($AR48:AT48),0)+IF(RIGHT(BL$39,2)>RIGHT($K48,2),AT48,0)) -> 2.252052854 | BM48: =+IF($K48="Ongoing",AU48,IF(RIGHT($K48,2)=RIGHT(BM$39,2),SUM($AR48:AU48),0)+IF(RIGHT(BM$39,2)>RIGHT($K48,2),AU48,0)) -> 2.02664508 | BN48: =+IF($K48="Ongoing",AV48,IF(RIGHT($K48,2)=RIGHT(BN$39,2),SUM($AR48:AV48),0)+IF(RIGHT(BN$39,2)>RIGHT($K48,2),AV48,0)) -> 1.89703732 | BO48: =+IF($K48="Ongoing",AW48,IF(RIGHT($K48,2)=RIGHT(BO$39,2),SUM($AR48:AW48),0)+IF(RIGHT(BO$39,2)>RIGHT($K48,2),AW48,0)) -> 1.949161569 | BP48: =+IF($K48="Ongoing",AX48,IF(RIGHT($K48,2)=RIGHT(BP$39,2),SUM($AR48:AX48),0)+IF(RIGHT(BP$39,2)>RIGHT($K48,2),AX48,0)) -> 1.900983698 | BQ48: =+IF($K48="Ongoing",AY48,IF(RIGHT($K48,2)=RIGHT(BQ$39,2),SUM($AR48:AY48),0)+IF(RIGHT(BQ$39,2)>RIGHT($K48,2),AY48,0)) -> 1.958476222 | BS48: =+Q48*KeyAssumptionsPriceControl_FO!Z$15 -> 2.684129628 | BT48: =+R48*KeyAssumptionsPriceControl_FO!AA$15 -> 2.538468126 | BU48: =+S48*KeyAssumptionsPriceControl_FO!AB$15 -> 2.41104591 | BV48: =+T48*KeyAssumptionsPriceControl_FO!AC$15 -> 2.219628199 | BW48: =+U48*KeyAssumptionsPriceControl_FO!AD$15 -> 2.125465418 | BX48: =+V48*KeyAssumptionsPriceControl_FO!AE$15 -> 2.234095029 | BY48: =+W48*KeyAssumptionsPriceControl_FO!AF$15 -> 2.228988504 | BZ48: =+X48*KeyAssumptionsPriceControl_FO!AG$15 -> 2.349218286 | CB48: =IF($M48="straight line",IF($N48=0,0, IF($N48<=0.5,BS48, IF($J48="straight line", IF((LEFT(CB$39,4)*1)-INT($N48)<LEFT(#REF!,4)*1,0,((OFFSET(BS48,0,-INT($N48+0.5),1,1))/$N48)*(IF($N48-INT($N48)>0.5,$N48-0.5-INT($N48),IF($N48-INT($N48)<=0.5,$N48-0.5-INT($N48)+1,0)))) +BS48/$N48*0.5, IF($J48="Declining Balance",-#REF!,0)))),IFERROR(EQ48,0)) -> 0.03947249452 | CC48: =IF($M48="straight line",IF($N48=0,0, IF($N48<=0.5,BT48, IF($J48="straight line", IF((LEFT(CC$39,4)*1)-INT($N48)<LEFT(#REF!,4)*1,0,((OFFSET(BT48,0,-INT($N48+0.5),1,1))/$N48)*(IF($N48-INT($N48)>0.5,$N48-0.5-INT($N48),IF($N48-INT($N48)<=0.5,$N48-0.5-INT($N48)+1,0)))) +BT48/$N48*0.5, IF($J48="Declining Balance",-#REF!,0)))),IFERROR(ER48,0)) -> 0.1151144469 | CD48: =IF($M48="straight line",IF($N48=0,0, IF($N48<=0.5,BU48, IF($J48="straight line", IF((LEFT(CD$39,4)*1)-INT($N48)<LEFT(#REF!,4)*1,0,((OFFSET(BU48,0,-INT($N48+0.5),1,1))/$N48)*(IF($N48-INT($N48)>0.5,$N48-0.5-INT($N48),IF($N48-INT($N48)<=0.5,$N48-0.5-INT($N48)+1,0)))) +BU48/$N48*0.5, IF($J48="Declining Balance",-#REF!,0)))),IFERROR(ES48,0)) -> 0.184515699 | CE48: =IF($M48="straight line",IF($N48=0,0, IF($N48<=0.5,BV48, IF($J48="straight line", IF((LEFT(CE$39,4)*1)-INT($N48)<LEFT(#REF!,4)*1,0,((OFFSET(BV48,0,-INT($N48+0.5),1,1))/$N48)*(IF($N48-INT($N48)>0.5,$N48-0.5-INT($N48),IF($N48-INT($N48)<=0.5,$N48-0.5-INT($N48)+1,0)))) +BV48/$N48*0.5, IF($J48="Declining Balance",-#REF!,0)))),IFERROR(ET48,0)) -> 0.2471869154 | CF48: =IF($M48="straight line",IF($N48=0,0, IF($N48<=0.5,BW48, IF($J48="straight line", IF((LEFT(CF$39,4)*1)-INT($N48)<LEFT(#REF!,4)*1,0,((OFFSET(BW48,0,-INT($N48+0.5),1,1))/$N48)*(IF($N48-INT($N48)>0.5,$N48-0.5-INT($N48),IF($N48-INT($N48)<=0.5,$N48-0.5-INT($N48)+1,0)))) +BW48/$N48*0.5, IF($J48="Declining Balance",-#REF!,0)))),IFERROR(EU48,0)) -> 0.3038151475 | CG48: =IF($M48="straight line",IF($N48=0,0, IF($N48<=0.5,BX48, IF($J48="straight line", IF((LEFT(CG$39,4)*1)-INT($N48)<LEFT(#REF!,4)*1,0,((OFFSET(BX48,0,-INT($N48+0.5),1,1))/$N48)*(IF($N48-INT($N48)>0.5,$N48-0.5-INT($N48),IF($N48-INT($N48)<=0.5,$N48-0.5-INT($N48)+1,0)))) +BX48/$N48*0.5, IF($J48="Declining Balance",-#REF!,0)))),IFERROR(EV48,0)) -> 0.3589905909 | CH48: =IF($M48="straight line",IF($N48=0,0, IF($N48<=0.5,BY48, IF($J48="straight line", IF((LEFT(CH$39,4)*1)-INT($N48)<LEFT(#REF!,4)*1,0,((OFFSET(BY48,0,-INT($N48+0.5),1,1))/$N48)*(IF($N48-INT($N48)>0.5,$N48-0.5-INT($N48),IF($N48-INT($N48)<=0.5,$N48-0.5-INT($N48)+1,0)))) +BY48/$N48*0.5, IF($J48="Declining Balance",-#REF!,0)))),IFERROR(EW48,0)) -> 0.4140656255 | CI48: =IF($M48="straight line",IF($N48=0,0, IF($N48<=0.5,BZ48, IF($J48="straight line", IF((LEFT(CI$39,4)*1)-INT($N48)<LEFT(#REF!,4)*1,0,((OFFSET(BZ48,0,-INT($N48+0.5),1,1))/$N48)*(IF($N48-INT($N48)>0.5,$N48-0.5-INT($N48),IF($N48-INT($N48)<=0.5,$N48-0.5-INT($N48)+1,0)))) +BZ48/$N48*0.5, IF($J48="Declining Balance",-#REF!,0)))),IFERROR(EX48,0)) -> 0.4692137952 | CM48: 1.5 | CN48: No | CO48: =+IF($K48="ongoing",BS48,IF(RIGHT($K48,2)=RIGHT(CO$39,2),SUM($BR48:BS48),0)+IF(RIGHT(CO$39,2)>RIGHT($K48,2),BS48,0)) -> 2.684129628 | CP48: =+IF($K48="ongoing",BT48,IF(RIGHT($K48,2)=RIGHT(CP$39,2),SUM($BR48:BT48),0)+IF(RIGHT(CP$39,2)>RIGHT($K48,2),BT48,0)) -> 2.538468126 | CQ48: =+IF($K48="ongoing",BU48,IF(RIGHT($K48,2)=RIGHT(CQ$39,2),SUM($BR48:BU48),0)+IF(RIGHT(CQ$39,2)>RIGHT($K48,2),BU48,0)) -> 2.41104591 | CR48: =+IF($K48="ongoing",BV48,IF(RIGHT($K48,2)=RIGHT(CR$39,2),SUM($BR48:BV48),0)+IF(RIGHT(CR$39,2)>RIGHT($K48,2),BV48,0)) -> 2.219628199 | CS48: =+IF($K48="ongoing",BW48,IF(RIGHT($K48,2)=RIGHT(CS$39,2),SUM($BR48:BW48),0)+IF(RIGHT(CS$39,2)>RIGHT($K48,2),BW48,0)) -> 2.125465418 | CT48: =+IF($K48="ongoing",BX48,IF(RIGHT($K48,2)=RIGHT(CT$39,2),SUM($BR48:BX48),0)+IF(RIGHT(CT$39,2)>RIGHT($K48,2),BX48,0)) -> 2.234095029 | CU48: =+IF($K48="ongoing",BY48,IF(RIGHT($K48,2)=RIGHT(CU$39,2),SUM($BR48:BY48),0)+IF(RIGHT(CU$39,2)>RIGHT($K48,2),BY48,0)) -> 2.228988504 | CV48: =+IF($K48="ongoing",BZ48,IF(RIGHT($K48,2)=RIGHT(CV$39,2),SUM($BR48:BZ48),0)+IF(RIGHT(CV$39,2)>RIGHT($K48,2),BZ48,0)) -> 2.349218286 | CX48: =+MIN(IF($N48<=$CM48,MIN($N48,1),$N48),IF(CX$40=1,0.5,#REF!+1)) -> 0.5 | CY48: 1.5 | CZ48: 2.5 | DA48: 3.5 | DB48: 4.5 | DC48: 5.5 | DD48: 6.5 | DE48: 7.5 | DG48: =+IF(DG$40=1,0,MIN(IF($N48<=$CM48,MIN($N48,1),$N48),IF(DG$40=2,0.5,#REF!+1))) -> 0 | DH48: 0.5 | DI48: 1.5 | DJ48: 2.5 | DK48: 3.5 | DL48: 4.5 | DM48: 5.5 | DN48: 6.5 | DP48: =+IF(CX48=CW48,0, IF(AND(DP$40>1,CX48=$N48),1-SUM($DO48:DO48), IF($N48<=1, IF($N48>0,1/$N48,0), IF(DP$40=1,0,VDB(1,0,$N48,INT(DP$40-1-1),MIN($N48,INT(DP$40-1-1)+1),$CM48,IF($CN48="No",1,0))/ IF(CW48>=INT($N48),$N48-INT($N48),1)))* IF(DP$40=1,0, IF(INT(CX48)=INT(CW48),CX48-CW48,INT(CX48)-CW48))+ IF($N48<=1, IF($N48>0,1/$N48,0),VDB(1,0,$N48,INT(DP$40-1),MIN($N48,INT(DP$40-1)+1),$CM48,IF($CN48="No",1,0))/ IF(CX48>INT($N48),$N48-INT($N48),1))* IF(DP$40=1,CX48, IF(INT(CX48)=INT(CW48),0,CX48-INT(CX48))))) -> 0.01470588235 | DQ48: =+IF(CY48=CX48,0, IF(AND(DQ$40>1,CY48=$N48),1-SUM($DO48:DP48), IF($N48<=1, IF($N48>0,1/$N48,0), IF(DQ$40=1,0,VDB(1,0,$N48,INT(DQ$40-1-1),MIN($N48,INT(DQ$40-1-1)+1),$CM48,IF($CN48="No",1,0))/ IF(CX48>=INT($N48),$N48-INT($N48),1)))* IF(DQ$40=1,0, IF(INT(CY48)=INT(CX48),CY48-CX48,INT(CY48)-CX48))+ IF($N48<=1, IF($N48>0,1/$N48,0),VDB(1,0,$N48,INT(DQ$40-1),MIN($N48,INT(DQ$40-1)+1),$CM48,IF($CN48="No",1,0))/ IF(CY48>INT($N48),$N48-INT($N48),1))* IF(DQ$40=1,CY48, IF(INT(CY48)=INT(CX48),0,CY48-INT(CY48))))) -> 0.02897923875 | DR48: =+IF(CZ48=CY48,0, IF(AND(DR$40>1,CZ48=$N48),1-SUM($DO48:DQ48), IF($N48<=1, IF($N48>0,1/$N48,0), IF(DR$40=1,0,VDB(1,0,$N48,INT(DR$40-1-1),MIN($N48,INT(DR$40-1-1)+1),$CM48,IF($CN48="No",1,0))/ IF(CY48>=INT($N48),$N48-INT($N48),1)))* IF(DR$40=1,0, IF(INT(CZ48)=INT(CY48),CZ48-CY48,INT(CZ48)-CY48))+ IF($N48<=1, IF($N48>0,1/$N48,0),VDB(1,0,$N48,INT(DR$40-1),MIN($N48,INT(DR$40-1)+1),$CM48,IF($CN48="No",1,0))/ IF(CZ48>INT($N48),$N48-INT($N48),1))* IF(DR$40=1,CZ48, IF(INT(CZ48)=INT(CY48),0,CZ48-INT(CZ48))))) -> 0.0281269082 | DS48: =+IF(DA48=CZ48,0, IF(AND(DS$40>1,DA48=$N48),1-SUM($DO48:DR48), IF($N48<=1, IF($N48>0,1/$N48,0), IF(DS$40=1,0,VDB(1,0,$N48,INT(DS$40-1-1),MIN($N48,INT(DS$40-1-1)+1),$CM48,IF($CN48="No",1,0))/ IF(CZ48>=INT($N48),$N48-INT($N48),1)))* IF(DS$40=1,0, IF(INT(DA48)=INT(CZ48),DA48-CZ48,INT(DA48)-CZ48))+ IF($N48<=1, IF($N48>0,1/$N48,0),VDB(1,0,$N48,INT(DS$40-1),MIN($N48,INT(DS$40-1)+1),$CM48,IF($CN48="No",1,0))/ IF(DA48>INT($N48),$N48-INT($N48),1))* IF(DS$40=1,DA48, IF(INT(DA48)=INT(CZ48),0,DA48-INT(DA48))))) -> 0.0272996462 | DT48: =+IF(DB48=DA48,0, IF(AND(DT$40>1,DB48=$N48),1-SUM($DO48:DS48), IF($N48<=1, IF($N48>0,1/$N48,0), IF(DT$40=1,0,VDB(1,0,$N48,INT(DT$40-1-1),MIN($N48,INT(DT$40-1-1)+1),$CM48,IF($CN48="No",1,0))/ IF(DA48>=INT($N48),$N48-INT($N48),1)))* IF(DT$40=1,0, IF(INT(DB48)=INT(DA48),DB48-DA48,INT(DB48)-DA48))+ IF($N48<=1, IF($N48>0,1/$N48,0),VDB(1,0,$N48,INT(DT$40-1),MIN($N48,INT(DT$40-1)+1),$CM48,IF($CN48="No",1,0))/ IF(DB48>INT($N48),$N48-INT($N48),1))* IF(DT$40=1,DB48, IF(INT(DB48)=INT(DA48),0,DB48-INT(DB48))))) -> 0.02649671543 | DU48: =+IF(DC48=DB48,0, IF(AND(DU$40>1,DC48=$N48),1-SUM($DO48:DT48), IF($N48<=1, IF($N48>0,1/$N48,0), IF(DU$40=1,0,VDB(1,0,$N48,INT(DU$40-1-1),MIN($N48,INT(DU$40-1-1)+1),$CM48,IF($CN48="No",1,0))/ IF(DB48>=INT($N48),$N48-INT($N48),1)))* IF(DU$40=1,0, IF(INT(DC48)=INT(DB48),DC48-DB48,INT(DC48)-DB48))+ IF($N48<=1, IF($N48>0,1/$N48,0),VDB(1,0,$N48,INT(DU$40-1),MIN($N48,INT(DU$40-1)+1),$CM48,IF($CN48="No",1,0))/ IF(DC48>INT($N48),$N48-INT($N48),1))* IF(DU$40=1,DC48, IF(INT(DC48)=INT(DB48),0,DC48-INT(DC48))))) -> 0.02571740027 | DV48: =+IF(DD48=DC48,0, IF(AND(DV$40>1,DD48=$N48),1-SUM($DO48:DU48), IF($N48<=1, IF($N48>0,1/$N48,0), IF(DV$40=1,0,VDB(1,0,$N48,INT(DV$40-1-1),MIN($N48,INT(DV$40-1-1)+1),$CM48,IF($CN48="No",1,0))/ IF(DC48>=INT($N48),$N48-INT($N48),1)))* IF(DV$40=1,0, IF(INT(DD48)=INT(DC48),DD48-DC48,INT(DD48)-DC48))+ IF($N48<=1, IF($N48>0,1/$N48,0),VDB(1,0,$N48,INT(DV$40-1),MIN($N48,INT(DV$40-1)+1),$CM48,IF($CN48="No",1,0))/ IF(DD48>INT($N48),$N48-INT($N48),1))* IF(DV$40=1,DD48, IF(INT(DD48)=INT(DC48),0,DD48-INT(DD48))))) -> 0.02496100614 | DW48: =+IF(DE48=DD48,0, IF(AND(DW$40>1,DE48=$N48),1-SUM($DO48:DV48), IF($N48<=1, IF($N48>0,1/$N48,0), IF(DW$40=1,0,VDB(1,0,$N48,INT(DW$40-1-1),MIN($N48,INT(DW$40-1-1)+1),$CM48,IF($CN48="No",1,0))/ IF(DD48>=INT($N48),$N48-INT($N48),1)))* IF(DW$40=1,0, IF(INT(DE48)=INT(DD48),DE48-DD48,INT(DE48)-DD48))+ IF($N48<=1, IF($N48>0,1/$N48,0),VDB(1,0,$N48,INT(DW$40-1),MIN($N48,INT(DW$40-1)+1),$CM48,IF($CN48="No",1,0))/ IF(DE48>INT($N48),$N48-INT($N48),1))* IF(DW$40=1,DE48, IF(INT(DE48)=INT(DD48),0,DE48-INT(DE48))))) -> 0.0242268589 | DY48: =+IF(OR(DG48=DF48,DY$40=1),0, IF(AND(DY$40>1,DG48=$N48),1-SUM($DX48:DX48), IF($N48<=1, IF($N48>0,1/$N48,0), IF(DY$40=2,0,VDB(1,0,$N48,INT(DY$40-2-1),MIN($N48,INT(DY$40-2-1)+1),$CM48,IF($CN48="No",1,0))/ IF(DF48>=INT($N48),$N48-INT($N48),1)))* IF(DY$40=2,0, IF(INT(DG48)=INT(DF48),DG48-DF48,INT(DG48)-DF48))+ IF($N48<=1, IF($N48>0,1/$N48,0),VDB(1,0,$N48,INT(DY$40-2),MIN($N48,INT(DY$40-2)+1),$CM48,IF($CN48="No",1,0))/ IF(DG48>INT($N48),$N48-INT($N48),1))* IF(DY$40=2,DG48, IF(INT(DG48)=INT(DF48),0,DG48-INT(DG48))))) -> 0 | DZ48: =+IF(OR(DH48=DG48,DZ$40=1),0, IF(AND(DZ$40>1,DH48=$N48),1-SUM($DX48:DY48), IF($N48<=1, IF($N48>0,1/$N48,0), IF(DZ$40=2,0,VDB(1,0,$N48,INT(DZ$40-2-1),MIN($N48,INT(DZ$40-2-1)+1),$CM48,IF($CN48="No",1,0))/ IF(DG48>=INT($N48),$N48-INT($N48),1)))* IF(DZ$40=2,0, IF(INT(DH48)=INT(DG48),DH48-DG48,INT(DH48)-DG48))+ IF($N48<=1, IF($N48>0,1/$N48,0),VDB(1,0,$N48,INT(DZ$40-2),MIN($N48,INT(DZ$40-2)+1),$CM48,IF($CN48="No",1,0))/ IF(DH48>INT($N48),$N48-INT($N48),1))* IF(DZ$40=2,DH48, IF(INT(DH48)=INT(DG48),0,DH48-INT(DH48))))) -> 0.01470588235 | EA48: =+IF(OR(DI48=DH48,EA$40=1),0, IF(AND(EA$40>1,DI48=$N48),1-SUM($DX48:DZ48), IF($N48<=1, IF($N48>0,1/$N48,0), IF(EA$40=2,0,VDB(1,0,$N48,INT(EA$40-2-1),MIN($N48,INT(EA$40-2-1)+1),$CM48,IF($CN48="No",1,0))/ IF(DH48>=INT($N48),$N48-INT($N48),1)))* IF(EA$40=2,0, IF(INT(DI48)=INT(DH48),DI48-DH48,INT(DI48)-DH48))+ IF($N48<=1, IF($N48>0,1/$N48,0),VDB(1,0,$N48,INT(EA$40-2),MIN($N48,INT(EA$40-2)+1),$CM48,IF($CN48="No",1,0))/ IF(DI48>INT($N48),$N48-INT($N48),1))* IF(EA$40=2,DI48, IF(INT(DI48)=INT(DH48),0,DI48-INT(DI48))))) -> 0.02897923875 | EB48: =+IF(OR(DJ48=DI48,EB$40=1),0, IF(AND(EB$40>1,DJ48=$N48),1-SUM($DX48:EA48), IF($N48<=1, IF($N48>0,1/$N48,0), IF(EB$40=2,0,VDB(1,0,$N48,INT(EB$40-2-1),MIN($N48,INT(EB$40-2-1)+1),$CM48,IF($CN48="No",1,0))/ IF(DI48>=INT($N48),$N48-INT($N48),1)))* IF(EB$40=2,0, IF(INT(DJ48)=INT(DI48),DJ48-DI48,INT(DJ48)-DI48))+ IF($N48<=1, IF($N48>0,1/$N48,0),VDB(1,0,$N48,INT(EB$40-2),MIN($N48,INT(EB$40-2)+1),$CM48,IF($CN48="No",1,0))/ IF(DJ48>INT($N48),$N48-INT($N48),1))* IF(EB$40=2,DJ48, IF(INT(DJ48)=INT(DI48),0,DJ48-INT(DJ48))))) -> 0.0281269082 | EC48: =+IF(OR(DK48=DJ48,EC$40=1),0, IF(AND(EC$40>1,DK48=$N48),1-SUM($DX48:EB48), IF($N48<=1, IF($N48>0,1/$N48,0), IF(EC$40=2,0,VDB(1,0,$N48,INT(EC$40-2-1),MIN($N48,INT(EC$40-2-1)+1),$CM48,IF($CN48="No",1,0))/ IF(DJ48>=INT($N48),$N48-INT($N48),1)))* IF(EC$40=2,0, IF(INT(DK48)=INT(DJ48),DK48-DJ48,INT(DK48)-DJ48))+ IF($N48<=1, IF($N48>0,1/$N48,0),VDB(1,0,$N48,INT(EC$40-2),MIN($N48,INT(EC$40-2)+1),$CM48,IF($CN48="No",1,0))/ IF(DK48>INT($N48),$N48-INT($N48),1))* IF(EC$40=2,DK48, IF(INT(DK48)=INT(DJ48),0,DK48-INT(DK48))))) -> 0.0272996462 | ED48: =+IF(OR(DL48=DK48,ED$40=1),0, IF(AND(ED$40>1,DL48=$N48),1-SUM($DX48:EC48), IF($N48<=1, IF($N48>0,1/$N48,0), IF(ED$40=2,0,VDB(1,0,$N48,INT(ED$40-2-1),MIN($N48,INT(ED$40-2-1)+1),$CM48,IF($CN48="No",1,0))/ IF(DK48>=INT($N48),$N48-INT($N48),1)))* IF(ED$40=2,0, IF(INT(DL48)=INT(DK48),DL48-DK48,INT(DL48)-DK48))+ IF($N48<=1, IF($N48>0,1/$N48,0),VDB(1,0,$N48,INT(ED$40-2),MIN($N48,INT(ED$40-2)+1),$CM48,IF($CN48="No",1,0))/ IF(DL48>INT($N48),$N48-INT($N48),1))* IF(ED$40=2,DL48, IF(INT(DL48)=INT(DK48),0,DL48-INT(DL48))))) -> 0.02649671543 | EE48: =+IF(OR(DM48=DL48,EE$40=1),0, IF(AND(EE$40>1,DM48=$N48),1-SUM($DX48:ED48), IF($N48<=1, IF($N48>0,1/$N48,0), IF(EE$40=2,0,VDB(1,0,$N48,INT(EE$40-2-1),MIN($N48,INT(EE$40-2-1)+1),$CM48,IF($CN48="No",1,0))/ IF(DL48>=INT($N48),$N48-INT($N48),1)))* IF(EE$40=2,0, IF(INT(DM48)=INT(DL48),DM48-DL48,INT(DM48)-DL48))+ IF($N48<=1, IF($N48>0,1/$N48,0),VDB(1,0,$N48,INT(EE$40-2),MIN($N48,INT(EE$40-2)+1),$CM48,IF($CN48="No",1,0))/ IF(DM48>INT($N48),$N48-INT($N48),1))* IF(EE$40=2,DM48, IF(INT(DM48)=INT(DL48),0,DM48-INT(DM48))))) -> 0.02571740027 | EF48: =+IF(OR(DN48=DM48,EF$40=1),0, IF(AND(EF$40>1,DN48=$N48),1-SUM($DX48:EE48), IF($N48<=1, IF($N48>0,1/$N48,0), IF(EF$40=2,0,VDB(1,0,$N48,INT(EF$40-2-1),MIN($N48,INT(EF$40-2-1)+1),$CM48,IF($CN48="No",1,0))/ IF(DM48>=INT($N48),$N48-INT($N48),1)))* IF(EF$40=2,0, IF(INT(DN48)=INT(DM48),DN48-DM48,INT(DN48)-DM48))+ IF($N48<=1, IF($N48>0,1/$N48,0),VDB(1,0,$N48,INT(EF$40-2),MIN($N48,INT(EF$40-2)+1),$CM48,IF($CN48="No",1,0))/ IF(DN48>INT($N48),$N48-INT($N48),1))* IF(EF$40=2,DN48, IF(INT(DN48)=INT(DM48),0,DN48-INT(DN48))))) -> 0.02496100614 | EH48: 0.02496100614 | EI48: 0.02571740027 | EJ48: 0.02649671543 | EK48: 0.0272996462 | EL48: 0.0281269082 | EM48: 0.02897923875 | EN48: 0.01470588235 | EO48: 0 | EQ48: 0.03947249452 | ER48: 0.1151144469 | ES48: 0.184515699 | ET48: 0.2471869154 | EU48: 0.3038151475 | EV48: 0.3589905909 | EW48: 0.4140656255 | EX48: 0.4692137952
C49: Beattys Rd East Trunk Water Main | E49: Recycled Water | F49: Growth | G49: Headworks | H49: Top 10 Major Projects | J49: Straight line | K49: 2021-22 | L49: 51 | M49: Declining Balance | N49: 51 | Q49: 4.319356418 | R49: 1.841674777 | S49: 0 | T49: 0 | U49: 0 | V49: 0 | W49: 0 | X49: 0 | AR49: 4.319356418 | AS49: 1.841674777 | AT49: 0 | AU49: 0 | AV49: 0 | AW49: 0 | AX49: 0 | AY49: 0 | BA49: 0 | BB49: 0.06040226661 | BC49: 0.1208045332 | BD49: 0.1208045332 | BE49: 0.1208045332 | BF49: 0.1208045332 | BG49: 0.1208045332 | BH49: 0.1208045332 | BJ49: =+IF($K49="Ongoing",AR49,IF(RIGHT($K49,2)=RIGHT(BJ$39,2),SUM($AR49:AR49),0)+IF(RIGHT(BJ$39,2)>RIGHT($K49,2),AR49,0)) -> 0 | BK49: =+IF($K49="Ongoing",AS49,IF(RIGHT($K49,2)=RIGHT(BK$39,2),SUM($AR49:AS49),0)+IF(RIGHT(BK$39,2)>RIGHT($K49,2),AS49,0)) -> 6.161031195 | BL49: =+IF($K49="Ongoing",AT49,IF(RIGHT($K49,2)=RIGHT(BL$39,2),SUM($AR49:AT49),0)+IF(RIGHT(BL$39,2)>RIGHT($K49,2),AT49,0)) -> 0 | BM49: =+IF($K49="Ongoing",AU49,IF(RIGHT($K49,2)=RIGHT(BM$39,2),SUM($AR49:AU49),0)+IF(RIGHT(BM$39,2)>RIGHT($K49,2),AU49,0)) -> 0 | BN49: =+IF($K49="Ongoing",AV49,IF(RIGHT($K49,2)=RIGHT(BN$39,2),SUM($AR49:AV49),0)+IF(RIGHT(BN$39,2)>RIGHT($K49,2),AV49,0)) -> 0 | BO49: =+IF($K49="Ongoing",AW49,IF(RIGHT($K49,2)=RIGHT(BO$39,2),SUM($AR49:AW49),0)+IF(RIGHT(BO$39,2)>RIGHT($K49,2),AW49,0)) -> 0 | BP49: =+IF($K49="Ongoing",AX49,IF(RIGHT($K49,2)=RIGHT(BP$39,2),SUM($AR49:AX49),0)+IF(RIGHT(BP$39,2)>RIGHT($K49,2),AX49,0)) -> 0 | BQ49: =+IF($K49="Ongoing",AY49,IF(RIGHT($K49,2)=RIGHT(BQ$39,2),SUM($AR49:AY49),0)+IF(RIGHT(BQ$39,2)>RIGHT($K49,2),AY49,0)) -> 0 | BS49: =+Q49*KeyAssumptionsPriceControl_FO!Z$15 -> 4.418701616 | BT49: =+R49*KeyAssumptionsPriceControl_FO!AA$15 -> 1.927366062 | BU49: =+S49*KeyAssumptionsPriceControl_FO!AB$15 -> 0 | BV49: =+T49*KeyAssumptionsPriceControl_FO!AC$15 -> 0 | BW49: =+U49*KeyAssumptionsPriceControl_FO!AD$15 -> 0 | BX49: =+V49*KeyAssumptionsPriceControl_FO!AE$15 -> 0 | BY49: =+W49*KeyAssumptionsPriceControl_FO!AF$15 -> 0 | BZ49: =+X49*KeyAssumptionsPriceControl_FO!AG$15 -> 0 | CB49: =IF($M49="straight line",IF($N49=0,0, IF($N49<=0.5,BS49, IF($J49="straight line", IF((LEFT(CB$39,4)*1)-INT($N49)<LEFT(#REF!,4)*1,0,((OFFSET(BS49,0,-INT($N49+0.5),1,1))/$N49)*(IF($N49-INT($N49)>0.5,$N49-0.5-INT($N49),IF($N49-INT($N49)<=0.5,$N49-0.5-INT($N49)+1,0)))) +BS49/$N49*0.5, IF($J49="Declining Balance",-#REF!,0)))),IFERROR(EQ49,0)) -> 0 | CC49: =IF($M49="straight line",IF($N49=0,0, IF($N49<=0.5,BT49, IF($J49="straight line", IF((LEFT(CC$39,4)*1)-INT($N49)<LEFT(#REF!,4)*1,0,((OFFSET(BT49,0,-INT($N49+0.5),1,1))/$N49)*(IF($N49-INT($N49)>0.5,$N49-0.5-INT($N49),IF($N49-INT($N49)<=0.5,$N49-0.5-INT($N49)+1,0)))) +BT49/$N49*0.5, IF($J49="Declining Balance",-#REF!,0)))),IFERROR(ER49,0)) -> 0.09332452467 | CD49: =IF($M49="straight line",IF($N49=0,0, IF($N49<=0.5,BU49, IF($J49="straight line", IF((LEFT(CD$39,4)*1)-INT($N49)<LEFT(#REF!,4)*1,0,((OFFSET(BU49,0,-INT($N49+0.5),1,1))/$N49)*(IF($N49-INT($N49)>0.5,$N49-0.5-INT($N49),IF($N49-INT($N49)<=0.5,$N49-0.5-INT($N49)+1,0)))) +BU49/$N49*0.5, IF($J49="Declining Balance",-#REF!,0)))),IFERROR(ES49,0)) -> 0.1839042104 | CE49: =IF($M49="straight line",IF($N49=0,0, IF($N49<=0.5,BV49, IF($J49="straight line", IF((LEFT(CE$39,4)*1)-INT($N49)<LEFT(#REF!,4)*1,0,((OFFSET(BV49,0,-INT($N49+0.5),1,1))/$N49)*(IF($N49-INT($N49)>0.5,$N49-0.5-INT($N49),IF($N49-INT($N49)<=0.5,$N49-0.5-INT($N49)+1,0)))) +BV49/$N49*0.5, IF($J49="Declining Balance",-#REF!,0)))),IFERROR(ET49,0)) -> 0.178495263 | CF49: =IF($M49="straight line",IF($N49=0,0, IF($N49<=0.5,BW49, IF($J49="straight line", IF((LEFT(CF$39,4)*1)-INT($N49)<LEFT(#REF!,4)*1,0,((OFFSET(BW49,0,-INT($N49+0.5),1,1))/$N49)*(IF($N49-INT($N49)>0.5,$N49-0.5-INT($N49),IF($N49-INT($N49)<=0.5,$N49-0.5-INT($N49)+1,0)))) +BW49/$N49*0.5, IF($J49="Declining Balance",-#REF!,0)))),IFERROR(EU49,0)) -> 0.1732454023 | CG49: =IF($M49="straight line",IF($N49=0,0, IF($N49<=0.5,BX49, IF($J49="straight line", IF((LEFT(CG$39,4)*1)-INT($N49)<LEFT(#REF!,4)*1,0,((OFFSET(BX49,0,-INT($N49+0.5),1,1))/$N49)*(IF($N49-INT($N49)>0.5,$N49-0.5-INT($N49),IF($N49-INT($N49)<=0.5,$N49-0.5-INT($N49)+1,0)))) +BX49/$N49*0.5, IF($J49="Declining Balance",-#REF!,0)))),IFERROR(EV49,0)) -> 0.1681499493 | CH49: =IF($M49="straight line",IF($N49=0,0, IF($N49<=0.5,BY49, IF($J49="straight line", IF((LEFT(CH$39,4)*1)-INT($N49)<LEFT(#REF!,4)*1,0,((OFFSET(BY49,0,-INT($N49+0.5),1,1))/$N49)*(IF($N49-INT($N49)>0.5,$N49-0.5-INT($N49),IF($N49-INT($N49)<=0.5,$N49-0.5-INT($N49)+1,0)))) +BY49/$N49*0.5, IF($J49="Declining Balance",-#REF!,0)))),IFERROR(EW49,0)) -> 0.1632043626 | CI49: =IF($M49="straight line",IF($N49=0,0, IF($N49<=0.5,BZ49, IF($J49="straight line", IF((LEFT(CI$39,4)*1)-INT($N49)<LEFT(#REF!,4)*1,0,((OFFSET(BZ49,0,-INT($N49+0.5),1,1))/$N49)*(IF($N49-INT($N49)>0.5,$N49-0.5-INT($N49),IF($N49-INT($N49)<=0.5,$N49-0.5-INT($N49)+1,0)))) +BZ49/$N49*0.5, IF($J49="Declining Balance",-#REF!,0)))),IFERROR(EX49,0)) -> 0.1584042343 | CM49: 1.5 | CN49: No | CO49: =+IF($K49="ongoing",BS49,IF(RIGHT($K49,2)=RIGHT(CO$39,2),SUM($BR49:BS49),0)+IF(RIGHT(CO$39,2)>RIGHT($K49,2),BS49,0)) -> 0 | CP49: =+IF($K49="ongoing",BT49,IF(RIGHT($K49,2)=RIGHT(CP$39,2),SUM($BR49:BT49),0)+IF(RIGHT(CP$39,2)>RIGHT($K49,2),BT49,0)) -> 6.346067678 | CQ49: =+IF($K49="ongoing",BU49,IF(RIGHT($K49,2)=RIGHT(CQ$39,2),SUM($BR49:BU49),0)+IF(RIGHT(CQ$39,2)>RIGHT($K49,2),BU49,0)) -> 0 | CR49: =+IF($K49="ongoing",BV49,IF(RIGHT($K49,2)=RIGHT(CR$39,2),SUM($BR49:BV49),0)+IF(RIGHT(CR$39,2)>RIGHT($K49,2),BV49,0)) -> 0 | CS49: =+IF($K49="ongoing",BW49,IF(RIGHT($K49,2)=RIGHT(CS$39,2),SUM($BR49:BW49),0)+IF(RIGHT(CS$39,2)>RIGHT($K49,2),BW49,0)) -> 0 | CT49: =+IF($K49="ongoing",BX49,IF(RIGHT($K49,2)=RIGHT(CT$39,2),SUM($BR49:BX49),0)+IF(RIGHT(CT$39,2)>RIGHT($K49,2),BX49,0)) -> 0 | CU49: =+IF($K49="ongoing",BY49,IF(RIGHT($K49,2)=RIGHT(CU$39,2),SUM($BR49:BY49),0)+IF(RIGHT(CU$39,2)>RIGHT($K49,2),BY49,0)) -> 0 | CV49: =+IF($K49="ongoing",BZ49,IF(RIGHT($K49,2)=RIGHT(CV$39,2),SUM($BR49:BZ49),0)+IF(RIGHT(CV$39,2)>RIGHT($K49,2),BZ49,0)) -> 0 | CX49: =+MIN(IF($N49<=$CM49,MIN($N49,1),$N49),IF(CX$40=1,0.5,#REF!+1)) -> 0.5 | CY49: 1.5 | CZ49: 2.5 | DA49: 3.5 | DB49: 4.5 | DC49: 5.5 | DD49: 6.5 | DE49: 7.5 | DG49: =+IF(DG$40=1,0,MIN(IF($N49<=$CM49,MIN($N49,1),$N49),IF(DG$40=2,0.5,#REF!+1))) -> 0 | DH49: 0.5 | DI49: 1.5 | DJ49: 2.5 | DK49: 3.5 | DL49: 4.5 | DM49: 5.5 | DN49: 6.5 | DP49: =+IF(CX49=CW49,0, IF(AND(DP$40>1,CX49=$N49),1-SUM($DO49:DO49), IF($N49<=1, IF($N49>0,1/$N49,0), IF(DP$40=1,0,VDB(1,0,$N49,INT(DP$40-1-1),MIN($N49,INT(DP$40-1-1)+1),$CM49,IF($CN49="No",1,0))/ IF(CW49>=INT($N49),$N49-INT($N49),1)))* IF(DP$40=1,0, IF(INT(CX49)=INT(CW49),CX49-CW49,INT(CX49)-CW49))+ IF($N49<=1, IF($N49>0,1/$N49,0),VDB(1,0,$N49,INT(DP$40-1),MIN($N49,INT(DP$40-1)+1),$CM49,IF($CN49="No",1,0))/ IF(CX49>INT($N49),$N49-INT($N49),1))* IF(DP$40=1,CX49, IF(INT(CX49)=INT(CW49),0,CX49-INT(CX49))))) -> 0.01470588235 | DQ49: =+IF(CY49=CX49,0, IF(AND(DQ$40>1,CY49=$N49),1-SUM($DO49:DP49), IF($N49<=1, IF($N49>0,1/$N49,0), IF(DQ$40=1,0,VDB(1,0,$N49,INT(DQ$40-1-1),MIN($N49,INT(DQ$40-1-1)+1),$CM49,IF($CN49="No",1,0))/ IF(CX49>=INT($N49),$N49-INT($N49),1)))* IF(DQ$40=1,0, IF(INT(CY49)=INT(CX49),CY49-CX49,INT(CY49)-CX49))+ IF($N49<=1, IF($N49>0,1/$N49,0),VDB(1,0,$N49,INT(DQ$40-1),MIN($N49,INT(DQ$40-1)+1),$CM49,IF($CN49="No",1,0))/ IF(CY49>INT($N49),$N49-INT($N49),1))* IF(DQ$40=1,CY49, IF(INT(CY49)=INT(CX49),0,CY49-INT(CY49))))) -> 0.02897923875 | DR49: =+IF(CZ49=CY49,0, IF(AND(DR$40>1,CZ49=$N49),1-SUM($DO49:DQ49), IF($N49<=1, IF($N49>0,1/$N49,0), IF(DR$40=1,0,VDB(1,0,$N49,INT(DR$40-1-1),MIN($N49,INT(DR$40-1-1)+1),$CM49,IF($CN49="No",1,0))/ IF(CY49>=INT($N49),$N49-INT($N49),1)))* IF(DR$40=1,0, IF(INT(CZ49)=INT(CY49),CZ49-CY49,INT(CZ49)-CY49))+ IF($N49<=1, IF($N49>0,1/$N49,0),VDB(1,0,$N49,INT(DR$40-1),MIN($N49,INT(DR$40-1)+1),$CM49,IF($CN49="No",1,0))/ IF(CZ49>INT($N49),$N49-INT($N49),1))* IF(DR$40=1,CZ49, IF(INT(CZ49)=INT(CY49),0,CZ49-INT(CZ49))))) -> 0.0281269082 | DS49: =+IF(DA49=CZ49,0, IF(AND(DS$40>1,DA49=$N49),1-SUM($DO49:DR49), IF($N49<=1, IF($N49>0,1/$N49,0), IF(DS$40=1,0,VDB(1,0,$N49,INT(DS$40-1-1),MIN($N49,INT(DS$40-1-1)+1),$CM49,IF($CN49="No",1,0))/ IF(CZ49>=INT($N49),$N49-INT($N49),1)))* IF(DS$40=1,0, IF(INT(DA49)=INT(CZ49),DA49-CZ49,INT(DA49)-CZ49))+ IF($N49<=1, IF($N49>0,1/$N49,0),VDB(1,0,$N49,INT(DS$40-1),MIN($N49,INT(DS$40-1)+1),$CM49,IF($CN49="No",1,0))/ IF(DA49>INT($N49),$N49-INT($N49),1))* IF(DS$40=1,DA49, IF(INT(DA49)=INT(CZ49),0,DA49-INT(DA49))))) -> 0.0272996462 | DT49: =+IF(DB49=DA49,0, IF(AND(DT$40>1,DB49=$N49),1-SUM($DO49:DS49), IF($N49<=1, IF($N49>0,1/$N49,0), IF(DT$40=1,0,VDB(1,0,$N49,INT(DT$40-1-1),MIN($N49,INT(DT$40-1-1)+1),$CM49,IF($CN49="No",1,0))/ IF(DA49>=INT($N49),$N49-INT($N49),1)))* IF(DT$40=1,0, IF(INT(DB49)=INT(DA49),DB49-DA49,INT(DB49)-DA49))+ IF($N49<=1, IF($N49>0,1/$N49,0),VDB(1,0,$N49,INT(DT$40-1),MIN($N49,INT(DT$40-1)+1),$CM49,IF($CN49="No",1,0))/ IF(DB49>INT($N49),$N49-INT($N49),1))* IF(DT$40=1,DB49, IF(INT(DB49)=INT(DA49),0,DB49-INT(DB49))))) -> 0.02649671543 | DU49: =+IF(DC49=DB49,0, IF(AND(DU$40>1,DC49=$N49),1-SUM($DO49:DT49), IF($N49<=1, IF($N49>0,1/$N49,0), IF(DU$40=1,0,VDB(1,0,$N49,INT(DU$40-1-1),MIN($N49,INT(DU$40-1-1)+1),$CM49,IF($CN49="No",1,0))/ IF(DB49>=INT($N49),$N49-INT($N49),1)))* IF(DU$40=1,0, IF(INT(DC49)=INT(DB49),DC49-DB49,INT(DC49)-DB49))+ IF($N49<=1, IF($N49>0,1/$N49,0),VDB(1,0,$N49,INT(DU$40-1),MIN($N49,INT(DU$40-1)+1),$CM49,IF($CN49="No",1,0))/ IF(DC49>INT($N49),$N49-INT($N49),1))* IF(DU$40=1,DC49, IF(INT(DC49)=INT(DB49),0,DC49-INT(DC49))))) -> 0.02571740027 | DV49: =+IF(DD49=DC49,0, IF(AND(DV$40>1,DD49=$N49),1-SUM($DO49:DU49), IF($N49<=1, IF($N49>0,1/$N49,0), IF(DV$40=1,0,VDB(1,0,$N49,INT(DV$40-1-1),MIN($N49,INT(DV$40-1-1)+1),$CM49,IF($CN49="No",1,0))/ IF(DC49>=INT($N49),$N49-INT($N49),1)))* IF(DV$40=1,0, IF(INT(DD49)=INT(DC49),DD49-DC49,INT(DD49)-DC49))+ IF($N49<=1, IF($N49>0,1/$N49,0),VDB(1,0,$N49,INT(DV$40-1),MIN($N49,INT(DV$40-1)+1),$CM49,IF($CN49="No",1,0))/ IF(DD49>INT($N49),$N49-INT($N49),1))* IF(DV$40=1,DD49, IF(INT(DD49)=INT(DC49),0,DD49-INT(DD49))))) -> 0.02496100614 | DW49: =+IF(DE49=DD49,0, IF(AND(DW$40>1,DE49=$N49),1-SUM($DO49:DV49), IF($N49<=1, IF($N49>0,1/$N49,0), IF(DW$40=1,0,VDB(1,0,$N49,INT(DW$40-1-1),MIN($N49,INT(DW$40-1-1)+1),$CM49,IF($CN49="No",1,0))/ IF(DD49>=INT($N49),$N49-INT($N49),1)))* IF(DW$40=1,0, IF(INT(DE49)=INT(DD49),DE49-DD49,INT(DE49)-DD49))+ IF($N49<=1, IF($N49>0,1/$N49,0),VDB(1,0,$N49,INT(DW$40-1),MIN($N49,INT(DW$40-1)+1),$CM49,IF($CN49="No",1,0))/ IF(DE49>INT($N49),$N49-INT($N49),1))* IF(DW$40=1,DE49, IF(INT(DE49)=INT(DD49),0,DE49-INT(DE49))))) -> 0.0242268589 | DY49: =+IF(OR(DG49=DF49,DY$40=1),0, IF(AND(DY$40>1,DG49=$N49),1-SUM($DX49:DX49), IF($N49<=1, IF($N49>0,1/$N49,0), IF(DY$40=2,0,VDB(1,0,$N49,INT(DY$40-2-1),MIN($N49,INT(DY$40-2-1)+1),$CM49,IF($CN49="No",1,0))/ IF(DF49>=INT($N49),$N49-INT($N49),1)))* IF(DY$40=2,0, IF(INT(DG49)=INT(DF49),DG49-DF49,INT(DG49)-DF49))+ IF($N49<=1, IF($N49>0,1/$N49,0),VDB(1,0,$N49,INT(DY$40-2),MIN($N49,INT(DY$40-2)+1),$CM49,IF($CN49="No",1,0))/ IF(DG49>INT($N49),$N49-INT($N49),1))* IF(DY$40=2,DG49, IF(INT(DG49)=INT(DF49),0,DG49-INT(DG49))))) -> 0 | DZ49: =+IF(OR(DH49=DG49,DZ$40=1),0, IF(AND(DZ$40>1,DH49=$N49),1-SUM($DX49:DY49), IF($N49<=1, IF($N49>0,1/$N49,0), IF(DZ$40=2,0,VDB(1,0,$N49,INT(DZ$40-2-1),MIN($N49,INT(DZ$40-2-1)+1),$CM49,IF($CN49="No",1,0))/ IF(DG49>=INT($N49),$N49-INT($N49),1)))* IF(DZ$40=2,0, IF(INT(DH49)=INT(DG49),DH49-DG49,INT(DH49)-DG49))+ IF($N49<=1, IF($N49>0,1/$N49,0),VDB(1,0,$N49,INT(DZ$40-2),MIN($N49,INT(DZ$40-2)+1),$CM49,IF($CN49="No",1,0))/ IF(DH49>INT($N49),$N49-INT($N49),1))* IF(DZ$40=2,DH49, IF(INT(DH49)=INT(DG49),0,DH49-INT(DH49))))) -> 0.01470588235 | EA49: =+IF(OR(DI49=DH49,EA$40=1),0, IF(AND(EA$40>1,DI49=$N49),1-SUM($DX49:DZ49), IF($N49<=1, IF($N49>0,1/$N49,0), IF(EA$40=2,0,VDB(1,0,$N49,INT(EA$40-2-1),MIN($N49,INT(EA$40-2-1)+1),$CM49,IF($CN49="No",1,0))/ IF(DH49>=INT($N49),$N49-INT($N49),1)))* IF(EA$40=2,0, IF(INT(DI49)=INT(DH49),DI49-DH49,INT(DI49)-DH49))+ IF($N49<=1, IF($N49>0,1/$N49,0),VDB(1,0,$N49,INT(EA$40-2),MIN($N49,INT(EA$40-2)+1),$CM49,IF($CN49="No",1,0))/ IF(DI49>INT($N49),$N49-INT($N49),1))* IF(EA$40=2,DI49, IF(INT(DI49)=INT(DH49),0,DI49-INT(DI49))))) -> 0.02897923875 | EB49: =+IF(OR(DJ49=DI49,EB$40=1),0, IF(AND(EB$40>1,DJ49=$N49),1-SUM($DX49:EA49), IF($N49<=1, IF($N49>0,1/$N49,0), IF(EB$40=2,0,VDB(1,0,$N49,INT(EB$40-2-1),MIN($N49,INT(EB$40-2-1)+1),$CM49,IF($CN49="No",1,0))/ IF(DI49>=INT($N49),$N49-INT($N49),1)))* IF(EB$40=2,0, IF(INT(DJ49)=INT(DI49),DJ49-DI49,INT(DJ49)-DI49))+ IF($N49<=1, IF($N49>0,1/$N49,0),VDB(1,0,$N49,INT(EB$40-2),MIN($N49,INT(EB$40-2)+1),$CM49,IF($CN49="No",1,0))/ IF(DJ49>INT($N49),$N49-INT($N49),1))* IF(EB$40=2,DJ49, IF(INT(DJ49)=INT(DI49),0,DJ49-INT(DJ49))))) -> 0.0281269082 | EC49: =+IF(OR(DK49=DJ49,EC$40=1),0, IF(AND(EC$40>1,DK49=$N49),1-SUM($DX49:EB49), IF($N49<=1, IF($N49>0,1/$N49,0), IF(EC$40=2,0,VDB(1,0,$N49,INT(EC$40-2-1),MIN($N49,INT(EC$40-2-1)+1),$CM49,IF($CN49="No",1,0))/ IF(DJ49>=INT($N49),$N49-INT($N49),1)))* IF(EC$40=2,0, IF(INT(DK49)=INT(DJ49),DK49-DJ49,INT(DK49)-DJ49))+ IF($N49<=1, IF($N49>0,1/$N49,0),VDB(1,0,$N49,INT(EC$40-2),MIN($N49,INT(EC$40-2)+1),$CM49,IF($CN49="No",1,0))/ IF(DK49>INT($N49),$N49-INT($N49),1))* IF(EC$40=2,DK49, IF(INT(DK49)=INT(DJ49),0,DK49-INT(DK49))))) -> 0.0272996462 | ED49: =+IF(OR(DL49=DK49,ED$40=1),0, IF(AND(ED$40>1,DL49=$N49),1-SUM($DX49:EC49), IF($N49<=1, IF($N49>0,1/$N49,0), IF(ED$40=2,0,VDB(1,0,$N49,INT(ED$40-2-1),MIN($N49,INT(ED$40-2-1)+1),$CM49,IF($CN49="No",1,0))/ IF(DK49>=INT($N49),$N49-INT($N49),1)))* IF(ED$40=2,0, IF(INT(DL49)=INT(DK49),DL49-DK49,INT(DL49)-DK49))+ IF($N49<=1, IF($N49>0,1/$N49,0),VDB(1,0,$N49,INT(ED$40-2),MIN($N49,INT(ED$40-2)+1),$CM49,IF($CN49="No",1,0))/ IF(DL49>INT($N49),$N49-INT($N49),1))* IF(ED$40=2,DL49, IF(INT(DL49)=INT(DK49),0,DL49-INT(DL49))))) -> 0.02649671543 | EE49: =+IF(OR(DM49=DL49,EE$40=1),0, IF(AND(EE$40>1,DM49=$N49),1-SUM($DX49:ED49), IF($N49<=1, IF($N49>0,1/$N49,0), IF(EE$40=2,0,VDB(1,0,$N49,INT(EE$40-2-1),MIN($N49,INT(EE$40-2-1)+1),$CM49,IF($CN49="No",1,0))/ IF(DL49>=INT($N49),$N49-INT($N49),1)))* IF(EE$40=2,0, IF(INT(DM49)=INT(DL49),DM49-DL49,INT(DM49)-DL49))+ IF($N49<=1, IF($N49>0,1/$N49,0),VDB(1,0,$N49,INT(EE$40-2),MIN($N49,INT(EE$40-2)+1),$CM49,IF($CN49="No",1,0))/ IF(DM49>INT($N49),$N49-INT($N49),1))* IF(EE$40=2,DM49, IF(INT(DM49)=INT(DL49),0,DM49-INT(DM49))))) -> 0.02571740027 | EF49: =+IF(OR(DN49=DM49,EF$40=1),0, IF(AND(EF$40>1,DN49=$N49),1-SUM($DX49:EE49), IF($N49<=1, IF($N49>0,1/$N49,0), IF(EF$40=2,0,VDB(1,0,$N49,INT(EF$40-2-1),MIN($N49,INT(EF$40-2-1)+1),$CM49,IF($CN49="No",1,0))/ IF(DM49>=INT($N49),$N49-INT($N49),1)))* IF(EF$40=2,0, IF(INT(DN49)=INT(DM49),DN49-DM49,INT(DN49)-DM49))+ IF($N49<=1, IF($N49>0,1/$N49,0),VDB(1,0,$N49,INT(EF$40-2),MIN($N49,INT(EF$40-2)+1),$CM49,IF($CN49="No",1,0))/ IF(DN49>INT($N49),$N49-INT($N49),1))* IF(EF$40=2,DN49, IF(INT(DN49)=INT(DM49),0,DN49-INT(DN49))))) -> 0.02496100614 | EH49: 0.02496100614 | EI49: 0.02571740027 | EJ49: 0.02649671543 | EK49: 0.0272996462 | EL49: 0.0281269082 | EM49: 0.02897923875 | EN49: 0.01470588235 | EO49: 0 | EQ49: 0 | ER49: 0.09332452467 | ES49: 0.1839042104 | ET49: 0.178495263 | EU49: 0.1732454023 | EV49: 0.1681499493 | EW49: 0.1632043626 | EX49: 0.1584042343
C50: Sunbury Outfall Sewer Duplication | E50: Sewerage | F50: Growth | G50: Pipelines/network | H50: Top 10 Major Projects | J50: Straight line | K50: 2021-22 | L50: 51 | M50: Declining Balance | N50: 51 | Q50: 3.113021755 | R50: 2.100406745 | S50: 0.50665 | T50: 0 | U50: 0 | V50: 0 | W50: 0 | X50: 0 | AR50: 3.113021755 | AS50: 2.100406745 | AT50: 0.50665 | AU50: 0 | AV50: 0 | AW50: 0 | AX50: 0 | AY50: 0 | BA50: 0 | BB50: 0.05111204412 | BC50: 0.1071912451 | BD50: 0.112158402 | BE50: 0.112158402 | BF50: 0.112158402 | BG50: 0.112158402 | BH50: 0.112158402 | BJ50: =+IF($K50="Ongoing",AR50,IF(RIGHT($K50,2)=RIGHT(BJ$39,2),SUM($AR50:AR50),0)+IF(RIGHT(BJ$39,2)>RIGHT($K50,2),AR50,0)) -> 0 | BK50: =+IF($K50="Ongoing",AS50,IF(RIGHT($K50,2)=RIGHT(BK$39,2),SUM($AR50:AS50),0)+IF(RIGHT(BK$39,2)>RIGHT($K50,2),AS50,0)) -> 5.2134285 | BL50: =+IF($K50="Ongoing",AT50,IF(RIGHT($K50,2)=RIGHT(BL$39,2),SUM($AR50:AT50),0)+IF(RIGHT(BL$39,2)>RIGHT($K50,2),AT50,0)) -> 0.50665 | BM50: =+IF($K50="Ongoing",AU50,IF(RIGHT($K50,2)=RIGHT(BM$39,2),SUM($AR50:AU50),0)+IF(RIGHT(BM$39,2)>RIGHT($K50,2),AU50,0)) -> 0 | BN50: =+IF($K50="Ongoing",AV50,IF(RIGHT($K50,2)=RIGHT(BN$39,2),SUM($AR50:AV50),0)+IF(RIGHT(BN$39,2)>RIGHT($K50,2),AV50,0)) -> 0 | BO50: =+IF($K50="Ongoing",AW50,IF(RIGHT($K50,2)=RIGHT(BO$39,2),SUM($AR50:AW50),0)+IF(RIGHT(BO$39,2)>RIGHT($K50,2),AW50,0)) -> 0 | BP50: =+IF($K50="Ongoing",AX50,IF(RIGHT($K50,2)=RIGHT(BP$39,2),SUM($AR50:AX50),0)+IF(RIGHT(BP$39,2)>RIGHT($K50,2),AX50,0)) -> 0 | BQ50: =+IF($K50="Ongoing",AY50,IF(RIGHT($K50,2)=RIGHT(BQ$39,2),SUM($AR50:AY50),0)+IF(RIGHT(BQ$39,2)>RIGHT($K50,2),AY50,0)) -> 0 | BS50: =+Q50*KeyAssumptionsPriceControl_FO!Z$15 -> 3.184621255 | BT50: =+R50*KeyAssumptionsPriceControl_FO!AA$15 -> 2.198136571 | BU50: =+S50*KeyAssumptionsPriceControl_FO!AB$15 -> 0.542419068 | BV50: =+T50*KeyAssumptionsPriceControl_FO!AC$15 -> 0 | BW50: =+U50*KeyAssumptionsPriceControl_FO!AD$15 -> 0 | BX50: =+V50*KeyAssumptionsPriceControl_FO!AE$15 -> 0 | BY50: =+W50*KeyAssumptionsPriceControl_FO!AF$15 -> 0 | BZ50: =+X50*KeyAssumptionsPriceControl_FO!AG$15 -> 0 | CB50: =IF($M50="straight line",IF($N50=0,0, IF($N50<=0.5,BS50, IF($J50="straight line", IF((LEFT(CB$39,4)*1)-INT($N50)<LEFT(#REF!,4)*1,0,((OFFSET(BS50,0,-INT($N50+0.5),1,1))/$N50)*(IF($N50-INT($N50)>0.5,$N50-0.5-INT($N50),IF($N50-INT($N50)<=0.5,$N50-0.5-INT($N50)+1,0)))) +BS50/$N50*0.5, IF($J50="Declining Balance",-#REF!,0)))),IFERROR(EQ50,0)) -> 0 | CC50: =IF($M50="straight line",IF($N50=0,0, IF($N50<=0.5,BT50, IF($J50="straight line", IF((LEFT(CC$39,4)*1)-INT($N50)<LEFT(#REF!,4)*1,0,((OFFSET(BT50,0,-INT($N50+0.5),1,1))/$N50)*(IF($N50-INT($N50)>0.5,$N50-0.5-INT($N50),IF($N50-INT($N50)<=0.5,$N50-0.5-INT($N50)+1,0)))) +BT50/$N50*0.5, IF($J50="Declining Balance",-#REF!,0)))),IFERROR(ER50,0)) -> 0.07915820332 | CD50: =IF($M50="straight line",IF($N50=0,0, IF($N50<=0.5,BU50, IF($J50="straight line", IF((LEFT(CD$39,4)*1)-INT($N50)<LEFT(#REF!,4)*1,0,((OFFSET(BU50,0,-INT($N50+0.5),1,1))/$N50)*(IF($N50-INT($N50)>0.5,$N50-0.5-INT($N50),IF($N50-INT($N50)<=0.5,$N50-0.5-INT($N50)+1,0)))) +BU50/$N50*0.5, IF($J50="Declining Balance",-#REF!,0)))),IFERROR(ES50,0)) -> 0.1639649752 | CE50: =IF($M50="straight line",IF($N50=0,0, IF($N50<=0.5,BV50, IF($J50="straight line", IF((LEFT(CE$39,4)*1)-INT($N50)<LEFT(#REF!,4)*1,0,((OFFSET(BV50,0,-INT($N50+0.5),1,1))/$N50)*(IF($N50-INT($N50)>0.5,$N50-0.5-INT($N50),IF($N50-INT($N50)<=0.5,$N50-0.5-INT($N50)+1,0)))) +BV50/$N50*0.5, IF($J50="Declining Balance",-#REF!,0)))),IFERROR(ET50,0)) -> 0.1671192269 | CF50: =IF($M50="straight line",IF($N50=0,0, IF($N50<=0.5,BW50, IF($J50="straight line", IF((LEFT(CF$39,4)*1)-INT($N50)<LEFT(#REF!,4)*1,0,((OFFSET(BW50,0,-INT($N50+0.5),1,1))/$N50)*(IF($N50-INT($N50)>0.5,$N50-0.5-INT($N50),IF($N50-INT($N50)<=0.5,$N50-0.5-INT($N50)+1,0)))) +BW50/$N50*0.5, IF($J50="Declining Balance",-#REF!,0)))),IFERROR(EU50,0)) -> 0.1622039555 | CG50: =IF($M50="straight line",IF($N50=0,0, IF($N50<=0.5,BX50, IF($J50="straight line", IF((LEFT(CG$39,4)*1)-INT($N50)<LEFT(#REF!,4)*1,0,((OFFSET(BX50,0,-INT($N50+0.5),1,1))/$N50)*(IF($N50-INT($N50)>0.5,$N50-0.5-INT($N50),IF($N50-INT($N50)<=0.5,$N50-0.5-INT($N50)+1,0)))) +BX50/$N50*0.5, IF($J50="Declining Balance",-#REF!,0)))),IFERROR(EV50,0)) -> 0.157433251 | CH50: =IF($M50="straight line",IF($N50=0,0, IF($N50<=0.5,BY50, IF($J50="straight line", IF((LEFT(CH$39,4)*1)-INT($N50)<LEFT(#REF!,4)*1,0,((OFFSET(BY50,0,-INT($N50+0.5),1,1))/$N50)*(IF($N50-INT($N50)>0.5,$N50-0.5-INT($N50),IF($N50-INT($N50)<=0.5,$N50-0.5-INT($N50)+1,0)))) +BY50/$N50*0.5, IF($J50="Declining Balance",-#REF!,0)))),IFERROR(EW50,0)) -> 0.1528028612 | CI50: =IF($M50="straight line",IF($N50=0,0, IF($N50<=0.5,BZ50, IF($J50="straight line", IF((LEFT(CI$39,4)*1)-INT($N50)<LEFT(#REF!,4)*1,0,((OFFSET(BZ50,0,-INT($N50+0.5),1,1))/$N50)*(IF($N50-INT($N50)>0.5,$N50-0.5-INT($N50),IF($N50-INT($N50)<=0.5,$N50-0.5-INT($N50)+1,0)))) +BZ50/$N50*0.5, IF($J50="Declining Balance",-#REF!,0)))),IFERROR(EX50,0)) -> 0.1483086594 | CM50: 1.5 | CN50: No | CO50: =+IF($K50="ongoing",BS50,IF(RIGHT($K50,2)=RIGHT(CO$39,2),SUM($BR50:BS50),0)+IF(RIGHT(CO$39,2)>RIGHT($K50,2),BS50,0)) -> 0 | CP50: =+IF($K50="ongoing",BT50,IF(RIGHT($K50,2)=RIGHT(CP$39,2),SUM($BR50:BT50),0)+IF(RIGHT(CP$39,2)>RIGHT($K50,2),BT50,0)) -> 5.382757826 | CQ50: =+IF($K50="ongoing",BU50,IF(RIGHT($K50,2)=RIGHT(CQ$39,2),SUM($BR50:BU50),0)+IF(RIGHT(CQ$39,2)>RIGHT($K50,2),BU50,0)) -> 0.542419068 | CR50: =+IF($K50="ongoing",BV50,IF(RIGHT($K50,2)=RIGHT(CR$39,2),SUM($BR50:BV50),0)+IF(RIGHT(CR$39,2)>RIGHT($K50,2),BV50,0)) -> 0 | CS50: =+IF($K50="ongoing",BW50,IF(RIGHT($K50,2)=RIGHT(CS$39,2),SUM($BR50:BW50),0)+IF(RIGHT(CS$39,2)>RIGHT($K50,2),BW50,0)) -> 0 | CT50: =+IF($K50="ongoing",BX50,IF(RIGHT($K50,2)=RIGHT(CT$39,2),SUM($BR50:BX50),0)+IF(RIGHT(CT$39,2)>RIGHT($K50,2),BX50,0)) -> 0 | CU50: =+IF($K50="ongoing",BY50,IF(RIGHT($K50,2)=RIGHT(CU$39,2),SUM($BR50:BY50),0)+IF(RIGHT(CU$39,2)>RIGHT($K50,2),BY50,0)) -> 0 | CV50: =+IF($K50="ongoing",BZ50,IF(RIGHT($K50,2)=RIGHT(CV$39,2),SUM($BR50:BZ50),0)+IF(RIGHT(CV$39,2)>RIGHT($K50,2),BZ50,0)) -> 0 | CX50: =+MIN(IF($N50<=$CM50,MIN($N50,1),$N50),IF(CX$40=1,0.5,#REF!+1)) -> 0.5 | CY50: 1.5 | CZ50: 2.5 | DA50: 3.5 | DB50: 4.5 | DC50: 5.5 | DD50: 6.5 | DE50: 7.5 | DG50: =+IF(DG$40=1,0,MIN(IF($N50<=$CM50,MIN($N50,1),$N50),IF(DG$40=2,0.5,#REF!+1))) -> 0 | DH50: 0.5 | DI50: 1.5 | DJ50: 2.5 | DK50: 3.5 | DL50: 4.5 | DM50: 5.5 | DN50: 6.5 | DP50: =+IF(CX50=CW50,0, IF(AND(DP$40>1,CX50=$N50),1-SUM($DO50:DO50), IF($N50<=1, IF($N50>0,1/$N50,0), IF(DP$40=1,0,VDB(1,0,$N50,INT(DP$40-1-1),MIN($N50,INT(DP$40-1-1)+1),$CM50,IF($CN50="No",1,0))/ IF(CW50>=INT($N50),$N50-INT($N50),1)))* IF(DP$40=1,0, IF(INT(CX50)=INT(CW50),CX50-CW50,INT(CX50)-CW50))+ IF($N50<=1, IF($N50>0,1/$N50,0),VDB(1,0,$N50,INT(DP$40-1),MIN($N50,INT(DP$40-1)+1),$CM50,IF($CN50="No",1,0))/ IF(CX50>INT($N50),$N50-INT($N50),1))* IF(DP$40=1,CX50, IF(INT(CX50)=INT(CW50),0,CX50-INT(CX50))))) -> 0.01470588235 | DQ50: =+IF(CY50=CX50,0, IF(AND(DQ$40>1,CY50=$N50),1-SUM($DO50:DP50), IF($N50<=1, IF($N50>0,1/$N50,0), IF(DQ$40=1,0,VDB(1,0,$N50,INT(DQ$40-1-1),MIN($N50,INT(DQ$40-1-1)+1),$CM50,IF($CN50="No",1,0))/ IF(CX50>=INT($N50),$N50-INT($N50),1)))* IF(DQ$40=1,0, IF(INT(CY50)=INT(CX50),CY50-CX50,INT(CY50)-CX50))+ IF($N50<=1, IF($N50>0,1/$N50,0),VDB(1,0,$N50,INT(DQ$40-1),MIN($N50,INT(DQ$40-1)+1),$CM50,IF($CN50="No",1,0))/ IF(CY50>INT($N50),$N50-INT($N50),1))* IF(DQ$40=1,CY50, IF(INT(CY50)=INT(CX50),0,CY50-INT(CY50))))) -> 0.02897923875 | DR50: =+IF(CZ50=CY50,0, IF(AND(DR$40>1,CZ50=$N50),1-SUM($DO50:DQ50), IF($N50<=1, IF($N50>0,1/$N50,0), IF(DR$40=1,0,VDB(1,0,$N50,INT(DR$40-1-1),MIN($N50,INT(DR$40-1-1)+1),$CM50,IF($CN50="No",1,0))/ IF(CY50>=INT($N50),$N50-INT($N50),1)))* IF(DR$40=1,0, IF(INT(CZ50)=INT(CY50),CZ50-CY50,INT(CZ50)-CY50))+ IF($N50<=1, IF($N50>0,1/$N50,0),VDB(1,0,$N50,INT(DR$40-1),MIN($N50,INT(DR$40-1)+1),$CM50,IF($CN50="No",1,0))/ IF(CZ50>INT($N50),$N50-INT($N50),1))* IF(DR$40=1,CZ50, IF(INT(CZ50)=INT(CY50),0,CZ50-INT(CZ50))))) -> 0.0281269082 | DS50: =+IF(DA50=CZ50,0, IF(AND(DS$40>1,DA50=$N50),1-SUM($DO50:DR50), IF($N50<=1, IF($N50>0,1/$N50,0), IF(DS$40=1,0,VDB(1,0,$N50,INT(DS$40-1-1),MIN($N50,INT(DS$40-1-1)+1),$CM50,IF($CN50="No",1,0))/ IF(CZ50>=INT($N50),$N50-INT($N50),1)))* IF(DS$40=1,0, IF(INT(DA50)=INT(CZ50),DA50-CZ50,INT(DA50)-CZ50))+ IF($N50<=1, IF($N50>0,1/$N50,0),VDB(1,0,$N50,INT(DS$40-1),MIN($N50,INT(DS$40-1)+1),$CM50,IF($CN50="No",1,0))/ IF(DA50>INT($N50),$N50-INT($N50),1))* IF(DS$40=1,DA50, IF(INT(DA50)=INT(CZ50),0,DA50-INT(DA50))))) -> 0.0272996462 | DT50: =+IF(DB50=DA50,0, IF(AND(DT$40>1,DB50=$N50),1-SUM($DO50:DS50), IF($N50<=1, IF($N50>0,1/$N50,0), IF(DT$40=1,0,VDB(1,0,$N50,INT(DT$40-1-1),MIN($N50,INT(DT$40-1-1)+1),$CM50,IF($CN50="No",1,0))/ IF(DA50>=INT($N50),$N50-INT($N50),1)))* IF(DT$40=1,0, IF(INT(DB50)=INT(DA50),DB50-DA50,INT(DB50)-DA50))+ IF($N50<=1, IF($N50>0,1/$N50,0),VDB(1,0,$N50,INT(DT$40-1),MIN($N50,INT(DT$40-1)+1),$CM50,IF($CN50="No",1,0))/ IF(DB50>INT($N50),$N50-INT($N50),1))* IF(DT$40=1,DB50, IF(INT(DB50)=INT(DA50),0,DB50-INT(DB50))))) -> 0.02649671543 | DU50: =+IF(DC50=DB50,0, IF(AND(DU$40>1,DC50=$N50),1-SUM($DO50:DT50), IF($N50<=1, IF($N50>0,1/$N50,0), IF(DU$40=1,0,VDB(1,0,$N50,INT(DU$40-1-1),MIN($N50,INT(DU$40-1-1)+1),$CM50,IF($CN50="No",1,0))/ IF(DB50>=INT($N50),$N50-INT($N50),1)))* IF(DU$40=1,0, IF(INT(DC50)=INT(DB50),DC50-DB50,INT(DC50)-DB50))+ IF($N50<=1, IF($N50>0,1/$N50,0),VDB(1,0,$N50,INT(DU$40-1),MIN($N50,INT(DU$40-1)+1),$CM50,IF($CN50="No",1,0))/ IF(DC50>INT($N50),$N50-INT($N50),1))* IF(DU$40=1,DC50, IF(INT(DC50)=INT(DB50),0,DC50-INT(DC50))))) -> 0.02571740027 | DV50: =+IF(DD50=DC50,0, IF(AND(DV$40>1,DD50=$N50),1-SUM($DO50:DU50), IF($N50<=1, IF($N50>0,1/$N50,0), IF(DV$40=1,0,VDB(1,0,$N50,INT(DV$40-1-1),MIN($N50,INT(DV$40-1-1)+1),$CM50,IF($CN50="No",1,0))/ IF(DC50>=INT($N50),$N50-INT($N50),1)))* IF(DV$40=1,0, IF(INT(DD50)=INT(DC50),DD50-DC50,INT(DD50)-DC50))+ IF($N50<=1, IF($N50>0,1/$N50,0),VDB(1,0,$N50,INT(DV$40-1),MIN($N50,INT(DV$40-1)+1),$CM50,IF($CN50="No",1,0))/ IF(DD50>INT($N50),$N50-INT($N50),1))* IF(DV$40=1,DD50, IF(INT(DD50)=INT(DC50),0,DD50-INT(DD50))))) -> 0.02496100614 | DW50: =+IF(DE50=DD50,0, IF(AND(DW$40>1,DE50=$N50),1-SUM($DO50:DV50), IF($N50<=1, IF($N50>0,1/$N50,0), IF(DW$40=1,0,VDB(1,0,$N50,INT(DW$40-1-1),MIN($N50,INT(DW$40-1-1)+1),$CM50,IF($CN50="No",1,0))/ IF(DD50>=INT($N50),$N50-INT($N50),1)))* IF(DW$40=1,0, IF(INT(DE50)=INT(DD50),DE50-DD50,INT(DE50)-DD50))+ IF($N50<=1, IF($N50>0,1/$N50,0),VDB(1,0,$N50,INT(DW$40-1),MIN($N50,INT(DW$40-1)+1),$CM50,IF($CN50="No",1,0))/ IF(DE50>INT($N50),$N50-INT($N50),1))* IF(DW$40=1,DE50, IF(INT(DE50)=INT(DD50),0,DE50-INT(DE50))))) -> 0.0242268589 | DY50: =+IF(OR(DG50=DF50,DY$40=1),0, IF(AND(DY$40>1,DG50=$N50),1-SUM($DX50:DX50), IF($N50<=1, IF($N50>0,1/$N50,0), IF(DY$40=2,0,VDB(1,0,$N50,INT(DY$40-2-1),MIN($N50,INT(DY$40-2-1)+1),$CM50,IF($CN50="No",1,0))/ IF(DF50>=INT($N50),$N50-INT($N50),1)))* IF(DY$40=2,0, IF(INT(DG50)=INT(DF50),DG50-DF50,INT(DG50)-DF50))+ IF($N50<=1, IF($N50>0,1/$N50,0),VDB(1,0,$N50,INT(DY$40-2),MIN($N50,INT(DY$40-2)+1),$CM50,IF($CN50="No",1,0))/ IF(DG50>INT($N50),$N50-INT($N50),1))* IF(DY$40=2,DG50, IF(INT(DG50)=INT(DF50),0,DG50-INT(DG50))))) -> 0 | DZ50: =+IF(OR(DH50=DG50,DZ$40=1),0, IF(AND(DZ$40>1,DH50=$N50),1-SUM($DX50:DY50), IF($N50<=1, IF($N50>0,1/$N50,0), IF(DZ$40=2,0,VDB(1,0,$N50,INT(DZ$40-2-1),MIN($N50,INT(DZ$40-2-1)+1),$CM50,IF($CN50="No",1,0))/ IF(DG50>=INT($N50),$N50-INT($N50),1)))* IF(DZ$40=2,0, IF(INT(DH50)=INT(DG50),DH50-DG50,INT(DH50)-DG50))+ IF($N50<=1, IF($N50>0,1/$N50,0),VDB(1,0,$N50,INT(DZ$40-2),MIN($N50,INT(DZ$40-2)+1),$CM50,IF($CN50="No",1,0))/ IF(DH50>INT($N50),$N50-INT($N50),1))* IF(DZ$40=2,DH50, IF(INT(DH50)=INT(DG50),0,DH50-INT(DH50))))) -> 0.01470588235 | EA50: =+IF(OR(DI50=DH50,EA$40=1),0, IF(AND(EA$40>1,DI50=$N50),1-SUM($DX50:DZ50), IF($N50<=1, IF($N50>0,1/$N50,0), IF(EA$40=2,0,VDB(1,0,$N50,INT(EA$40-2-1),MIN($N50,INT(EA$40-2-1)+1),$CM50,IF($CN50="No",1,0))/ IF(DH50>=INT($N50),$N50-INT($N50),1)))* IF(EA$40=2,0, IF(INT(DI50)=INT(DH50),DI50-DH50,INT(DI50)-DH50))+ IF($N50<=1, IF($N50>0,1/$N50,0),VDB(1,0,$N50,INT(EA$40-2),MIN($N50,INT(EA$40-2)+1),$CM50,IF($CN50="No",1,0))/ IF(DI50>INT($N50),$N50-INT($N50),1))* IF(EA$40=2,DI50, IF(INT(DI50)=INT(DH50),0,DI50-INT(DI50))))) -> 0.02897923875 | EB50: =+IF(OR(DJ50=DI50,EB$40=1),0, IF(AND(EB$40>1,DJ50=$N50),1-SUM($DX50:EA50), IF($N50<=1, IF($N50>0,1/$N50,0), IF(EB$40=2,0,VDB(1,0,$N50,INT(EB$40-2-1),MIN($N50,INT(EB$40-2-1)+1),$CM50,IF($CN50="No",1,0))/ IF(DI50>=INT($N50),$N50-INT($N50),1)))* IF(EB$40=2,0, IF(INT(DJ50)=INT(DI50),DJ50-DI50,INT(DJ50)-DI50))+ IF($N50<=1, IF($N50>0,1/$N50,0),VDB(1,0,$N50,INT(EB$40-2),MIN($N50,INT(EB$40-2)+1),$CM50,IF($CN50="No",1,0))/ IF(DJ50>INT($N50),$N50-INT($N50),1))* IF(EB$40=2,DJ50, IF(INT(DJ50)=INT(DI50),0,DJ50-INT(DJ50))))) -> 0.0281269082 | EC50: =+IF(OR(DK50=DJ50,EC$40=1),0, IF(AND(EC$40>1,DK50=$N50),1-SUM($DX50:EB50), IF($N50<=1, IF($N50>0,1/$N50,0), IF(EC$40=2,0,VDB(1,0,$N50,INT(EC$40-2-1),MIN($N50,INT(EC$40-2-1)+1),$CM50,IF($CN50="No",1,0))/ IF(DJ50>=INT($N50),$N50-INT($N50),1)))* IF(EC$40=2,0, IF(INT(DK50)=INT(DJ50),DK50-DJ50,INT(DK50)-DJ50))+ IF($N50<=1, IF($N50>0,1/$N50,0),VDB(1,0,$N50,INT(EC$40-2),MIN($N50,INT(EC$40-2)+1),$CM50,IF($CN50="No",1,0))/ IF(DK50>INT($N50),$N50-INT($N50),1))* IF(EC$40=2,DK50, IF(INT(DK50)=INT(DJ50),0,DK50-INT(DK50))))) -> 0.0272996462 | ED50: =+IF(OR(DL50=DK50,ED$40=1),0, IF(AND(ED$40>1,DL50=$N50),1-SUM($DX50:EC50), IF($N50<=1, IF($N50>0,1/$N50,0), IF(ED$40=2,0,VDB(1,0,$N50,INT(ED$40-2-1),MIN($N50,INT(ED$40-2-1)+1),$CM50,IF($CN50="No",1,0))/ IF(DK50>=INT($N50),$N50-INT($N50),1)))* IF(ED$40=2,0, IF(INT(DL50)=INT(DK50),DL50-DK50,INT(DL50)-DK50))+ IF($N50<=1, IF($N50>0,1/$N50,0),VDB(1,0,$N50,INT(ED$40-2),MIN($N50,INT(ED$40-2)+1),$CM50,IF($CN50="No",1,0))/ IF(DL50>INT($N50),$N50-INT($N50),1))* IF(ED$40=2,DL50, IF(INT(DL50)=INT(DK50),0,DL50-INT(DL50))))) -> 0.02649671543 | EE50: =+IF(OR(DM50=DL50,EE$40=1),0, IF(AND(EE$40>1,DM50=$N50),1-SUM($DX50:ED50), IF($N50<=1, IF($N50>0,1/$N50,0), IF(EE$40=2,0,VDB(1,0,$N50,INT(EE$40-2-1),MIN($N50,INT(EE$40-2-1)+1),$CM50,IF($CN50="No",1,0))/ IF(DL50>=INT($N50),$N50-INT($N50),1)))* IF(EE$40=2,0, IF(INT(DM50)=INT(DL50),DM50-DL50,INT(DM50)-DL50))+ IF($N50<=1, IF($N50>0,1/$N50,0),VDB(1,0,$N50,INT(EE$40-2),MIN($N50,INT(EE$40-2)+1),$CM50,IF($CN50="No",1,0))/ IF(DM50>INT($N50),$N50-INT($N50),1))* IF(EE$40=2,DM50, IF(INT(DM50)=INT(DL50),0,DM50-INT(DM50))))) -> 0.02571740027 | EF50: =+IF(OR(DN50=DM50,EF$40=1),0, IF(AND(EF$40>1,DN50=$N50),1-SUM($DX50:EE50), IF($N50<=1, IF($N50>0,1/$N50,0), IF(EF$40=2,0,VDB(1,0,$N50,INT(EF$40-2-1),MIN($N50,INT(EF$40-2-1)+1),$CM50,IF($CN50="No",1,0))/ IF(DM50>=INT($N50),$N50-INT($N50),1)))* IF(EF$40=2,0, IF(INT(DN50)=INT(DM50),DN50-DM50,INT(DN50)-DM50))+ IF($N50<=1, IF($N50>0,1/$N50,0),VDB(1,0,$N50,INT(EF$40-2),MIN($N50,INT(EF$40-2)+1),$CM50,IF($CN50="No",1,0))/ IF(DN50>INT($N50),$N50-INT($N50),1))* IF(EF$40=2,DN50, IF(INT(DN50)=INT(DM50),0,DN50-INT(DN50))))) -> 0.02496100614 | EH50: 0.02496100614 | EI50: 0.02571740027 | EJ50: 0.02649671543 | EK50: 0.0272996462 | EL50: 0.0281269082 | EM50: 0.02897923875 | EN50: 0.01470588235 | EO50: 0 | EQ50: 0 | ER50: 0.07915820332 | ES50: 0.1639649752 | ET50: 0.1671192269 | EU50: 0.1622039555 | EV50: 0.157433251 | EW50: 0.1528028612 | EX50: 0.1483086594
C51: Melton RWP - Convert Aeration tank 5 & 6 to IFAS | E51: Sewerage | F51: Growth | G51: Treatment | H51: Top 10 Major Projects | J51: Straight line | K51: 2022-23 | L51: 51 | M51: Declining Balance | N51: 51 | Q51: 1.874605 | R51: 2.73591 | S51: 0.9673531376 | T51: 0 | U51: 0 | V51: 0 | W51: 0 | X51: 0 | AR51: 1.874605 | AS51: 2.73591 | AT51: 0.9673531376 | AU51: 0 | AV51: 0 | AW51: 0 | AX51: 0 | AY51: 0 | BA51: 0 | BB51: 0 | BC51: 0.05468498174 | BD51: 0.1093699635 | BE51: 0.1093699635 | BF51: 0.1093699635 | BG51: 0.1093699635 | BH51: 0.1093699635 | BJ51: =+IF($K51="Ongoing",AR51,IF(RIGHT($K51,2)=RIGHT(BJ$39,2),SUM($AR51:AR51),0)+IF(RIGHT(BJ$39,2)>RIGHT($K51,2),AR51,0)) -> 0 | BK51: =+IF($K51="Ongoing",AS51,IF(RIGHT($K51,2)=RIGHT(BK$39,2),SUM($AR51:AS51),0)+IF(RIGHT(BK$39,2)>RIGHT($K51,2),AS51,0)) -> 0 | BL51: =+IF($K51="Ongoing",AT51,IF(RIGHT($K51,2)=RIGHT(BL$39,2),SUM($AR51:AT51),0)+IF(RIGHT(BL$39,2)>RIGHT($K51,2),AT51,0)) -> 5.577868138 | BM51: =+IF($K51="Ongoing",AU51,IF(RIGHT($K51,2)=RIGHT(BM$39,2),SUM($AR51:AU51),0)+IF(RIGHT(BM$39,2)>RIGHT($K51,2),AU51,0)) -> 0 | BN51: =+IF($K51="Ongoing",AV51,IF(RIGHT($K51,2)=RIGHT(BN$39,2),SUM($AR51:AV51),0)+IF(RIGHT(BN$39,2)>RIGHT($K51,2),AV51,0)) -> 0 | BO51: =+IF($K51="Ongoing",AW51,IF(RIGHT($K51,2)=RIGHT(BO$39,2),SUM($AR51:AW51),0)+IF(RIGHT(BO$39,2)>RIGHT($K51,2),AW51,0)) -> 0 | BP51: =+IF($K51="Ongoing",AX51,IF(RIGHT($K51,2)=RIGHT(BP$39,2),SUM($AR51:AX51),0)+IF(RIGHT(BP$39,2)>RIGHT($K51,2),AX51,0)) -> 0 | BQ51: =+IF($K51="Ongoing",AY51,IF(RIGHT($K51,2)=RIGHT(BQ$39,2),SUM($AR51:AY51),0)+IF(RIGHT(BQ$39,2)>RIGHT($K51,2),AY51,0)) -> 0 | BS51: =+Q51*KeyAssumptionsPriceControl_FO!Z$15 -> 1.917720915 | BT51: =+R51*KeyAssumptionsPriceControl_FO!AA$15 -> 2.863209156 | BU51: =+S51*KeyAssumptionsPriceControl_FO!AB$15 -> 1.035647463 | BV51: =+T51*KeyAssumptionsPriceControl_FO!AC$15 -> 0 | BW51: =+U51*KeyAssumptionsPriceControl_FO!AD$15 -> 0 | BX51: =+V51*KeyAssumptionsPriceControl_FO!AE$15 -> 0 | BY51: =+W51*KeyAssumptionsPriceControl_FO!AF$15 -> 0 | BZ51: =+X51*KeyAssumptionsPriceControl_FO!AG$15 -> 0 | CB51: =IF($M51="straight line",IF($N51=0,0, IF($N51<=0.5,BS51, IF($J51="straight line", IF((LEFT(CB$39,4)*1)-INT($N51)<LEFT(#REF!,4)*1,0,((OFFSET(BS51,0,-INT($N51+0.5),1,1))/$N51)*(IF($N51-INT($N51)>0.5,$N51-0.5-INT($N51),IF($N51-INT($N51)<=0.5,$N51-0.5-INT($N51)+1,0)))) +BS51/$N51*0.5, IF($J51="Declining Balance",-#REF!,0)))),IFERROR(EQ51,0)) -> 0 | CC51: =IF($M51="straight line",IF($N51=0,0, IF($N51<=0.5,BT51, IF($J51="straight line", IF((LEFT(CC$39,4)*1)-INT($N51)<LEFT(#REF!,4)*1,0,((OFFSET(BT51,0,-INT($N51+0.5),1,1))/$N51)*(IF($N51-INT($N51)>0.5,$N51-0.5-INT($N51),IF($N51-INT($N51)<=0.5,$N51-0.5-INT($N51)+1,0)))) +BT51/$N51*0.5, IF($J51="Declining Balance",-#REF!,0)))),IFERROR(ER51,0)) -> 0 | CD51: =IF($M51="straight line",IF($N51=0,0, IF($N51<=0.5,BU51, IF($J51="straight line", IF((LEFT(CD$39,4)*1)-INT($N51)<LEFT(#REF!,4)*1,0,((OFFSET(BU51,0,-INT($N51+0.5),1,1))/$N51)*(IF($N51-INT($N51)>0.5,$N51-0.5-INT($N51),IF($N51-INT($N51)<=0.5,$N51-0.5-INT($N51)+1,0)))) +BU51/$N51*0.5, IF($J51="Declining Balance",-#REF!,0)))),IFERROR(ES51,0)) -> 0.08553790492 | CE51: =IF($M51="straight line",IF($N51=0,0, IF($N51<=0.5,BV51, IF($J51="straight line", IF((LEFT(CE$39,4)*1)-INT($N51)<LEFT(#REF!,4)*1,0,((OFFSET(BV51,0,-INT($N51+0.5),1,1))/$N51)*(IF($N51-INT($N51)>0.5,$N51-0.5-INT($N51),IF($N51-INT($N51)<=0.5,$N51-0.5-INT($N51)+1,0)))) +BV51/$N51*0.5, IF($J51="Declining Balance",-#REF!,0)))),IFERROR(ET51,0)) -> 0.1685599891 | CF51: =IF($M51="straight line",IF($N51=0,0, IF($N51<=0.5,BW51, IF($J51="straight line", IF((LEFT(CF$39,4)*1)-INT($N51)<LEFT(#REF!,4)*1,0,((OFFSET(BW51,0,-INT($N51+0.5),1,1))/$N51)*(IF($N51-INT($N51)>0.5,$N51-0.5-INT($N51),IF($N51-INT($N51)<=0.5,$N51-0.5-INT($N51)+1,0)))) +BW51/$N51*0.5, IF($J51="Declining Balance",-#REF!,0)))),IFERROR(EU51,0)) -> 0.1636023424 | CG51: =IF($M51="straight line",IF($N51=0,0, IF($N51<=0.5,BX51, IF($J51="straight line", IF((LEFT(CG$39,4)*1)-INT($N51)<LEFT(#REF!,4)*1,0,((OFFSET(BX51,0,-INT($N51+0.5),1,1))/$N51)*(IF($N51-INT($N51)>0.5,$N51-0.5-INT($N51),IF($N51-INT($N51)<=0.5,$N51-0.5-INT($N51)+1,0)))) +BX51/$N51*0.5, IF($J51="Declining Balance",-#REF!,0)))),IFERROR(EV51,0)) -> 0.1587905088 | CH51: =IF($M51="straight line",IF($N51=0,0, IF($N51<=0.5,BY51, IF($J51="straight line", IF((LEFT(CH$39,4)*1)-INT($N51)<LEFT(#REF!,4)*1,0,((OFFSET(BY51,0,-INT($N51+0.5),1,1))/$N51)*(IF($N51-INT($N51)>0.5,$N51-0.5-INT($N51),IF($N51-INT($N51)<=0.5,$N51-0.5-INT($N51)+1,0)))) +BY51/$N51*0.5, IF($J51="Declining Balance",-#REF!,0)))),IFERROR(EW51,0)) -> 0.1541201997 | CI51: =IF($M51="straight line",IF($N51=0,0, IF($N51<=0.5,BZ51, IF($J51="straight line", IF((LEFT(CI$39,4)*1)-INT($N51)<LEFT(#REF!,4)*1,0,((OFFSET(BZ51,0,-INT($N51+0.5),1,1))/$N51)*(IF($N51-INT($N51)>0.5,$N51-0.5-INT($N51),IF($N51-INT($N51)<=0.5,$N51-0.5-INT($N51)+1,0)))) +BZ51/$N51*0.5, IF($J51="Declining Balance",-#REF!,0)))),IFERROR(EX51,0)) -> 0.1495872526 | CM51: 1.5 | CN51: No | CO51: =+IF($K51="ongoing",BS51,IF(RIGHT($K51,2)=RIGHT(CO$39,2),SUM($BR51:BS51),0)+IF(RIGHT(CO$39,2)>RIGHT($K51,2),BS51,0)) -> 0 | CP51: =+IF($K51="ongoing",BT51,IF(RIGHT($K51,2)=RIGHT(CP$39,2),SUM($BR51:BT51),0)+IF(RIGHT(CP$39,2)>RIGHT($K51,2),BT51,0)) -> 0 | CQ51: =+IF($K51="ongoing",BU51,IF(RIGHT($K51,2)=RIGHT(CQ$39,2),SUM($BR51:BU51),0)+IF(RIGHT(CQ$39,2)>RIGHT($K51,2),BU51,0)) -> 5.816577535 | CR51: =+IF($K51="ongoing",BV51,IF(RIGHT($K51,2)=RIGHT(CR$39,2),SUM($BR51:BV51),0)+IF(RIGHT(CR$39,2)>RIGHT($K51,2),BV51,0)) -> 0 | CS51: =+IF($K51="ongoing",BW51,IF(RIGHT($K51,2)=RIGHT(CS$39,2),SUM($BR51:BW51),0)+IF(RIGHT(CS$39,2)>RIGHT($K51,2),BW51,0)) -> 0 | CT51: =+IF($K51="ongoing",BX51,IF(RIGHT($K51,2)=RIGHT(CT$39,2),SUM($BR51:BX51),0)+IF(RIGHT(CT$39,2)>RIGHT($K51,2),BX51,0)) -> 0 | CU51: =+IF($K51="ongoing",BY51,IF(RIGHT($K51,2)=RIGHT(CU$39,2),SUM($BR51:BY51),0)+IF(RIGHT(CU$39,2)>RIGHT($K51,2),BY51,0)) -> 0 | CV51: =+IF($K51="ongoing",BZ51,IF(RIGHT($K51,2)=RIGHT(CV$39,2),SUM($BR51:BZ51),0)+IF(RIGHT(CV$39,2)>RIGHT($K51,2),BZ51,0)) -> 0 | CX51: =+MIN(IF($N51<=$CM51,MIN($N51,1),$N51),IF(CX$40=1,0.5,#REF!+1)) -> 0.5 | CY51: 1.5 | CZ51: 2.5 | DA51: 3.5 | DB51: 4.5 | DC51: 5.5 | DD51: 6.5 | DE51: 7.5 | DG51: =+IF(DG$40=1,0,MIN(IF($N51<=$CM51,MIN($N51,1),$N51),IF(DG$40=2,0.5,#REF!+1))) -> 0 | DH51: 0.5 | DI51: 1.5 | DJ51: 2.5 | DK51: 3.5 | DL51: 4.5 | DM51: 5.5 | DN51: 6.5 | DP51: =+IF(CX51=CW51,0, IF(AND(DP$40>1,CX51=$N51),1-SUM($DO51:DO51), IF($N51<=1, IF($N51>0,1/$N51,0), IF(DP$40=1,0,VDB(1,0,$N51,INT(DP$40-1-1),MIN($N51,INT(DP$40-1-1)+1),$CM51,IF($CN51="No",1,0))/ IF(CW51>=INT($N51),$N51-INT($N51),1)))* IF(DP$40=1,0, IF(INT(CX51)=INT(CW51),CX51-CW51,INT(CX51)-CW51))+ IF($N51<=1, IF($N51>0,1/$N51,0),VDB(1,0,$N51,INT(DP$40-1),MIN($N51,INT(DP$40-1)+1),$CM51,IF($CN51="No",1,0))/ IF(CX51>INT($N51),$N51-INT($N51),1))* IF(DP$40=1,CX51, IF(INT(CX51)=INT(CW51),0,CX51-INT(CX51))))) -> 0.01470588235 | DQ51: =+IF(CY51=CX51,0, IF(AND(DQ$40>1,CY51=$N51),1-SUM($DO51:DP51), IF($N51<=1, IF($N51>0,1/$N51,0), IF(DQ$40=1,0,VDB(1,0,$N51,INT(DQ$40-1-1),MIN($N51,INT(DQ$40-1-1)+1),$CM51,IF($CN51="No",1,0))/ IF(CX51>=INT($N51),$N51-INT($N51),1)))* IF(DQ$40=1,0, IF(INT(CY51)=INT(CX51),CY51-CX51,INT(CY51)-CX51))+ IF($N51<=1, IF($N51>0,1/$N51,0),VDB(1,0,$N51,INT(DQ$40-1),MIN($N51,INT(DQ$40-1)+1),$CM51,IF($CN51="No",1,0))/ IF(CY51>INT($N51),$N51-INT($N51),1))* IF(DQ$40=1,CY51, IF(INT(CY51)=INT(CX51),0,CY51-INT(CY51))))) -> 0.02897923875 | DR51: =+IF(CZ51=CY51,0, IF(AND(DR$40>1,CZ51=$N51),1-SUM($DO51:DQ51), IF($N51<=1, IF($N51>0,1/$N51,0), IF(DR$40=1,0,VDB(1,0,$N51,INT(DR$40-1-1),MIN($N51,INT(DR$40-1-1)+1),$CM51,IF($CN51="No",1,0))/ IF(CY51>=INT($N51),$N51-INT($N51),1)))* IF(DR$40=1,0, IF(INT(CZ51)=INT(CY51),CZ51-CY51,INT(CZ51)-CY51))+ IF($N51<=1, IF($N51>0,1/$N51,0),VDB(1,0,$N51,INT(DR$40-1),MIN($N51,INT(DR$40-1)+1),$CM51,IF($CN51="No",1,0))/ IF(CZ51>INT($N51),$N51-INT($N51),1))* IF(DR$40=1,CZ51, IF(INT(CZ51)=INT(CY51),0,CZ51-INT(CZ51))))) -> 0.0281269082 | DS51: =+IF(DA51=CZ51,0, IF(AND(DS$40>1,DA51=$N51),1-SUM($DO51:DR51), IF($N51<=1, IF($N51>0,1/$N51,0), IF(DS$40=1,0,VDB(1,0,$N51,INT(DS$40-1-1),MIN($N51,INT(DS$40-1-1)+1),$CM51,IF($CN51="No",1,0))/ IF(CZ51>=INT($N51),$N51-INT($N51),1)))* IF(DS$40=1,0, IF(INT(DA51)=INT(CZ51),DA51-CZ51,INT(DA51)-CZ51))+ IF($N51<=1, IF($N51>0,1/$N51,0),VDB(1,0,$N51,INT(DS$40-1),MIN($N51,INT(DS$40-1)+1),$CM51,IF($CN51="No",1,0))/ IF(DA51>INT($N51),$N51-INT($N51),1))* IF(DS$40=1,DA51, IF(INT(DA51)=INT(CZ51),0,DA51-INT(DA51))))) -> 0.0272996462 | DT51: =+IF(DB51=DA51,0, IF(AND(DT$40>1,DB51=$N51),1-SUM($DO51:DS51), IF($N51<=1, IF($N51>0,1/$N51,0), IF(DT$40=1,0,VDB(1,0,$N51,INT(DT$40-1-1),MIN($N51,INT(DT$40-1-1)+1),$CM51,IF($CN51="No",1,0))/ IF(DA51>=INT($N51),$N51-INT($N51),1)))* IF(DT$40=1,0, IF(INT(DB51)=INT(DA51),DB51-DA51,INT(DB51)-DA51))+ IF($N51<=1, IF($N51>0,1/$N51,0),VDB(1,0,$N51,INT(DT$40-1),MIN($N51,INT(DT$40-1)+1),$CM51,IF($CN51="No",1,0))/ IF(DB51>INT($N51),$N51-INT($N51),1))* IF(DT$40=1,DB51, IF(INT(DB51)=INT(DA51),0,DB51-INT(DB51))))) -> 0.02649671543 | DU51: =+IF(DC51=DB51,0, IF(AND(DU$40>1,DC51=$N51),1-SUM($DO51:DT51), IF($N51<=1, IF($N51>0,1/$N51,0), IF(DU$40=1,0,VDB(1,0,$N51,INT(DU$40-1-1),MIN($N51,INT(DU$40-1-1)+1),$CM51,IF($CN51="No",1,0))/ IF(DB51>=INT($N51),$N51-INT($N51),1)))* IF(DU$40=1,0, IF(INT(DC51)=INT(DB51),DC51-DB51,INT(DC51)-DB51))+ IF($N51<=1, IF($N51>0,1/$N51,0),VDB(1,0,$N51,INT(DU$40-1),MIN($N51,INT(DU$40-1)+1),$CM51,IF($CN51="No",1,0))/ IF(DC51>INT($N51),$N51-INT($N51),1))* IF(DU$40=1,DC51, IF(INT(DC51)=INT(DB51),0,DC51-INT(DC51))))) -> 0.02571740027 | DV51: =+IF(DD51=DC51,0, IF(AND(DV$40>1,DD51=$N51),1-SUM($DO51:DU51), IF($N51<=1, IF($N51>0,1/$N51,0), IF(DV$40=1,0,VDB(1,0,$N51,INT(DV$40-1-1),MIN($N51,INT(DV$40-1-1)+1),$CM51,IF($CN51="No",1,0))/ IF(DC51>=INT($N51),$N51-INT($N51),1)))* IF(DV$40=1,0, IF(INT(DD51)=INT(DC51),DD51-DC51,INT(DD51)-DC51))+ IF($N51<=1, IF($N51>0,1/$N51,0),VDB(1,0,$N51,INT(DV$40-1),MIN($N51,INT(DV$40-1)+1),$CM51,IF($CN51="No",1,0))/ IF(DD51>INT($N51),$N51-INT($N51),1))* IF(DV$40=1,DD51, IF(INT(DD51)=INT(DC51),0,DD51-INT(DD51))))) -> 0.02496100614 | DW51: =+IF(DE51=DD51,0, IF(AND(DW$40>1,DE51=$N51),1-SUM($DO51:DV51), IF($N51<=1, IF($N51>0,1/$N51,0), IF(DW$40=1,0,VDB(1,0,$N51,INT(DW$40-1-1),MIN($N51,INT(DW$40-1-1)+1),$CM51,IF($CN51="No",1,0))/ IF(DD51>=INT($N51),$N51-INT($N51),1)))* IF(DW$40=1,0, IF(INT(DE51)=INT(DD51),DE51-DD51,INT(DE51)-DD51))+ IF($N51<=1, IF($N51>0,1/$N51,0),VDB(1,0,$N51,INT(DW$40-1),MIN($N51,INT(DW$40-1)+1),$CM51,IF($CN51="No",1,0))/ IF(DE51>INT($N51),$N51-INT($N51),1))* IF(DW$40=1,DE51, IF(INT(DE51)=INT(DD51),0,DE51-INT(DE51))))) -> 0.0242268589 | DY51: =+IF(OR(DG51=DF51,DY$40=1),0, IF(AND(DY$40>1,DG51=$N51),1-SUM($DX51:DX51), IF($N51<=1, IF($N51>0,1/$N51,0), IF(DY$40=2,0,VDB(1,0,$N51,INT(DY$40-2-1),MIN($N51,INT(DY$40-2-1)+1),$CM51,IF($CN51="No",1,0))/ IF(DF51>=INT($N51),$N51-INT($N51),1)))* IF(DY$40=2,0, IF(INT(DG51)=INT(DF51),DG51-DF51,INT(DG51)-DF51))+ IF($N51<=1, IF($N51>0,1/$N51,0),VDB(1,0,$N51,INT(DY$40-2),MIN($N51,INT(DY$40-2)+1),$CM51,IF($CN51="No",1,0))/ IF(DG51>INT($N51),$N51-INT($N51),1))* IF(DY$40=2,DG51, IF(INT(DG51)=INT(DF51),0,DG51-INT(DG51))))) -> 0 | DZ51: =+IF(OR(DH51=DG51,DZ$40=1),0, IF(AND(DZ$40>1,DH51=$N51),1-SUM($DX51:DY51), IF($N51<=1, IF($N51>0,1/$N51,0), IF(DZ$40=2,0,VDB(1,0,$N51,INT(DZ$40-2-1),MIN($N51,INT(DZ$40-2-1)+1),$CM51,IF($CN51="No",1,0))/ IF(DG51>=INT($N51),$N51-INT($N51),1)))* IF(DZ$40=2,0, IF(INT(DH51)=INT(DG51),DH51-DG51,INT(DH51)-DG51))+ IF($N51<=1, IF($N51>0,1/$N51,0),VDB(1,0,$N51,INT(DZ$40-2),MIN($N51,INT(DZ$40-2)+1),$CM51,IF($CN51="No",1,0))/ IF(DH51>INT($N51),$N51-INT($N51),1))* IF(DZ$40=2,DH51, IF(INT(DH51)=INT(DG51),0,DH51-INT(DH51))))) -> 0.01470588235 | EA51: =+IF(OR(DI51=DH51,EA$40=1),0, IF(AND(EA$40>1,DI51=$N51),1-SUM($DX51:DZ51), IF($N51<=1, IF($N51>0,1/$N51,0), IF(EA$40=2,0,VDB(1,0,$N51,INT(EA$40-2-1),MIN($N51,INT(EA$40-2-1)+1),$CM51,IF($CN51="No",1,0))/ IF(DH51>=INT($N51),$N51-INT($N51),1)))* IF(EA$40=2,0, IF(INT(DI51)=INT(DH51),DI51-DH51,INT(DI51)-DH51))+ IF($N51<=1, IF($N51>0,1/$N51,0),VDB(1,0,$N51,INT(EA$40-2),MIN($N51,INT(EA$40-2)+1),$CM51,IF($CN51="No",1,0))/ IF(DI51>INT($N51),$N51-INT($N51),1))* IF(EA$40=2,DI51, IF(INT(DI51)=INT(DH51),0,DI51-INT(DI51))))) -> 0.02897923875 | EB51: =+IF(OR(DJ51=DI51,EB$40=1),0, IF(AND(EB$40>1,DJ51=$N51),1-SUM($DX51:EA51), IF($N51<=1, IF($N51>0,1/$N51,0), IF(EB$40=2,0,VDB(1,0,$N51,INT(EB$40-2-1),MIN($N51,INT(EB$40-2-1)+1),$CM51,IF($CN51="No",1,0))/ IF(DI51>=INT($N51),$N51-INT($N51),1)))* IF(EB$40=2,0, IF(INT(DJ51)=INT(DI51),DJ51-DI51,INT(DJ51)-DI51))+ IF($N51<=1, IF($N51>0,1/$N51,0),VDB(1,0,$N51,INT(EB$40-2),MIN($N51,INT(EB$40-2)+1),$CM51,IF($CN51="No",1,0))/ IF(DJ51>INT($N51),$N51-INT($N51),1))* IF(EB$40=2,DJ51, IF(INT(DJ51)=INT(DI51),0,DJ51-INT(DJ51))))) -> 0.0281269082 | EC51: =+IF(OR(DK51=DJ51,EC$40=1),0, IF(AND(EC$40>1,DK51=$N51),1-SUM($DX51:EB51), IF($N51<=1, IF($N51>0,1/$N51,0), IF(EC$40=2,0,VDB(1,0,$N51,INT(EC$40-2-1),MIN($N51,INT(EC$40-2-1)+1),$CM51,IF($CN51="No",1,0))/ IF(DJ51>=INT($N51),$N51-INT($N51),1)))* IF(EC$40=2,0, IF(INT(DK51)=INT(DJ51),DK51-DJ51,INT(DK51)-DJ51))+ IF($N51<=1, IF($N51>0,1/$N51,0),VDB(1,0,$N51,INT(EC$40-2),MIN($N51,INT(EC$40-2)+1),$CM51,IF($CN51="No",1,0))/ IF(DK51>INT($N51),$N51-INT($N51),1))* IF(EC$40=2,DK51, IF(INT(DK51)=INT(DJ51),0,DK51-INT(DK51))))) -> 0.0272996462 | ED51: =+IF(OR(DL51=DK51,ED$40=1),0, IF(AND(ED$40>1,DL51=$N51),1-SUM($DX51:EC51), IF($N51<=1, IF($N51>0,1/$N51,0), IF(ED$40=2,0,VDB(1,0,$N51,INT(ED$40-2-1),MIN($N51,INT(ED$40-2-1)+1),$CM51,IF($CN51="No",1,0))/ IF(DK51>=INT($N51),$N51-INT($N51),1)))* IF(ED$40=2,0, IF(INT(DL51)=INT(DK51),DL51-DK51,INT(DL51)-DK51))+ IF($N51<=1, IF($N51>0,1/$N51,0),VDB(1,0,$N51,INT(ED$40-2),MIN($N51,INT(ED$40-2)+1),$CM51,IF($CN51="No",1,0))/ IF(DL51>INT($N51),$N51-INT($N51),1))* IF(ED$40=2,DL51, IF(INT(DL51)=INT(DK51),0,DL51-INT(DL51))))) -> 0.02649671543 | EE51: =+IF(OR(DM51=DL51,EE$40=1),0, IF(AND(EE$40>1,DM51=$N51),1-SUM($DX51:ED51), IF($N51<=1, IF($N51>0,1/$N51,0), IF(EE$40=2,0,VDB(1,0,$N51,INT(EE$40-2-1),MIN($N51,INT(EE$40-2-1)+1),$CM51,IF($CN51="No",1,0))/ IF(DL51>=INT($N51),$N51-INT($N51),1)))* IF(EE$40=2,0, IF(INT(DM51)=INT(DL51),DM51-DL51,INT(DM51)-DL51))+ IF($N51<=1, IF($N51>0,1/$N51,0),VDB(1,0,$N51,INT(EE$40-2),MIN($N51,INT(EE$40-2)+1),$CM51,IF($CN51="No",1,0))/ IF(DM51>INT($N51),$N51-INT($N51),1))* IF(EE$40=2,DM51, IF(INT(DM51)=INT(DL51),0,DM51-INT(DM51))))) -> 0.02571740027 | EF51: =+IF(OR(DN51=DM51,EF$40=1),0, IF(AND(EF$40>1,DN51=$N51),1-SUM($DX51:EE51), IF($N51<=1, IF($N51>0,1/$N51,0), IF(EF$40=2,0,VDB(1,0,$N51,INT(EF$40-2-1),MIN($N51,INT(EF$40-2-1)+1),$CM51,IF($CN51="No",1,0))/ IF(DM51>=INT($N51),$N51-INT($N51),1)))* IF(EF$40=2,0, IF(INT(DN51)=INT(DM51),DN51-DM51,INT(DN51)-DM51))+ IF($N51<=1, IF($N51>0,1/$N51,0),VDB(1,0,$N51,INT(EF$40-2),MIN($N51,INT(EF$40-2)+1),$CM51,IF($CN51="No",1,0))/ IF(DN51>INT($N51),$N51-INT($N51),1))* IF(EF$40=2,DN51, IF(INT(DN51)=INT(DM51),0,DN51-INT(DN51))))) -> 0.02496100614 | EH51: 0.02496100614 | EI51: 0.02571740027 | EJ51: 0.02649671543 | EK51: 0.0272996462 | EL51: 0.0281269082 | EM51: 0.02897923875 | EN51: 0.01470588235 | EO51: 0 | EQ51: 0 | ER51: 0 | ES51: 0.08553790492 | ET51: 0.1685599891 | EU51: 0.1636023424 | EV51: 0.1587905088 | EW51: 0.1541201997 | EX51: 0.1495872526
C53: Water infrastructure - Growth | E53: Water | F53: Growth | G53: Headworks | H53: Capital Programs / Allocation | J53: Straight line | K53: Ongoing | L53: 82.02642352 | M53: Declining Balance | N53: 82.02642352 | Q53: 2.113114541 | R53: 1.828610824 | S53: 1.882236038 | T53: 2.159877448 | U53: 1.876465108 | V53: 1.009834198 | W53: 3.139626959 | X53: 7.918731418 | AI53: 0 | AJ53: 0 | AK53: 0 | AL53: 0 | AM53: 0 | AN53: 0 | AO53: 0 | AP53: 0 | AR53: =+Q53-Z53-AI53 -> 2.113114541 | AS53: =+R53-AA53-AJ53 -> 1.828610824 | AT53: =+S53-AB53-AK53 -> 1.882236038 | AU53: =+T53-AC53-AL53 -> 2.159877448 | AV53: =+U53-AD53-AM53 -> 1.876465108 | AW53: =+V53-AE53-AN53 -> 1.009834198 | AX53: =+W53-AF53-AO53 -> 3.139626959 | AY53: =+X53-AG53-AP53 -> 7.918731418 | BA53: =IF($L53=0,0, IF($L53<=0.5,BJ53, IF($J53="straight line", IF((LEFT(BA$39,4)*1)-INT($L53)<LEFT($BA$39,4)*1,0,((OFFSET(BJ53,0,-INT($L53+0.5),1,1))/$L53)*(IF($L53-INT($L53)>0.5,$L53-0.5-INT($L53),IF($L53-INT($L53)<=0.5,$L53-0.5-INT($L53)+1,0)))) +BJ53/$L53*0.5, IF($J53="Declining Balance",-$BA$38,0)))) -> 0.01288069411 | BB53: =IF($L53=0,0, IF($L53<=0.5,BK53, IF(AND($J53="straight line",$L53<1.51),(BJ53-((BJ53/$L53)*0.5))+BK53/$L53*0.5, IF($J53="straight line", IF((LEFT(BB$39,4)*1)-INT($L53)<LEFT($BA$39,4)*1,0,((OFFSET(BK53,0,-INT($L53+0.5),1,1))/$L53)*(IF($L53-INT($L53)>0.5,$L53-0.5-INT($L53),IF($L53-INT($L53)<=0.5,$L53-0.5-INT($L53)+1,0)))) +BK53/$L53*0.5 +SUM(OFFSET(BK53,0,MAX(-INT($L53+(0.5-(10^-12))),-BB$40)+1,1,MIN(INT($L53+(0.5-(10^-12))),BB$40)-1))*1/$L53, IF($J53="Declining Balance",-$BA$38,0))))) -> 0.0369078624 | BC53: =IF($L53=0,0, IF($L53<=0.5,BL53, IF(AND($J53="straight line",$L53<1.51),(BK53-((BK53/$L53)*0.5))+BL53/$L53*0.5, IF($J53="straight line", IF((LEFT(BC$39,4)*1)-INT($L53)<LEFT($BA$39,4)*1,0,((OFFSET(BL53,0,-INT($L53+0.5),1,1))/$L53)*(IF($L53-INT($L53)>0.5,$L53-0.5-INT($L53),IF($L53-INT($L53)<=0.5,$L53-0.5-INT($L53)+1,0)))) +BL53/$L53*0.5 +SUM(OFFSET(BL53,0,MAX(-INT($L53+(0.5-(10^-12))),-BC$40)+1,1,MIN(INT($L53+(0.5-(10^-12))),BC$40)-1))*1/$L53, IF($J53="Declining Balance",-$BA$38,0))))) -> 0.05952768845 | BD53: 0.08416678225 | BE53: 0.1087706988 | BF53: 0.1263644154 | BG53: 0.1516578573 | BH53: 0.2190651506 | BJ53: =+IF($K53="Ongoing",AR53,IF(RIGHT($K53,2)=RIGHT(BJ$39,2),SUM($AR53:AR53),0)+IF(RIGHT(BJ$39,2)>RIGHT($K53,2),AR53,0)) -> 2.113114541 | BK53: =+IF($K53="Ongoing",AS53,IF(RIGHT($K53,2)=RIGHT(BK$39,2),SUM($AR53:AS53),0)+IF(RIGHT(BK$39,2)>RIGHT($K53,2),AS53,0)) -> 1.828610824 | BL53: =+IF($K53="Ongoing",AT53,IF(RIGHT($K53,2)=RIGHT(BL$39,2),SUM($AR53:AT53),0)+IF(RIGHT(BL$39,2)>RIGHT($K53,2),AT53,0)) -> 1.882236038 | BM53: =+IF($K53="Ongoing",AU53,IF(RIGHT($K53,2)=RIGHT(BM$39,2),SUM($AR53:AU53),0)+IF(RIGHT(BM$39,2)>RIGHT($K53,2),AU53,0)) -> 2.159877448 | BN53: =+IF($K53="Ongoing",AV53,IF(RIGHT($K53,2)=RIGHT(BN$39,2),SUM($AR53:AV53),0)+IF(RIGHT(BN$39,2)>RIGHT($K53,2),AV53,0)) -> 1.876465108 | BO53: =+IF($K53="Ongoing",AW53,IF(RIGHT($K53,2)=RIGHT(BO$39,2),SUM($AR53:AW53),0)+IF(RIGHT(BO$39,2)>RIGHT($K53,2),AW53,0)) -> 1.009834198 | BP53: =+IF($K53="Ongoing",AX53,IF(RIGHT($K53,2)=RIGHT(BP$39,2),SUM($AR53:AX53),0)+IF(RIGHT(BP$39,2)>RIGHT($K53,2),AX53,0)) -> 3.139626959 | BQ53: =+IF($K53="Ongoing",AY53,IF(RIGHT($K53,2)=RIGHT(BQ$39,2),SUM($AR53:AY53),0)+IF(RIGHT(BQ$39,2)>RIGHT($K53,2),AY53,0)) -> 7.918731418 | BS53: =+Q53*KeyAssumptionsPriceControl_FO!Z$15 -> 2.161716175 | BT53: =+R53*KeyAssumptionsPriceControl_FO!AA$15 -> 1.913694257 | BU53: =+S53*KeyAssumptionsPriceControl_FO!AB$15 -> 2.015120334 | BV53: =+T53*KeyAssumptionsPriceControl_FO!AC$15 -> 2.365547345 | BW53: =+U53*KeyAssumptionsPriceControl_FO!AD$15 -> 2.102416043 | BX53: =+V53*KeyAssumptionsPriceControl_FO!AE$15 -> 1.157454362 | BY53: =+W53*KeyAssumptionsPriceControl_FO!AF$15 -> 3.681353189 | BZ53: =+X53*KeyAssumptionsPriceControl_FO!AG$15 -> 9.498623698 | CB53: =IF($M53="straight line",IF($N53=0,0, IF($N53<=0.5,BS53, IF($J53="straight line", IF((LEFT(CB$39,4)*1)-INT($N53)<LEFT(#REF!,4)*1,0,((OFFSET(BS53,0,-INT($N53+0.5),1,1))/$N53)*(IF($N53-INT($N53)>0.5,$N53-0.5-INT($N53),IF($N53-INT($N53)<=0.5,$N53-0.5-INT($N53)+1,0)))) +BS53/$N53*0.5, IF($J53="Declining Balance",-#REF!,0)))),IFERROR(EQ53,0)) -> 0.01976542511 | CC53: =IF($M53="straight line",IF($N53=0,0, IF($N53<=0.5,BT53, IF($J53="straight line", IF((LEFT(CC$39,4)*1)-INT($N53)<LEFT(#REF!,4)*1,0,((OFFSET(BT53,0,-INT($N53+0.5),1,1))/$N53)*(IF($N53-INT($N53)>0.5,$N53-0.5-INT($N53),IF($N53-INT($N53)<=0.5,$N53-0.5-INT($N53)+1,0)))) +BT53/$N53*0.5, IF($J53="Declining Balance",-#REF!,0)))),IFERROR(ER53,0)) -> 0.05666706676 | CD53: =IF($M53="straight line",IF($N53=0,0, IF($N53<=0.5,BU53, IF($J53="straight line", IF((LEFT(CD$39,4)*1)-INT($N53)<LEFT(#REF!,4)*1,0,((OFFSET(BU53,0,-INT($N53+0.5),1,1))/$N53)*(IF($N53-INT($N53)>0.5,$N53-0.5-INT($N53),IF($N53-INT($N53)<=0.5,$N53-0.5-INT($N53)+1,0)))) +BU53/$N53*0.5, IF($J53="Declining Balance",-#REF!,0)))),IFERROR(ES53,0)) -> 0.09155351214 | CE53: =IF($M53="straight line",IF($N53=0,0, IF($N53<=0.5,BV53, IF($J53="straight line", IF((LEFT(CE$39,4)*1)-INT($N53)<LEFT(#REF!,4)*1,0,((OFFSET(BV53,0,-INT($N53+0.5),1,1))/$N53)*(IF($N53-INT($N53)>0.5,$N53-0.5-INT($N53),IF($N53-INT($N53)<=0.5,$N53-0.5-INT($N53)+1,0)))) +BV53/$N53*0.5, IF($J53="Declining Balance",-#REF!,0)))),IFERROR(ET53,0)) -> 0.1299334677 | CF53: =IF($M53="straight line",IF($N53=0,0, IF($N53<=0.5,BW53, IF($J53="straight line", IF((LEFT(CF$39,4)*1)-INT($N53)<LEFT(#REF!,4)*1,0,((OFFSET(BW53,0,-INT($N53+0.5),1,1))/$N53)*(IF($N53-INT($N53)>0.5,$N53-0.5-INT($N53),IF($N53-INT($N53)<=0.5,$N53-0.5-INT($N53)+1,0)))) +BW53/$N53*0.5, IF($J53="Declining Balance",-#REF!,0)))),IFERROR(EU53,0)) -> 0.1684097563 | CG53: =IF($M53="straight line",IF($N53=0,0, IF($N53<=0.5,BX53, IF($J53="straight line", IF((LEFT(CG$39,4)*1)-INT($N53)<LEFT(#REF!,4)*1,0,((OFFSET(BX53,0,-INT($N53+0.5),1,1))/$N53)*(IF($N53-INT($N53)>0.5,$N53-0.5-INT($N53),IF($N53-INT($N53)<=0.5,$N53-0.5-INT($N53)+1,0)))) +BX53/$N53*0.5, IF($J53="Declining Balance",-#REF!,0)))),IFERROR(EV53,0)) -> 0.1951363655 | CH53: =IF($M53="straight line",IF($N53=0,0, IF($N53<=0.5,BY53, IF($J53="straight line", IF((LEFT(CH$39,4)*1)-INT($N53)<LEFT(#REF!,4)*1,0,((OFFSET(BY53,0,-INT($N53+0.5),1,1))/$N53)*(IF($N53-INT($N53)>0.5,$N53-0.5-INT($N53),IF($N53-INT($N53)<=0.5,$N53-0.5-INT($N53)+1,0)))) +BY53/$N53*0.5, IF($J53="Declining Balance",-#REF!,0)))),IFERROR(EW53,0)) -> 0.2358110771 | CI53: =IF($M53="straight line",IF($N53=0,0, IF($N53<=0.5,BZ53, IF($J53="straight line", IF((LEFT(CI$39,4)*1)-INT($N53)<LEFT(#REF!,4)*1,0,((OFFSET(BZ53,0,-INT($N53+0.5),1,1))/$N53)*(IF($N53-INT($N53)>0.5,$N53-0.5-INT($N53),IF($N53-INT($N53)<=0.5,$N53-0.5-INT($N53)+1,0)))) +BZ53/$N53*0.5, IF($J53="Declining Balance",-#REF!,0)))),IFERROR(EX53,0)) -> 0.3520085856 | CM53: 1.5 | CN53: No | CO53: =+IF($K53="ongoing",BS53,IF(RIGHT($K53,2)=RIGHT(CO$39,2),SUM($BR53:BS53),0)+IF(RIGHT(CO$39,2)>RIGHT($K53,2),BS53,0)) -> 2.161716175 | CP53: =+IF($K53="ongoing",BT53,IF(RIGHT($K53,2)=RIGHT(CP$39,2),SUM($BR53:BT53),0)+IF(RIGHT(CP$39,2)>RIGHT($K53,2),BT53,0)) -> 1.913694257 | CQ53: =+IF($K53="ongoing",BU53,IF(RIGHT($K53,2)=RIGHT(CQ$39,2),SUM($BR53:BU53),0)+IF(RIGHT(CQ$39,2)>RIGHT($K53,2),BU53,0)) -> 2.015120334 | CR53: =+IF($K53="ongoing",BV53,IF(RIGHT($K53,2)=RIGHT(CR$39,2),SUM($BR53:BV53),0)+IF(RIGHT(CR$39,2)>RIGHT($K53,2),BV53,0)) -> 2.365547345 | CS53: =+IF($K53="ongoing",BW53,IF(RIGHT($K53,2)=RIGHT(CS$39,2),SUM($BR53:BW53),0)+IF(RIGHT(CS$39,2)>RIGHT($K53,2),BW53,0)) -> 2.102416043 | CT53: =+IF($K53="ongoing",BX53,IF(RIGHT($K53,2)=RIGHT(CT$39,2),SUM($BR53:BX53),0)+IF(RIGHT(CT$39,2)>RIGHT($K53,2),BX53,0)) -> 1.157454362 | CU53: =+IF($K53="ongoing",BY53,IF(RIGHT($K53,2)=RIGHT(CU$39,2),SUM($BR53:BY53),0)+IF(RIGHT(CU$39,2)>RIGHT($K53,2),BY53,0)) -> 3.681353189 | CV53: =+IF($K53="ongoing",BZ53,IF(RIGHT($K53,2)=RIGHT(CV$39,2),SUM($BR53:BZ53),0)+IF(RIGHT(CV$39,2)>RIGHT($K53,2),BZ53,0)) -> 9.498623698 | CX53: =+MIN(IF($N53<=$CM53,MIN($N53,1),$N53),IF(CX$40=1,0.5,#REF!+1)) -> 0.5 | CY53: =+MIN(IF($N53<=$CM53,MIN($N53,1),$N53),IF(CY$40=1,0.5,CX53+1)) -> 1.5 | CZ53: 2.5 | DA53: 3.5 | DB53: 4.5 | DC53: 5.5 | DD53: 6.5 | DE53: 7.5 | DG53: =+IF(DG$40=1,0,MIN(IF($N53<=$CM53,MIN($N53,1),$N53),IF(DG$40=2,0.5,#REF!+1))) -> 0 | DH53: =+IF(DH$40=1,0,MIN(IF($N53<=$CM53,MIN($N53,1),$N53),IF(DH$40=2,0.5,DG53+1))) -> 0.5 | DI53: 1.5 | DJ53: 2.5 | DK53: 3.5 | DL53: 4.5 | DM53: 5.5 | DN53: 6.5 | DP53: =+IF(CX53=CW53,0, IF(AND(DP$40>1,CX53=$N53),1-SUM($DO53:DO53), IF($N53<=1, IF($N53>0,1/$N53,0), IF(DP$40=1,0,VDB(1,0,$N53,INT(DP$40-1-1),MIN($N53,INT(DP$40-1-1)+1),$CM53,IF($CN53="No",1,0))/ IF(CW53>=INT($N53),$N53-INT($N53),1)))* IF(DP$40=1,0, IF(INT(CX53)=INT(CW53),CX53-CW53,INT(CX53)-CW53))+ IF($N53<=1, IF($N53>0,1/$N53,0),VDB(1,0,$N53,INT(DP$40-1),MIN($N53,INT(DP$40-1)+1),$CM53,IF($CN53="No",1,0))/ IF(CX53>INT($N53),$N53-INT($N53),1))* IF(DP$40=1,CX53, IF(INT(CX53)=INT(CW53),0,CX53-INT(CX53))))) -> 0.009143395114 | DQ53: =+IF(CY53=CX53,0, IF(AND(DQ$40>1,CY53=$N53),1-SUM($DO53:DP53), IF($N53<=1, IF($N53>0,1/$N53,0), IF(DQ$40=1,0,VDB(1,0,$N53,INT(DQ$40-1-1),MIN($N53,INT(DQ$40-1-1)+1),$CM53,IF($CN53="No",1,0))/ IF(CX53>=INT($N53),$N53-INT($N53),1)))* IF(DQ$40=1,0, IF(INT(CY53)=INT(CX53),CY53-CX53,INT(CY53)-CX53))+ IF($N53<=1, IF($N53>0,1/$N53,0),VDB(1,0,$N53,INT(DQ$40-1),MIN($N53,INT(DQ$40-1)+1),$CM53,IF($CN53="No",1,0))/ IF(CY53>INT($N53),$N53-INT($N53),1))* IF(DQ$40=1,CY53, IF(INT(CY53)=INT(CX53),0,CY53-INT(CY53))))) -> 0.01811958688 | DR53: =+IF(CZ53=CY53,0, IF(AND(DR$40>1,CZ53=$N53),1-SUM($DO53:DQ53), IF($N53<=1, IF($N53>0,1/$N53,0), IF(DR$40=1,0,VDB(1,0,$N53,INT(DR$40-1-1),MIN($N53,INT(DR$40-1-1)+1),$CM53,IF($CN53="No",1,0))/ IF(CY53>=INT($N53),$N53-INT($N53),1)))* IF(DR$40=1,0, IF(INT(CZ53)=INT(CY53),CZ53-CY53,INT(CZ53)-CY53))+ IF($N53<=1, IF($N53>0,1/$N53,0),VDB(1,0,$N53,INT(DR$40-1),MIN($N53,INT(DR$40-1)+1),$CM53,IF($CN53="No",1,0))/ IF(CZ53>INT($N53),$N53-INT($N53),1))* IF(DR$40=1,CZ53, IF(INT(CZ53)=INT(CY53),0,CZ53-INT(CZ53))))) -> 0.0177882378 | DS53: =+IF(DA53=CZ53,0, IF(AND(DS$40>1,DA53=$N53),1-SUM($DO53:DR53), IF($N53<=1, IF($N53>0,1/$N53,0), IF(DS$40=1,0,VDB(1,0,$N53,INT(DS$40-1-1),MIN($N53,INT(DS$40-1-1)+1),$CM53,IF($CN53="No",1,0))/ IF(CZ53>=INT($N53),$N53-INT($N53),1)))* IF(DS$40=1,0, IF(INT(DA53)=INT(CZ53),DA53-CZ53,INT(DA53)-CZ53))+ IF($N53<=1, IF($N53>0,1/$N53,0),VDB(1,0,$N53,INT(DS$40-1),MIN($N53,INT(DS$40-1)+1),$CM53,IF($CN53="No",1,0))/ IF(DA53>INT($N53),$N53-INT($N53),1))* IF(DS$40=1,DA53, IF(INT(DA53)=INT(CZ53),0,DA53-INT(DA53))))) -> 0.01746294802 | DT53: =+IF(DB53=DA53,0, IF(AND(DT$40>1,DB53=$N53),1-SUM($DO53:DS53), IF($N53<=1, IF($N53>0,1/$N53,0), IF(DT$40=1,0,VDB(1,0,$N53,INT(DT$40-1-1),MIN($N53,INT(DT$40-1-1)+1),$CM53,IF($CN53="No",1,0))/ IF(DA53>=INT($N53),$N53-INT($N53),1)))* IF(DT$40=1,0, IF(INT(DB53)=INT(DA53),DB53-DA53,INT(DB53)-DA53))+ IF($N53<=1, IF($N53>0,1/$N53,0),VDB(1,0,$N53,INT(DT$40-1),MIN($N53,INT(DT$40-1)+1),$CM53,IF($CN53="No",1,0))/ IF(DB53>INT($N53),$N53-INT($N53),1))* IF(DT$40=1,DB53, IF(INT(DB53)=INT(DA53),0,DB53-INT(DB53))))) -> 0.01714360676 | DU53: =+IF(DC53=DB53,0, IF(AND(DU$40>1,DC53=$N53),1-SUM($DO53:DT53), IF($N53<=1, IF($N53>0,1/$N53,0), IF(DU$40=1,0,VDB(1,0,$N53,INT(DU$40-1-1),MIN($N53,INT(DU$40-1-1)+1),$CM53,IF($CN53="No",1,0))/ IF(DB53>=INT($N53),$N53-INT($N53),1)))* IF(DU$40=1,0, IF(INT(DC53)=INT(DB53),DC53-DB53,INT(DC53)-DB53))+ IF($N53<=1, IF($N53>0,1/$N53,0),VDB(1,0,$N53,INT(DU$40-1),MIN($N53,INT(DU$40-1)+1),$CM53,IF($CN53="No",1,0))/ IF(DC53>INT($N53),$N53-INT($N53),1))* IF(DU$40=1,DC53, IF(INT(DC53)=INT(DB53),0,DC53-INT(DC53))))) -> 0.01683010521 | DV53: =+IF(DD53=DC53,0, IF(AND(DV$40>1,DD53=$N53),1-SUM($DO53:DU53), IF($N53<=1, IF($N53>0,1/$N53,0), IF(DV$40=1,0,VDB(1,0,$N53,INT(DV$40-1-1),MIN($N53,INT(DV$40-1-1)+1),$CM53,IF($CN53="No",1,0))/ IF(DC53>=INT($N53),$N53-INT($N53),1)))* IF(DV$40=1,0, IF(INT(DD53)=INT(DC53),DD53-DC53,INT(DD53)-DC53))+ IF($N53<=1, IF($N53>0,1/$N53,0),VDB(1,0,$N53,INT(DV$40-1),MIN($N53,INT(DV$40-1)+1),$CM53,IF($CN53="No",1,0))/ IF(DD53>INT($N53),$N53-INT($N53),1))* IF(DV$40=1,DD53, IF(INT(DD53)=INT(DC53),0,DD53-INT(DD53))))) -> 0.01652233661 | DW53: =+IF(DE53=DD53,0, IF(AND(DW$40>1,DE53=$N53),1-SUM($DO53:DV53), IF($N53<=1, IF($N53>0,1/$N53,0), IF(DW$40=1,0,VDB(1,0,$N53,INT(DW$40-1-1),MIN($N53,INT(DW$40-1-1)+1),$CM53,IF($CN53="No",1,0))/ IF(DD53>=INT($N53),$N53-INT($N53),1)))* IF(DW$40=1,0, IF(INT(DE53)=INT(DD53),DE53-DD53,INT(DE53)-DD53))+ IF($N53<=1, IF($N53>0,1/$N53,0),VDB(1,0,$N53,INT(DW$40-1),MIN($N53,INT(DW$40-1)+1),$CM53,IF($CN53="No",1,0))/ IF(DE53>INT($N53),$N53-INT($N53),1))* IF(DW$40=1,DE53, IF(INT(DE53)=INT(DD53),0,DE53-INT(DE53))))) -> 0.01622019611 | DY53: =+IF(OR(DG53=DF53,DY$40=1),0, IF(AND(DY$40>1,DG53=$N53),1-SUM($DX53:DX53), IF($N53<=1, IF($N53>0,1/$N53,0), IF(DY$40=2,0,VDB(1,0,$N53,INT(DY$40-2-1),MIN($N53,INT(DY$40-2-1)+1),$CM53,IF($CN53="No",1,0))/ IF(DF53>=INT($N53),$N53-INT($N53),1)))* IF(DY$40=2,0, IF(INT(DG53)=INT(DF53),DG53-DF53,INT(DG53)-DF53))+ IF($N53<=1, IF($N53>0,1/$N53,0),VDB(1,0,$N53,INT(DY$40-2),MIN($N53,INT(DY$40-2)+1),$CM53,IF($CN53="No",1,0))/ IF(DG53>INT($N53),$N53-INT($N53),1))* IF(DY$40=2,DG53, IF(INT(DG53)=INT(DF53),0,DG53-INT(DG53))))) -> 0 | DZ53: =+IF(OR(DH53=DG53,DZ$40=1),0, IF(AND(DZ$40>1,DH53=$N53),1-SUM($DX53:DY53), IF($N53<=1, IF($N53>0,1/$N53,0), IF(DZ$40=2,0,VDB(1,0,$N53,INT(DZ$40-2-1),MIN($N53,INT(DZ$40-2-1)+1),$CM53,IF($CN53="No",1,0))/ IF(DG53>=INT($N53),$N53-INT($N53),1)))* IF(DZ$40=2,0, IF(INT(DH53)=INT(DG53),DH53-DG53,INT(DH53)-DG53))+ IF($N53<=1, IF($N53>0,1/$N53,0),VDB(1,0,$N53,INT(DZ$40-2),MIN($N53,INT(DZ$40-2)+1),$CM53,IF($CN53="No",1,0))/ IF(DH53>INT($N53),$N53-INT($N53),1))* IF(DZ$40=2,DH53, IF(INT(DH53)=INT(DG53),0,DH53-INT(DH53))))) -> 0.009143395114 | EA53: =+IF(OR(DI53=DH53,EA$40=1),0, IF(AND(EA$40>1,DI53=$N53),1-SUM($DX53:DZ53), IF($N53<=1, IF($N53>0,1/$N53,0), IF(EA$40=2,0,VDB(1,0,$N53,INT(EA$40-2-1),MIN($N53,INT(EA$40-2-1)+1),$CM53,IF($CN53="No",1,0))/ IF(DH53>=INT($N53),$N53-INT($N53),1)))* IF(EA$40=2,0, IF(INT(DI53)=INT(DH53),DI53-DH53,INT(DI53)-DH53))+ IF($N53<=1, IF($N53>0,1/$N53,0),VDB(1,0,$N53,INT(EA$40-2),MIN($N53,INT(EA$40-2)+1),$CM53,IF($CN53="No",1,0))/ IF(DI53>INT($N53),$N53-INT($N53),1))* IF(EA$40=2,DI53, IF(INT(DI53)=INT(DH53),0,DI53-INT(DI53))))) -> 0.01811958688 | EB53: =+IF(OR(DJ53=DI53,EB$40=1),0, IF(AND(EB$40>1,DJ53=$N53),1-SUM($DX53:EA53), IF($N53<=1, IF($N53>0,1/$N53,0), IF(EB$40=2,0,VDB(1,0,$N53,INT(EB$40-2-1),MIN($N53,INT(EB$40-2-1)+1),$CM53,IF($CN53="No",1,0))/ IF(DI53>=INT($N53),$N53-INT($N53),1)))* IF(EB$40=2,0, IF(INT(DJ53)=INT(DI53),DJ53-DI53,INT(DJ53)-DI53))+ IF($N53<=1, IF($N53>0,1/$N53,0),VDB(1,0,$N53,INT(EB$40-2),MIN($N53,INT(EB$40-2)+1),$CM53,IF($CN53="No",1,0))/ IF(DJ53>INT($N53),$N53-INT($N53),1))* IF(EB$40=2,DJ53, IF(INT(DJ53)=INT(DI53),0,DJ53-INT(DJ53))))) -> 0.0177882378 | EC53: =+IF(OR(DK53=DJ53,EC$40=1),0, IF(AND(EC$40>1,DK53=$N53),1-SUM($DX53:EB53), IF($N53<=1, IF($N53>0,1/$N53,0), IF(EC$40=2,0,VDB(1,0,$N53,INT(EC$40-2-1),MIN($N53,INT(EC$40-2-1)+1),$CM53,IF($CN53="No",1,0))/ IF(DJ53>=INT($N53),$N53-INT($N53),1)))* IF(EC$40=2,0, IF(INT(DK53)=INT(DJ53),DK53-DJ53,INT(DK53)-DJ53))+ IF($N53<=1, IF($N53>0,1/$N53,0),VDB(1,0,$N53,INT(EC$40-2),MIN($N53,INT(EC$40-2)+1),$CM53,IF($CN53="No",1,0))/ IF(DK53>INT($N53),$N53-INT($N53),1))* IF(EC$40=2,DK53, IF(INT(DK53)=INT(DJ53),0,DK53-INT(DK53))))) -> 0.01746294802 | ED53: =+IF(OR(DL53=DK53,ED$40=1),0, IF(AND(ED$40>1,DL53=$N53),1-SUM($DX53:EC53), IF($N53<=1, IF($N53>0,1/$N53,0), IF(ED$40=2,0,VDB(1,0,$N53,INT(ED$40-2-1),MIN($N53,INT(ED$40-2-1)+1),$CM53,IF($CN53="No",1,0))/ IF(DK53>=INT($N53),$N53-INT($N53),1)))* IF(ED$40=2,0, IF(INT(DL53)=INT(DK53),DL53-DK53,INT(DL53)-DK53))+ IF($N53<=1, IF($N53>0,1/$N53,0),VDB(1,0,$N53,INT(ED$40-2),MIN($N53,INT(ED$40-2)+1),$CM53,IF($CN53="No",1,0))/ IF(DL53>INT($N53),$N53-INT($N53),1))* IF(ED$40=2,DL53, IF(INT(DL53)=INT(DK53),0,DL53-INT(DL53))))) -> 0.01714360676 | EE53: =+IF(OR(DM53=DL53,EE$40=1),0, IF(AND(EE$40>1,DM53=$N53),1-SUM($DX53:ED53), IF($N53<=1, IF($N53>0,1/$N53,0), IF(EE$40=2,0,VDB(1,0,$N53,INT(EE$40-2-1),MIN($N53,INT(EE$40-2-1)+1),$CM53,IF($CN53="No",1,0))/ IF(DL53>=INT($N53),$N53-INT($N53),1)))* IF(EE$40=2,0, IF(INT(DM53)=INT(DL53),DM53-DL53,INT(DM53)-DL53))+ IF($N53<=1, IF($N53>0,1/$N53,0),VDB(1,0,$N53,INT(EE$40-2),MIN($N53,INT(EE$40-2)+1),$CM53,IF($CN53="No",1,0))/ IF(DM53>INT($N53),$N53-INT($N53),1))* IF(EE$40=2,DM53, IF(INT(DM53)=INT(DL53),0,DM53-INT(DM53))))) -> 0.01683010521 | EF53: =+IF(OR(DN53=DM53,EF$40=1),0, IF(AND(EF$40>1,DN53=$N53),1-SUM($DX53:EE53), IF($N53<=1, IF($N53>0,1/$N53,0), IF(EF$40=2,0,VDB(1,0,$N53,INT(EF$40-2-1),MIN($N53,INT(EF$40-2-1)+1),$CM53,IF($CN53="No",1,0))/ IF(DM53>=INT($N53),$N53-INT($N53),1)))* IF(EF$40=2,0, IF(INT(DN53)=INT(DM53),DN53-DM53,INT(DN53)-DM53))+ IF($N53<=1, IF($N53>0,1/$N53,0),VDB(1,0,$N53,INT(EF$40-2),MIN($N53,INT(EF$40-2)+1),$CM53,IF($CN53="No",1,0))/ IF(DN53>INT($N53),$N53-INT($N53),1))* IF(EF$40=2,DN53, IF(INT(DN53)=INT(DM53),0,DN53-INT(DN53))))) -> 0.01652233661 | EH53: =+OFFSET($DY53,0,MAX($EH$40:$HI$40)-EH$40) -> 0.01652233661 | EI53: 0.01683010521 | EJ53: 0.01714360676 | EK53: 0.01746294802 | EL53: 0.0177882378 | EM53: 0.01811958688 | EN53: 0.009143395114 | EO53: 0 | EQ53: =-(-$CO53*(-ISBLANK($CO53)+1)*DP53- IF(EQ$40>1,SUMPRODUCT(OFFSET($CP53,0,0,1,EQ$40-1)*(-ISBLANK(OFFSET($CP53,0,0,1,EQ$40-1))+1),OFFSET($EH53,0,MAX($EQ$40:$HI$40)-EQ$40,1,EQ$40-1)),0)) -> 0.01976542511 | ER53: =-(-$CO53*(-ISBLANK($CO53)+1)*DQ53- IF(ER$40>1,SUMPRODUCT(OFFSET($CP53,0,0,1,ER$40-1)*(-ISBLANK(OFFSET($CP53,0,0,1,ER$40-1))+1),OFFSET($EH53,0,MAX($EQ$40:$HI$40)-ER$40,1,ER$40-1)),0)) -> 0.05666706676 | ES53: =-(-$CO53*(-ISBLANK($CO53)+1)*DR53- IF(ES$40>1,SUMPRODUCT(OFFSET($CP53,0,0,1,ES$40-1)*(-ISBLANK(OFFSET($CP53,0,0,1,ES$40-1))+1),OFFSET($EH53,0,MAX($EQ$40:$HI$40)-ES$40,1,ES$40-1)),0)) -> 0.09155351214 | ET53: =-(-$CO53*(-ISBLANK($CO53)+1)*DS53- IF(ET$40>1,SUMPRODUCT(OFFSET($CP53,0,0,1,ET$40-1)*(-ISBLANK(OFFSET($CP53,0,0,1,ET$40-1))+1),OFFSET($EH53,0,MAX($EQ$40:$HI$40)-ET$40,1,ET$40-1)),0)) -> 0.1299334677 | EU53: =-(-$CO53*(-ISBLANK($CO53)+1)*DT53- IF(EU$40>1,SUMPRODUCT(OFFSET($CP53,0,0,1,EU$40-1)*(-ISBLANK(OFFSET($CP53,0,0,1,EU$40-1))+1),OFFSET($EH53,0,MAX($EQ$40:$HI$40)-EU$40,1,EU$40-1)),0)) -> 0.1684097563 | EV53: =-(-$CO53*(-ISBLANK($CO53)+1)*DU53- IF(EV$40>1,SUMPRODUCT(OFFSET($CP53,0,0,1,EV$40-1)*(-ISBLANK(OFFSET($CP53,0,0,1,EV$40-1))+1),OFFSET($EH53,0,MAX($EQ$40:$HI$40)-EV$40,1,EV$40-1)),0)) -> 0.1951363655 | EW53: =-(-$CO53*(-ISBLANK($CO53)+1)*DV53- IF(EW$40>1,SUMPRODUCT(OFFSET($CP53,0,0,1,EW$40-1)*(-ISBLANK(OFFSET($CP53,0,0,1,EW$40-1))+1),OFFSET($EH53,0,MAX($EQ$40:$HI$40)-EW$40,1,EW$40-1)),0)) -> 0.2358110771 | EX53: =-(-$CO53*(-ISBLANK($CO53)+1)*DW53- IF(EX$40>1,SUMPRODUCT(OFFSET($CP53,0,0,1,EX$40-1)*(-ISBLANK(OFFSET($CP53,0,0,1,EX$40-1))+1),OFFSET($EH53,0,MAX($EQ$40:$HI$40)-EX$40,1,EX$40-1)),0)) -> 0.3520085856
C54: Water infrastructure - Growth | E54: Water | F54: Growth | G54: Pipelines/network | H54: Capital Programs / Allocation | J54: Straight line | K54: Ongoing | L54: 82.02642352 | M54: Declining Balance | N54: 82.02642352 | Q54: 12.85563553 | R54: 8.367761286 | S54: 7.499257201 | T54: 15.58300475 | U54: 17.83066656 | V54: 18.00333012 | W54: 28.12613404 | X54: 27.49923816 | AI54: 10.91177939 | AJ54: 6.243807373 | AK54: 4.290909831 | AL54: 5.854326364 | AM54: 6.611111281 | AN54: 6.61383394 | AO54: 11.51543728 | AP54: 12.21153956 | AR54: 1.943856139 | AS54: 2.123953913 | AT54: 3.208347371 | AU54: 9.728678382 | AV54: 11.21955528 | AW54: 11.38949618 | AX54: 16.61069677 | AY54: 15.2876986 | BA54: 0.01184896315 | BB54: 0.03664469285 | BC54: 0.06914825119 | BD54: 0.1480071432 | BE54: 0.2756991281 | BF54: 0.4135147885 | BG54: 0.5841926734 | BH54: 0.7786324283 | BJ54: =+IF($K54="Ongoing",AR54,IF(RIGHT($K54,2)=RIGHT(BJ$39,2),SUM($AR54:AR54),0)+IF(RIGHT(BJ$39,2)>RIGHT($K54,2),AR54,0)) -> 1.943856139 | BK54: =+IF($K54="Ongoing",AS54,IF(RIGHT($K54,2)=RIGHT(BK$39,2),SUM($AR54:AS54),0)+IF(RIGHT(BK$39,2)>RIGHT($K54,2),AS54,0)) -> 2.123953913 | BL54: =+IF($K54="Ongoing",AT54,IF(RIGHT($K54,2)=RIGHT(BL$39,2),SUM($AR54:AT54),0)+IF(RIGHT(BL$39,2)>RIGHT($K54,2),AT54,0)) -> 3.208347371 | BM54: =+IF($K54="Ongoing",AU54,IF(RIGHT($K54,2)=RIGHT(BM$39,2),SUM($AR54:AU54),0)+IF(RIGHT(BM$39,2)>RIGHT($K54,2),AU54,0)) -> 9.728678382 | BN54: =+IF($K54="Ongoing",AV54,IF(RIGHT($K54,2)=RIGHT(BN$39,2),SUM($AR54:AV54),0)+IF(RIGHT(BN$39,2)>RIGHT($K54,2),AV54,0)) -> 11.21955528 | BO54: =+IF($K54="Ongoing",AW54,IF(RIGHT($K54,2)=RIGHT(BO$39,2),SUM($AR54:AW54),0)+IF(RIGHT(BO$39,2)>RIGHT($K54,2),AW54,0)) -> 11.38949618 | BP54: =+IF($K54="Ongoing",AX54,IF(RIGHT($K54,2)=RIGHT(BP$39,2),SUM($AR54:AX54),0)+IF(RIGHT(BP$39,2)>RIGHT($K54,2),AX54,0)) -> 16.61069677 | BQ54: =+IF($K54="Ongoing",AY54,IF(RIGHT($K54,2)=RIGHT(BQ$39,2),SUM($AR54:AY54),0)+IF(RIGHT(BQ$39,2)>RIGHT($K54,2),AY54,0)) -> 15.2876986 | BS54: =+Q54*KeyAssumptionsPriceControl_FO!Z$15 -> 13.15131514 | BT54: =+R54*KeyAssumptionsPriceControl_FO!AA$15 -> 8.757104851 | BU54: =+S54*KeyAssumptionsPriceControl_FO!AB$15 -> 8.028698513 | BV54: =+T54*KeyAssumptionsPriceControl_FO!AC$15 -> 17.06686439 | BW54: =+U54*KeyAssumptionsPriceControl_FO!AD$15 -> 19.97771196 | BX54: =+V54*KeyAssumptionsPriceControl_FO!AE$15 -> 20.6351033 | BY54: =+W54*KeyAssumptionsPriceControl_FO!AF$15 -> 32.97915153 | BZ54: =+X54*KeyAssumptionsPriceControl_FO!AG$15 -> 32.98570207 | CB54: =IF($M54="straight line",IF($N54=0,0, IF($N54<=0.5,BS54, IF($J54="straight line", IF((LEFT(CB$39,4)*1)-INT($N54)<LEFT(#REF!,4)*1,0,((OFFSET(BS54,0,-INT($N54+0.5),1,1))/$N54)*(IF($N54-INT($N54)>0.5,$N54-0.5-INT($N54),IF($N54-INT($N54)<=0.5,$N54-0.5-INT($N54)+1,0)))) +BS54/$N54*0.5, IF($J54="Declining Balance",-#REF!,0)))),IFERROR(EQ54,0)) -> 0.1202476706 | CC54: =IF($M54="straight line",IF($N54=0,0, IF($N54<=0.5,BT54, IF($J54="straight line", IF((LEFT(CC$39,4)*1)-INT($N54)<LEFT(#REF!,4)*1,0,((OFFSET(BT54,0,-INT($N54+0.5),1,1))/$N54)*(IF($N54-INT($N54)>0.5,$N54-0.5-INT($N54),IF($N54-INT($N54)<=0.5,$N54-0.5-INT($N54)+1,0)))) +BT54/$N54*0.5, IF($J54="Declining Balance",-#REF!,0)))),IFERROR(ER54,0)) -> 0.318366067 | CD54: =IF($M54="straight line",IF($N54=0,0, IF($N54<=0.5,BU54, IF($J54="straight line", IF((LEFT(CD$39,4)*1)-INT($N54)<LEFT(#REF!,4)*1,0,((OFFSET(BU54,0,-INT($N54+0.5),1,1))/$N54)*(IF($N54-INT($N54)>0.5,$N54-0.5-INT($N54),IF($N54-INT($N54)<=0.5,$N54-0.5-INT($N54)+1,0)))) +BU54/$N54*0.5, IF($J54="Declining Balance",-#REF!,0)))),IFERROR(ES54,0)) -> 0.466023406 | CE54: =IF($M54="straight line",IF($N54=0,0, IF($N54<=0.5,BV54, IF($J54="straight line", IF((LEFT(CE$39,4)*1)-INT($N54)<LEFT(#REF!,4)*1,0,((OFFSET(BV54,0,-INT($N54+0.5),1,1))/$N54)*(IF($N54-INT($N54)>0.5,$N54-0.5-INT($N54),IF($N54-INT($N54)<=0.5,$N54-0.5-INT($N54)+1,0)))) +BV54/$N54*0.5, IF($J54="Declining Balance",-#REF!,0)))),IFERROR(ET54,0)) -> 0.686959981 | CF54: =IF($M54="straight line",IF($N54=0,0, IF($N54<=0.5,BW54, IF($J54="straight line", IF((LEFT(CF$39,4)*1)-INT($N54)<LEFT(#REF!,4)*1,0,((OFFSET(BW54,0,-INT($N54+0.5),1,1))/$N54)*(IF($N54-INT($N54)>0.5,$N54-0.5-INT($N54),IF($N54-INT($N54)<=0.5,$N54-0.5-INT($N54)+1,0)))) +BW54/$N54*0.5, IF($J54="Declining Balance",-#REF!,0)))),IFERROR(EU54,0)) -> 1.013110886 | CG54: =IF($M54="straight line",IF($N54=0,0, IF($N54<=0.5,BX54, IF($J54="straight line", IF((LEFT(CG$39,4)*1)-INT($N54)<LEFT(#REF!,4)*1,0,((OFFSET(BX54,0,-INT($N54+0.5),1,1))/$N54)*(IF($N54-INT($N54)>0.5,$N54-0.5-INT($N54),IF($N54-INT($N54)<=0.5,$N54-0.5-INT($N54)+1,0)))) +BX54/$N54*0.5, IF($J54="Declining Balance",-#REF!,0)))),IFERROR(EV54,0)) -> 1.365923357 | CH54: =IF($M54="straight line",IF($N54=0,0, IF($N54<=0.5,BY54, IF($J54="straight line", IF((LEFT(CH$39,4)*1)-INT($N54)<LEFT(#REF!,4)*1,0,((OFFSET(BY54,0,-INT($N54+0.5),1,1))/$N54)*(IF($N54-INT($N54)>0.5,$N54-0.5-INT($N54),IF($N54-INT($N54)<=0.5,$N54-0.5-INT($N54)+1,0)))) +BY54/$N54*0.5, IF($J54="Declining Balance",-#REF!,0)))),IFERROR(EW54,0)) -> 1.831161318 | CI54: =IF($M54="straight line",IF($N54=0,0, IF($N54<=0.5,BZ54, IF($J54="straight line", IF((LEFT(CI$39,4)*1)-INT($N54)<LEFT(#REF!,4)*1,0,((OFFSET(BZ54,0,-INT($N54+0.5),1,1))/$N54)*(IF($N54-INT($N54)>0.5,$N54-0.5-INT($N54),IF($N54-INT($N54)<=0.5,$N54-0.5-INT($N54)+1,0)))) +BZ54/$N54*0.5, IF($J54="Declining Balance",-#REF!,0)))),IFERROR(EX54,0)) -> 2.400817976 | CM54: 1.5 | CN54: No | CO54: =+IF($K54="ongoing",BS54,IF(RIGHT($K54,2)=RIGHT(CO$39,2),SUM($BR54:BS54),0)+IF(RIGHT(CO$39,2)>RIGHT($K54,2),BS54,0)) -> 13.15131514 | CP54: =+IF($K54="ongoing",BT54,IF(RIGHT($K54,2)=RIGHT(CP$39,2),SUM($BR54:BT54),0)+IF(RIGHT(CP$39,2)>RIGHT($K54,2),BT54,0)) -> 8.757104851 | CQ54: =+IF($K54="ongoing",BU54,IF(RIGHT($K54,2)=RIGHT(CQ$39,2),SUM($BR54:BU54),0)+IF(RIGHT(CQ$39,2)>RIGHT($K54,2),BU54,0)) -> 8.028698513 | CR54: =+IF($K54="ongoing",BV54,IF(RIGHT($K54,2)=RIGHT(CR$39,2),SUM($BR54:BV54),0)+IF(RIGHT(CR$39,2)>RIGHT($K54,2),BV54,0)) -> 17.06686439 | CS54: =+IF($K54="ongoing",BW54,IF(RIGHT($K54,2)=RIGHT(CS$39,2),SUM($BR54:BW54),0)+IF(RIGHT(CS$39,2)>RIGHT($K54,2),BW54,0)) -> 19.97771196 | CT54: =+IF($K54="ongoing",BX54,IF(RIGHT($K54,2)=RIGHT(CT$39,2),SUM($BR54:BX54),0)+IF(RIGHT(CT$39,2)>RIGHT($K54,2),BX54,0)) -> 20.6351033 | CU54: =+IF($K54="ongoing",BY54,IF(RIGHT($K54,2)=RIGHT(CU$39,2),SUM($BR54:BY54),0)+IF(RIGHT(CU$39,2)>RIGHT($K54,2),BY54,0)) -> 32.97915153 | CV54: =+IF($K54="ongoing",BZ54,IF(RIGHT($K54,2)=RIGHT(CV$39,2),SUM($BR54:BZ54),0)+IF(RIGHT(CV$39,2)>RIGHT($K54,2),BZ54,0)) -> 32.98570207 | CX54: =+MIN(IF($N54<=$CM54,MIN($N54,1),$N54),IF(CX$40=1,0.5,#REF!+1)) -> 0.5 | CY54: 1.5 | CZ54: 2.5 | DA54: 3.5 | DB54: 4.5 | DC54: 5.5 | DD54: 6.5 | DE54: 7.5 | DG54: =+IF(DG$40=1,0,MIN(IF($N54<=$CM54,MIN($N54,1),$N54),IF(DG$40=2,0.5,#REF!+1))) -> 0 | DH54: 0.5 | DI54: 1.5 | DJ54: 2.5 | DK54: 3.5 | DL54: 4.5 | DM54: 5.5 | DN54: 6.5 | DP54: =+IF(CX54=CW54,0, IF(AND(DP$40>1,CX54=$N54),1-SUM($DO54:DO54), IF($N54<=1, IF($N54>0,1/$N54,0), IF(DP$40=1,0,VDB(1,0,$N54,INT(DP$40-1-1),MIN($N54,INT(DP$40-1-1)+1),$CM54,IF($CN54="No",1,0))/ IF(CW54>=INT($N54),$N54-INT($N54),1)))* IF(DP$40=1,0, IF(INT(CX54)=INT(CW54),CX54-CW54,INT(CX54)-CW54))+ IF($N54<=1, IF($N54>0,1/$N54,0),VDB(1,0,$N54,INT(DP$40-1),MIN($N54,INT(DP$40-1)+1),$CM54,IF($CN54="No",1,0))/ IF(CX54>INT($N54),$N54-INT($N54),1))* IF(DP$40=1,CX54, IF(INT(CX54)=INT(CW54),0,CX54-INT(CX54))))) -> 0.009143395114 | DQ54: =+IF(CY54=CX54,0, IF(AND(DQ$40>1,CY54=$N54),1-SUM($DO54:DP54), IF($N54<=1, IF($N54>0,1/$N54,0), IF(DQ$40=1,0,VDB(1,0,$N54,INT(DQ$40-1-1),MIN($N54,INT(DQ$40-1-1)+1),$CM54,IF($CN54="No",1,0))/ IF(CX54>=INT($N54),$N54-INT($N54),1)))* IF(DQ$40=1,0, IF(INT(CY54)=INT(CX54),CY54-CX54,INT(CY54)-CX54))+ IF($N54<=1, IF($N54>0,1/$N54,0),VDB(1,0,$N54,INT(DQ$40-1),MIN($N54,INT(DQ$40-1)+1),$CM54,IF($CN54="No",1,0))/ IF(CY54>INT($N54),$N54-INT($N54),1))* IF(DQ$40=1,CY54, IF(INT(CY54)=INT(CX54),0,CY54-INT(CY54))))) -> 0.01811958688 | DR54: =+IF(CZ54=CY54,0, IF(AND(DR$40>1,CZ54=$N54),1-SUM($DO54:DQ54), IF($N54<=1, IF($N54>0,1/$N54,0), IF(DR$40=1,0,VDB(1,0,$N54,INT(DR$40-1-1),MIN($N54,INT(DR$40-1-1)+1),$CM54,IF($CN54="No",1,0))/ IF(CY54>=INT($N54),$N54-INT($N54),1)))* IF(DR$40=1,0, IF(INT(CZ54)=INT(CY54),CZ54-CY54,INT(CZ54)-CY54))+ IF($N54<=1, IF($N54>0,1/$N54,0),VDB(1,0,$N54,INT(DR$40-1),MIN($N54,INT(DR$40-1)+1),$CM54,IF($CN54="No",1,0))/ IF(CZ54>INT($N54),$N54-INT($N54),1))* IF(DR$40=1,CZ54, IF(INT(CZ54)=INT(CY54),0,CZ54-INT(CZ54))))) -> 0.0177882378 | DS54: =+IF(DA54=CZ54,0, IF(AND(DS$40>1,DA54=$N54),1-SUM($DO54:DR54), IF($N54<=1, IF($N54>0,1/$N54,0), IF(DS$40=1,0,VDB(1,0,$N54,INT(DS$40-1-1),MIN($N54,INT(DS$40-1-1)+1),$CM54,IF($CN54="No",1,0))/ IF(CZ54>=INT($N54),$N54-INT($N54),1)))* IF(DS$40=1,0, IF(INT(DA54)=INT(CZ54),DA54-CZ54,INT(DA54)-CZ54))+ IF($N54<=1, IF($N54>0,1/$N54,0),VDB(1,0,$N54,INT(DS$40-1),MIN($N54,INT(DS$40-1)+1),$CM54,IF($CN54="No",1,0))/ IF(DA54>INT($N54),$N54-INT($N54),1))* IF(DS$40=1,DA54, IF(INT(DA54)=INT(CZ54),0,DA54-INT(DA54))))) -> 0.01746294802 | DT54: =+IF(DB54=DA54,0, IF(AND(DT$40>1,DB54=$N54),1-SUM($DO54:DS54), IF($N54<=1, IF($N54>0,1/$N54,0), IF(DT$40=1,0,VDB(1,0,$N54,INT(DT$40-1-1),MIN($N54,INT(DT$40-1-1)+1),$CM54,IF($CN54="No",1,0))/ IF(DA54>=INT($N54),$N54-INT($N54),1)))* IF(DT$40=1,0, IF(INT(DB54)=INT(DA54),DB54-DA54,INT(DB54)-DA54))+ IF($N54<=1, IF($N54>0,1/$N54,0),VDB(1,0,$N54,INT(DT$40-1),MIN($N54,INT(DT$40-1)+1),$CM54,IF($CN54="No",1,0))/ IF(DB54>INT($N54),$N54-INT($N54),1))* IF(DT$40=1,DB54, IF(INT(DB54)=INT(DA54),0,DB54-INT(DB54))))) -> 0.01714360676 | DU54: =+IF(DC54=DB54,0, IF(AND(DU$40>1,DC54=$N54),1-SUM($DO54:DT54), IF($N54<=1, IF($N54>0,1/$N54,0), IF(DU$40=1,0,VDB(1,0,$N54,INT(DU$40-1-1),MIN($N54,INT(DU$40-1-1)+1),$CM54,IF($CN54="No",1,0))/ IF(DB54>=INT($N54),$N54-INT($N54),1)))* IF(DU$40=1,0, IF(INT(DC54)=INT(DB54),DC54-DB54,INT(DC54)-DB54))+ IF($N54<=1, IF($N54>0,1/$N54,0),VDB(1,0,$N54,INT(DU$40-1),MIN($N54,INT(DU$40-1)+1),$CM54,IF($CN54="No",1,0))/ IF(DC54>INT($N54),$N54-INT($N54),1))* IF(DU$40=1,DC54, IF(INT(DC54)=INT(DB54),0,DC54-INT(DC54))))) -> 0.01683010521 | DV54: =+IF(DD54=DC54,0, IF(AND(DV$40>1,DD54=$N54),1-SUM($DO54:DU54), IF($N54<=1, IF($N54>0,1/$N54,0), IF(DV$40=1,0,VDB(1,0,$N54,INT(DV$40-1-1),MIN($N54,INT(DV$40-1-1)+1),$CM54,IF($CN54="No",1,0))/ IF(DC54>=INT($N54),$N54-INT($N54),1)))* IF(DV$40=1,0, IF(INT(DD54)=INT(DC54),DD54-DC54,INT(DD54)-DC54))+ IF($N54<=1, IF($N54>0,1/$N54,0),VDB(1,0,$N54,INT(DV$40-1),MIN($N54,INT(DV$40-1)+1),$CM54,IF($CN54="No",1,0))/ IF(DD54>INT($N54),$N54-INT($N54),1))* IF(DV$40=1,DD54, IF(INT(DD54)=INT(DC54),0,DD54-INT(DD54))))) -> 0.01652233661 | DW54: =+IF(DE54=DD54,0, IF(AND(DW$40>1,DE54=$N54),1-SUM($DO54:DV54), IF($N54<=1, IF($N54>0,1/$N54,0), IF(DW$40=1,0,VDB(1,0,$N54,INT(DW$40-1-1),MIN($N54,INT(DW$40-1-1)+1),$CM54,IF($CN54="No",1,0))/ IF(DD54>=INT($N54),$N54-INT($N54),1)))* IF(DW$40=1,0, IF(INT(DE54)=INT(DD54),DE54-DD54,INT(DE54)-DD54))+ IF($N54<=1, IF($N54>0,1/$N54,0),VDB(1,0,$N54,INT(DW$40-1),MIN($N54,INT(DW$40-1)+1),$CM54,IF($CN54="No",1,0))/ IF(DE54>INT($N54),$N54-INT($N54),1))* IF(DW$40=1,DE54, IF(INT(DE54)=INT(DD54),0,DE54-INT(DE54))))) -> 0.01622019611 | DY54: =+IF(OR(DG54=DF54,DY$40=1),0, IF(AND(DY$40>1,DG54=$N54),1-SUM($DX54:DX54), IF($N54<=1, IF($N54>0,1/$N54,0), IF(DY$40=2,0,VDB(1,0,$N54,INT(DY$40-2-1),MIN($N54,INT(DY$40-2-1)+1),$CM54,IF($CN54="No",1,0))/ IF(DF54>=INT($N54),$N54-INT($N54),1)))* IF(DY$40=2,0, IF(INT(DG54)=INT(DF54),DG54-DF54,INT(DG54)-DF54))+ IF($N54<=1, IF($N54>0,1/$N54,0),VDB(1,0,$N54,INT(DY$40-2),MIN($N54,INT(DY$40-2)+1),$CM54,IF($CN54="No",1,0))/ IF(DG54>INT($N54),$N54-INT($N54),1))* IF(DY$40=2,DG54, IF(INT(DG54)=INT(DF54),0,DG54-INT(DG54))))) -> 0 | DZ54: =+IF(OR(DH54=DG54,DZ$40=1),0, IF(AND(DZ$40>1,DH54=$N54),1-SUM($DX54:DY54), IF($N54<=1, IF($N54>0,1/$N54,0), IF(DZ$40=2,0,VDB(1,0,$N54,INT(DZ$40-2-1),MIN($N54,INT(DZ$40-2-1)+1),$CM54,IF($CN54="No",1,0))/ IF(DG54>=INT($N54),$N54-INT($N54),1)))* IF(DZ$40=2,0, IF(INT(DH54)=INT(DG54),DH54-DG54,INT(DH54)-DG54))+ IF($N54<=1, IF($N54>0,1/$N54,0),VDB(1,0,$N54,INT(DZ$40-2),MIN($N54,INT(DZ$40-2)+1),$CM54,IF($CN54="No",1,0))/ IF(DH54>INT($N54),$N54-INT($N54),1))* IF(DZ$40=2,DH54, IF(INT(DH54)=INT(DG54),0,DH54-INT(DH54))))) -> 0.009143395114 | EA54: =+IF(OR(DI54=DH54,EA$40=1),0, IF(AND(EA$40>1,DI54=$N54),1-SUM($DX54:DZ54), IF($N54<=1, IF($N54>0,1/$N54,0), IF(EA$40=2,0,VDB(1,0,$N54,INT(EA$40-2-1),MIN($N54,INT(EA$40-2-1)+1),$CM54,IF($CN54="No",1,0))/ IF(DH54>=INT($N54),$N54-INT($N54),1)))* IF(EA$40=2,0, IF(INT(DI54)=INT(DH54),DI54-DH54,INT(DI54)-DH54))+ IF($N54<=1, IF($N54>0,1/$N54,0),VDB(1,0,$N54,INT(EA$40-2),MIN($N54,INT(EA$40-2)+1),$CM54,IF($CN54="No",1,0))/ IF(DI54>INT($N54),$N54-INT($N54),1))* IF(EA$40=2,DI54, IF(INT(DI54)=INT(DH54),0,DI54-INT(DI54))))) -> 0.01811958688 | EB54: =+IF(OR(DJ54=DI54,EB$40=1),0, IF(AND(EB$40>1,DJ54=$N54),1-SUM($DX54:EA54), IF($N54<=1, IF($N54>0,1/$N54,0), IF(EB$40=2,0,VDB(1,0,$N54,INT(EB$40-2-1),MIN($N54,INT(EB$40-2-1)+1),$CM54,IF($CN54="No",1,0))/ IF(DI54>=INT($N54),$N54-INT($N54),1)))* IF(EB$40=2,0, IF(INT(DJ54)=INT(DI54),DJ54-DI54,INT(DJ54)-DI54))+ IF($N54<=1, IF($N54>0,1/$N54,0),VDB(1,0,$N54,INT(EB$40-2),MIN($N54,INT(EB$40-2)+1),$CM54,IF($CN54="No",1,0))/ IF(DJ54>INT($N54),$N54-INT($N54),1))* IF(EB$40=2,DJ54, IF(INT(DJ54)=INT(DI54),0,DJ54-INT(DJ54))))) -> 0.0177882378 | EC54: =+IF(OR(DK54=DJ54,EC$40=1),0, IF(AND(EC$40>1,DK54=$N54),1-SUM($DX54:EB54), IF($N54<=1, IF($N54>0,1/$N54,0), IF(EC$40=2,0,VDB(1,0,$N54,INT(EC$40-2-1),MIN($N54,INT(EC$40-2-1)+1),$CM54,IF($CN54="No",1,0))/ IF(DJ54>=INT($N54),$N54-INT($N54),1)))* IF(EC$40=2,0, IF(INT(DK54)=INT(DJ54),DK54-DJ54,INT(DK54)-DJ54))+ IF($N54<=1, IF($N54>0,1/$N54,0),VDB(1,0,$N54,INT(EC$40-2),MIN($N54,INT(EC$40-2)+1),$CM54,IF($CN54="No",1,0))/ IF(DK54>INT($N54),$N54-INT($N54),1))* IF(EC$40=2,DK54, IF(INT(DK54)=INT(DJ54),0,DK54-INT(DK54))))) -> 0.01746294802 | ED54: =+IF(OR(DL54=DK54,ED$40=1),0, IF(AND(ED$40>1,DL54=$N54),1-SUM($DX54:EC54), IF($N54<=1, IF($N54>0,1/$N54,0), IF(ED$40=2,0,VDB(1,0,$N54,INT(ED$40-2-1),MIN($N54,INT(ED$40-2-1)+1),$CM54,IF($CN54="No",1,0))/ IF(DK54>=INT($N54),$N54-INT($N54),1)))* IF(ED$40=2,0, IF(INT(DL54)=INT(DK54),DL54-DK54,INT(DL54)-DK54))+ IF($N54<=1, IF($N54>0,1/$N54,0),VDB(1,0,$N54,INT(ED$40-2),MIN($N54,INT(ED$40-2)+1),$CM54,IF($CN54="No",1,0))/ IF(DL54>INT($N54),$N54-INT($N54),1))* IF(ED$40=2,DL54, IF(INT(DL54)=INT(DK54),0,DL54-INT(DL54))))) -> 0.01714360676 | EE54: =+IF(OR(DM54=DL54,EE$40=1),0, IF(AND(EE$40>1,DM54=$N54),1-SUM($DX54:ED54), IF($N54<=1, IF($N54>0,1/$N54,0), IF(EE$40=2,0,VDB(1,0,$N54,INT(EE$40-2-1),MIN($N54,INT(EE$40-2-1)+1),$CM54,IF($CN54="No",1,0))/ IF(DL54>=INT($N54),$N54-INT($N54),1)))* IF(EE$40=2,0, IF(INT(DM54)=INT(DL54),DM54-DL54,INT(DM54)-DL54))+ IF($N54<=1, IF($N54>0,1/$N54,0),VDB(1,0,$N54,INT(EE$40-2),MIN($N54,INT(EE$40-2)+1),$CM54,IF($CN54="No",1,0))/ IF(DM54>INT($N54),$N54-INT($N54),1))* IF(EE$40=2,DM54, IF(INT(DM54)=INT(DL54),0,DM54-INT(DM54))))) -> 0.01683010521 | EF54: =+IF(OR(DN54=DM54,EF$40=1),0, IF(AND(EF$40>1,DN54=$N54),1-SUM($DX54:EE54), IF($N54<=1, IF($N54>0,1/$N54,0), IF(EF$40=2,0,VDB(1,0,$N54,INT(EF$40-2-1),MIN($N54,INT(EF$40-2-1)+1),$CM54,IF($CN54="No",1,0))/ IF(DM54>=INT($N54),$N54-INT($N54),1)))* IF(EF$40=2,0, IF(INT(DN54)=INT(DM54),DN54-DM54,INT(DN54)-DM54))+ IF($N54<=1, IF($N54>0,1/$N54,0),VDB(1,0,$N54,INT(EF$40-2),MIN($N54,INT(EF$40-2)+1),$CM54,IF($CN54="No",1,0))/ IF(DN54>INT($N54),$N54-INT($N54),1))* IF(EF$40=2,DN54, IF(INT(DN54)=INT(DM54),0,DN54-INT(DN54))))) -> 0.01652233661 | EH54: 0.01652233661 | EI54: 0.01683010521 | EJ54: 0.01714360676 | EK54: 0.01746294802 | EL54: 0.0177882378 | EM54: 0.01811958688 | EN54: 0.009143395114 | EO54: 0 | EQ54: 0.1202476706 | ER54: 0.318366067 | ES54: 0.466023406 | ET54: 0.686959981 | EU54: 1.013110886 | EV54: 1.365923357 | EW54: 1.831161318 | EX54: 2.400817976
